Workbook

Sheet Титул
W1: МИНИСТЕРСТВО ОБРАЗОВАНИЯ И НАУКИ | BT1: очная
A2: Квалификация | K2: Срок обуч. (#г ##м) | W2: ГОУ ВПО "Самарский государственный технический университет" | BC2: Утверждаю | BT2: очно-заочная | BV2: сокращенный срок обучения на базе СПО
A3: Специалист по связям с общественностью | K3: 5 | BC3: =Рабочий!C111&" ____________ / "&Ректор&" /" -> Ректор ____________ / Калашников В.В. / | BT3: заочная | BV3: сокращенный срок обучения на базе ВПО
K4: 0 | BD4: "___"__________20___ г.
K5: 0
AY7: =IF(Утв<>"","Утвержден электронно","") -> 
A8: =УченыйСовет -> План одобрен Ученым советом вуза | AJ8: Шифр плана в ИМЦА | BE8: от | BG8: 00:00:00
A9: 2006-11-27 | G9: протокол № | N9: 4
A10: =УчебныйПлан -> РАБОЧИЙ УЧЕБНЫЙ ПЛАН
Z11: специалистов | AM11: очная | AV11: =IF(AM11<>"","форма обучения","") -> форма обучения | BG11: 030602 | BN11: .65
A12: Направления 030600 "Журналистика" | BP12: ="" -> 
A13: специальности 030602 "Связи с общественностью" | BP13: Э
BP14: У
BP15: П
BP16: Д
BP17: Г
BP18: К
BP19: А
A20: График учебного процесса | BP20: = | BX20: 0.1666666667 | BY20: 0.1666666667 | BZ20: 0.1666666667 | CA20: 0.1666666667 | CB20: 0.1666666667 | CC20: 0.1666666667 | CD20: 0.1666666667 | CE20: 0.1666666667 | CF20: 0.1666666667 | CG20: 0.1666666667 | CH20: 0.1666666667 | CI20: 0.1666666667 | CJ20: 0.1666666667 | CK20: 0.1666666667 | CL20: 0.1666666667 | CM20: 0.1666666667 | CN20: 0.1666666667 | CO20: 0.1666666667 | CP20: 0.1666666667 | CQ20: 0.1666666667 | CR20: 0.1666666667 | CS20: 0.1666666667 | CT20: 0.1666666667 | CU20: 0.1666666667 | CV20: 0.1666666667 | CW20: 0.1666666667 | CX20: 0.1666666667 | CY20: 0.1666666667 | CZ20: 0.1666666667 | DA20: 0.1666666667 | DB20: 0.1666666667 | DC20: 0.1666666667 | DD20: 0.1666666667 | DE20: 0.1666666667 | DF20: 0.1666666667 | DG20: 0.1666666667 | DH20: 0.1666666667 | DI20: 0.1666666667 | DJ20: 0.1666666667 | DK20: 0.1666666667 | DL20: 0.1666666667 | DM20: 0.1666666667 | DN20: 0.1666666667 | DO20: 0.1666666667 | DP20: 0.1666666667 | DQ20: 0.1666666667 | DR20: 0.1666666667 | DS20: 0.1666666667 | DT20: 0.1666666667 | DU20: 0.1666666667 | DV20: 0.1666666667 | DW20: 0.1666666667
BX21: 0.1666666667 | BY21: 0.1666666667 | BZ21: 0.1666666667 | CA21: 0.1666666667 | CB21: 0.1666666667 | CC21: 0.1666666667 | CD21: 0.1666666667 | CE21: 0.1666666667 | CF21: 0.1666666667 | CG21: 0.1666666667 | CH21: 0.1666666667 | CI21: 0.1666666667 | CJ21: 0.1666666667 | CK21: 0.1666666667 | CL21: 0.1666666667 | CM21: 0.1666666667 | CN21: 0.1666666667 | CO21: 0.1666666667 | CP21: 0.1666666667 | CQ21: 0.1666666667 | CR21: 0.1666666667 | CS21: 0.1666666667 | CT21: 0.1666666667 | CU21: 0.1666666667 | CV21: 0.1666666667 | CW21: 0.1666666667 | CX21: 0.1666666667 | CY21: 0.1666666667 | CZ21: 0.1666666667 | DA21: 0.1666666667 | DB21: 0.1666666667 | DC21: 0.1666666667 | DD21: 0.1666666667 | DE21: 0.1666666667 | DF21: 0.1666666667 | DG21: 0.1666666667 | DH21: 0.1666666667 | DI21: 0.1666666667 | DJ21: 0.1666666667 | DK21: 0.1666666667 | DL21: 0.1666666667 | DM21: 0.1666666667 | DN21: 0.1666666667 | DO21: 0.1666666667 | DP21: 0.1666666667 | DQ21: 0.1666666667 | DR21: 0.1666666667 | DS21: 0.1666666667 | DT21: 0.1666666667 | DU21: 0.1666666667 | DV21: 0.1666666667 | DW21: 0.1666666667
BX22: 0.1666666667 | BY22: 0.1666666667 | BZ22: 0.1666666667 | CA22: 0.1666666667 | CB22: 0.1666666667 | CC22: 0.1666666667 | CD22: 0.1666666667 | CE22: 0.1666666667 | CF22: 0.1666666667 | CG22: 0.1666666667 | CH22: 0.1666666667 | CI22: 0.1666666667 | CJ22: 0.1666666667 | CK22: 0.1666666667 | CL22: 0.1666666667 | CM22: 0.1666666667 | CN22: 0.1666666667 | CO22: 0.1666666667 | CP22: 0.1666666667 | CQ22: 0.1666666667 | CR22: 0.1666666667 | CS22: 0.1666666667 | CT22: 0.1666666667 | CU22: 0.1666666667 | CV22: 0.1666666667 | CW22: 0.1666666667 | CX22: 0.1666666667 | CY22: 0.1666666667 | CZ22: 0.1666666667 | DA22: 0.1666666667 | DB22: 0.1666666667 | DC22: 0.1666666667 | DD22: 0.1666666667 | DE22: 0.1666666667 | DF22: 0.1666666667 | DG22: 0.1666666667 | DH22: 0.1666666667 | DI22: 0.1666666667 | DJ22: 0.1666666667 | DK22: 0.1666666667 | DL22: 0.1666666667 | DM22: 0.1666666667 | DN22: 0.1666666667 | DO22: 0.1666666667 | DP22: 0.1666666667 | DQ22: 0.1666666667 | DR22: 0.1666666667 | DS22: 0.1666666667 | DT22: 0.1666666667 | DU22: 0.1666666667 | DV22: 0.1666666667 | DW22: 0.1666666667
B23: Сентябрь | G23: Октябрь | K23: Ноябрь | O23: Декабрь | T23: Январь | X23: Февраль | AB23: Март | AG23: Апрель | AK23: Май | AO23: Июнь | AT23: Июль | AX23: Август | BB23: Недель | BM23: =PROPER(Студент)&"ов" -> Студентов | BN23: Групп | BO23: Курс | BX23: 0.1666666667 | BY23: 0.1666666667 | BZ23: 0.1666666667 | CA23: 0.1666666667 | CB23: 0.1666666667 | CC23: 0.1666666667 | CD23: 0.1666666667 | CE23: 0.1666666667 | CF23: 0.1666666667 | CG23: 0.1666666667 | CH23: 0.1666666667 | CI23: 0.1666666667 | CJ23: 0.1666666667 | CK23: 0.1666666667 | CL23: 0.1666666667 | CM23: 0.1666666667 | CN23: 0.1666666667 | CO23: 0.1666666667 | CP23: 0.1666666667 | CQ23: 0.1666666667 | CR23: 0.1666666667 | CS23: 0.1666666667 | CT23: 0.1666666667 | CU23: 0.1666666667 | CV23: 0.1666666667 | CW23: 0.1666666667 | CX23: 0.1666666667 | CY23: 0.1666666667 | CZ23: 0.1666666667 | DA23: 0.1666666667 | DB23: 0.1666666667 | DC23: 0.1666666667 | DD23: 0.1666666667 | DE23: 0.1666666667 | DF23: 0.1666666667 | DG23: 0.1666666667 | DH23: 0.1666666667 | DI23: 0.1666666667 | DJ23: 0.1666666667 | DK23: 0.1666666667 | DL23: 0.1666666667 | DM23: 0.1666666667 | DN23: 0.1666666667 | DO23: 0.1666666667 | DP23: 0.1666666667 | DQ23: 0.1666666667 | DR23: 0.1666666667 | DS23: 0.1666666667 | DT23: 0.1666666667 | DU23: 0.1666666667 | DV23: 0.1666666667 | DW23: 0.1666666667
A24: Курсы | B24: 1-7 сен | C24: 8-14 сен | D24: 15-21 сен | E24: 22-28 сен | F24: 29 сен - 5 окт | G24: 6-12 окт | H24: 13-19 окт | I24: 20-26 окт | J24: 27 окт - 02 ноя | K24: 3-9 ноя | L24: 10-16 ноя | M24: 17-23 ноя | N24: 24 ноя - 30 ноя | O24: 1-7 дек | P24: 8-14 дек | Q24: 15-21 дек | R24: 22-28 дек | S24: 29 дек - 4 янв | T24: 5-11 янв | U24: 12-18 янв | V24: 19-25 янв | W24: 26 янв - 1 фев | X24: 2-8 фев | Y24: 9-15 фев | Z24: 16-22 фев | AA24: 23 фев - 1 мар | AB24: 2-8 мар | AC24: 9-15 мар | AD24: 16-22 мар | AE24: 23-29 мар | AF24: 30 мар - 5 апр | AG24: 6-12 апр | AH24: 13-19 апр | AI24: 20-26 апр | AJ24: 27 апр - 3 май | AK24: 4-10 май | AL24: 11-17 май | AM24: 18-24 май | AN24: 25-31 май | AO24: 1-7 июн | AP24: 8-14 июн | AQ24: 15-21 июн | AR24: 22-28 июн | AS24: 29 июн - 5 июл | AT24: 6-12 июл | AU24: 13-19 июл | AV24: 20-26 июл | AW24: 27 июл -2 авг | AX24: 3-9 авг | AY24: 10-16 авг | AZ24: 17-23 авг | BA24: 24-30 авг | BB24: Теоретическое обучение | BE24: Экзаменационные сессии | BF24: Итоговая Аттестация | BG24: Учебная практика | BH24: Другие Практики, НИР | BI24: Дипломная работа (ВКР) | BJ24: Гос. Экзамены и защита | BK24: Каникулы | BL24: Всего | BU24: Нед на экз. в осень | BV24: Недели на др. виды работ (дополнение) | BW24: Недели ТО (дополнение О) | BX24: 0.1666666667 | BY24: 0.1666666667 | BZ24: 0.1666666667 | CA24: 0.1666666667 | CB24: 0.1666666667 | CC24: 0.1666666667 | CD24: 0.1666666667 | CE24: 0.1666666667 | CF24: 0.1666666667 | CG24: 0.1666666667 | CH24: 0.1666666667 | CI24: 0.1666666667 | CJ24: 0.1666666667 | CK24: 0.1666666667 | CL24: 0.1666666667 | CM24: 0.1666666667 | CN24: 0.1666666667 | CO24: 0.1666666667 | CP24: 0.1666666667 | CQ24: 0.1666666667 | CR24: 0.1666666667 | CS24: 0.1666666667 | CT24: 0.1666666667 | CU24: 0.1666666667 | CV24: 0.1666666667 | CW24: 0.1666666667 | CX24: 0.1666666667 | CY24: 0.1666666667 | CZ24: 0.1666666667 | DA24: 0.1666666667 | DB24: 0.1666666667 | DC24: 0.1666666667 | DD24: 0.1666666667 | DE24: 0.1666666667 | DF24: 0.1666666667 | DG24: 0.1666666667 | DH24: 0.1666666667 | DI24: 0.1666666667 | DJ24: 0.1666666667 | DK24: 0.1666666667 | DL24: 0.1666666667 | DM24: 0.1666666667 | DN24: 0.1666666667 | DO24: 0.1666666667 | DP24: 0.1666666667 | DQ24: 0.1666666667 | DR24: 0.1666666667 | DS24: 0.1666666667 | DT24: 0.1666666667 | DU24: 0.1666666667 | DV24: 0.1666666667 | DW24: 0.1666666667 | DX24: Недели ТО (дополнение В) | DY24: Нед на экз. в весна
A25: =IF(NOT(BS33),"Au","!") -> Au | B25: 1 | C25: 2 | D25: 3 | E25: 4 | F25: 5 | G25: 6 | H25: 7 | I25: 8 | J25: 9 | K25: 10 | L25: 11 | M25: 12 | N25: 13 | O25: 14 | P25: 15 | Q25: 16 | R25: 17 | S25: 18 | T25: 19 | U25: 20 | V25: 21 | W25: 22 | X25: 23 | Y25: 24 | Z25: 25 | AA25: 26 | AB25: 27 | AC25: 28 | AD25: 29 | AE25: 30 | AF25: 31 | AG25: 32 | AH25: 33 | AI25: 34 | AJ25: 35 | AK25: 36 | AL25: 37 | AM25: 38 | AN25: 39 | AO25: 40 | AP25: 41 | AQ25: 42 | AR25: 43 | AS25: 44 | AT25: 45 | AU25: 46 | AV25: 47 | AW25: 48 | AX25: 49 | AY25: 50 | AZ25: 51 | BA25: 52 | BX25: 0.1666666667 | BY25: 0.1666666667 | BZ25: 0.1666666667 | CA25: 0.1666666667 | CB25: 0.1666666667 | CC25: 0.1666666667 | CD25: 0.1666666667 | CE25: 0.1666666667 | CF25: 0.1666666667 | CG25: 0.1666666667 | CH25: 0.1666666667 | CI25: 0.1666666667 | CJ25: 0.1666666667 | CK25: 0.1666666667 | CL25: 0.1666666667 | CM25: 0.1666666667 | CN25: 0.1666666667 | CO25: 0.1666666667 | CP25: 0.1666666667 | CQ25: 0.1666666667 | CR25: 0.1666666667 | CS25: 0.1666666667 | CT25: 0.1666666667 | CU25: 0.1666666667 | CV25: 0.1666666667 | CW25: 0.1666666667 | CX25: 0.1666666667 | CY25: 0.1666666667 | CZ25: 0.1666666667 | DA25: 0.1666666667 | DB25: 0.1666666667 | DC25: 0.1666666667 | DD25: 0.1666666667 | DE25: 0.1666666667 | DF25: 0.1666666667 | DG25: 0.1666666667 | DH25: 0.1666666667 | DI25: 0.1666666667 | DJ25: 0.1666666667 | DK25: 0.1666666667 | DL25: 0.1666666667 | DM25: 0.1666666667 | DN25: 0.1666666667 | DO25: 0.1666666667 | DP25: 0.1666666667 | DQ25: 0.1666666667 | DR25: 0.1666666667 | DS25: 0.1666666667 | DT25: 0.1666666667 | DU25: 0.1666666667 | DV25: 0.1666666667 | DW25: 0.1666666667
A26: 0 | B26: = | C26: = | D26: = | E26: = | F26: = | G26: = | H26: = | I26: = | J26: = | K26: = | L26: = | M26: = | N26: = | O26: = | P26: = | Q26: = | R26: = | S26: = | T26: = | U26: = | V26: = | W26: = | X26: = | Y26: = | Z26: = | AA26: = | AB26: = | AC26: = | AD26: = | AE26: = | AF26: = | AG26: = | AH26: = | AI26: = | AJ26: = | AK26: = | AL26: = | AM26: = | AN26: = | AO26: = | AP26: = | AQ26: = | AR26: = | AS26: = | AT26: = | AU26: = | AV26: = | AW26: = | AX26: = | AY26: = | AZ26: = | BA26: = | BB26: О | BC26: В | BD26: Итого | BS26: 1 | BT26: 139 | BX26: =IF(B26="",0,B26) -> = | BY26: =IF(C26="",0,C26) -> = | BZ26: = | CA26: = | CB26: = | CC26: = | CD26: = | CE26: = | CF26: = | CG26: = | CH26: = | CI26: = | CJ26: = | CK26: = | CL26: = | CM26: = | CN26: = | CO26: = | CP26: = | CQ26: = | CR26: = | CS26: = | CT26: = | CU26: = | CV26: = | CW26: = | CX26: = | CY26: = | CZ26: = | DA26: = | DB26: = | DC26: = | DD26: = | DE26: = | DF26: = | DG26: = | DH26: = | DI26: = | DJ26: = | DK26: = | DL26: = | DM26: = | DN26: = | DO26: = | DP26: = | DQ26: = | DR26: = | DS26: = | DT26: = | DU26: = | DV26: = | DW26: =
BS27: 1 | BT27: 139 | BX27: =IF(B26="",0,B26) -> = | BY27: =IF(C26="",0,C26) -> = | BZ27: =IF(D26="",0,D26) -> = | CA27: =IF(E26="",0,E26) -> = | CB27: =IF(F26="",0,F26) -> = | CC27: =IF(G26="",0,G26) -> = | CD27: =IF(H26="",0,H26) -> = | CE27: =IF(I26="",0,I26) -> = | CF27: =IF(J26="",0,J26) -> = | CG27: =IF(K26="",0,K26) -> = | CH27: =IF(L26="",0,L26) -> = | CI27: =IF(M26="",0,M26) -> = | CJ27: =IF(N26="",0,N26) -> = | CK27: =IF(O26="",0,O26) -> = | CL27: =IF(P26="",0,P26) -> = | CM27: =IF(Q26="",0,Q26) -> = | CN27: =IF(R26="",0,R26) -> = | CO27: =IF(S26="",0,S26) -> = | CP27: =IF(T26="",0,T26) -> = | CQ27: =IF(U26="",0,U26) -> = | CR27: =IF(V26="",0,V26) -> = | CS27: =IF(W26="",0,W26) -> = | CT27: =IF(X26="",0,X26) -> = | CU27: =IF(Y26="",0,Y26) -> = | CV27: =IF(Z26="",0,Z26) -> = | CW27: =IF(AA26="",0,AA26) -> = | CX27: =IF(AB26="",0,AB26) -> = | CY27: =IF(AC26="",0,AC26) -> = | CZ27: =IF(AD26="",0,AD26) -> = | DA27: =IF(AE26="",0,AE26) -> = | DB27: =IF(AF26="",0,AF26) -> = | DC27: =IF(AG26="",0,AG26) -> = | DD27: =IF(AH26="",0,AH26) -> = | DE27: =IF(AI26="",0,AI26) -> = | DF27: =IF(AJ26="",0,AJ26) -> = | DG27: =IF(AK26="",0,AK26) -> = | DH27: =IF(AL26="",0,AL26) -> = | DI27: =IF(AM26="",0,AM26) -> = | DJ27: =IF(AN26="",0,AN26) -> = | DK27: =IF(AO26="",0,AO26) -> = | DL27: =IF(AP26="",0,AP26) -> = | DM27: =IF(AQ26="",0,AQ26) -> = | DN27: =IF(AR26="",0,AR26) -> = | DO27: =IF(AS26="",0,AS26) -> = | DP27: =IF(AT26="",0,AT26) -> = | DQ27: =IF(AU26="",0,AU26) -> = | DR27: =IF(AV26="",0,AV26) -> = | DS27: =IF(AW26="",0,AW26) -> = | DT27: =IF(AX26="",0,AX26) -> = | DU27: =IF(AY26="",0,AY26) -> = | DV27: =IF(AZ26="",0,AZ26) -> = | DW27: =IF(BA26="",0,BA26) -> =
BS28: 1 | BT28: 139 | BX28: =IF(B26="",0,B26) -> = | BY28: =IF(C26="",0,C26) -> = | BZ28: =IF(D26="",0,D26) -> = | CA28: =IF(E26="",0,E26) -> = | CB28: =IF(F26="",0,F26) -> = | CC28: =IF(G26="",0,G26) -> = | CD28: =IF(H26="",0,H26) -> = | CE28: =IF(I26="",0,I26) -> = | CF28: =IF(J26="",0,J26) -> = | CG28: =IF(K26="",0,K26) -> = | CH28: =IF(L26="",0,L26) -> = | CI28: =IF(M26="",0,M26) -> = | CJ28: =IF(N26="",0,N26) -> = | CK28: =IF(O26="",0,O26) -> = | CL28: =IF(P26="",0,P26) -> = | CM28: =IF(Q26="",0,Q26) -> = | CN28: =IF(R26="",0,R26) -> = | CO28: =IF(S26="",0,S26) -> = | CP28: =IF(T26="",0,T26) -> = | CQ28: =IF(U26="",0,U26) -> = | CR28: =IF(V26="",0,V26) -> = | CS28: =IF(W26="",0,W26) -> = | CT28: =IF(X26="",0,X26) -> = | CU28: =IF(Y26="",0,Y26) -> = | CV28: =IF(Z26="",0,Z26) -> = | CW28: =IF(AA26="",0,AA26) -> = | CX28: =IF(AB26="",0,AB26) -> = | CY28: =IF(AC26="",0,AC26) -> = | CZ28: =IF(AD26="",0,AD26) -> = | DA28: =IF(AE26="",0,AE26) -> = | DB28: =IF(AF26="",0,AF26) -> = | DC28: =IF(AG26="",0,AG26) -> = | DD28: =IF(AH26="",0,AH26) -> = | DE28: =IF(AI26="",0,AI26) -> = | DF28: =IF(AJ26="",0,AJ26) -> = | DG28: =IF(AK26="",0,AK26) -> = | DH28: =IF(AL26="",0,AL26) -> = | DI28: =IF(AM26="",0,AM26) -> = | DJ28: =IF(AN26="",0,AN26) -> = | DK28: =IF(AO26="",0,AO26) -> = | DL28: =IF(AP26="",0,AP26) -> = | DM28: =IF(AQ26="",0,AQ26) -> = | DN28: =IF(AR26="",0,AR26) -> = | DO28: =IF(AS26="",0,AS26) -> = | DP28: =IF(AT26="",0,AT26) -> = | DQ28: =IF(AU26="",0,AU26) -> = | DR28: =IF(AV26="",0,AV26) -> = | DS28: =IF(AW26="",0,AW26) -> = | DT28: =IF(AX26="",0,AX26) -> = | DU28: =IF(AY26="",0,AY26) -> = | DV28: =IF(AZ26="",0,AZ26) -> = | DW28: =IF(BA26="",0,BA26) -> =
BS29: 1 | BT29: 139 | BX29: =IF(B26="",0,B26) -> = | BY29: =IF(C26="",0,C26) -> = | BZ29: =IF(D26="",0,D26) -> = | CA29: =IF(E26="",0,E26) -> = | CB29: =IF(F26="",0,F26) -> = | CC29: =IF(G26="",0,G26) -> = | CD29: =IF(H26="",0,H26) -> = | CE29: =IF(I26="",0,I26) -> = | CF29: =IF(J26="",0,J26) -> = | CG29: =IF(K26="",0,K26) -> = | CH29: =IF(L26="",0,L26) -> = | CI29: =IF(M26="",0,M26) -> = | CJ29: =IF(N26="",0,N26) -> = | CK29: =IF(O26="",0,O26) -> = | CL29: =IF(P26="",0,P26) -> = | CM29: =IF(Q26="",0,Q26) -> = | CN29: =IF(R26="",0,R26) -> = | CO29: =IF(S26="",0,S26) -> = | CP29: =IF(T26="",0,T26) -> = | CQ29: =IF(U26="",0,U26) -> = | CR29: =IF(V26="",0,V26) -> = | CS29: =IF(W26="",0,W26) -> = | CT29: =IF(X26="",0,X26) -> = | CU29: =IF(Y26="",0,Y26) -> = | CV29: =IF(Z26="",0,Z26) -> = | CW29: =IF(AA26="",0,AA26) -> = | CX29: =IF(AB26="",0,AB26) -> = | CY29: =IF(AC26="",0,AC26) -> = | CZ29: =IF(AD26="",0,AD26) -> = | DA29: =IF(AE26="",0,AE26) -> = | DB29: =IF(AF26="",0,AF26) -> = | DC29: =IF(AG26="",0,AG26) -> = | DD29: =IF(AH26="",0,AH26) -> = | DE29: =IF(AI26="",0,AI26) -> = | DF29: =IF(AJ26="",0,AJ26) -> = | DG29: =IF(AK26="",0,AK26) -> = | DH29: =IF(AL26="",0,AL26) -> = | DI29: =IF(AM26="",0,AM26) -> = | DJ29: =IF(AN26="",0,AN26) -> = | DK29: =IF(AO26="",0,AO26) -> = | DL29: =IF(AP26="",0,AP26) -> = | DM29: =IF(AQ26="",0,AQ26) -> = | DN29: =IF(AR26="",0,AR26) -> = | DO29: =IF(AS26="",0,AS26) -> = | DP29: =IF(AT26="",0,AT26) -> = | DQ29: =IF(AU26="",0,AU26) -> = | DR29: =IF(AV26="",0,AV26) -> = | DS29: =IF(AW26="",0,AW26) -> = | DT29: =IF(AX26="",0,AX26) -> = | DU29: =IF(AY26="",0,AY26) -> = | DV29: =IF(AZ26="",0,AZ26) -> = | DW29: =IF(BA26="",0,BA26) -> =
BS30: 1 | BT30: 121 | BX30: =IF(B26="",0,B26) -> = | BY30: =IF(C26="",0,C26) -> = | BZ30: =IF(D26="",0,D26) -> = | CA30: =IF(E26="",0,E26) -> = | CB30: =IF(F26="",0,F26) -> = | CC30: =IF(G26="",0,G26) -> = | CD30: =IF(H26="",0,H26) -> = | CE30: =IF(I26="",0,I26) -> = | CF30: =IF(J26="",0,J26) -> = | CG30: =IF(K26="",0,K26) -> = | CH30: =IF(L26="",0,L26) -> = | CI30: =IF(M26="",0,M26) -> = | CJ30: =IF(N26="",0,N26) -> = | CK30: =IF(O26="",0,O26) -> = | CL30: =IF(P26="",0,P26) -> = | CM30: =IF(Q26="",0,Q26) -> = | CN30: =IF(R26="",0,R26) -> = | CO30: =IF(S26="",0,S26) -> = | CP30: =IF(T26="",0,T26) -> = | CQ30: =IF(U26="",0,U26) -> = | CR30: =IF(V26="",0,V26) -> = | CS30: =IF(W26="",0,W26) -> = | CT30: =IF(X26="",0,X26) -> = | CU30: =IF(Y26="",0,Y26) -> = | CV30: =IF(Z26="",0,Z26) -> = | CW30: =IF(AA26="",0,AA26) -> = | CX30: =IF(AB26="",0,AB26) -> = | CY30: =IF(AC26="",0,AC26) -> = | CZ30: =IF(AD26="",0,AD26) -> = | DA30: =IF(AE26="",0,AE26) -> = | DB30: =IF(AF26="",0,AF26) -> = | DC30: =IF(AG26="",0,AG26) -> = | DD30: =IF(AH26="",0,AH26) -> = | DE30: =IF(AI26="",0,AI26) -> = | DF30: =IF(AJ26="",0,AJ26) -> = | DG30: =IF(AK26="",0,AK26) -> = | DH30: =IF(AL26="",0,AL26) -> = | DI30: =IF(AM26="",0,AM26) -> = | DJ30: =IF(AN26="",0,AN26) -> = | DK30: =IF(AO26="",0,AO26) -> = | DL30: =IF(AP26="",0,AP26) -> = | DM30: =IF(AQ26="",0,AQ26) -> = | DN30: =IF(AR26="",0,AR26) -> = | DO30: =IF(AS26="",0,AS26) -> = | DP30: =IF(AT26="",0,AT26) -> = | DQ30: =IF(AU26="",0,AU26) -> = | DR30: =IF(AV26="",0,AV26) -> = | DS30: =IF(AW26="",0,AW26) -> = | DT30: =IF(AX26="",0,AX26) -> = | DU30: =IF(AY26="",0,AY26) -> = | DV30: =IF(AZ26="",0,AZ26) -> = | DW30: =IF(BA26="",0,BA26) -> =
BS31: 1 | BT31: 181 | BX31: =IF(B26="",0,B26) -> = | BY31: =IF(C26="",0,C26) -> = | BZ31: =IF(D26="",0,D26) -> = | CA31: =IF(E26="",0,E26) -> = | CB31: =IF(F26="",0,F26) -> = | CC31: =IF(G26="",0,G26) -> = | CD31: =IF(H26="",0,H26) -> = | CE31: =IF(I26="",0,I26) -> = | CF31: =IF(J26="",0,J26) -> = | CG31: =IF(K26="",0,K26) -> = | CH31: =IF(L26="",0,L26) -> = | CI31: =IF(M26="",0,M26) -> = | CJ31: =IF(N26="",0,N26) -> = | CK31: =IF(O26="",0,O26) -> = | CL31: =IF(P26="",0,P26) -> = | CM31: =IF(Q26="",0,Q26) -> = | CN31: =IF(R26="",0,R26) -> = | CO31: =IF(S26="",0,S26) -> = | CP31: =IF(T26="",0,T26) -> = | CQ31: =IF(U26="",0,U26) -> = | CR31: =IF(V26="",0,V26) -> = | CS31: =IF(W26="",0,W26) -> = | CT31: =IF(X26="",0,X26) -> = | CU31: =IF(Y26="",0,Y26) -> = | CV31: =IF(Z26="",0,Z26) -> = | CW31: =IF(AA26="",0,AA26) -> = | CX31: =IF(AB26="",0,AB26) -> = | CY31: =IF(AC26="",0,AC26) -> = | CZ31: =IF(AD26="",0,AD26) -> = | DA31: =IF(AE26="",0,AE26) -> = | DB31: =IF(AF26="",0,AF26) -> = | DC31: =IF(AG26="",0,AG26) -> = | DD31: =IF(AH26="",0,AH26) -> = | DE31: =IF(AI26="",0,AI26) -> = | DF31: =IF(AJ26="",0,AJ26) -> = | DG31: =IF(AK26="",0,AK26) -> = | DH31: =IF(AL26="",0,AL26) -> = | DI31: =IF(AM26="",0,AM26) -> = | DJ31: =IF(AN26="",0,AN26) -> = | DK31: =IF(AO26="",0,AO26) -> = | DL31: =IF(AP26="",0,AP26) -> = | DM31: =IF(AQ26="",0,AQ26) -> = | DN31: =IF(AR26="",0,AR26) -> = | DO31: =IF(AS26="",0,AS26) -> = | DP31: =IF(AT26="",0,AT26) -> = | DQ31: =IF(AU26="",0,AU26) -> = | DR31: =IF(AV26="",0,AV26) -> = | DS31: =IF(AW26="",0,AW26) -> = | DT31: =IF(AX26="",0,AX26) -> = | DU31: =IF(AY26="",0,AY26) -> = | DV31: =IF(AZ26="",0,AZ26) -> = | DW31: =IF(BA26="",0,BA26) -> =
A32: 1 | T32: Э | U32: Э | V32: Э | W32: К | X32: К | AQ32: Э | AR32: Э | AS32: Э | AT32: К | AU32: К | AV32: К | AW32: К | AX32: К | AY32: К | AZ32: К | BA32: К | BB32: =SUMIF(OFFSET($BX32:$DW37,0,INT((IF($BS26>0,$BS26,1)-1)/6),,INT(($BT26-1)/6)-INT((IF($BS26>0,$BS26,1)-1)/6)),"=0",OFFSET($BX$20:$DW$25,0,INT((IF($BS26>0,$BS26,1)-1)/6)))-IF(AND($BS26>0,$BS26>INT(($BS26-1)/6)*6+1),SUMIF(OFFSET($BX32:$DW37,0,INT(($BS26-1)/6),$BS26-INT(($BS26-1)/6)*6-1,1),"=0",OFFSET($BX$20:$DW$25,0,INT(($BS26-1)/6),$BS26-INT(($BS26-1)/6)*6-1,1)))+IF(AND($BT26>0,$BT26>INT(($BT26-1)/6)*6+1),SUMIF(OFFSET($BX32:$DW37,0,INT(($BT26-1)/6),$BT26-INT(($BT26-1)/6)*6-1,1),"=0",OFFSET($BX$20:$DW$25,0,INT(($BT26-1)/6),$BT26-INT(($BT26-1)/6)*6-1,1)))+$BW32 -> 18 | BC32: =SUMIF(OFFSET($BX32:$DW37,0,INT(($BT26-1)/6),,52-INT(($BT26-1)/6)-IF($BS27<=0,INT(ABS($BS27)/6)+1,0)),"=0",OFFSET($BX$20:$DW$25,0,INT(($BT26-1)/6),,52-INT(($BT26-1)/6)-IF($BS27<=0,INT(ABS($BS27)/6)+1,0)))-IF($BT26>INT(($BT26-1)/6)*6+1,SUMIF(OFFSET($BX32:$DW37,0,INT(($BT26-1)/6),$BT26-INT(($BT26-1)/6)*6-1,1),"=0",OFFSET($BX$20:$DW$25,0,INT(($BT26-1)/6),$BT26-INT(($BT26-1)/6)*6-1,1)))+IF($BS27>1,SUMIF(OFFSET($BX38:$DW43,0,0,,INT(($BS27-1)/6)+1),"=0",OFFSET($BX$20:$DW$25,0,0,,INT(($BS27-1)/6)+1)))-IF($BS27>1,SUMIF(OFFSET($BX38:$DW43,$BS27-INT(($BS27-1)/6)*6-1,INT(($BS27-1)/6),(INT(($BS27-1)/6)+1)*6+1-$BS27,1),"=0",OFFSET($BX$20:$DW$25,0,INT(($BS27-1)/6),(INT(($BS27-1)/6)+1)*6+1-$BS27,1)))-$DX32 -> 18 | BD32: =Недель1+Недель2 -> 36 | BE32: =Экз1Осень+Экз1Весна -> 6 | BF32: =SUMIF(OFFSET($BX32:$DW37,0,INT((IF($BS26>0,$BS26,1)-1)/6),,52-INT((IF($BS26>0,$BS26,1)-1)/6)-IF($BS27<=0,INT(ABS($BS27)/6),0)),"=" & $AR$77,OFFSET($BX$20:$DW$25,0,INT((IF($BS26>0,$BS26,1)-1)/6),,52-INT((IF($BS26>0,$BS26,1)-1)/6)-IF($BS27<=0,INT(ABS($BS27)/6),0)))-IF(AND($BS26>0,$BS26>INT(($BS26-1)/6)*6+1),SUMIF(OFFSET($BX32:$DW37,0,INT(($BS26-1)/6),$BS26-INT(($BS26-1)/6)*6-1,1),"=" & $AR$77,OFFSET($BX$20:$DW$25,0,INT(($BS26-1)/6),$BS26-INT(($BS26-1)/6)*6-1,1)))+IF($BS27>1,SUMIF(OFFSET($BX38:$DW43,0,0,,INT(($BS27-1)/6)+1),"=" & $AR$77,OFFSET($BX$20:$DW$25,0,0,,INT(($BS27-1)/6)+1)))-IF($BS27>1,SUMIF(OFFSET($BX38:$DW43,$BS27-INT(($BS27-1)/6)*6-1,INT(($BS27-1)/6),(INT(($BS27-1)/6)+1)*6+1-$BS27,1),"=" & $AR$77,OFFSET($BX$20:$DW$25,0,INT(($BS27-1)/6),(INT(($BS27-1)/6)+1)*6+1-$BS27,1)))+$BV32 -> 0 | BG32: =SUMIF(OFFSET($BX32:$DW37,0,INT((IF($BS26>0,$BS26,1)-1)/6),,52-INT((IF($BS26>0,$BS26,1)-1)/6)-IF($BS27<=0,INT(ABS($BS27)/6),0)),"=" & $AG$75,OFFSET($BX$20:$DW$25,0,INT((IF($BS26>0,$BS26,1)-1)/6),,52-INT((IF($BS26>0,$BS26,1)-1)/6)-IF($BS27<=0,INT(ABS($BS27)/6),0)))-IF(AND($BS26>0,$BS26>INT(($BS26-1)/6)*6+1),SUMIF(OFFSET($BX32:$DW37,0,INT(($BS26-1)/6),$BS26-INT(($BS26-1)/6)*6-1,1),"=" & $AG$75,OFFSET($BX$20:$DW$25,0,INT(($BS26-1)/6),$BS26-INT(($BS26-1)/6)*6-1,1)))+IF($BS27>1,SUMIF(OFFSET($BX38:$DW43,0,0,,INT(($BS27-1)/6)+1),"=" & $AG$75,OFFSET($BX$20:$DW$25,0,0,,INT(($BS27-1)/6)+1)))-IF($BS27>1,SUMIF(OFFSET($BX38:$DW43,$BS27-INT(($BS27-1)/6)*6-1,INT(($BS27-1)/6),(INT(($BS27-1)/6)+1)*6+1-$BS27,1),"=" & $AG$75,OFFSET($BX$20:$DW$25,0,INT(($BS27-1)/6),(INT(($BS27-1)/6)+1)*6+1-$BS27,1)))+$BV33 -> 0 | BH32: =SUMIF(OFFSET($BX32:$DW37,0,INT((IF($BS26>0,$BS26,1)-1)/6),,52-INT((IF($BS26>0,$BS26,1)-1)/6)-IF($BS27<=0,INT(ABS($BS27)/6),0)),"=" & $AR$75,OFFSET($BX$20:$DW$25,0,INT((IF($BS26>0,$BS26,1)-1)/6),,52-INT((IF($BS26>0,$BS26,1)-1)/6)-IF($BS27<=0,INT(ABS($BS27)/6),0)))-IF(AND($BS26>0,$BS26>INT(($BS26-1)/6)*6+1),SUMIF(OFFSET($BX32:$DW37,0,INT(($BS26-1)/6),$BS26-INT(($BS26-1)/6)*6-1,1),"=" & $AR$75,OFFSET($BX$20:$DW$25,0,INT(($BS26-1)/6),$BS26-INT(($BS26-1)/6)*6-1,1)))+IF($BS27>1,SUMIF(OFFSET($BX38:$DW43,0,0,,INT(($BS27-1)/6)+1),"=" & $AR$75,OFFSET($BX$20:$DW$25,0,0,,INT(($BS27-1)/6)+1)))-IF($BS27>1,SUMIF(OFFSET($BX38:$DW43,$BS27-INT(($BS27-1)/6)*6-1,INT(($BS27-1)/6),(INT(($BS27-1)/6)+1)*6+1-$BS27,1),"=" & $AR$75,OFFSET($BX$20:$DW$25,0,INT(($BS27-1)/6),(INT(($BS27-1)/6)+1)*6+1-$BS27,1)))+$BV34 -> 0 | BI32: =SUMIF(OFFSET($BX32:$DW37,0,INT((IF($BS26>0,$BS26,1)-1)/6),,52-INT((IF($BS26>0,$BS26,1)-1)/6)-IF($BS27<=0,INT(ABS($BS27)/6),0)),"=" & $G$77,OFFSET($BX$20:$DW$25,0,INT((IF($BS26>0,$BS26,1)-1)/6),,52-INT((IF($BS26>0,$BS26,1)-1)/6)-IF($BS27<=0,INT(ABS($BS27)/6),0)))-IF(AND($BS26>0,$BS26>INT(($BS26-1)/6)*6+1),SUMIF(OFFSET($BX32:$DW37,0,INT(($BS26-1)/6),$BS26-INT(($BS26-1)/6)*6-1,1),"=" & $G$77,OFFSET($BX$20:$DW$25,0,INT(($BS26-1)/6),$BS26-INT(($BS26-1)/6)*6-1,1)))+IF($BS27>1,SUMIF(OFFSET($BX38:$DW43,0,0,,INT(($BS27-1)/6)+1),"=" & $G$77,OFFSET($BX$20:$DW$25,0,0,,INT(($BS27-1)/6)+1)))-IF($BS27>1,SUMIF(OFFSET($BX38:$DW43,$BS27-INT(($BS27-1)/6)*6-1,INT(($BS27-1)/6),(INT(($BS27-1)/6)+1)*6+1-$BS27,1),"=" & $G$77,OFFSET($BX$20:$DW$25,0,INT(($BS27-1)/6),(INT(($BS27-1)/6)+1)*6+1-$BS27,1)))+$BV35 -> 0 | BJ32: =SUMIF(OFFSET($BX32:$DW37,0,INT((IF($BS26>0,$BS26,1)-1)/6),,52-INT((IF($BS26>0,$BS26,1)-1)/6)-IF($BS27<=0,INT(ABS($BS27)/6),0)),"=" & $T$77,OFFSET($BX$20:$DW$25,0,INT((IF($BS26>0,$BS26,1)-1)/6),,52-INT((IF($BS26>0,$BS26,1)-1)/6)-IF($BS27<=0,INT(ABS($BS27)/6),0)))-IF(AND($BS26>0,$BS26>INT(($BS26-1)/6)*6+1),SUMIF(OFFSET($BX32:$DW37,0,INT(($BS26-1)/6),$BS26-INT(($BS26-1)/6)*6-1,1),"=" & $T$77,OFFSET($BX$20:$DW$25,0,INT(($BS26-1)/6),$BS26-INT(($BS26-1)/6)*6-1,1)))+IF($BS27>1,SUMIF(OFFSET($BX38:$DW43,0,0,,INT(($BS27-1)/6)+1),"=" & $T$77,OFFSET($BX$20:$DW$25,0,0,,INT(($BS27-1)/6)+1)))-IF($BS27>1,SUMIF(OFFSET($BX38:$DW43,$BS27-INT(($BS27-1)/6)*6-1,INT(($BS27-1)/6),(INT(($BS27-1)/6)+1)*6+1-$BS27,1),"=" & $T$77,OFFSET($BX$20:$DW$25,0,INT(($BS27-1)/6),(INT(($BS27-1)/6)+1)*6+1-$BS27,1)))+$BV36 -> 0 | BK32: =SUMIF(OFFSET($BX32:$DW37,0,INT((IF($BS26>0,$BS26,1)-1)/6),,52-INT((IF($BS26>0,$BS26,1)-1)/6)-IF($BS27<=0,INT(ABS($BS27)/6),0)),"=" & $AG$77,OFFSET($BX$20:$DW$25,0,INT((IF($BS26>0,$BS26,1)-1)/6),,52-INT((IF($BS26>0,$BS26,1)-1)/6)-IF($BS27<=0,INT(ABS($BS27)/6),0)))-IF(AND($BS26>0,$BS26>INT(($BS26-1)/6)*6+1),SUMIF(OFFSET($BX32:$DW37,0,INT(($BS26-1)/6),$BS26-INT(($BS26-1)/6)*6-1,1),"=" & $AG$77,OFFSET($BX$20:$DW$25,0,INT(($BS26-1)/6),$BS26-INT(($BS26-1)/6)*6-1,1)))+IF($BS27>1,SUMIF(OFFSET($BX38:$DW43,0,0,,INT(($BS27-1)/6)+1),"=" & $AG$77,OFFSET($BX$20:$DW$25,0,0,,INT(($BS27-1)/6)+1)))-IF($BS27>1,SUMIF(OFFSET($BX38:$DW43,$BS27-INT(($BS27-1)/6)*6-1,INT(($BS27-1)/6),(INT(($BS27-1)/6)+1)*6+1-$BS27,1),"=" & $AG$77,OFFSET($BX$20:$DW$25,0,INT(($BS27-1)/6),(INT(($BS27-1)/6)+1)*6+1-$BS27,1)))+$BV37 -> 10 | BL32: =SUM($BD32:$BK37) -> 52 | BM32: 24 | BN32: 1 | BO32: 1 | BR32: =SUM(План!L1144:O1144) -> 0 | BS32: 1 | BT32: 181 | BU32: =SUMIF(OFFSET($BX32:$DW37,0,INT((IF($BS26>0,$BS26,1)-1)/6),,INT(($BT26-1)/6)-INT((IF($BS26>0,$BS26,1)-1)/6)),"=" & $T$75,OFFSET($BX$20:$DW$25,0,INT((IF($BS26>0,$BS26,1)-1)/6)))-IF(AND($BS26>0,$BS26>INT(($BS26-1)/6)*6+1),SUMIF(OFFSET($BX32:$DW37,0,INT(($BS26-1)/6),$BS26-INT(($BS26-1)/6)*6-1,1),"=" & $T$75,OFFSET($BX$20:$DW$25,0,INT(($BS26-1)/6),$BS26-INT(($BS26-1)/6)*6-1,1)))+IF(AND($BT26>0,$BT26>INT(($BT26-1)/6)*6+1),SUMIF(OFFSET($BX32:$DW37,0,INT(($BT26-1)/6),$BT26-INT(($BT26-1)/6)*6-1,1),"=" & $T$75,OFFSET($BX$20:$DW$25,0,INT(($BT26-1)/6),$BT26-INT(($BT26-1)/6)*6-1,1)))+$BU33 -> 3 | BV32: =IF($BS26<=0,SUMIF(OFFSET($BX26:$DW31,0,52-INT(ABS($BS26)/6)-1,,INT(ABS($BS26)/6)+1),"=" & $AR$77,OFFSET($BX$20:$DW$25,0,52-INT(ABS($BS26)/6)-1,,INT(ABS($BS26)/6)+1)))-IF(AND($BS26<=0,ABS($BS26)<INT(ABS($BS26)/6+1)*6-1),SUMIF(OFFSET($BX26:$DW31,0,52-INT(ABS($BS26)/6)-1,INT(ABS($BS26)/6+1)*6-1-ABS($BS26),1),"=" & $AR$77,OFFSET($BX$20:$DW$25,0,52-INT(ABS($BS26)/6)-1,INT(ABS($BS26)/6+1)*6-1-ABS($BS26),1)))-IF($BS27<=0,SUMIF(OFFSET($BX32:$DW37,(INT(ABS($BS27)/6)+1)*6-ABS($BS27)-1,52-INT(ABS($BS27)/6)-1,ABS($BS27)-INT(ABS($BS27)/6)*6+1,1),"=" & $AR$77,OFFSET($BX$20:$DW$25,(INT(ABS($BS27)/6)+1)*6-ABS($BS27)-1,52-INT(ABS($BS27)/6)-1,ABS($BS27)-INT(ABS($BS27)/6)*6+1,1)),0) -> 0 | BW32: =IF($BS26<=0,SUMIF(OFFSET($BX26:$DW31,0,52-INT(ABS($BS26)/6)-1,,INT(ABS($BS26)/6)+1),"=0",OFFSET($BX$20:$DW$25,0,52-INT(ABS($BS26)/6)-1,,INT(ABS($BS26)/6)+1)))-IF(AND($BS26<=0,ABS($BS26)<INT(ABS($BS26)/6+1)*6-1),SUMIF(OFFSET($BX26:$DW31,0,52-INT(ABS($BS26)/6)-1,INT(ABS($BS26)/6+1)*6-1-ABS($BS26),1),"=0",OFFSET($BX$20:$DW$25,0,52-INT(ABS($BS26)/6)-1,INT(ABS($BS26)/6+1)*6-1-ABS($BS26),1))) -> 0 | BX32: =IF(B32="",0,B32) -> 0 | BY32: 0 | BZ32: 0 | CA32: 0 | CB32: 0 | CC32: 0 | CD32: 0 | CE32: 0 | CF32: 0 | CG32: 0 | CH32: 0 | CI32: 0 | CJ32: 0 | CK32: 0 | CL32: 0 | CM32: 0 | CN32: 0 | CO32: 0 | CP32: Э | CQ32: Э | CR32: Э | CS32: К | CT32: К | CU32: 0 | CV32: 0 | CW32: 0 | CX32: 0 | CY32: 0 | CZ32: 0 | DA32: 0 | DB32: 0 | DC32: 0 | DD32: =IF(AH32="",0,AH32) -> 0 | DE32: 0 | DF32: 0 | DG32: 0 | DH32: 0 | DI32: 0 | DJ32: 0 | DK32: 0 | DL32: 0 | DM32: Э | DN32: Э | DO32: Э | DP32: К | DQ32: К | DR32: К | DS32: К | DT32: К | DU32: К | DV32: К | DW32: К | DX32: =IF($BS27<=0,SUMIF(OFFSET($BX32:$DW37,(INT(ABS($BS27)/6)+1)*6-ABS($BS27)-1,52-INT(ABS($BS27)/6)-1,ABS($BS27)-INT(ABS($BS27)/6)*6+1,1),"=0",OFFSET($BX$20:$DW$25,(INT(ABS($BS27)/6)+1)*6-ABS($BS27)-1,52-INT(ABS($BS27)/6)-1,ABS($BS27)-INT(ABS($BS27)/6)*6+1,1)),0) -> 0 | DY32: =IF($BS27<=0,SUMIF(OFFSET($BX32:$DW37,(INT(ABS($BS27)/6)+1)*6-ABS($BS27)-1,52-INT(ABS($BS27)/6)-1,ABS($BS27)-INT(ABS($BS27)/6)*6+1,1),"=" & $T$75,OFFSET($BX$20:$DW$25,(INT(ABS($BS27)/6)+1)*6-ABS($BS27)-1,52-INT(ABS($BS27)/6)-1,ABS($BS27)-INT(ABS($BS27)/6)*6+1,1)),0) -> 0
BR33: =SUM(План!P1144:S1144) -> 0 | BS33: FALSE | BU33: =IF($BS26<=0,SUMIF(OFFSET($BX26:$DW31,0,52-INT(ABS($BS26)/6)-1,,INT(ABS($BS26)/6)+1),"=" & $T$75,OFFSET($BX$20:$DW$25,0,52-INT(ABS($BS26)/6)-1,,INT(ABS($BS26)/6)+1)))-IF(AND($BS26<=0,ABS($BS26)<INT(ABS($BS26)/6+1)*6-1),SUMIF(OFFSET($BX26:$DW31,0,52-INT(ABS($BS26)/6)-1,INT(ABS($BS26)/6+1)*6-1-ABS($BS26),1),"=" & $T$75,OFFSET($BX$20:$DW$25,0,52-INT(ABS($BS26)/6)-1,INT(ABS($BS26)/6+1)*6-1-ABS($BS26),1))) -> 0 | BV33: =IF($BS26<=0,SUMIF(OFFSET($BX26:$DW31,0,52-INT(ABS($BS26)/6)-1,,INT(ABS($BS26)/6)+1),"=" & $AG$75,OFFSET($BX$20:$DW$25,0,52-INT(ABS($BS26)/6)-1,,INT(ABS($BS26)/6)+1)))-IF(AND($BS26<=0,ABS($BS26)<INT(ABS($BS26)/6+1)*6-1),SUMIF(OFFSET($BX26:$DW31,0,52-INT(ABS($BS26)/6)-1,INT(ABS($BS26)/6+1)*6-1-ABS($BS26),1),"=" & $AG$75,OFFSET($BX$20:$DW$25,0,52-INT(ABS($BS26)/6)-1,INT(ABS($BS26)/6+1)*6-1-ABS($BS26),1)))-IF($BS27<=0,SUMIF(OFFSET($BX32:$DW37,(INT(ABS($BS27)/6)+1)*6-ABS($BS27)-1,52-INT(ABS($BS27)/6)-1,ABS($BS27)-INT(ABS($BS27)/6)*6+1,1),"=" & $AG$75,OFFSET($BX$20:$DW$25,(INT(ABS($BS27)/6)+1)*6-ABS($BS27)-1,52-INT(ABS($BS27)/6)-1,ABS($BS27)-INT(ABS($BS27)/6)*6+1,1)),0) -> 0 | BX33: =IF(B32="",0,B32) -> 0 | BY33: =IF(C32="",0,C32) -> 0 | BZ33: =IF(D32="",0,D32) -> 0 | CA33: =IF(E32="",0,E32) -> 0 | CB33: =IF(F32="",0,F32) -> 0 | CC33: =IF(G32="",0,G32) -> 0 | CD33: =IF(H32="",0,H32) -> 0 | CE33: =IF(I32="",0,I32) -> 0 | CF33: =IF(J32="",0,J32) -> 0 | CG33: =IF(K32="",0,K32) -> 0 | CH33: =IF(L32="",0,L32) -> 0 | CI33: =IF(M32="",0,M32) -> 0 | CJ33: =IF(N32="",0,N32) -> 0 | CK33: =IF(O32="",0,O32) -> 0 | CL33: =IF(P32="",0,P32) -> 0 | CM33: =IF(Q32="",0,Q32) -> 0 | CN33: =IF(R32="",0,R32) -> 0 | CO33: =IF(S32="",0,S32) -> 0 | CP33: =IF(T32="",0,T32) -> Э | CQ33: =IF(U32="",0,U32) -> Э | CR33: =IF(V32="",0,V32) -> Э | CS33: =IF(W32="",0,W32) -> К | CT33: =IF(X32="",0,X32) -> К | CU33: =IF(Y32="",0,Y32) -> 0 | CV33: =IF(Z32="",0,Z32) -> 0 | CW33: =IF(AA32="",0,AA32) -> 0 | CX33: =IF(AB32="",0,AB32) -> 0 | CY33: =IF(AC32="",0,AC32) -> 0 | CZ33: =IF(AD32="",0,AD32) -> 0 | DA33: =IF(AE32="",0,AE32) -> 0 | DB33: =IF(AF32="",0,AF32) -> 0 | DC33: =IF(AG32="",0,AG32) -> 0 | DD33: =IF(AH32="",0,AH32) -> 0 | DE33: =IF(AI32="",0,AI32) -> 0 | DF33: =IF(AJ32="",0,AJ32) -> 0 | DG33: =IF(AK32="",0,AK32) -> 0 | DH33: =IF(AL32="",0,AL32) -> 0 | DI33: =IF(AM32="",0,AM32) -> 0 | DJ33: =IF(AN32="",0,AN32) -> 0 | DK33: =IF(AO32="",0,AO32) -> 0 | DL33: =IF(AP32="",0,AP32) -> 0 | DM33: =IF(AQ32="",0,AQ32) -> Э | DN33: =IF(AR32="",0,AR32) -> Э | DO33: =IF(AS32="",0,AS32) -> Э | DP33: =IF(AT32="",0,AT32) -> К | DQ33: =IF(AU32="",0,AU32) -> К | DR33: =IF(AV32="",0,AV32) -> К | DS33: =IF(AW32="",0,AW32) -> К | DT33: =IF(AX32="",0,AX32) -> К | DU33: =IF(AY32="",0,AY32) -> К | DV33: =IF(AZ32="",0,AZ32) -> К | DW33: =IF(BA32="",0,BA32) -> К
BR34: =SUM(План!T1144:W1144) -> 0 | BV34: =IF($BS26<=0,SUMIF(OFFSET($BX26:$DW31,0,52-INT(ABS($BS26)/6)-1,,INT(ABS($BS26)/6)+1),"=" & $AR$75,OFFSET($BX$20:$DW$25,0,52-INT(ABS($BS26)/6)-1,,INT(ABS($BS26)/6)+1)))-IF(AND($BS26<=0,ABS($BS26)<INT(ABS($BS26)/6+1)*6-1),SUMIF(OFFSET($BX26:$DW31,0,52-INT(ABS($BS26)/6)-1,INT(ABS($BS26)/6+1)*6-1-ABS($BS26),1),"=" & $AR$75,OFFSET($BX$20:$DW$25,0,52-INT(ABS($BS26)/6)-1,INT(ABS($BS26)/6+1)*6-1-ABS($BS26),1)))-IF($BS27<=0,SUMIF(OFFSET($BX32:$DW37,(INT(ABS($BS27)/6)+1)*6-ABS($BS27)-1,52-INT(ABS($BS27)/6)-1,ABS($BS27)-INT(ABS($BS27)/6)*6+1,1),"=" & $AR$75,OFFSET($BX$20:$DW$25,(INT(ABS($BS27)/6)+1)*6-ABS($BS27)-1,52-INT(ABS($BS27)/6)-1,ABS($BS27)-INT(ABS($BS27)/6)*6+1,1)),0) -> 0 | BX34: =IF(B32="",0,B32) -> 0 | BY34: =IF(C32="",0,C32) -> 0 | BZ34: =IF(D32="",0,D32) -> 0 | CA34: =IF(E32="",0,E32) -> 0 | CB34: =IF(F32="",0,F32) -> 0 | CC34: =IF(G32="",0,G32) -> 0 | CD34: =IF(H32="",0,H32) -> 0 | CE34: =IF(I32="",0,I32) -> 0 | CF34: =IF(J32="",0,J32) -> 0 | CG34: =IF(K32="",0,K32) -> 0 | CH34: =IF(L32="",0,L32) -> 0 | CI34: =IF(M32="",0,M32) -> 0 | CJ34: =IF(N32="",0,N32) -> 0 | CK34: =IF(O32="",0,O32) -> 0 | CL34: =IF(P32="",0,P32) -> 0 | CM34: =IF(Q32="",0,Q32) -> 0 | CN34: =IF(R32="",0,R32) -> 0 | CO34: =IF(S32="",0,S32) -> 0 | CP34: =IF(T32="",0,T32) -> Э | CQ34: =IF(U32="",0,U32) -> Э | CR34: =IF(V32="",0,V32) -> Э | CS34: =IF(W32="",0,W32) -> К | CT34: =IF(X32="",0,X32) -> К | CU34: =IF(Y32="",0,Y32) -> 0 | CV34: =IF(Z32="",0,Z32) -> 0 | CW34: =IF(AA32="",0,AA32) -> 0 | CX34: =IF(AB32="",0,AB32) -> 0 | CY34: =IF(AC32="",0,AC32) -> 0 | CZ34: =IF(AD32="",0,AD32) -> 0 | DA34: =IF(AE32="",0,AE32) -> 0 | DB34: =IF(AF32="",0,AF32) -> 0 | DC34: =IF(AG32="",0,AG32) -> 0 | DD34: =IF(AH32="",0,AH32) -> 0 | DE34: =IF(AI32="",0,AI32) -> 0 | DF34: =IF(AJ32="",0,AJ32) -> 0 | DG34: =IF(AK32="",0,AK32) -> 0 | DH34: =IF(AL32="",0,AL32) -> 0 | DI34: =IF(AM32="",0,AM32) -> 0 | DJ34: =IF(AN32="",0,AN32) -> 0 | DK34: =IF(AO32="",0,AO32) -> 0 | DL34: =IF(AP32="",0,AP32) -> 0 | DM34: =IF(AQ32="",0,AQ32) -> Э | DN34: =IF(AR32="",0,AR32) -> Э | DO34: =IF(AS32="",0,AS32) -> Э | DP34: =IF(AT32="",0,AT32) -> К | DQ34: =IF(AU32="",0,AU32) -> К | DR34: =IF(AV32="",0,AV32) -> К | DS34: =IF(AW32="",0,AW32) -> К | DT34: =IF(AX32="",0,AX32) -> К | DU34: =IF(AY32="",0,AY32) -> К | DV34: =IF(AZ32="",0,AZ32) -> К | DW34: =IF(BA32="",0,BA32) -> К
BR35: =SUM(План!X1144:AA1144) -> 0 | BS35: 0 | BT35: -1 | BV35: =IF($BS26<=0,SUMIF(OFFSET($BX26:$DW31,0,52-INT(ABS($BS26)/6)-1,,INT(ABS($BS26)/6)+1),"=" & $G$77,OFFSET($BX$20:$DW$25,0,52-INT(ABS($BS26)/6)-1,,INT(ABS($BS26)/6)+1)))-IF(AND($BS26<=0,ABS($BS26)<INT(ABS($BS26)/6+1)*6-1),SUMIF(OFFSET($BX26:$DW31,0,52-INT(ABS($BS26)/6)-1,INT(ABS($BS26)/6+1)*6-1-ABS($BS26),1),"=" & $G$77,OFFSET($BX$20:$DW$25,0,52-INT(ABS($BS26)/6)-1,INT(ABS($BS26)/6+1)*6-1-ABS($BS26),1)))-IF($BS27<=0,SUMIF(OFFSET($BX32:$DW37,(INT(ABS($BS27)/6)+1)*6-ABS($BS27)-1,52-INT(ABS($BS27)/6)-1,ABS($BS27)-INT(ABS($BS27)/6)*6+1,1),"=" & $G$77,OFFSET($BX$20:$DW$25,(INT(ABS($BS27)/6)+1)*6-ABS($BS27)-1,52-INT(ABS($BS27)/6)-1,ABS($BS27)-INT(ABS($BS27)/6)*6+1,1)),0) -> 0 | BX35: =IF(B32="",0,B32) -> 0 | BY35: =IF(C32="",0,C32) -> 0 | BZ35: =IF(D32="",0,D32) -> 0 | CA35: =IF(E32="",0,E32) -> 0 | CB35: =IF(F32="",0,F32) -> 0 | CC35: =IF(G32="",0,G32) -> 0 | CD35: =IF(H32="",0,H32) -> 0 | CE35: =IF(I32="",0,I32) -> 0 | CF35: =IF(J32="",0,J32) -> 0 | CG35: =IF(K32="",0,K32) -> 0 | CH35: =IF(L32="",0,L32) -> 0 | CI35: =IF(M32="",0,M32) -> 0 | CJ35: =IF(N32="",0,N32) -> 0 | CK35: =IF(O32="",0,O32) -> 0 | CL35: =IF(P32="",0,P32) -> 0 | CM35: =IF(Q32="",0,Q32) -> 0 | CN35: =IF(R32="",0,R32) -> 0 | CO35: =IF(S32="",0,S32) -> 0 | CP35: =IF(T32="",0,T32) -> Э | CQ35: =IF(U32="",0,U32) -> Э | CR35: =IF(V32="",0,V32) -> Э | CS35: =IF(W32="",0,W32) -> К | CT35: =IF(X32="",0,X32) -> К | CU35: =IF(Y32="",0,Y32) -> 0 | CV35: =IF(Z32="",0,Z32) -> 0 | CW35: =IF(AA32="",0,AA32) -> 0 | CX35: =IF(AB32="",0,AB32) -> 0 | CY35: =IF(AC32="",0,AC32) -> 0 | CZ35: =IF(AD32="",0,AD32) -> 0 | DA35: =IF(AE32="",0,AE32) -> 0 | DB35: =IF(AF32="",0,AF32) -> 0 | DC35: =IF(AG32="",0,AG32) -> 0 | DD35: =IF(AH32="",0,AH32) -> 0 | DE35: =IF(AI32="",0,AI32) -> 0 | DF35: =IF(AJ32="",0,AJ32) -> 0 | DG35: =IF(AK32="",0,AK32) -> 0 | DH35: =IF(AL32="",0,AL32) -> 0 | DI35: =IF(AM32="",0,AM32) -> 0 | DJ35: =IF(AN32="",0,AN32) -> 0 | DK35: =IF(AO32="",0,AO32) -> 0 | DL35: =IF(AP32="",0,AP32) -> 0 | DM35: =IF(AQ32="",0,AQ32) -> Э | DN35: =IF(AR32="",0,AR32) -> Э | DO35: =IF(AS32="",0,AS32) -> Э | DP35: =IF(AT32="",0,AT32) -> К | DQ35: =IF(AU32="",0,AU32) -> К | DR35: =IF(AV32="",0,AV32) -> К | DS35: =IF(AW32="",0,AW32) -> К | DT35: =IF(AX32="",0,AX32) -> К | DU35: =IF(AY32="",0,AY32) -> К | DV35: =IF(AZ32="",0,AZ32) -> К | DW35: =IF(BA32="",0,BA32) -> К
BR36: =SUM(План!AB1144:AE1144) -> 0 | BV36: =IF($BS26<=0,SUMIF(OFFSET($BX26:$DW31,0,52-INT(ABS($BS26)/6)-1,,INT(ABS($BS26)/6)+1),"=" & $T$77,OFFSET($BX$20:$DW$25,0,52-INT(ABS($BS26)/6)-1,,INT(ABS($BS26)/6)+1)))-IF(AND($BS26<=0,ABS($BS26)<INT(ABS($BS26)/6+1)*6-1),SUMIF(OFFSET($BX26:$DW31,0,52-INT(ABS($BS26)/6)-1,INT(ABS($BS26)/6+1)*6-1-ABS($BS26),1),"=" & $T$77,OFFSET($BX$20:$DW$25,0,52-INT(ABS($BS26)/6)-1,INT(ABS($BS26)/6+1)*6-1-ABS($BS26),1)))-IF($BS27<=0,SUMIF(OFFSET($BX32:$DW37,(INT(ABS($BS27)/6)+1)*6-ABS($BS27)-1,52-INT(ABS($BS27)/6)-1,ABS($BS27)-INT(ABS($BS27)/6)*6+1,1),"=" & $T$77,OFFSET($BX$20:$DW$25,(INT(ABS($BS27)/6)+1)*6-ABS($BS27)-1,52-INT(ABS($BS27)/6)-1,ABS($BS27)-INT(ABS($BS27)/6)*6+1,1)),0) -> 0 | BX36: =IF(B32="",0,B32) -> 0 | BY36: =IF(C32="",0,C32) -> 0 | BZ36: =IF(D32="",0,D32) -> 0 | CA36: =IF(E32="",0,E32) -> 0 | CB36: =IF(F32="",0,F32) -> 0 | CC36: =IF(G32="",0,G32) -> 0 | CD36: =IF(H32="",0,H32) -> 0 | CE36: =IF(I32="",0,I32) -> 0 | CF36: =IF(J32="",0,J32) -> 0 | CG36: =IF(K32="",0,K32) -> 0 | CH36: =IF(L32="",0,L32) -> 0 | CI36: =IF(M32="",0,M32) -> 0 | CJ36: =IF(N32="",0,N32) -> 0 | CK36: =IF(O32="",0,O32) -> 0 | CL36: =IF(P32="",0,P32) -> 0 | CM36: =IF(Q32="",0,Q32) -> 0 | CN36: =IF(R32="",0,R32) -> 0 | CO36: =IF(S32="",0,S32) -> 0 | CP36: =IF(T32="",0,T32) -> Э | CQ36: =IF(U32="",0,U32) -> Э | CR36: =IF(V32="",0,V32) -> Э | CS36: =IF(W32="",0,W32) -> К | CT36: =IF(X32="",0,X32) -> К | CU36: =IF(Y32="",0,Y32) -> 0 | CV36: =IF(Z32="",0,Z32) -> 0 | CW36: =IF(AA32="",0,AA32) -> 0 | CX36: =IF(AB32="",0,AB32) -> 0 | CY36: =IF(AC32="",0,AC32) -> 0 | CZ36: =IF(AD32="",0,AD32) -> 0 | DA36: =IF(AE32="",0,AE32) -> 0 | DB36: =IF(AF32="",0,AF32) -> 0 | DC36: =IF(AG32="",0,AG32) -> 0 | DD36: =IF(AH32="",0,AH32) -> 0 | DE36: =IF(AI32="",0,AI32) -> 0 | DF36: =IF(AJ32="",0,AJ32) -> 0 | DG36: =IF(AK32="",0,AK32) -> 0 | DH36: =IF(AL32="",0,AL32) -> 0 | DI36: =IF(AM32="",0,AM32) -> 0 | DJ36: =IF(AN32="",0,AN32) -> 0 | DK36: =IF(AO32="",0,AO32) -> 0 | DL36: =IF(AP32="",0,AP32) -> 0 | DM36: =IF(AQ32="",0,AQ32) -> Э | DN36: =IF(AR32="",0,AR32) -> Э | DO36: =IF(AS32="",0,AS32) -> Э | DP36: =IF(AT32="",0,AT32) -> К | DQ36: =IF(AU32="",0,AU32) -> К | DR36: =IF(AV32="",0,AV32) -> К | DS36: =IF(AW32="",0,AW32) -> К | DT36: =IF(AX32="",0,AX32) -> К | DU36: =IF(AY32="",0,AY32) -> К | DV36: =IF(AZ32="",0,AZ32) -> К | DW36: =IF(BA32="",0,BA32) -> К
A37: 2 | BO37: 2 | BR37: =SUM(План!AF1144:AI1144) -> 0 | BU37: =SUMIF(OFFSET($BX32:$DW37,0,INT(($BT26-1)/6),,52-INT(($BT26-1)/6)-IF($BS27<=0,INT(ABS($BS27)/6),0)),"=" & $T$75,OFFSET($BX$20:$DW$25,0,INT(($BT26-1)/6),,52-INT(($BT26-1)/6)-IF($BS27<=0,INT(ABS($BS27)/6),0)))-IF($BT26>INT(($BT26-1)/6)*6+1,SUMIF(OFFSET($BX32:$DW37,0,INT(($BT26-1)/6),$BT26-INT(($BT26-1)/6)*6-1,1),"=" & $T$75,OFFSET($BX$20:$DW$25,0,INT(($BT26-1)/6),$BT26-INT(($BT26-1)/6)*6-1,1)))+IF($BS27>1,SUMIF(OFFSET($BX38:$DW43,0,0,,INT(($BS27-1)/6)+1),"=" & $T$75,OFFSET($BX$20:$DW$25,0,0,,INT(($BS27-1)/6)+1)))-IF($BS27>1,SUMIF(OFFSET($BX38:$DW43,$BS27-INT(($BS27-1)/6)*6-1,INT(($BS27-1)/6),(INT(($BS27-1)/6)+1)*6+1-$BS27,1),"=" & $T$75,OFFSET($BX$20:$DW$25,0,INT(($BS27-1)/6),(INT(($BS27-1)/6)+1)*6+1-$BS27,1)))-$DY32 -> 3 | BV37: =IF($BS26<=0,SUMIF(OFFSET($BX26:$DW31,0,52-INT(ABS($BS26)/6)-1,,INT(ABS($BS26)/6)+1),"=" & $AG$77,OFFSET($BX$20:$DW$25,0,52-INT(ABS($BS26)/6)-1,,INT(ABS($BS26)/6)+1)))-IF(AND($BS26<=0,ABS($BS26)<INT(ABS($BS26)/6+1)*6-1),SUMIF(OFFSET($BX26:$DW31,0,52-INT(ABS($BS26)/6)-1,INT(ABS($BS26)/6+1)*6-1-ABS($BS26),1),"=" & $AG$77,OFFSET($BX$20:$DW$25,0,52-INT(ABS($BS26)/6)-1,INT(ABS($BS26)/6+1)*6-1-ABS($BS26),1)))-IF($BS27<=0,SUMIF(OFFSET($BX32:$DW37,(INT(ABS($BS27)/6)+1)*6-ABS($BS27)-1,52-INT(ABS($BS27)/6)-1,ABS($BS27)-INT(ABS($BS27)/6)*6+1,1),"=" & $AG$77,OFFSET($BX$20:$DW$25,(INT(ABS($BS27)/6)+1)*6-ABS($BS27)-1,52-INT(ABS($BS27)/6)-1,ABS($BS27)-INT(ABS($BS27)/6)*6+1,1)),0) -> 0 | BX37: =IF(B32="",0,B32) -> 0 | BY37: =IF(C32="",0,C32) -> 0 | BZ37: =IF(D32="",0,D32) -> 0 | CA37: =IF(E32="",0,E32) -> 0 | CB37: =IF(F32="",0,F32) -> 0 | CC37: =IF(G32="",0,G32) -> 0 | CD37: =IF(H32="",0,H32) -> 0 | CE37: =IF(I32="",0,I32) -> 0 | CF37: =IF(J32="",0,J32) -> 0 | CG37: =IF(K32="",0,K32) -> 0 | CH37: =IF(L32="",0,L32) -> 0 | CI37: =IF(M32="",0,M32) -> 0 | CJ37: =IF(N32="",0,N32) -> 0 | CK37: =IF(O32="",0,O32) -> 0 | CL37: =IF(P32="",0,P32) -> 0 | CM37: =IF(Q32="",0,Q32) -> 0 | CN37: =IF(R32="",0,R32) -> 0 | CO37: =IF(S32="",0,S32) -> 0 | CP37: =IF(T32="",0,T32) -> Э | CQ37: =IF(U32="",0,U32) -> Э | CR37: =IF(V32="",0,V32) -> Э | CS37: =IF(W32="",0,W32) -> К | CT37: =IF(X32="",0,X32) -> К | CU37: =IF(Y32="",0,Y32) -> 0 | CV37: =IF(Z32="",0,Z32) -> 0 | CW37: =IF(AA32="",0,AA32) -> 0 | CX37: =IF(AB32="",0,AB32) -> 0 | CY37: =IF(AC32="",0,AC32) -> 0 | CZ37: =IF(AD32="",0,AD32) -> 0 | DA37: =IF(AE32="",0,AE32) -> 0 | DB37: =IF(AF32="",0,AF32) -> 0 | DC37: =IF(AG32="",0,AG32) -> 0 | DD37: =IF(AH32="",0,AH32) -> 0 | DE37: =IF(AI32="",0,AI32) -> 0 | DF37: =IF(AJ32="",0,AJ32) -> 0 | DG37: =IF(AK32="",0,AK32) -> 0 | DH37: =IF(AL32="",0,AL32) -> 0 | DI37: =IF(AM32="",0,AM32) -> 0 | DJ37: =IF(AN32="",0,AN32) -> 0 | DK37: =IF(AO32="",0,AO32) -> 0 | DL37: =IF(AP32="",0,AP32) -> 0 | DM37: =IF(AQ32="",0,AQ32) -> Э | DN37: =IF(AR32="",0,AR32) -> Э | DO37: =IF(AS32="",0,AS32) -> Э | DP37: =IF(AT32="",0,AT32) -> К | DQ37: =IF(AU32="",0,AU32) -> К | DR37: =IF(AV32="",0,AV32) -> К | DS37: =IF(AW32="",0,AW32) -> К | DT37: =IF(AX32="",0,AX32) -> К | DU37: =IF(AY32="",0,AY32) -> К | DV37: =IF(AZ32="",0,AZ32) -> К | DW37: =IF(BA32="",0,BA32) -> К
A38: 2 | T38: Э | U38: Э | V38: Э | W38: К | X38: К | AQ38: Э | AR38: Э | AS38: Э | AT38: К | AU38: К | AV38: К | AW38: К | AX38: К | AY38: К | AZ38: К | BA38: К | BB38: =SUMIF(OFFSET($BX38:$DW43,0,INT((IF($BS27>0,$BS27,1)-1)/6),,INT(($BT27-1)/6)-INT((IF($BS27>0,$BS27,1)-1)/6)),"=0",OFFSET($BX$20:$DW$25,0,INT((IF($BS27>0,$BS27,1)-1)/6)))-IF(AND($BS27>0,$BS27>INT(($BS27-1)/6)*6+1),SUMIF(OFFSET($BX38:$DW43,0,INT(($BS27-1)/6),$BS27-INT(($BS27-1)/6)*6-1,1),"=0",OFFSET($BX$20:$DW$25,0,INT(($BS27-1)/6),$BS27-INT(($BS27-1)/6)*6-1,1)))+IF(AND($BT27>0,$BT27>INT(($BT27-1)/6)*6+1),SUMIF(OFFSET($BX38:$DW43,0,INT(($BT27-1)/6),$BT27-INT(($BT27-1)/6)*6-1,1),"=0",OFFSET($BX$20:$DW$25,0,INT(($BT27-1)/6),$BT27-INT(($BT27-1)/6)*6-1,1)))+$BW38 -> 18 | BC38: =SUMIF(OFFSET($BX38:$DW43,0,INT(($BT27-1)/6),,52-INT(($BT27-1)/6)-IF($BS28<=0,INT(ABS($BS28)/6)+1,0)),"=0",OFFSET($BX$20:$DW$25,0,INT(($BT27-1)/6),,52-INT(($BT27-1)/6)-IF($BS28<=0,INT(ABS($BS28)/6)+1,0)))-IF($BT27>INT(($BT27-1)/6)*6+1,SUMIF(OFFSET($BX38:$DW43,0,INT(($BT27-1)/6),$BT27-INT(($BT27-1)/6)*6-1,1),"=0",OFFSET($BX$20:$DW$25,0,INT(($BT27-1)/6),$BT27-INT(($BT27-1)/6)*6-1,1)))+IF($BS28>1,SUMIF(OFFSET($BX44:$DW49,0,0,,INT(($BS28-1)/6)+1),"=0",OFFSET($BX$20:$DW$25,0,0,,INT(($BS28-1)/6)+1)))-IF($BS28>1,SUMIF(OFFSET($BX44:$DW49,$BS28-INT(($BS28-1)/6)*6-1,INT(($BS28-1)/6),(INT(($BS28-1)/6)+1)*6+1-$BS28,1),"=0",OFFSET($BX$20:$DW$25,0,INT(($BS28-1)/6),(INT(($BS28-1)/6)+1)*6+1-$BS28,1)))-$DX38 -> 18 | BD38: =Недель3+Недель4 -> 36 | BE38: =Экз2Осень+Экз2Весна -> 6 | BF38: =SUMIF(OFFSET($BX38:$DW43,0,INT((IF($BS27>0,$BS27,1)-1)/6),,52-INT((IF($BS27>0,$BS27,1)-1)/6)-IF($BS28<=0,INT(ABS($BS28)/6),0)),"=" & $AR$77,OFFSET($BX$20:$DW$25,0,INT((IF($BS27>0,$BS27,1)-1)/6),,52-INT((IF($BS27>0,$BS27,1)-1)/6)-IF($BS28<=0,INT(ABS($BS28)/6),0)))-IF(AND($BS27>0,$BS27>INT(($BS27-1)/6)*6+1),SUMIF(OFFSET($BX38:$DW43,0,INT(($BS27-1)/6),$BS27-INT(($BS27-1)/6)*6-1,1),"=" & $AR$77,OFFSET($BX$20:$DW$25,0,INT(($BS27-1)/6),$BS27-INT(($BS27-1)/6)*6-1,1)))+IF($BS28>1,SUMIF(OFFSET($BX44:$DW49,0,0,,INT(($BS28-1)/6)+1),"=" & $AR$77,OFFSET($BX$20:$DW$25,0,0,,INT(($BS28-1)/6)+1)))-IF($BS28>1,SUMIF(OFFSET($BX44:$DW49,$BS28-INT(($BS28-1)/6)*6-1,INT(($BS28-1)/6),(INT(($BS28-1)/6)+1)*6+1-$BS28,1),"=" & $AR$77,OFFSET($BX$20:$DW$25,0,INT(($BS28-1)/6),(INT(($BS28-1)/6)+1)*6+1-$BS28,1)))+$BV38 -> 0 | BG38: =SUMIF(OFFSET($BX38:$DW43,0,INT((IF($BS27>0,$BS27,1)-1)/6),,52-INT((IF($BS27>0,$BS27,1)-1)/6)-IF($BS28<=0,INT(ABS($BS28)/6),0)),"=" & $AG$75,OFFSET($BX$20:$DW$25,0,INT((IF($BS27>0,$BS27,1)-1)/6),,52-INT((IF($BS27>0,$BS27,1)-1)/6)-IF($BS28<=0,INT(ABS($BS28)/6),0)))-IF(AND($BS27>0,$BS27>INT(($BS27-1)/6)*6+1),SUMIF(OFFSET($BX38:$DW43,0,INT(($BS27-1)/6),$BS27-INT(($BS27-1)/6)*6-1,1),"=" & $AG$75,OFFSET($BX$20:$DW$25,0,INT(($BS27-1)/6),$BS27-INT(($BS27-1)/6)*6-1,1)))+IF($BS28>1,SUMIF(OFFSET($BX44:$DW49,0,0,,INT(($BS28-1)/6)+1),"=" & $AG$75,OFFSET($BX$20:$DW$25,0,0,,INT(($BS28-1)/6)+1)))-IF($BS28>1,SUMIF(OFFSET($BX44:$DW49,$BS28-INT(($BS28-1)/6)*6-1,INT(($BS28-1)/6),(INT(($BS28-1)/6)+1)*6+1-$BS28,1),"=" & $AG$75,OFFSET($BX$20:$DW$25,0,INT(($BS28-1)/6),(INT(($BS28-1)/6)+1)*6+1-$BS28,1)))+$BV39 -> 0 | BH38: =SUMIF(OFFSET($BX38:$DW43,0,INT((IF($BS27>0,$BS27,1)-1)/6),,52-INT((IF($BS27>0,$BS27,1)-1)/6)-IF($BS28<=0,INT(ABS($BS28)/6),0)),"=" & $AR$75,OFFSET($BX$20:$DW$25,0,INT((IF($BS27>0,$BS27,1)-1)/6),,52-INT((IF($BS27>0,$BS27,1)-1)/6)-IF($BS28<=0,INT(ABS($BS28)/6),0)))-IF(AND($BS27>0,$BS27>INT(($BS27-1)/6)*6+1),SUMIF(OFFSET($BX38:$DW43,0,INT(($BS27-1)/6),$BS27-INT(($BS27-1)/6)*6-1,1),"=" & $AR$75,OFFSET($BX$20:$DW$25,0,INT(($BS27-1)/6),$BS27-INT(($BS27-1)/6)*6-1,1)))+IF($BS28>1,SUMIF(OFFSET($BX44:$DW49,0,0,,INT(($BS28-1)/6)+1),"=" & $AR$75,OFFSET($BX$20:$DW$25,0,0,,INT(($BS28-1)/6)+1)))-IF($BS28>1,SUMIF(OFFSET($BX44:$DW49,$BS28-INT(($BS28-1)/6)*6-1,INT(($BS28-1)/6),(INT(($BS28-1)/6)+1)*6+1-$BS28,1),"=" & $AR$75,OFFSET($BX$20:$DW$25,0,INT(($BS28-1)/6),(INT(($BS28-1)/6)+1)*6+1-$BS28,1)))+$BV40 -> 0 | BI38: =SUMIF(OFFSET($BX38:$DW43,0,INT((IF($BS27>0,$BS27,1)-1)/6),,52-INT((IF($BS27>0,$BS27,1)-1)/6)-IF($BS28<=0,INT(ABS($BS28)/6),0)),"=" & $G$77,OFFSET($BX$20:$DW$25,0,INT((IF($BS27>0,$BS27,1)-1)/6),,52-INT((IF($BS27>0,$BS27,1)-1)/6)-IF($BS28<=0,INT(ABS($BS28)/6),0)))-IF(AND($BS27>0,$BS27>INT(($BS27-1)/6)*6+1),SUMIF(OFFSET($BX38:$DW43,0,INT(($BS27-1)/6),$BS27-INT(($BS27-1)/6)*6-1,1),"=" & $G$77,OFFSET($BX$20:$DW$25,0,INT(($BS27-1)/6),$BS27-INT(($BS27-1)/6)*6-1,1)))+IF($BS28>1,SUMIF(OFFSET($BX44:$DW49,0,0,,INT(($BS28-1)/6)+1),"=" & $G$77,OFFSET($BX$20:$DW$25,0,0,,INT(($BS28-1)/6)+1)))-IF($BS28>1,SUMIF(OFFSET($BX44:$DW49,$BS28-INT(($BS28-1)/6)*6-1,INT(($BS28-1)/6),(INT(($BS28-1)/6)+1)*6+1-$BS28,1),"=" & $G$77,OFFSET($BX$20:$DW$25,0,INT(($BS28-1)/6),(INT(($BS28-1)/6)+1)*6+1-$BS28,1)))+$BV41 -> 0 | BJ38: =SUMIF(OFFSET($BX38:$DW43,0,INT((IF($BS27>0,$BS27,1)-1)/6),,52-INT((IF($BS27>0,$BS27,1)-1)/6)-IF($BS28<=0,INT(ABS($BS28)/6),0)),"=" & $T$77,OFFSET($BX$20:$DW$25,0,INT((IF($BS27>0,$BS27,1)-1)/6),,52-INT((IF($BS27>0,$BS27,1)-1)/6)-IF($BS28<=0,INT(ABS($BS28)/6),0)))-IF(AND($BS27>0,$BS27>INT(($BS27-1)/6)*6+1),SUMIF(OFFSET($BX38:$DW43,0,INT(($BS27-1)/6),$BS27-INT(($BS27-1)/6)*6-1,1),"=" & $T$77,OFFSET($BX$20:$DW$25,0,INT(($BS27-1)/6),$BS27-INT(($BS27-1)/6)*6-1,1)))+IF($BS28>1,SUMIF(OFFSET($BX44:$DW49,0,0,,INT(($BS28-1)/6)+1),"=" & $T$77,OFFSET($BX$20:$DW$25,0,0,,INT(($BS28-1)/6)+1)))-IF($BS28>1,SUMIF(OFFSET($BX44:$DW49,$BS28-INT(($BS28-1)/6)*6-1,INT(($BS28-1)/6),(INT(($BS28-1)/6)+1)*6+1-$BS28,1),"=" & $T$77,OFFSET($BX$20:$DW$25,0,INT(($BS28-1)/6),(INT(($BS28-1)/6)+1)*6+1-$BS28,1)))+$BV42 -> 0 | BK38: =SUMIF(OFFSET($BX38:$DW43,0,INT((IF($BS27>0,$BS27,1)-1)/6),,52-INT((IF($BS27>0,$BS27,1)-1)/6)-IF($BS28<=0,INT(ABS($BS28)/6),0)),"=" & $AG$77,OFFSET($BX$20:$DW$25,0,INT((IF($BS27>0,$BS27,1)-1)/6),,52-INT((IF($BS27>0,$BS27,1)-1)/6)-IF($BS28<=0,INT(ABS($BS28)/6),0)))-IF(AND($BS27>0,$BS27>INT(($BS27-1)/6)*6+1),SUMIF(OFFSET($BX38:$DW43,0,INT(($BS27-1)/6),$BS27-INT(($BS27-1)/6)*6-1,1),"=" & $AG$77,OFFSET($BX$20:$DW$25,0,INT(($BS27-1)/6),$BS27-INT(($BS27-1)/6)*6-1,1)))+IF($BS28>1,SUMIF(OFFSET($BX44:$DW49,0,0,,INT(($BS28-1)/6)+1),"=" & $AG$77,OFFSET($BX$20:$DW$25,0,0,,INT(($BS28-1)/6)+1)))-IF($BS28>1,SUMIF(OFFSET($BX44:$DW49,$BS28-INT(($BS28-1)/6)*6-1,INT(($BS28-1)/6),(INT(($BS28-1)/6)+1)*6+1-$BS28,1),"=" & $AG$77,OFFSET($BX$20:$DW$25,0,INT(($BS28-1)/6),(INT(($BS28-1)/6)+1)*6+1-$BS28,1)))+$BV43 -> 10 | BL38: =SUM($BD38:$BK43) -> 52 | BM38: 43 | BN38: 2 | BO38: 2 | BR38: =SUM(План!AJ1144:AM1144) -> 0 | BU38: =SUMIF(OFFSET($BX38:$DW43,0,INT((IF($BS27>0,$BS27,1)-1)/6),,INT(($BT27-1)/6)-INT((IF($BS27>0,$BS27,1)-1)/6)),"=" & $T$75,OFFSET($BX$20:$DW$25,0,INT((IF($BS27>0,$BS27,1)-1)/6)))-IF(AND($BS27>0,$BS27>INT(($BS27-1)/6)*6+1),SUMIF(OFFSET($BX38:$DW43,0,INT(($BS27-1)/6),$BS27-INT(($BS27-1)/6)*6-1,1),"=" & $T$75,OFFSET($BX$20:$DW$25,0,INT(($BS27-1)/6),$BS27-INT(($BS27-1)/6)*6-1,1)))+IF(AND($BT27>0,$BT27>INT(($BT27-1)/6)*6+1),SUMIF(OFFSET($BX38:$DW43,0,INT(($BT27-1)/6),$BT27-INT(($BT27-1)/6)*6-1,1),"=" & $T$75,OFFSET($BX$20:$DW$25,0,INT(($BT27-1)/6),$BT27-INT(($BT27-1)/6)*6-1,1)))+$BU39 -> 3 | BV38: =IF($BS27<=0,SUMIF(OFFSET($BX32:$DW37,0,52-INT(ABS($BS27)/6)-1,,INT(ABS($BS27)/6)+1),"=" & $AR$77,OFFSET($BX$20:$DW$25,0,52-INT(ABS($BS27)/6)-1,,INT(ABS($BS27)/6)+1)))-IF(AND($BS27<=0,ABS($BS27)<INT(ABS($BS27)/6+1)*6-1),SUMIF(OFFSET($BX32:$DW37,0,52-INT(ABS($BS27)/6)-1,INT(ABS($BS27)/6+1)*6-1-ABS($BS27),1),"=" & $AR$77,OFFSET($BX$20:$DW$25,0,52-INT(ABS($BS27)/6)-1,INT(ABS($BS27)/6+1)*6-1-ABS($BS27),1)))-IF($BS28<=0,SUMIF(OFFSET($BX38:$DW43,(INT(ABS($BS28)/6)+1)*6-ABS($BS28)-1,52-INT(ABS($BS28)/6)-1,ABS($BS28)-INT(ABS($BS28)/6)*6+1,1),"=" & $AR$77,OFFSET($BX$20:$DW$25,(INT(ABS($BS28)/6)+1)*6-ABS($BS28)-1,52-INT(ABS($BS28)/6)-1,ABS($BS28)-INT(ABS($BS28)/6)*6+1,1)),0) -> 0 | BW38: =IF($BS27<=0,SUMIF(OFFSET($BX32:$DW37,0,52-INT(ABS($BS27)/6)-1,,INT(ABS($BS27)/6)+1),"=0",OFFSET($BX$20:$DW$25,0,52-INT(ABS($BS27)/6)-1,,INT(ABS($BS27)/6)+1)))-IF(AND($BS27<=0,ABS($BS27)<INT(ABS($BS27)/6+1)*6-1),SUMIF(OFFSET($BX32:$DW37,0,52-INT(ABS($BS27)/6)-1,INT(ABS($BS27)/6+1)*6-1-ABS($BS27),1),"=0",OFFSET($BX$20:$DW$25,0,52-INT(ABS($BS27)/6)-1,INT(ABS($BS27)/6+1)*6-1-ABS($BS27),1))) -> 0 | BX38: =IF(B38="",0,B38) -> 0 | BY38: 0 | BZ38: 0 | CA38: 0 | CB38: 0 | CC38: 0 | CD38: 0 | CE38: 0 | CF38: 0 | CG38: 0 | CH38: 0 | CI38: 0 | CJ38: 0 | CK38: 0 | CL38: 0 | CM38: 0 | CN38: 0 | CO38: 0 | CP38: Э | CQ38: Э | CR38: Э | CS38: К | CT38: К | CU38: 0 | CV38: 0 | CW38: 0 | CX38: 0 | CY38: 0 | CZ38: 0 | DA38: 0 | DB38: 0 | DC38: 0 | DD38: =IF(AH38="",0,AH38) -> 0 | DE38: 0 | DF38: 0 | DG38: 0 | DH38: 0 | DI38: 0 | DJ38: 0 | DK38: 0 | DL38: 0 | DM38: Э | DN38: Э | DO38: Э | DP38: К | DQ38: К | DR38: К | DS38: К | DT38: К | DU38: К | DV38: К | DW38: К | DX38: =IF($BS28<=0,SUMIF(OFFSET($BX38:$DW43,(INT(ABS($BS28)/6)+1)*6-ABS($BS28)-1,52-INT(ABS($BS28)/6)-1,ABS($BS28)-INT(ABS($BS28)/6)*6+1,1),"=0",OFFSET($BX$20:$DW$25,(INT(ABS($BS28)/6)+1)*6-ABS($BS28)-1,52-INT(ABS($BS28)/6)-1,ABS($BS28)-INT(ABS($BS28)/6)*6+1,1)),0) -> 0 | DY38: =IF($BS28<=0,SUMIF(OFFSET($BX38:$DW43,(INT(ABS($BS28)/6)+1)*6-ABS($BS28)-1,52-INT(ABS($BS28)/6)-1,ABS($BS28)-INT(ABS($BS28)/6)*6+1,1),"=" & $T$75,OFFSET($BX$20:$DW$25,(INT(ABS($BS28)/6)+1)*6-ABS($BS28)-1,52-INT(ABS($BS28)/6)-1,ABS($BS28)-INT(ABS($BS28)/6)*6+1,1)),0) -> 0
BR39: =SUM(План!AN1144:AQ1144) -> 0 | BU39: =IF($BS27<=0,SUMIF(OFFSET($BX32:$DW37,0,52-INT(ABS($BS27)/6)-1,,INT(ABS($BS27)/6)+1),"=" & $T$75,OFFSET($BX$20:$DW$25,0,52-INT(ABS($BS27)/6)-1,,INT(ABS($BS27)/6)+1)))-IF(AND($BS27<=0,ABS($BS27)<INT(ABS($BS27)/6+1)*6-1),SUMIF(OFFSET($BX32:$DW37,0,52-INT(ABS($BS27)/6)-1,INT(ABS($BS27)/6+1)*6-1-ABS($BS27),1),"=" & $T$75,OFFSET($BX$20:$DW$25,0,52-INT(ABS($BS27)/6)-1,INT(ABS($BS27)/6+1)*6-1-ABS($BS27),1))) -> 0 | BV39: =IF($BS27<=0,SUMIF(OFFSET($BX32:$DW37,0,52-INT(ABS($BS27)/6)-1,,INT(ABS($BS27)/6)+1),"=" & $AG$75,OFFSET($BX$20:$DW$25,0,52-INT(ABS($BS27)/6)-1,,INT(ABS($BS27)/6)+1)))-IF(AND($BS27<=0,ABS($BS27)<INT(ABS($BS27)/6+1)*6-1),SUMIF(OFFSET($BX32:$DW37,0,52-INT(ABS($BS27)/6)-1,INT(ABS($BS27)/6+1)*6-1-ABS($BS27),1),"=" & $AG$75,OFFSET($BX$20:$DW$25,0,52-INT(ABS($BS27)/6)-1,INT(ABS($BS27)/6+1)*6-1-ABS($BS27),1)))-IF($BS28<=0,SUMIF(OFFSET($BX38:$DW43,(INT(ABS($BS28)/6)+1)*6-ABS($BS28)-1,52-INT(ABS($BS28)/6)-1,ABS($BS28)-INT(ABS($BS28)/6)*6+1,1),"=" & $AG$75,OFFSET($BX$20:$DW$25,(INT(ABS($BS28)/6)+1)*6-ABS($BS28)-1,52-INT(ABS($BS28)/6)-1,ABS($BS28)-INT(ABS($BS28)/6)*6+1,1)),0) -> 0 | BX39: =IF(B38="",0,B38) -> 0 | BY39: =IF(C38="",0,C38) -> 0 | BZ39: =IF(D38="",0,D38) -> 0 | CA39: =IF(E38="",0,E38) -> 0 | CB39: =IF(F38="",0,F38) -> 0 | CC39: =IF(G38="",0,G38) -> 0 | CD39: =IF(H38="",0,H38) -> 0 | CE39: =IF(I38="",0,I38) -> 0 | CF39: =IF(J38="",0,J38) -> 0 | CG39: =IF(K38="",0,K38) -> 0 | CH39: =IF(L38="",0,L38) -> 0 | CI39: =IF(M38="",0,M38) -> 0 | CJ39: =IF(N38="",0,N38) -> 0 | CK39: =IF(O38="",0,O38) -> 0 | CL39: =IF(P38="",0,P38) -> 0 | CM39: =IF(Q38="",0,Q38) -> 0 | CN39: =IF(R38="",0,R38) -> 0 | CO39: =IF(S38="",0,S38) -> 0 | CP39: =IF(T38="",0,T38) -> Э | CQ39: =IF(U38="",0,U38) -> Э | CR39: =IF(V38="",0,V38) -> Э | CS39: =IF(W38="",0,W38) -> К | CT39: =IF(X38="",0,X38) -> К | CU39: =IF(Y38="",0,Y38) -> 0 | CV39: =IF(Z38="",0,Z38) -> 0 | CW39: =IF(AA38="",0,AA38) -> 0 | CX39: =IF(AB38="",0,AB38) -> 0 | CY39: =IF(AC38="",0,AC38) -> 0 | CZ39: =IF(AD38="",0,AD38) -> 0 | DA39: =IF(AE38="",0,AE38) -> 0 | DB39: =IF(AF38="",0,AF38) -> 0 | DC39: =IF(AG38="",0,AG38) -> 0 | DD39: =IF(AH38="",0,AH38) -> 0 | DE39: =IF(AI38="",0,AI38) -> 0 | DF39: =IF(AJ38="",0,AJ38) -> 0 | DG39: =IF(AK38="",0,AK38) -> 0 | DH39: =IF(AL38="",0,AL38) -> 0 | DI39: =IF(AM38="",0,AM38) -> 0 | DJ39: =IF(AN38="",0,AN38) -> 0 | DK39: =IF(AO38="",0,AO38) -> 0 | DL39: =IF(AP38="",0,AP38) -> 0 | DM39: =IF(AQ38="",0,AQ38) -> Э | DN39: =IF(AR38="",0,AR38) -> Э | DO39: =IF(AS38="",0,AS38) -> Э | DP39: =IF(AT38="",0,AT38) -> К | DQ39: =IF(AU38="",0,AU38) -> К | DR39: =IF(AV38="",0,AV38) -> К | DS39: =IF(AW38="",0,AW38) -> К | DT39: =IF(AX38="",0,AX38) -> К | DU39: =IF(AY38="",0,AY38) -> К | DV39: =IF(AZ38="",0,AZ38) -> К | DW39: =IF(BA38="",0,BA38) -> К
BR40: =SUM(План!AR1144:AU1144) -> 0 | BV40: =IF($BS27<=0,SUMIF(OFFSET($BX32:$DW37,0,52-INT(ABS($BS27)/6)-1,,INT(ABS($BS27)/6)+1),"=" & $AR$75,OFFSET($BX$20:$DW$25,0,52-INT(ABS($BS27)/6)-1,,INT(ABS($BS27)/6)+1)))-IF(AND($BS27<=0,ABS($BS27)<INT(ABS($BS27)/6+1)*6-1),SUMIF(OFFSET($BX32:$DW37,0,52-INT(ABS($BS27)/6)-1,INT(ABS($BS27)/6+1)*6-1-ABS($BS27),1),"=" & $AR$75,OFFSET($BX$20:$DW$25,0,52-INT(ABS($BS27)/6)-1,INT(ABS($BS27)/6+1)*6-1-ABS($BS27),1)))-IF($BS28<=0,SUMIF(OFFSET($BX38:$DW43,(INT(ABS($BS28)/6)+1)*6-ABS($BS28)-1,52-INT(ABS($BS28)/6)-1,ABS($BS28)-INT(ABS($BS28)/6)*6+1,1),"=" & $AR$75,OFFSET($BX$20:$DW$25,(INT(ABS($BS28)/6)+1)*6-ABS($BS28)-1,52-INT(ABS($BS28)/6)-1,ABS($BS28)-INT(ABS($BS28)/6)*6+1,1)),0) -> 0 | BX40: =IF(B38="",0,B38) -> 0 | BY40: =IF(C38="",0,C38) -> 0 | BZ40: =IF(D38="",0,D38) -> 0 | CA40: =IF(E38="",0,E38) -> 0 | CB40: =IF(F38="",0,F38) -> 0 | CC40: =IF(G38="",0,G38) -> 0 | CD40: =IF(H38="",0,H38) -> 0 | CE40: =IF(I38="",0,I38) -> 0 | CF40: =IF(J38="",0,J38) -> 0 | CG40: =IF(K38="",0,K38) -> 0 | CH40: =IF(L38="",0,L38) -> 0 | CI40: =IF(M38="",0,M38) -> 0 | CJ40: =IF(N38="",0,N38) -> 0 | CK40: =IF(O38="",0,O38) -> 0 | CL40: =IF(P38="",0,P38) -> 0 | CM40: =IF(Q38="",0,Q38) -> 0 | CN40: =IF(R38="",0,R38) -> 0 | CO40: =IF(S38="",0,S38) -> 0 | CP40: =IF(T38="",0,T38) -> Э | CQ40: =IF(U38="",0,U38) -> Э | CR40: =IF(V38="",0,V38) -> Э | CS40: =IF(W38="",0,W38) -> К | CT40: =IF(X38="",0,X38) -> К | CU40: =IF(Y38="",0,Y38) -> 0 | CV40: =IF(Z38="",0,Z38) -> 0 | CW40: =IF(AA38="",0,AA38) -> 0 | CX40: =IF(AB38="",0,AB38) -> 0 | CY40: =IF(AC38="",0,AC38) -> 0 | CZ40: =IF(AD38="",0,AD38) -> 0 | DA40: =IF(AE38="",0,AE38) -> 0 | DB40: =IF(AF38="",0,AF38) -> 0 | DC40: =IF(AG38="",0,AG38) -> 0 | DD40: =IF(AH38="",0,AH38) -> 0 | DE40: =IF(AI38="",0,AI38) -> 0 | DF40: =IF(AJ38="",0,AJ38) -> 0 | DG40: =IF(AK38="",0,AK38) -> 0 | DH40: =IF(AL38="",0,AL38) -> 0 | DI40: =IF(AM38="",0,AM38) -> 0 | DJ40: =IF(AN38="",0,AN38) -> 0 | DK40: =IF(AO38="",0,AO38) -> 0 | DL40: =IF(AP38="",0,AP38) -> 0 | DM40: =IF(AQ38="",0,AQ38) -> Э | DN40: =IF(AR38="",0,AR38) -> Э | DO40: =IF(AS38="",0,AS38) -> Э | DP40: =IF(AT38="",0,AT38) -> К | DQ40: =IF(AU38="",0,AU38) -> К | DR40: =IF(AV38="",0,AV38) -> К | DS40: =IF(AW38="",0,AW38) -> К | DT40: =IF(AX38="",0,AX38) -> К | DU40: =IF(AY38="",0,AY38) -> К | DV40: =IF(AZ38="",0,AZ38) -> К | DW40: =IF(BA38="",0,BA38) -> К
BR41: =SUM(План!AV1144:AY1144) -> 0 | BV41: =IF($BS27<=0,SUMIF(OFFSET($BX32:$DW37,0,52-INT(ABS($BS27)/6)-1,,INT(ABS($BS27)/6)+1),"=" & $G$77,OFFSET($BX$20:$DW$25,0,52-INT(ABS($BS27)/6)-1,,INT(ABS($BS27)/6)+1)))-IF(AND($BS27<=0,ABS($BS27)<INT(ABS($BS27)/6+1)*6-1),SUMIF(OFFSET($BX32:$DW37,0,52-INT(ABS($BS27)/6)-1,INT(ABS($BS27)/6+1)*6-1-ABS($BS27),1),"=" & $G$77,OFFSET($BX$20:$DW$25,0,52-INT(ABS($BS27)/6)-1,INT(ABS($BS27)/6+1)*6-1-ABS($BS27),1)))-IF($BS28<=0,SUMIF(OFFSET($BX38:$DW43,(INT(ABS($BS28)/6)+1)*6-ABS($BS28)-1,52-INT(ABS($BS28)/6)-1,ABS($BS28)-INT(ABS($BS28)/6)*6+1,1),"=" & $G$77,OFFSET($BX$20:$DW$25,(INT(ABS($BS28)/6)+1)*6-ABS($BS28)-1,52-INT(ABS($BS28)/6)-1,ABS($BS28)-INT(ABS($BS28)/6)*6+1,1)),0) -> 0 | BX41: =IF(B38="",0,B38) -> 0 | BY41: =IF(C38="",0,C38) -> 0 | BZ41: =IF(D38="",0,D38) -> 0 | CA41: =IF(E38="",0,E38) -> 0 | CB41: =IF(F38="",0,F38) -> 0 | CC41: =IF(G38="",0,G38) -> 0 | CD41: =IF(H38="",0,H38) -> 0 | CE41: =IF(I38="",0,I38) -> 0 | CF41: =IF(J38="",0,J38) -> 0 | CG41: =IF(K38="",0,K38) -> 0 | CH41: =IF(L38="",0,L38) -> 0 | CI41: =IF(M38="",0,M38) -> 0 | CJ41: =IF(N38="",0,N38) -> 0 | CK41: =IF(O38="",0,O38) -> 0 | CL41: =IF(P38="",0,P38) -> 0 | CM41: =IF(Q38="",0,Q38) -> 0 | CN41: =IF(R38="",0,R38) -> 0 | CO41: =IF(S38="",0,S38) -> 0 | CP41: =IF(T38="",0,T38) -> Э | CQ41: =IF(U38="",0,U38) -> Э | CR41: =IF(V38="",0,V38) -> Э | CS41: =IF(W38="",0,W38) -> К | CT41: =IF(X38="",0,X38) -> К | CU41: =IF(Y38="",0,Y38) -> 0 | CV41: =IF(Z38="",0,Z38) -> 0 | CW41: =IF(AA38="",0,AA38) -> 0 | CX41: =IF(AB38="",0,AB38) -> 0 | CY41: =IF(AC38="",0,AC38) -> 0 | CZ41: =IF(AD38="",0,AD38) -> 0 | DA41: =IF(AE38="",0,AE38) -> 0 | DB41: =IF(AF38="",0,AF38) -> 0 | DC41: =IF(AG38="",0,AG38) -> 0 | DD41: =IF(AH38="",0,AH38) -> 0 | DE41: =IF(AI38="",0,AI38) -> 0 | DF41: =IF(AJ38="",0,AJ38) -> 0 | DG41: =IF(AK38="",0,AK38) -> 0 | DH41: =IF(AL38="",0,AL38) -> 0 | DI41: =IF(AM38="",0,AM38) -> 0 | DJ41: =IF(AN38="",0,AN38) -> 0 | DK41: =IF(AO38="",0,AO38) -> 0 | DL41: =IF(AP38="",0,AP38) -> 0 | DM41: =IF(AQ38="",0,AQ38) -> Э | DN41: =IF(AR38="",0,AR38) -> Э | DO41: =IF(AS38="",0,AS38) -> Э | DP41: =IF(AT38="",0,AT38) -> К | DQ41: =IF(AU38="",0,AU38) -> К | DR41: =IF(AV38="",0,AV38) -> К | DS41: =IF(AW38="",0,AW38) -> К | DT41: =IF(AX38="",0,AX38) -> К | DU41: =IF(AY38="",0,AY38) -> К | DV41: =IF(AZ38="",0,AZ38) -> К | DW41: =IF(BA38="",0,BA38) -> К
BR42: =SUM(План!AZ1144:BC1144) -> 0 | BV42: =IF($BS27<=0,SUMIF(OFFSET($BX32:$DW37,0,52-INT(ABS($BS27)/6)-1,,INT(ABS($BS27)/6)+1),"=" & $T$77,OFFSET($BX$20:$DW$25,0,52-INT(ABS($BS27)/6)-1,,INT(ABS($BS27)/6)+1)))-IF(AND($BS27<=0,ABS($BS27)<INT(ABS($BS27)/6+1)*6-1),SUMIF(OFFSET($BX32:$DW37,0,52-INT(ABS($BS27)/6)-1,INT(ABS($BS27)/6+1)*6-1-ABS($BS27),1),"=" & $T$77,OFFSET($BX$20:$DW$25,0,52-INT(ABS($BS27)/6)-1,INT(ABS($BS27)/6+1)*6-1-ABS($BS27),1)))-IF($BS28<=0,SUMIF(OFFSET($BX38:$DW43,(INT(ABS($BS28)/6)+1)*6-ABS($BS28)-1,52-INT(ABS($BS28)/6)-1,ABS($BS28)-INT(ABS($BS28)/6)*6+1,1),"=" & $T$77,OFFSET($BX$20:$DW$25,(INT(ABS($BS28)/6)+1)*6-ABS($BS28)-1,52-INT(ABS($BS28)/6)-1,ABS($BS28)-INT(ABS($BS28)/6)*6+1,1)),0) -> 0 | BX42: =IF(B38="",0,B38) -> 0 | BY42: =IF(C38="",0,C38) -> 0 | BZ42: =IF(D38="",0,D38) -> 0 | CA42: =IF(E38="",0,E38) -> 0 | CB42: =IF(F38="",0,F38) -> 0 | CC42: =IF(G38="",0,G38) -> 0 | CD42: =IF(H38="",0,H38) -> 0 | CE42: =IF(I38="",0,I38) -> 0 | CF42: =IF(J38="",0,J38) -> 0 | CG42: =IF(K38="",0,K38) -> 0 | CH42: =IF(L38="",0,L38) -> 0 | CI42: =IF(M38="",0,M38) -> 0 | CJ42: =IF(N38="",0,N38) -> 0 | CK42: =IF(O38="",0,O38) -> 0 | CL42: =IF(P38="",0,P38) -> 0 | CM42: =IF(Q38="",0,Q38) -> 0 | CN42: =IF(R38="",0,R38) -> 0 | CO42: =IF(S38="",0,S38) -> 0 | CP42: =IF(T38="",0,T38) -> Э | CQ42: =IF(U38="",0,U38) -> Э | CR42: =IF(V38="",0,V38) -> Э | CS42: =IF(W38="",0,W38) -> К | CT42: =IF(X38="",0,X38) -> К | CU42: =IF(Y38="",0,Y38) -> 0 | CV42: =IF(Z38="",0,Z38) -> 0 | CW42: =IF(AA38="",0,AA38) -> 0 | CX42: =IF(AB38="",0,AB38) -> 0 | CY42: =IF(AC38="",0,AC38) -> 0 | CZ42: =IF(AD38="",0,AD38) -> 0 | DA42: =IF(AE38="",0,AE38) -> 0 | DB42: =IF(AF38="",0,AF38) -> 0 | DC42: =IF(AG38="",0,AG38) -> 0 | DD42: =IF(AH38="",0,AH38) -> 0 | DE42: =IF(AI38="",0,AI38) -> 0 | DF42: =IF(AJ38="",0,AJ38) -> 0 | DG42: =IF(AK38="",0,AK38) -> 0 | DH42: =IF(AL38="",0,AL38) -> 0 | DI42: =IF(AM38="",0,AM38) -> 0 | DJ42: =IF(AN38="",0,AN38) -> 0 | DK42: =IF(AO38="",0,AO38) -> 0 | DL42: =IF(AP38="",0,AP38) -> 0 | DM42: =IF(AQ38="",0,AQ38) -> Э | DN42: =IF(AR38="",0,AR38) -> Э | DO42: =IF(AS38="",0,AS38) -> Э | DP42: =IF(AT38="",0,AT38) -> К | DQ42: =IF(AU38="",0,AU38) -> К | DR42: =IF(AV38="",0,AV38) -> К | DS42: =IF(AW38="",0,AW38) -> К | DT42: =IF(AX38="",0,AX38) -> К | DU42: =IF(AY38="",0,AY38) -> К | DV42: =IF(AZ38="",0,AZ38) -> К | DW42: =IF(BA38="",0,BA38) -> К
A43: 3 | BO43: 3 | BR43: =SUM(План!BD1144:BG1144) -> 0 | BU43: =SUMIF(OFFSET($BX38:$DW43,0,INT(($BT27-1)/6),,52-INT(($BT27-1)/6)-IF($BS28<=0,INT(ABS($BS28)/6),0)),"=" & $T$75,OFFSET($BX$20:$DW$25,0,INT(($BT27-1)/6),,52-INT(($BT27-1)/6)-IF($BS28<=0,INT(ABS($BS28)/6),0)))-IF($BT27>INT(($BT27-1)/6)*6+1,SUMIF(OFFSET($BX38:$DW43,0,INT(($BT27-1)/6),$BT27-INT(($BT27-1)/6)*6-1,1),"=" & $T$75,OFFSET($BX$20:$DW$25,0,INT(($BT27-1)/6),$BT27-INT(($BT27-1)/6)*6-1,1)))+IF($BS28>1,SUMIF(OFFSET($BX44:$DW49,0,0,,INT(($BS28-1)/6)+1),"=" & $T$75,OFFSET($BX$20:$DW$25,0,0,,INT(($BS28-1)/6)+1)))-IF($BS28>1,SUMIF(OFFSET($BX44:$DW49,$BS28-INT(($BS28-1)/6)*6-1,INT(($BS28-1)/6),(INT(($BS28-1)/6)+1)*6+1-$BS28,1),"=" & $T$75,OFFSET($BX$20:$DW$25,0,INT(($BS28-1)/6),(INT(($BS28-1)/6)+1)*6+1-$BS28,1)))-$DY38 -> 3 | BV43: =IF($BS27<=0,SUMIF(OFFSET($BX32:$DW37,0,52-INT(ABS($BS27)/6)-1,,INT(ABS($BS27)/6)+1),"=" & $AG$77,OFFSET($BX$20:$DW$25,0,52-INT(ABS($BS27)/6)-1,,INT(ABS($BS27)/6)+1)))-IF(AND($BS27<=0,ABS($BS27)<INT(ABS($BS27)/6+1)*6-1),SUMIF(OFFSET($BX32:$DW37,0,52-INT(ABS($BS27)/6)-1,INT(ABS($BS27)/6+1)*6-1-ABS($BS27),1),"=" & $AG$77,OFFSET($BX$20:$DW$25,0,52-INT(ABS($BS27)/6)-1,INT(ABS($BS27)/6+1)*6-1-ABS($BS27),1)))-IF($BS28<=0,SUMIF(OFFSET($BX38:$DW43,(INT(ABS($BS28)/6)+1)*6-ABS($BS28)-1,52-INT(ABS($BS28)/6)-1,ABS($BS28)-INT(ABS($BS28)/6)*6+1,1),"=" & $AG$77,OFFSET($BX$20:$DW$25,(INT(ABS($BS28)/6)+1)*6-ABS($BS28)-1,52-INT(ABS($BS28)/6)-1,ABS($BS28)-INT(ABS($BS28)/6)*6+1,1)),0) -> 0 | BX43: =IF(B38="",0,B38) -> 0 | BY43: =IF(C38="",0,C38) -> 0 | BZ43: =IF(D38="",0,D38) -> 0 | CA43: =IF(E38="",0,E38) -> 0 | CB43: =IF(F38="",0,F38) -> 0 | CC43: =IF(G38="",0,G38) -> 0 | CD43: =IF(H38="",0,H38) -> 0 | CE43: =IF(I38="",0,I38) -> 0 | CF43: =IF(J38="",0,J38) -> 0 | CG43: =IF(K38="",0,K38) -> 0 | CH43: =IF(L38="",0,L38) -> 0 | CI43: =IF(M38="",0,M38) -> 0 | CJ43: =IF(N38="",0,N38) -> 0 | CK43: =IF(O38="",0,O38) -> 0 | CL43: =IF(P38="",0,P38) -> 0 | CM43: =IF(Q38="",0,Q38) -> 0 | CN43: =IF(R38="",0,R38) -> 0 | CO43: =IF(S38="",0,S38) -> 0 | CP43: =IF(T38="",0,T38) -> Э | CQ43: =IF(U38="",0,U38) -> Э | CR43: =IF(V38="",0,V38) -> Э | CS43: =IF(W38="",0,W38) -> К | CT43: =IF(X38="",0,X38) -> К | CU43: =IF(Y38="",0,Y38) -> 0 | CV43: =IF(Z38="",0,Z38) -> 0 | CW43: =IF(AA38="",0,AA38) -> 0 | CX43: =IF(AB38="",0,AB38) -> 0 | CY43: =IF(AC38="",0,AC38) -> 0 | CZ43: =IF(AD38="",0,AD38) -> 0 | DA43: =IF(AE38="",0,AE38) -> 0 | DB43: =IF(AF38="",0,AF38) -> 0 | DC43: =IF(AG38="",0,AG38) -> 0 | DD43: =IF(AH38="",0,AH38) -> 0 | DE43: =IF(AI38="",0,AI38) -> 0 | DF43: =IF(AJ38="",0,AJ38) -> 0 | DG43: =IF(AK38="",0,AK38) -> 0 | DH43: =IF(AL38="",0,AL38) -> 0 | DI43: =IF(AM38="",0,AM38) -> 0 | DJ43: =IF(AN38="",0,AN38) -> 0 | DK43: =IF(AO38="",0,AO38) -> 0 | DL43: =IF(AP38="",0,AP38) -> 0 | DM43: =IF(AQ38="",0,AQ38) -> Э | DN43: =IF(AR38="",0,AR38) -> Э | DO43: =IF(AS38="",0,AS38) -> Э | DP43: =IF(AT38="",0,AT38) -> К | DQ43: =IF(AU38="",0,AU38) -> К | DR43: =IF(AV38="",0,AV38) -> К | DS43: =IF(AW38="",0,AW38) -> К | DT43: =IF(AX38="",0,AX38) -> К | DU43: =IF(AY38="",0,AY38) -> К | DV43: =IF(AZ38="",0,AZ38) -> К | DW43: =IF(BA38="",0,BA38) -> К
A44: 3 | T44: Э | U44: Э | V44: Э | W44: К | X44: К | Y44: У | Z44: У | AA44: У | AB44: У | AQ44: Э | AR44: Э | AS44: Э | AT44: К | AU44: К | AV44: К | AW44: К | AX44: К | AY44: К | AZ44: К | BA44: К | BB44: =SUMIF(OFFSET($BX44:$DW49,0,INT((IF($BS28>0,$BS28,1)-1)/6),,INT(($BT28-1)/6)-INT((IF($BS28>0,$BS28,1)-1)/6)),"=0",OFFSET($BX$20:$DW$25,0,INT((IF($BS28>0,$BS28,1)-1)/6)))-IF(AND($BS28>0,$BS28>INT(($BS28-1)/6)*6+1),SUMIF(OFFSET($BX44:$DW49,0,INT(($BS28-1)/6),$BS28-INT(($BS28-1)/6)*6-1,1),"=0",OFFSET($BX$20:$DW$25,0,INT(($BS28-1)/6),$BS28-INT(($BS28-1)/6)*6-1,1)))+IF(AND($BT28>0,$BT28>INT(($BT28-1)/6)*6+1),SUMIF(OFFSET($BX44:$DW49,0,INT(($BT28-1)/6),$BT28-INT(($BT28-1)/6)*6-1,1),"=0",OFFSET($BX$20:$DW$25,0,INT(($BT28-1)/6),$BT28-INT(($BT28-1)/6)*6-1,1)))+$BW44 -> 18 | BC44: =SUMIF(OFFSET($BX44:$DW49,0,INT(($BT28-1)/6),,52-INT(($BT28-1)/6)-IF($BS29<=0,INT(ABS($BS29)/6)+1,0)),"=0",OFFSET($BX$20:$DW$25,0,INT(($BT28-1)/6),,52-INT(($BT28-1)/6)-IF($BS29<=0,INT(ABS($BS29)/6)+1,0)))-IF($BT28>INT(($BT28-1)/6)*6+1,SUMIF(OFFSET($BX44:$DW49,0,INT(($BT28-1)/6),$BT28-INT(($BT28-1)/6)*6-1,1),"=0",OFFSET($BX$20:$DW$25,0,INT(($BT28-1)/6),$BT28-INT(($BT28-1)/6)*6-1,1)))+IF($BS29>1,SUMIF(OFFSET($BX50:$DW55,0,0,,INT(($BS29-1)/6)+1),"=0",OFFSET($BX$20:$DW$25,0,0,,INT(($BS29-1)/6)+1)))-IF($BS29>1,SUMIF(OFFSET($BX50:$DW55,$BS29-INT(($BS29-1)/6)*6-1,INT(($BS29-1)/6),(INT(($BS29-1)/6)+1)*6+1-$BS29,1),"=0",OFFSET($BX$20:$DW$25,0,INT(($BS29-1)/6),(INT(($BS29-1)/6)+1)*6+1-$BS29,1)))-$DX44 -> 14 | BD44: =Недель5+Недель6 -> 32 | BE44: =Экз3Осень+Экз3Весна -> 6 | BF44: =SUMIF(OFFSET($BX44:$DW49,0,INT((IF($BS28>0,$BS28,1)-1)/6),,52-INT((IF($BS28>0,$BS28,1)-1)/6)-IF($BS29<=0,INT(ABS($BS29)/6),0)),"=" & $AR$77,OFFSET($BX$20:$DW$25,0,INT((IF($BS28>0,$BS28,1)-1)/6),,52-INT((IF($BS28>0,$BS28,1)-1)/6)-IF($BS29<=0,INT(ABS($BS29)/6),0)))-IF(AND($BS28>0,$BS28>INT(($BS28-1)/6)*6+1),SUMIF(OFFSET($BX44:$DW49,0,INT(($BS28-1)/6),$BS28-INT(($BS28-1)/6)*6-1,1),"=" & $AR$77,OFFSET($BX$20:$DW$25,0,INT(($BS28-1)/6),$BS28-INT(($BS28-1)/6)*6-1,1)))+IF($BS29>1,SUMIF(OFFSET($BX50:$DW55,0,0,,INT(($BS29-1)/6)+1),"=" & $AR$77,OFFSET($BX$20:$DW$25,0,0,,INT(($BS29-1)/6)+1)))-IF($BS29>1,SUMIF(OFFSET($BX50:$DW55,$BS29-INT(($BS29-1)/6)*6-1,INT(($BS29-1)/6),(INT(($BS29-1)/6)+1)*6+1-$BS29,1),"=" & $AR$77,OFFSET($BX$20:$DW$25,0,INT(($BS29-1)/6),(INT(($BS29-1)/6)+1)*6+1-$BS29,1)))+$BV44 -> 0 | BG44: =SUMIF(OFFSET($BX44:$DW49,0,INT((IF($BS28>0,$BS28,1)-1)/6),,52-INT((IF($BS28>0,$BS28,1)-1)/6)-IF($BS29<=0,INT(ABS($BS29)/6),0)),"=" & $AG$75,OFFSET($BX$20:$DW$25,0,INT((IF($BS28>0,$BS28,1)-1)/6),,52-INT((IF($BS28>0,$BS28,1)-1)/6)-IF($BS29<=0,INT(ABS($BS29)/6),0)))-IF(AND($BS28>0,$BS28>INT(($BS28-1)/6)*6+1),SUMIF(OFFSET($BX44:$DW49,0,INT(($BS28-1)/6),$BS28-INT(($BS28-1)/6)*6-1,1),"=" & $AG$75,OFFSET($BX$20:$DW$25,0,INT(($BS28-1)/6),$BS28-INT(($BS28-1)/6)*6-1,1)))+IF($BS29>1,SUMIF(OFFSET($BX50:$DW55,0,0,,INT(($BS29-1)/6)+1),"=" & $AG$75,OFFSET($BX$20:$DW$25,0,0,,INT(($BS29-1)/6)+1)))-IF($BS29>1,SUMIF(OFFSET($BX50:$DW55,$BS29-INT(($BS29-1)/6)*6-1,INT(($BS29-1)/6),(INT(($BS29-1)/6)+1)*6+1-$BS29,1),"=" & $AG$75,OFFSET($BX$20:$DW$25,0,INT(($BS29-1)/6),(INT(($BS29-1)/6)+1)*6+1-$BS29,1)))+$BV45 -> 4 | BH44: =SUMIF(OFFSET($BX44:$DW49,0,INT((IF($BS28>0,$BS28,1)-1)/6),,52-INT((IF($BS28>0,$BS28,1)-1)/6)-IF($BS29<=0,INT(ABS($BS29)/6),0)),"=" & $AR$75,OFFSET($BX$20:$DW$25,0,INT((IF($BS28>0,$BS28,1)-1)/6),,52-INT((IF($BS28>0,$BS28,1)-1)/6)-IF($BS29<=0,INT(ABS($BS29)/6),0)))-IF(AND($BS28>0,$BS28>INT(($BS28-1)/6)*6+1),SUMIF(OFFSET($BX44:$DW49,0,INT(($BS28-1)/6),$BS28-INT(($BS28-1)/6)*6-1,1),"=" & $AR$75,OFFSET($BX$20:$DW$25,0,INT(($BS28-1)/6),$BS28-INT(($BS28-1)/6)*6-1,1)))+IF($BS29>1,SUMIF(OFFSET($BX50:$DW55,0,0,,INT(($BS29-1)/6)+1),"=" & $AR$75,OFFSET($BX$20:$DW$25,0,0,,INT(($BS29-1)/6)+1)))-IF($BS29>1,SUMIF(OFFSET($BX50:$DW55,$BS29-INT(($BS29-1)/6)*6-1,INT(($BS29-1)/6),(INT(($BS29-1)/6)+1)*6+1-$BS29,1),"=" & $AR$75,OFFSET($BX$20:$DW$25,0,INT(($BS29-1)/6),(INT(($BS29-1)/6)+1)*6+1-$BS29,1)))+$BV46 -> 0 | BI44: =SUMIF(OFFSET($BX44:$DW49,0,INT((IF($BS28>0,$BS28,1)-1)/6),,52-INT((IF($BS28>0,$BS28,1)-1)/6)-IF($BS29<=0,INT(ABS($BS29)/6),0)),"=" & $G$77,OFFSET($BX$20:$DW$25,0,INT((IF($BS28>0,$BS28,1)-1)/6),,52-INT((IF($BS28>0,$BS28,1)-1)/6)-IF($BS29<=0,INT(ABS($BS29)/6),0)))-IF(AND($BS28>0,$BS28>INT(($BS28-1)/6)*6+1),SUMIF(OFFSET($BX44:$DW49,0,INT(($BS28-1)/6),$BS28-INT(($BS28-1)/6)*6-1,1),"=" & $G$77,OFFSET($BX$20:$DW$25,0,INT(($BS28-1)/6),$BS28-INT(($BS28-1)/6)*6-1,1)))+IF($BS29>1,SUMIF(OFFSET($BX50:$DW55,0,0,,INT(($BS29-1)/6)+1),"=" & $G$77,OFFSET($BX$20:$DW$25,0,0,,INT(($BS29-1)/6)+1)))-IF($BS29>1,SUMIF(OFFSET($BX50:$DW55,$BS29-INT(($BS29-1)/6)*6-1,INT(($BS29-1)/6),(INT(($BS29-1)/6)+1)*6+1-$BS29,1),"=" & $G$77,OFFSET($BX$20:$DW$25,0,INT(($BS29-1)/6),(INT(($BS29-1)/6)+1)*6+1-$BS29,1)))+$BV47 -> 0 | BJ44: =SUMIF(OFFSET($BX44:$DW49,0,INT((IF($BS28>0,$BS28,1)-1)/6),,52-INT((IF($BS28>0,$BS28,1)-1)/6)-IF($BS29<=0,INT(ABS($BS29)/6),0)),"=" & $T$77,OFFSET($BX$20:$DW$25,0,INT((IF($BS28>0,$BS28,1)-1)/6),,52-INT((IF($BS28>0,$BS28,1)-1)/6)-IF($BS29<=0,INT(ABS($BS29)/6),0)))-IF(AND($BS28>0,$BS28>INT(($BS28-1)/6)*6+1),SUMIF(OFFSET($BX44:$DW49,0,INT(($BS28-1)/6),$BS28-INT(($BS28-1)/6)*6-1,1),"=" & $T$77,OFFSET($BX$20:$DW$25,0,INT(($BS28-1)/6),$BS28-INT(($BS28-1)/6)*6-1,1)))+IF($BS29>1,SUMIF(OFFSET($BX50:$DW55,0,0,,INT(($BS29-1)/6)+1),"=" & $T$77,OFFSET($BX$20:$DW$25,0,0,,INT(($BS29-1)/6)+1)))-IF($BS29>1,SUMIF(OFFSET($BX50:$DW55,$BS29-INT(($BS29-1)/6)*6-1,INT(($BS29-1)/6),(INT(($BS29-1)/6)+1)*6+1-$BS29,1),"=" & $T$77,OFFSET($BX$20:$DW$25,0,INT(($BS29-1)/6),(INT(($BS29-1)/6)+1)*6+1-$BS29,1)))+$BV48 -> 0 | BK44: =SUMIF(OFFSET($BX44:$DW49,0,INT((IF($BS28>0,$BS28,1)-1)/6),,52-INT((IF($BS28>0,$BS28,1)-1)/6)-IF($BS29<=0,INT(ABS($BS29)/6),0)),"=" & $AG$77,OFFSET($BX$20:$DW$25,0,INT((IF($BS28>0,$BS28,1)-1)/6),,52-INT((IF($BS28>0,$BS28,1)-1)/6)-IF($BS29<=0,INT(ABS($BS29)/6),0)))-IF(AND($BS28>0,$BS28>INT(($BS28-1)/6)*6+1),SUMIF(OFFSET($BX44:$DW49,0,INT(($BS28-1)/6),$BS28-INT(($BS28-1)/6)*6-1,1),"=" & $AG$77,OFFSET($BX$20:$DW$25,0,INT(($BS28-1)/6),$BS28-INT(($BS28-1)/6)*6-1,1)))+IF($BS29>1,SUMIF(OFFSET($BX50:$DW55,0,0,,INT(($BS29-1)/6)+1),"=" & $AG$77,OFFSET($BX$20:$DW$25,0,0,,INT(($BS29-1)/6)+1)))-IF($BS29>1,SUMIF(OFFSET($BX50:$DW55,$BS29-INT(($BS29-1)/6)*6-1,INT(($BS29-1)/6),(INT(($BS29-1)/6)+1)*6+1-$BS29,1),"=" & $AG$77,OFFSET($BX$20:$DW$25,0,INT(($BS29-1)/6),(INT(($BS29-1)/6)+1)*6+1-$BS29,1)))+$BV49 -> 10 | BL44: =SUM($BD44:$BK49) -> 52 | BM44: 77 | BN44: 4 | BO44: 3 | BR44: =SUM(План!BH1144:BK1144) -> 0 | BU44: =SUMIF(OFFSET($BX44:$DW49,0,INT((IF($BS28>0,$BS28,1)-1)/6),,INT(($BT28-1)/6)-INT((IF($BS28>0,$BS28,1)-1)/6)),"=" & $T$75,OFFSET($BX$20:$DW$25,0,INT((IF($BS28>0,$BS28,1)-1)/6)))-IF(AND($BS28>0,$BS28>INT(($BS28-1)/6)*6+1),SUMIF(OFFSET($BX44:$DW49,0,INT(($BS28-1)/6),$BS28-INT(($BS28-1)/6)*6-1,1),"=" & $T$75,OFFSET($BX$20:$DW$25,0,INT(($BS28-1)/6),$BS28-INT(($BS28-1)/6)*6-1,1)))+IF(AND($BT28>0,$BT28>INT(($BT28-1)/6)*6+1),SUMIF(OFFSET($BX44:$DW49,0,INT(($BT28-1)/6),$BT28-INT(($BT28-1)/6)*6-1,1),"=" & $T$75,OFFSET($BX$20:$DW$25,0,INT(($BT28-1)/6),$BT28-INT(($BT28-1)/6)*6-1,1)))+$BU45 -> 3 | BV44: =IF($BS28<=0,SUMIF(OFFSET($BX38:$DW43,0,52-INT(ABS($BS28)/6)-1,,INT(ABS($BS28)/6)+1),"=" & $AR$77,OFFSET($BX$20:$DW$25,0,52-INT(ABS($BS28)/6)-1,,INT(ABS($BS28)/6)+1)))-IF(AND($BS28<=0,ABS($BS28)<INT(ABS($BS28)/6+1)*6-1),SUMIF(OFFSET($BX38:$DW43,0,52-INT(ABS($BS28)/6)-1,INT(ABS($BS28)/6+1)*6-1-ABS($BS28),1),"=" & $AR$77,OFFSET($BX$20:$DW$25,0,52-INT(ABS($BS28)/6)-1,INT(ABS($BS28)/6+1)*6-1-ABS($BS28),1)))-IF($BS29<=0,SUMIF(OFFSET($BX44:$DW49,(INT(ABS($BS29)/6)+1)*6-ABS($BS29)-1,52-INT(ABS($BS29)/6)-1,ABS($BS29)-INT(ABS($BS29)/6)*6+1,1),"=" & $AR$77,OFFSET($BX$20:$DW$25,(INT(ABS($BS29)/6)+1)*6-ABS($BS29)-1,52-INT(ABS($BS29)/6)-1,ABS($BS29)-INT(ABS($BS29)/6)*6+1,1)),0) -> 0 | BW44: =IF($BS28<=0,SUMIF(OFFSET($BX38:$DW43,0,52-INT(ABS($BS28)/6)-1,,INT(ABS($BS28)/6)+1),"=0",OFFSET($BX$20:$DW$25,0,52-INT(ABS($BS28)/6)-1,,INT(ABS($BS28)/6)+1)))-IF(AND($BS28<=0,ABS($BS28)<INT(ABS($BS28)/6+1)*6-1),SUMIF(OFFSET($BX38:$DW43,0,52-INT(ABS($BS28)/6)-1,INT(ABS($BS28)/6+1)*6-1-ABS($BS28),1),"=0",OFFSET($BX$20:$DW$25,0,52-INT(ABS($BS28)/6)-1,INT(ABS($BS28)/6+1)*6-1-ABS($BS28),1))) -> 0 | BX44: =IF(B44="",0,B44) -> 0 | BY44: 0 | BZ44: 0 | CA44: 0 | CB44: 0 | CC44: 0 | CD44: 0 | CE44: 0 | CF44: 0 | CG44: 0 | CH44: 0 | CI44: 0 | CJ44: 0 | CK44: 0 | CL44: 0 | CM44: 0 | CN44: 0 | CO44: 0 | CP44: Э | CQ44: Э | CR44: Э | CS44: К | CT44: К | CU44: У | CV44: У | CW44: У | CX44: У | CY44: 0 | CZ44: 0 | DA44: 0 | DB44: 0 | DC44: 0 | DD44: =IF(AH44="",0,AH44) -> 0 | DE44: 0 | DF44: 0 | DG44: 0 | DH44: 0 | DI44: 0 | DJ44: 0 | DK44: 0 | DL44: 0 | DM44: Э | DN44: Э | DO44: Э | DP44: К | DQ44: К | DR44: К | DS44: К | DT44: К | DU44: К | DV44: К | DW44: К | DX44: =IF($BS29<=0,SUMIF(OFFSET($BX44:$DW49,(INT(ABS($BS29)/6)+1)*6-ABS($BS29)-1,52-INT(ABS($BS29)/6)-1,ABS($BS29)-INT(ABS($BS29)/6)*6+1,1),"=0",OFFSET($BX$20:$DW$25,(INT(ABS($BS29)/6)+1)*6-ABS($BS29)-1,52-INT(ABS($BS29)/6)-1,ABS($BS29)-INT(ABS($BS29)/6)*6+1,1)),0) -> 0 | DY44: =IF($BS29<=0,SUMIF(OFFSET($BX44:$DW49,(INT(ABS($BS29)/6)+1)*6-ABS($BS29)-1,52-INT(ABS($BS29)/6)-1,ABS($BS29)-INT(ABS($BS29)/6)*6+1,1),"=" & $T$75,OFFSET($BX$20:$DW$25,(INT(ABS($BS29)/6)+1)*6-ABS($BS29)-1,52-INT(ABS($BS29)/6)-1,ABS($BS29)-INT(ABS($BS29)/6)*6+1,1)),0) -> 0
BR45: =SUM(План!BL1144:BO1144) -> 0 | BU45: =IF($BS28<=0,SUMIF(OFFSET($BX38:$DW43,0,52-INT(ABS($BS28)/6)-1,,INT(ABS($BS28)/6)+1),"=" & $T$75,OFFSET($BX$20:$DW$25,0,52-INT(ABS($BS28)/6)-1,,INT(ABS($BS28)/6)+1)))-IF(AND($BS28<=0,ABS($BS28)<INT(ABS($BS28)/6+1)*6-1),SUMIF(OFFSET($BX38:$DW43,0,52-INT(ABS($BS28)/6)-1,INT(ABS($BS28)/6+1)*6-1-ABS($BS28),1),"=" & $T$75,OFFSET($BX$20:$DW$25,0,52-INT(ABS($BS28)/6)-1,INT(ABS($BS28)/6+1)*6-1-ABS($BS28),1))) -> 0 | BV45: =IF($BS28<=0,SUMIF(OFFSET($BX38:$DW43,0,52-INT(ABS($BS28)/6)-1,,INT(ABS($BS28)/6)+1),"=" & $AG$75,OFFSET($BX$20:$DW$25,0,52-INT(ABS($BS28)/6)-1,,INT(ABS($BS28)/6)+1)))-IF(AND($BS28<=0,ABS($BS28)<INT(ABS($BS28)/6+1)*6-1),SUMIF(OFFSET($BX38:$DW43,0,52-INT(ABS($BS28)/6)-1,INT(ABS($BS28)/6+1)*6-1-ABS($BS28),1),"=" & $AG$75,OFFSET($BX$20:$DW$25,0,52-INT(ABS($BS28)/6)-1,INT(ABS($BS28)/6+1)*6-1-ABS($BS28),1)))-IF($BS29<=0,SUMIF(OFFSET($BX44:$DW49,(INT(ABS($BS29)/6)+1)*6-ABS($BS29)-1,52-INT(ABS($BS29)/6)-1,ABS($BS29)-INT(ABS($BS29)/6)*6+1,1),"=" & $AG$75,OFFSET($BX$20:$DW$25,(INT(ABS($BS29)/6)+1)*6-ABS($BS29)-1,52-INT(ABS($BS29)/6)-1,ABS($BS29)-INT(ABS($BS29)/6)*6+1,1)),0) -> 0 | BX45: =IF(B44="",0,B44) -> 0 | BY45: =IF(C44="",0,C44) -> 0 | BZ45: =IF(D44="",0,D44) -> 0 | CA45: =IF(E44="",0,E44) -> 0 | CB45: =IF(F44="",0,F44) -> 0 | CC45: =IF(G44="",0,G44) -> 0 | CD45: =IF(H44="",0,H44) -> 0 | CE45: =IF(I44="",0,I44) -> 0 | CF45: =IF(J44="",0,J44) -> 0 | CG45: =IF(K44="",0,K44) -> 0 | CH45: =IF(L44="",0,L44) -> 0 | CI45: =IF(M44="",0,M44) -> 0 | CJ45: =IF(N44="",0,N44) -> 0 | CK45: =IF(O44="",0,O44) -> 0 | CL45: =IF(P44="",0,P44) -> 0 | CM45: =IF(Q44="",0,Q44) -> 0 | CN45: =IF(R44="",0,R44) -> 0 | CO45: =IF(S44="",0,S44) -> 0 | CP45: =IF(T44="",0,T44) -> Э | CQ45: =IF(U44="",0,U44) -> Э | CR45: =IF(V44="",0,V44) -> Э | CS45: =IF(W44="",0,W44) -> К | CT45: =IF(X44="",0,X44) -> К | CU45: =IF(Y44="",0,Y44) -> У | CV45: =IF(Z44="",0,Z44) -> У | CW45: =IF(AA44="",0,AA44) -> У | CX45: =IF(AB44="",0,AB44) -> У | CY45: =IF(AC44="",0,AC44) -> 0 | CZ45: =IF(AD44="",0,AD44) -> 0 | DA45: =IF(AE44="",0,AE44) -> 0 | DB45: =IF(AF44="",0,AF44) -> 0 | DC45: =IF(AG44="",0,AG44) -> 0 | DD45: =IF(AH44="",0,AH44) -> 0 | DE45: =IF(AI44="",0,AI44) -> 0 | DF45: =IF(AJ44="",0,AJ44) -> 0 | DG45: =IF(AK44="",0,AK44) -> 0 | DH45: =IF(AL44="",0,AL44) -> 0 | DI45: =IF(AM44="",0,AM44) -> 0 | DJ45: =IF(AN44="",0,AN44) -> 0 | DK45: =IF(AO44="",0,AO44) -> 0 | DL45: =IF(AP44="",0,AP44) -> 0 | DM45: =IF(AQ44="",0,AQ44) -> Э | DN45: =IF(AR44="",0,AR44) -> Э | DO45: =IF(AS44="",0,AS44) -> Э | DP45: =IF(AT44="",0,AT44) -> К | DQ45: =IF(AU44="",0,AU44) -> К | DR45: =IF(AV44="",0,AV44) -> К | DS45: =IF(AW44="",0,AW44) -> К | DT45: =IF(AX44="",0,AX44) -> К | DU45: =IF(AY44="",0,AY44) -> К | DV45: =IF(AZ44="",0,AZ44) -> К | DW45: =IF(BA44="",0,BA44) -> К
BV46: =IF($BS28<=0,SUMIF(OFFSET($BX38:$DW43,0,52-INT(ABS($BS28)/6)-1,,INT(ABS($BS28)/6)+1),"=" & $AR$75,OFFSET($BX$20:$DW$25,0,52-INT(ABS($BS28)/6)-1,,INT(ABS($BS28)/6)+1)))-IF(AND($BS28<=0,ABS($BS28)<INT(ABS($BS28)/6+1)*6-1),SUMIF(OFFSET($BX38:$DW43,0,52-INT(ABS($BS28)/6)-1,INT(ABS($BS28)/6+1)*6-1-ABS($BS28),1),"=" & $AR$75,OFFSET($BX$20:$DW$25,0,52-INT(ABS($BS28)/6)-1,INT(ABS($BS28)/6+1)*6-1-ABS($BS28),1)))-IF($BS29<=0,SUMIF(OFFSET($BX44:$DW49,(INT(ABS($BS29)/6)+1)*6-ABS($BS29)-1,52-INT(ABS($BS29)/6)-1,ABS($BS29)-INT(ABS($BS29)/6)*6+1,1),"=" & $AR$75,OFFSET($BX$20:$DW$25,(INT(ABS($BS29)/6)+1)*6-ABS($BS29)-1,52-INT(ABS($BS29)/6)-1,ABS($BS29)-INT(ABS($BS29)/6)*6+1,1)),0) -> 0 | BX46: =IF(B44="",0,B44) -> 0 | BY46: =IF(C44="",0,C44) -> 0 | BZ46: =IF(D44="",0,D44) -> 0 | CA46: =IF(E44="",0,E44) -> 0 | CB46: =IF(F44="",0,F44) -> 0 | CC46: =IF(G44="",0,G44) -> 0 | CD46: =IF(H44="",0,H44) -> 0 | CE46: =IF(I44="",0,I44) -> 0 | CF46: =IF(J44="",0,J44) -> 0 | CG46: =IF(K44="",0,K44) -> 0 | CH46: =IF(L44="",0,L44) -> 0 | CI46: =IF(M44="",0,M44) -> 0 | CJ46: =IF(N44="",0,N44) -> 0 | CK46: =IF(O44="",0,O44) -> 0 | CL46: =IF(P44="",0,P44) -> 0 | CM46: =IF(Q44="",0,Q44) -> 0 | CN46: =IF(R44="",0,R44) -> 0 | CO46: =IF(S44="",0,S44) -> 0 | CP46: =IF(T44="",0,T44) -> Э | CQ46: =IF(U44="",0,U44) -> Э | CR46: =IF(V44="",0,V44) -> Э | CS46: =IF(W44="",0,W44) -> К | CT46: =IF(X44="",0,X44) -> К | CU46: =IF(Y44="",0,Y44) -> У | CV46: =IF(Z44="",0,Z44) -> У | CW46: =IF(AA44="",0,AA44) -> У | CX46: =IF(AB44="",0,AB44) -> У | CY46: =IF(AC44="",0,AC44) -> 0 | CZ46: =IF(AD44="",0,AD44) -> 0 | DA46: =IF(AE44="",0,AE44) -> 0 | DB46: =IF(AF44="",0,AF44) -> 0 | DC46: =IF(AG44="",0,AG44) -> 0 | DD46: =IF(AH44="",0,AH44) -> 0 | DE46: =IF(AI44="",0,AI44) -> 0 | DF46: =IF(AJ44="",0,AJ44) -> 0 | DG46: =IF(AK44="",0,AK44) -> 0 | DH46: =IF(AL44="",0,AL44) -> 0 | DI46: =IF(AM44="",0,AM44) -> 0 | DJ46: =IF(AN44="",0,AN44) -> 0 | DK46: =IF(AO44="",0,AO44) -> 0 | DL46: =IF(AP44="",0,AP44) -> 0 | DM46: =IF(AQ44="",0,AQ44) -> Э | DN46: =IF(AR44="",0,AR44) -> Э | DO46: =IF(AS44="",0,AS44) -> Э | DP46: =IF(AT44="",0,AT44) -> К | DQ46: =IF(AU44="",0,AU44) -> К | DR46: =IF(AV44="",0,AV44) -> К | DS46: =IF(AW44="",0,AW44) -> К | DT46: =IF(AX44="",0,AX44) -> К | DU46: =IF(AY44="",0,AY44) -> К | DV46: =IF(AZ44="",0,AZ44) -> К | DW46: =IF(BA44="",0,BA44) -> К
BV47: =IF($BS28<=0,SUMIF(OFFSET($BX38:$DW43,0,52-INT(ABS($BS28)/6)-1,,INT(ABS($BS28)/6)+1),"=" & $G$77,OFFSET($BX$20:$DW$25,0,52-INT(ABS($BS28)/6)-1,,INT(ABS($BS28)/6)+1)))-IF(AND($BS28<=0,ABS($BS28)<INT(ABS($BS28)/6+1)*6-1),SUMIF(OFFSET($BX38:$DW43,0,52-INT(ABS($BS28)/6)-1,INT(ABS($BS28)/6+1)*6-1-ABS($BS28),1),"=" & $G$77,OFFSET($BX$20:$DW$25,0,52-INT(ABS($BS28)/6)-1,INT(ABS($BS28)/6+1)*6-1-ABS($BS28),1)))-IF($BS29<=0,SUMIF(OFFSET($BX44:$DW49,(INT(ABS($BS29)/6)+1)*6-ABS($BS29)-1,52-INT(ABS($BS29)/6)-1,ABS($BS29)-INT(ABS($BS29)/6)*6+1,1),"=" & $G$77,OFFSET($BX$20:$DW$25,(INT(ABS($BS29)/6)+1)*6-ABS($BS29)-1,52-INT(ABS($BS29)/6)-1,ABS($BS29)-INT(ABS($BS29)/6)*6+1,1)),0) -> 0 | BX47: =IF(B44="",0,B44) -> 0 | BY47: =IF(C44="",0,C44) -> 0 | BZ47: =IF(D44="",0,D44) -> 0 | CA47: =IF(E44="",0,E44) -> 0 | CB47: =IF(F44="",0,F44) -> 0 | CC47: =IF(G44="",0,G44) -> 0 | CD47: =IF(H44="",0,H44) -> 0 | CE47: =IF(I44="",0,I44) -> 0 | CF47: =IF(J44="",0,J44) -> 0 | CG47: =IF(K44="",0,K44) -> 0 | CH47: =IF(L44="",0,L44) -> 0 | CI47: =IF(M44="",0,M44) -> 0 | CJ47: =IF(N44="",0,N44) -> 0 | CK47: =IF(O44="",0,O44) -> 0 | CL47: =IF(P44="",0,P44) -> 0 | CM47: =IF(Q44="",0,Q44) -> 0 | CN47: =IF(R44="",0,R44) -> 0 | CO47: =IF(S44="",0,S44) -> 0 | CP47: =IF(T44="",0,T44) -> Э | CQ47: =IF(U44="",0,U44) -> Э | CR47: =IF(V44="",0,V44) -> Э | CS47: =IF(W44="",0,W44) -> К | CT47: =IF(X44="",0,X44) -> К | CU47: =IF(Y44="",0,Y44) -> У | CV47: =IF(Z44="",0,Z44) -> У | CW47: =IF(AA44="",0,AA44) -> У | CX47: =IF(AB44="",0,AB44) -> У | CY47: =IF(AC44="",0,AC44) -> 0 | CZ47: =IF(AD44="",0,AD44) -> 0 | DA47: =IF(AE44="",0,AE44) -> 0 | DB47: =IF(AF44="",0,AF44) -> 0 | DC47: =IF(AG44="",0,AG44) -> 0 | DD47: =IF(AH44="",0,AH44) -> 0 | DE47: =IF(AI44="",0,AI44) -> 0 | DF47: =IF(AJ44="",0,AJ44) -> 0 | DG47: =IF(AK44="",0,AK44) -> 0 | DH47: =IF(AL44="",0,AL44) -> 0 | DI47: =IF(AM44="",0,AM44) -> 0 | DJ47: =IF(AN44="",0,AN44) -> 0 | DK47: =IF(AO44="",0,AO44) -> 0 | DL47: =IF(AP44="",0,AP44) -> 0 | DM47: =IF(AQ44="",0,AQ44) -> Э | DN47: =IF(AR44="",0,AR44) -> Э | DO47: =IF(AS44="",0,AS44) -> Э | DP47: =IF(AT44="",0,AT44) -> К | DQ47: =IF(AU44="",0,AU44) -> К | DR47: =IF(AV44="",0,AV44) -> К | DS47: =IF(AW44="",0,AW44) -> К | DT47: =IF(AX44="",0,AX44) -> К | DU47: =IF(AY44="",0,AY44) -> К | DV47: =IF(AZ44="",0,AZ44) -> К | DW47: =IF(BA44="",0,BA44) -> К
BV48: =IF($BS28<=0,SUMIF(OFFSET($BX38:$DW43,0,52-INT(ABS($BS28)/6)-1,,INT(ABS($BS28)/6)+1),"=" & $T$77,OFFSET($BX$20:$DW$25,0,52-INT(ABS($BS28)/6)-1,,INT(ABS($BS28)/6)+1)))-IF(AND($BS28<=0,ABS($BS28)<INT(ABS($BS28)/6+1)*6-1),SUMIF(OFFSET($BX38:$DW43,0,52-INT(ABS($BS28)/6)-1,INT(ABS($BS28)/6+1)*6-1-ABS($BS28),1),"=" & $T$77,OFFSET($BX$20:$DW$25,0,52-INT(ABS($BS28)/6)-1,INT(ABS($BS28)/6+1)*6-1-ABS($BS28),1)))-IF($BS29<=0,SUMIF(OFFSET($BX44:$DW49,(INT(ABS($BS29)/6)+1)*6-ABS($BS29)-1,52-INT(ABS($BS29)/6)-1,ABS($BS29)-INT(ABS($BS29)/6)*6+1,1),"=" & $T$77,OFFSET($BX$20:$DW$25,(INT(ABS($BS29)/6)+1)*6-ABS($BS29)-1,52-INT(ABS($BS29)/6)-1,ABS($BS29)-INT(ABS($BS29)/6)*6+1,1)),0) -> 0 | BX48: =IF(B44="",0,B44) -> 0 | BY48: =IF(C44="",0,C44) -> 0 | BZ48: =IF(D44="",0,D44) -> 0 | CA48: =IF(E44="",0,E44) -> 0 | CB48: =IF(F44="",0,F44) -> 0 | CC48: =IF(G44="",0,G44) -> 0 | CD48: =IF(H44="",0,H44) -> 0 | CE48: =IF(I44="",0,I44) -> 0 | CF48: =IF(J44="",0,J44) -> 0 | CG48: =IF(K44="",0,K44) -> 0 | CH48: =IF(L44="",0,L44) -> 0 | CI48: =IF(M44="",0,M44) -> 0 | CJ48: =IF(N44="",0,N44) -> 0 | CK48: =IF(O44="",0,O44) -> 0 | CL48: =IF(P44="",0,P44) -> 0 | CM48: =IF(Q44="",0,Q44) -> 0 | CN48: =IF(R44="",0,R44) -> 0 | CO48: =IF(S44="",0,S44) -> 0 | CP48: =IF(T44="",0,T44) -> Э | CQ48: =IF(U44="",0,U44) -> Э | CR48: =IF(V44="",0,V44) -> Э | CS48: =IF(W44="",0,W44) -> К | CT48: =IF(X44="",0,X44) -> К | CU48: =IF(Y44="",0,Y44) -> У | CV48: =IF(Z44="",0,Z44) -> У | CW48: =IF(AA44="",0,AA44) -> У | CX48: =IF(AB44="",0,AB44) -> У | CY48: =IF(AC44="",0,AC44) -> 0 | CZ48: =IF(AD44="",0,AD44) -> 0 | DA48: =IF(AE44="",0,AE44) -> 0 | DB48: =IF(AF44="",0,AF44) -> 0 | DC48: =IF(AG44="",0,AG44) -> 0 | DD48: =IF(AH44="",0,AH44) -> 0 | DE48: =IF(AI44="",0,AI44) -> 0 | DF48: =IF(AJ44="",0,AJ44) -> 0 | DG48: =IF(AK44="",0,AK44) -> 0 | DH48: =IF(AL44="",0,AL44) -> 0 | DI48: =IF(AM44="",0,AM44) -> 0 | DJ48: =IF(AN44="",0,AN44) -> 0 | DK48: =IF(AO44="",0,AO44) -> 0 | DL48: =IF(AP44="",0,AP44) -> 0 | DM48: =IF(AQ44="",0,AQ44) -> Э | DN48: =IF(AR44="",0,AR44) -> Э | DO48: =IF(AS44="",0,AS44) -> Э | DP48: =IF(AT44="",0,AT44) -> К | DQ48: =IF(AU44="",0,AU44) -> К | DR48: =IF(AV44="",0,AV44) -> К | DS48: =IF(AW44="",0,AW44) -> К | DT48: =IF(AX44="",0,AX44) -> К | DU48: =IF(AY44="",0,AY44) -> К | DV48: =IF(AZ44="",0,AZ44) -> К | DW48: =IF(BA44="",0,BA44) -> К
A49: 4 | BO49: 4 | BU49: =SUMIF(OFFSET($BX44:$DW49,0,INT(($BT28-1)/6),,52-INT(($BT28-1)/6)-IF($BS29<=0,INT(ABS($BS29)/6),0)),"=" & $T$75,OFFSET($BX$20:$DW$25,0,INT(($BT28-1)/6),,52-INT(($BT28-1)/6)-IF($BS29<=0,INT(ABS($BS29)/6),0)))-IF($BT28>INT(($BT28-1)/6)*6+1,SUMIF(OFFSET($BX44:$DW49,0,INT(($BT28-1)/6),$BT28-INT(($BT28-1)/6)*6-1,1),"=" & $T$75,OFFSET($BX$20:$DW$25,0,INT(($BT28-1)/6),$BT28-INT(($BT28-1)/6)*6-1,1)))+IF($BS29>1,SUMIF(OFFSET($BX50:$DW55,0,0,,INT(($BS29-1)/6)+1),"=" & $T$75,OFFSET($BX$20:$DW$25,0,0,,INT(($BS29-1)/6)+1)))-IF($BS29>1,SUMIF(OFFSET($BX50:$DW55,$BS29-INT(($BS29-1)/6)*6-1,INT(($BS29-1)/6),(INT(($BS29-1)/6)+1)*6+1-$BS29,1),"=" & $T$75,OFFSET($BX$20:$DW$25,0,INT(($BS29-1)/6),(INT(($BS29-1)/6)+1)*6+1-$BS29,1)))-$DY44 -> 3 | BV49: =IF($BS28<=0,SUMIF(OFFSET($BX38:$DW43,0,52-INT(ABS($BS28)/6)-1,,INT(ABS($BS28)/6)+1),"=" & $AG$77,OFFSET($BX$20:$DW$25,0,52-INT(ABS($BS28)/6)-1,,INT(ABS($BS28)/6)+1)))-IF(AND($BS28<=0,ABS($BS28)<INT(ABS($BS28)/6+1)*6-1),SUMIF(OFFSET($BX38:$DW43,0,52-INT(ABS($BS28)/6)-1,INT(ABS($BS28)/6+1)*6-1-ABS($BS28),1),"=" & $AG$77,OFFSET($BX$20:$DW$25,0,52-INT(ABS($BS28)/6)-1,INT(ABS($BS28)/6+1)*6-1-ABS($BS28),1)))-IF($BS29<=0,SUMIF(OFFSET($BX44:$DW49,(INT(ABS($BS29)/6)+1)*6-ABS($BS29)-1,52-INT(ABS($BS29)/6)-1,ABS($BS29)-INT(ABS($BS29)/6)*6+1,1),"=" & $AG$77,OFFSET($BX$20:$DW$25,(INT(ABS($BS29)/6)+1)*6-ABS($BS29)-1,52-INT(ABS($BS29)/6)-1,ABS($BS29)-INT(ABS($BS29)/6)*6+1,1)),0) -> 0 | BX49: =IF(B44="",0,B44) -> 0 | BY49: =IF(C44="",0,C44) -> 0 | BZ49: =IF(D44="",0,D44) -> 0 | CA49: =IF(E44="",0,E44) -> 0 | CB49: =IF(F44="",0,F44) -> 0 | CC49: =IF(G44="",0,G44) -> 0 | CD49: =IF(H44="",0,H44) -> 0 | CE49: =IF(I44="",0,I44) -> 0 | CF49: =IF(J44="",0,J44) -> 0 | CG49: =IF(K44="",0,K44) -> 0 | CH49: =IF(L44="",0,L44) -> 0 | CI49: =IF(M44="",0,M44) -> 0 | CJ49: =IF(N44="",0,N44) -> 0 | CK49: =IF(O44="",0,O44) -> 0 | CL49: =IF(P44="",0,P44) -> 0 | CM49: =IF(Q44="",0,Q44) -> 0 | CN49: =IF(R44="",0,R44) -> 0 | CO49: =IF(S44="",0,S44) -> 0 | CP49: =IF(T44="",0,T44) -> Э | CQ49: =IF(U44="",0,U44) -> Э | CR49: =IF(V44="",0,V44) -> Э | CS49: =IF(W44="",0,W44) -> К | CT49: =IF(X44="",0,X44) -> К | CU49: =IF(Y44="",0,Y44) -> У | CV49: =IF(Z44="",0,Z44) -> У | CW49: =IF(AA44="",0,AA44) -> У | CX49: =IF(AB44="",0,AB44) -> У | CY49: =IF(AC44="",0,AC44) -> 0 | CZ49: =IF(AD44="",0,AD44) -> 0 | DA49: =IF(AE44="",0,AE44) -> 0 | DB49: =IF(AF44="",0,AF44) -> 0 | DC49: =IF(AG44="",0,AG44) -> 0 | DD49: =IF(AH44="",0,AH44) -> 0 | DE49: =IF(AI44="",0,AI44) -> 0 | DF49: =IF(AJ44="",0,AJ44) -> 0 | DG49: =IF(AK44="",0,AK44) -> 0 | DH49: =IF(AL44="",0,AL44) -> 0 | DI49: =IF(AM44="",0,AM44) -> 0 | DJ49: =IF(AN44="",0,AN44) -> 0 | DK49: =IF(AO44="",0,AO44) -> 0 | DL49: =IF(AP44="",0,AP44) -> 0 | DM49: =IF(AQ44="",0,AQ44) -> Э | DN49: =IF(AR44="",0,AR44) -> Э | DO49: =IF(AS44="",0,AS44) -> Э | DP49: =IF(AT44="",0,AT44) -> К | DQ49: =IF(AU44="",0,AU44) -> К | DR49: =IF(AV44="",0,AV44) -> К | DS49: =IF(AW44="",0,AW44) -> К | DT49: =IF(AX44="",0,AX44) -> К | DU49: =IF(AY44="",0,AY44) -> К | DV49: =IF(AZ44="",0,AZ44) -> К | DW49: =IF(BA44="",0,BA44) -> К
A50: 4 | T50: Э | U50: Э | V50: Э | W50: К | X50: К | AN50: Э | AO50: Э | AP50: П | AQ50: П | AR50: П | AS50: П | AT50: К | AU50: К | AV50: К | AW50: К | AX50: К | AY50: К | AZ50: К | BA50: К | BB50: =SUMIF(OFFSET($BX50:$DW55,0,INT((IF($BS29>0,$BS29,1)-1)/6),,INT(($BT29-1)/6)-INT((IF($BS29>0,$BS29,1)-1)/6)),"=0",OFFSET($BX$20:$DW$25,0,INT((IF($BS29>0,$BS29,1)-1)/6)))-IF(AND($BS29>0,$BS29>INT(($BS29-1)/6)*6+1),SUMIF(OFFSET($BX50:$DW55,0,INT(($BS29-1)/6),$BS29-INT(($BS29-1)/6)*6-1,1),"=0",OFFSET($BX$20:$DW$25,0,INT(($BS29-1)/6),$BS29-INT(($BS29-1)/6)*6-1,1)))+IF(AND($BT29>0,$BT29>INT(($BT29-1)/6)*6+1),SUMIF(OFFSET($BX50:$DW55,0,INT(($BT29-1)/6),$BT29-INT(($BT29-1)/6)*6-1,1),"=0",OFFSET($BX$20:$DW$25,0,INT(($BT29-1)/6),$BT29-INT(($BT29-1)/6)*6-1,1)))+$BW50 -> 18 | BC50: =SUMIF(OFFSET($BX50:$DW55,0,INT(($BT29-1)/6),,52-INT(($BT29-1)/6)-IF($BS30<=0,INT(ABS($BS30)/6)+1,0)),"=0",OFFSET($BX$20:$DW$25,0,INT(($BT29-1)/6),,52-INT(($BT29-1)/6)-IF($BS30<=0,INT(ABS($BS30)/6)+1,0)))-IF($BT29>INT(($BT29-1)/6)*6+1,SUMIF(OFFSET($BX50:$DW55,0,INT(($BT29-1)/6),$BT29-INT(($BT29-1)/6)*6-1,1),"=0",OFFSET($BX$20:$DW$25,0,INT(($BT29-1)/6),$BT29-INT(($BT29-1)/6)*6-1,1)))+IF($BS30>1,SUMIF(OFFSET($BX56:$DW61,0,0,,INT(($BS30-1)/6)+1),"=0",OFFSET($BX$20:$DW$25,0,0,,INT(($BS30-1)/6)+1)))-IF($BS30>1,SUMIF(OFFSET($BX56:$DW61,$BS30-INT(($BS30-1)/6)*6-1,INT(($BS30-1)/6),(INT(($BS30-1)/6)+1)*6+1-$BS30,1),"=0",OFFSET($BX$20:$DW$25,0,INT(($BS30-1)/6),(INT(($BS30-1)/6)+1)*6+1-$BS30,1)))-$DX50 -> 15 | BD50: =Недель7+Недель8 -> 33 | BE50: =Экз4Осень+Экз4Весна -> 5 | BF50: =SUMIF(OFFSET($BX50:$DW55,0,INT((IF($BS29>0,$BS29,1)-1)/6),,52-INT((IF($BS29>0,$BS29,1)-1)/6)-IF($BS30<=0,INT(ABS($BS30)/6),0)),"=" & $AR$77,OFFSET($BX$20:$DW$25,0,INT((IF($BS29>0,$BS29,1)-1)/6),,52-INT((IF($BS29>0,$BS29,1)-1)/6)-IF($BS30<=0,INT(ABS($BS30)/6),0)))-IF(AND($BS29>0,$BS29>INT(($BS29-1)/6)*6+1),SUMIF(OFFSET($BX50:$DW55,0,INT(($BS29-1)/6),$BS29-INT(($BS29-1)/6)*6-1,1),"=" & $AR$77,OFFSET($BX$20:$DW$25,0,INT(($BS29-1)/6),$BS29-INT(($BS29-1)/6)*6-1,1)))+IF($BS30>1,SUMIF(OFFSET($BX56:$DW61,0,0,,INT(($BS30-1)/6)+1),"=" & $AR$77,OFFSET($BX$20:$DW$25,0,0,,INT(($BS30-1)/6)+1)))-IF($BS30>1,SUMIF(OFFSET($BX56:$DW61,$BS30-INT(($BS30-1)/6)*6-1,INT(($BS30-1)/6),(INT(($BS30-1)/6)+1)*6+1-$BS30,1),"=" & $AR$77,OFFSET($BX$20:$DW$25,0,INT(($BS30-1)/6),(INT(($BS30-1)/6)+1)*6+1-$BS30,1)))+$BV50 -> 0 | BG50: =SUMIF(OFFSET($BX50:$DW55,0,INT((IF($BS29>0,$BS29,1)-1)/6),,52-INT((IF($BS29>0,$BS29,1)-1)/6)-IF($BS30<=0,INT(ABS($BS30)/6),0)),"=" & $AG$75,OFFSET($BX$20:$DW$25,0,INT((IF($BS29>0,$BS29,1)-1)/6),,52-INT((IF($BS29>0,$BS29,1)-1)/6)-IF($BS30<=0,INT(ABS($BS30)/6),0)))-IF(AND($BS29>0,$BS29>INT(($BS29-1)/6)*6+1),SUMIF(OFFSET($BX50:$DW55,0,INT(($BS29-1)/6),$BS29-INT(($BS29-1)/6)*6-1,1),"=" & $AG$75,OFFSET($BX$20:$DW$25,0,INT(($BS29-1)/6),$BS29-INT(($BS29-1)/6)*6-1,1)))+IF($BS30>1,SUMIF(OFFSET($BX56:$DW61,0,0,,INT(($BS30-1)/6)+1),"=" & $AG$75,OFFSET($BX$20:$DW$25,0,0,,INT(($BS30-1)/6)+1)))-IF($BS30>1,SUMIF(OFFSET($BX56:$DW61,$BS30-INT(($BS30-1)/6)*6-1,INT(($BS30-1)/6),(INT(($BS30-1)/6)+1)*6+1-$BS30,1),"=" & $AG$75,OFFSET($BX$20:$DW$25,0,INT(($BS30-1)/6),(INT(($BS30-1)/6)+1)*6+1-$BS30,1)))+$BV51 -> 0 | BH50: =SUMIF(OFFSET($BX50:$DW55,0,INT((IF($BS29>0,$BS29,1)-1)/6),,52-INT((IF($BS29>0,$BS29,1)-1)/6)-IF($BS30<=0,INT(ABS($BS30)/6),0)),"=" & $AR$75,OFFSET($BX$20:$DW$25,0,INT((IF($BS29>0,$BS29,1)-1)/6),,52-INT((IF($BS29>0,$BS29,1)-1)/6)-IF($BS30<=0,INT(ABS($BS30)/6),0)))-IF(AND($BS29>0,$BS29>INT(($BS29-1)/6)*6+1),SUMIF(OFFSET($BX50:$DW55,0,INT(($BS29-1)/6),$BS29-INT(($BS29-1)/6)*6-1,1),"=" & $AR$75,OFFSET($BX$20:$DW$25,0,INT(($BS29-1)/6),$BS29-INT(($BS29-1)/6)*6-1,1)))+IF($BS30>1,SUMIF(OFFSET($BX56:$DW61,0,0,,INT(($BS30-1)/6)+1),"=" & $AR$75,OFFSET($BX$20:$DW$25,0,0,,INT(($BS30-1)/6)+1)))-IF($BS30>1,SUMIF(OFFSET($BX56:$DW61,$BS30-INT(($BS30-1)/6)*6-1,INT(($BS30-1)/6),(INT(($BS30-1)/6)+1)*6+1-$BS30,1),"=" & $AR$75,OFFSET($BX$20:$DW$25,0,INT(($BS30-1)/6),(INT(($BS30-1)/6)+1)*6+1-$BS30,1)))+$BV52 -> 4 | BI50: =SUMIF(OFFSET($BX50:$DW55,0,INT((IF($BS29>0,$BS29,1)-1)/6),,52-INT((IF($BS29>0,$BS29,1)-1)/6)-IF($BS30<=0,INT(ABS($BS30)/6),0)),"=" & $G$77,OFFSET($BX$20:$DW$25,0,INT((IF($BS29>0,$BS29,1)-1)/6),,52-INT((IF($BS29>0,$BS29,1)-1)/6)-IF($BS30<=0,INT(ABS($BS30)/6),0)))-IF(AND($BS29>0,$BS29>INT(($BS29-1)/6)*6+1),SUMIF(OFFSET($BX50:$DW55,0,INT(($BS29-1)/6),$BS29-INT(($BS29-1)/6)*6-1,1),"=" & $G$77,OFFSET($BX$20:$DW$25,0,INT(($BS29-1)/6),$BS29-INT(($BS29-1)/6)*6-1,1)))+IF($BS30>1,SUMIF(OFFSET($BX56:$DW61,0,0,,INT(($BS30-1)/6)+1),"=" & $G$77,OFFSET($BX$20:$DW$25,0,0,,INT(($BS30-1)/6)+1)))-IF($BS30>1,SUMIF(OFFSET($BX56:$DW61,$BS30-INT(($BS30-1)/6)*6-1,INT(($BS30-1)/6),(INT(($BS30-1)/6)+1)*6+1-$BS30,1),"=" & $G$77,OFFSET($BX$20:$DW$25,0,INT(($BS30-1)/6),(INT(($BS30-1)/6)+1)*6+1-$BS30,1)))+$BV53 -> 0 | BJ50: =SUMIF(OFFSET($BX50:$DW55,0,INT((IF($BS29>0,$BS29,1)-1)/6),,52-INT((IF($BS29>0,$BS29,1)-1)/6)-IF($BS30<=0,INT(ABS($BS30)/6),0)),"=" & $T$77,OFFSET($BX$20:$DW$25,0,INT((IF($BS29>0,$BS29,1)-1)/6),,52-INT((IF($BS29>0,$BS29,1)-1)/6)-IF($BS30<=0,INT(ABS($BS30)/6),0)))-IF(AND($BS29>0,$BS29>INT(($BS29-1)/6)*6+1),SUMIF(OFFSET($BX50:$DW55,0,INT(($BS29-1)/6),$BS29-INT(($BS29-1)/6)*6-1,1),"=" & $T$77,OFFSET($BX$20:$DW$25,0,INT(($BS29-1)/6),$BS29-INT(($BS29-1)/6)*6-1,1)))+IF($BS30>1,SUMIF(OFFSET($BX56:$DW61,0,0,,INT(($BS30-1)/6)+1),"=" & $T$77,OFFSET($BX$20:$DW$25,0,0,,INT(($BS30-1)/6)+1)))-IF($BS30>1,SUMIF(OFFSET($BX56:$DW61,$BS30-INT(($BS30-1)/6)*6-1,INT(($BS30-1)/6),(INT(($BS30-1)/6)+1)*6+1-$BS30,1),"=" & $T$77,OFFSET($BX$20:$DW$25,0,INT(($BS30-1)/6),(INT(($BS30-1)/6)+1)*6+1-$BS30,1)))+$BV54 -> 0 | BK50: =SUMIF(OFFSET($BX50:$DW55,0,INT((IF($BS29>0,$BS29,1)-1)/6),,52-INT((IF($BS29>0,$BS29,1)-1)/6)-IF($BS30<=0,INT(ABS($BS30)/6),0)),"=" & $AG$77,OFFSET($BX$20:$DW$25,0,INT((IF($BS29>0,$BS29,1)-1)/6),,52-INT((IF($BS29>0,$BS29,1)-1)/6)-IF($BS30<=0,INT(ABS($BS30)/6),0)))-IF(AND($BS29>0,$BS29>INT(($BS29-1)/6)*6+1),SUMIF(OFFSET($BX50:$DW55,0,INT(($BS29-1)/6),$BS29-INT(($BS29-1)/6)*6-1,1),"=" & $AG$77,OFFSET($BX$20:$DW$25,0,INT(($BS29-1)/6),$BS29-INT(($BS29-1)/6)*6-1,1)))+IF($BS30>1,SUMIF(OFFSET($BX56:$DW61,0,0,,INT(($BS30-1)/6)+1),"=" & $AG$77,OFFSET($BX$20:$DW$25,0,0,,INT(($BS30-1)/6)+1)))-IF($BS30>1,SUMIF(OFFSET($BX56:$DW61,$BS30-INT(($BS30-1)/6)*6-1,INT(($BS30-1)/6),(INT(($BS30-1)/6)+1)*6+1-$BS30,1),"=" & $AG$77,OFFSET($BX$20:$DW$25,0,INT(($BS30-1)/6),(INT(($BS30-1)/6)+1)*6+1-$BS30,1)))+$BV55 -> 10 | BL50: =SUM($BD50:$BK55) -> 52 | BM50: 85 | BN50: 4 | BO50: 4 | BU50: =SUMIF(OFFSET($BX50:$DW55,0,INT((IF($BS29>0,$BS29,1)-1)/6),,INT(($BT29-1)/6)-INT((IF($BS29>0,$BS29,1)-1)/6)),"=" & $T$75,OFFSET($BX$20:$DW$25,0,INT((IF($BS29>0,$BS29,1)-1)/6)))-IF(AND($BS29>0,$BS29>INT(($BS29-1)/6)*6+1),SUMIF(OFFSET($BX50:$DW55,0,INT(($BS29-1)/6),$BS29-INT(($BS29-1)/6)*6-1,1),"=" & $T$75,OFFSET($BX$20:$DW$25,0,INT(($BS29-1)/6),$BS29-INT(($BS29-1)/6)*6-1,1)))+IF(AND($BT29>0,$BT29>INT(($BT29-1)/6)*6+1),SUMIF(OFFSET($BX50:$DW55,0,INT(($BT29-1)/6),$BT29-INT(($BT29-1)/6)*6-1,1),"=" & $T$75,OFFSET($BX$20:$DW$25,0,INT(($BT29-1)/6),$BT29-INT(($BT29-1)/6)*6-1,1)))+$BU51 -> 3 | BV50: =IF($BS29<=0,SUMIF(OFFSET($BX44:$DW49,0,52-INT(ABS($BS29)/6)-1,,INT(ABS($BS29)/6)+1),"=" & $AR$77,OFFSET($BX$20:$DW$25,0,52-INT(ABS($BS29)/6)-1,,INT(ABS($BS29)/6)+1)))-IF(AND($BS29<=0,ABS($BS29)<INT(ABS($BS29)/6+1)*6-1),SUMIF(OFFSET($BX44:$DW49,0,52-INT(ABS($BS29)/6)-1,INT(ABS($BS29)/6+1)*6-1-ABS($BS29),1),"=" & $AR$77,OFFSET($BX$20:$DW$25,0,52-INT(ABS($BS29)/6)-1,INT(ABS($BS29)/6+1)*6-1-ABS($BS29),1)))-IF($BS30<=0,SUMIF(OFFSET($BX50:$DW55,(INT(ABS($BS30)/6)+1)*6-ABS($BS30)-1,52-INT(ABS($BS30)/6)-1,ABS($BS30)-INT(ABS($BS30)/6)*6+1,1),"=" & $AR$77,OFFSET($BX$20:$DW$25,(INT(ABS($BS30)/6)+1)*6-ABS($BS30)-1,52-INT(ABS($BS30)/6)-1,ABS($BS30)-INT(ABS($BS30)/6)*6+1,1)),0) -> 0 | BW50: =IF($BS29<=0,SUMIF(OFFSET($BX44:$DW49,0,52-INT(ABS($BS29)/6)-1,,INT(ABS($BS29)/6)+1),"=0",OFFSET($BX$20:$DW$25,0,52-INT(ABS($BS29)/6)-1,,INT(ABS($BS29)/6)+1)))-IF(AND($BS29<=0,ABS($BS29)<INT(ABS($BS29)/6+1)*6-1),SUMIF(OFFSET($BX44:$DW49,0,52-INT(ABS($BS29)/6)-1,INT(ABS($BS29)/6+1)*6-1-ABS($BS29),1),"=0",OFFSET($BX$20:$DW$25,0,52-INT(ABS($BS29)/6)-1,INT(ABS($BS29)/6+1)*6-1-ABS($BS29),1))) -> 0 | BX50: =IF(B50="",0,B50) -> 0 | BY50: 0 | BZ50: 0 | CA50: 0 | CB50: 0 | CC50: 0 | CD50: 0 | CE50: 0 | CF50: 0 | CG50: 0 | CH50: 0 | CI50: 0 | CJ50: 0 | CK50: 0 | CL50: 0 | CM50: 0 | CN50: 0 | CO50: 0 | CP50: Э | CQ50: Э | CR50: Э | CS50: К | CT50: К | CU50: 0 | CV50: 0 | CW50: 0 | CX50: 0 | CY50: 0 | CZ50: 0 | DA50: 0 | DB50: 0 | DC50: 0 | DD50: =IF(AH50="",0,AH50) -> 0 | DE50: 0 | DF50: 0 | DG50: 0 | DH50: 0 | DI50: 0 | DJ50: Э | DK50: Э | DL50: П | DM50: П | DN50: П | DO50: П | DP50: К | DQ50: К | DR50: К | DS50: К | DT50: К | DU50: К | DV50: К | DW50: К | DX50: =IF($BS30<=0,SUMIF(OFFSET($BX50:$DW55,(INT(ABS($BS30)/6)+1)*6-ABS($BS30)-1,52-INT(ABS($BS30)/6)-1,ABS($BS30)-INT(ABS($BS30)/6)*6+1,1),"=0",OFFSET($BX$20:$DW$25,(INT(ABS($BS30)/6)+1)*6-ABS($BS30)-1,52-INT(ABS($BS30)/6)-1,ABS($BS30)-INT(ABS($BS30)/6)*6+1,1)),0) -> 0 | DY50: =IF($BS30<=0,SUMIF(OFFSET($BX50:$DW55,(INT(ABS($BS30)/6)+1)*6-ABS($BS30)-1,52-INT(ABS($BS30)/6)-1,ABS($BS30)-INT(ABS($BS30)/6)*6+1,1),"=" & $T$75,OFFSET($BX$20:$DW$25,(INT(ABS($BS30)/6)+1)*6-ABS($BS30)-1,52-INT(ABS($BS30)/6)-1,ABS($BS30)-INT(ABS($BS30)/6)*6+1,1)),0) -> 0
BU51: =IF($BS29<=0,SUMIF(OFFSET($BX44:$DW49,0,52-INT(ABS($BS29)/6)-1,,INT(ABS($BS29)/6)+1),"=" & $T$75,OFFSET($BX$20:$DW$25,0,52-INT(ABS($BS29)/6)-1,,INT(ABS($BS29)/6)+1)))-IF(AND($BS29<=0,ABS($BS29)<INT(ABS($BS29)/6+1)*6-1),SUMIF(OFFSET($BX44:$DW49,0,52-INT(ABS($BS29)/6)-1,INT(ABS($BS29)/6+1)*6-1-ABS($BS29),1),"=" & $T$75,OFFSET($BX$20:$DW$25,0,52-INT(ABS($BS29)/6)-1,INT(ABS($BS29)/6+1)*6-1-ABS($BS29),1))) -> 0 | BV51: =IF($BS29<=0,SUMIF(OFFSET($BX44:$DW49,0,52-INT(ABS($BS29)/6)-1,,INT(ABS($BS29)/6)+1),"=" & $AG$75,OFFSET($BX$20:$DW$25,0,52-INT(ABS($BS29)/6)-1,,INT(ABS($BS29)/6)+1)))-IF(AND($BS29<=0,ABS($BS29)<INT(ABS($BS29)/6+1)*6-1),SUMIF(OFFSET($BX44:$DW49,0,52-INT(ABS($BS29)/6)-1,INT(ABS($BS29)/6+1)*6-1-ABS($BS29),1),"=" & $AG$75,OFFSET($BX$20:$DW$25,0,52-INT(ABS($BS29)/6)-1,INT(ABS($BS29)/6+1)*6-1-ABS($BS29),1)))-IF($BS30<=0,SUMIF(OFFSET($BX50:$DW55,(INT(ABS($BS30)/6)+1)*6-ABS($BS30)-1,52-INT(ABS($BS30)/6)-1,ABS($BS30)-INT(ABS($BS30)/6)*6+1,1),"=" & $AG$75,OFFSET($BX$20:$DW$25,(INT(ABS($BS30)/6)+1)*6-ABS($BS30)-1,52-INT(ABS($BS30)/6)-1,ABS($BS30)-INT(ABS($BS30)/6)*6+1,1)),0) -> 0 | BX51: =IF(B50="",0,B50) -> 0 | BY51: =IF(C50="",0,C50) -> 0 | BZ51: =IF(D50="",0,D50) -> 0 | CA51: =IF(E50="",0,E50) -> 0 | CB51: =IF(F50="",0,F50) -> 0 | CC51: =IF(G50="",0,G50) -> 0 | CD51: =IF(H50="",0,H50) -> 0 | CE51: =IF(I50="",0,I50) -> 0 | CF51: =IF(J50="",0,J50) -> 0 | CG51: =IF(K50="",0,K50) -> 0 | CH51: =IF(L50="",0,L50) -> 0 | CI51: =IF(M50="",0,M50) -> 0 | CJ51: =IF(N50="",0,N50) -> 0 | CK51: =IF(O50="",0,O50) -> 0 | CL51: =IF(P50="",0,P50) -> 0 | CM51: =IF(Q50="",0,Q50) -> 0 | CN51: =IF(R50="",0,R50) -> 0 | CO51: =IF(S50="",0,S50) -> 0 | CP51: =IF(T50="",0,T50) -> Э | CQ51: =IF(U50="",0,U50) -> Э | CR51: =IF(V50="",0,V50) -> Э | CS51: =IF(W50="",0,W50) -> К | CT51: =IF(X50="",0,X50) -> К | CU51: =IF(Y50="",0,Y50) -> 0 | CV51: =IF(Z50="",0,Z50) -> 0 | CW51: =IF(AA50="",0,AA50) -> 0 | CX51: =IF(AB50="",0,AB50) -> 0 | CY51: =IF(AC50="",0,AC50) -> 0 | CZ51: =IF(AD50="",0,AD50) -> 0 | DA51: =IF(AE50="",0,AE50) -> 0 | DB51: =IF(AF50="",0,AF50) -> 0 | DC51: =IF(AG50="",0,AG50) -> 0 | DD51: =IF(AH50="",0,AH50) -> 0 | DE51: =IF(AI50="",0,AI50) -> 0 | DF51: =IF(AJ50="",0,AJ50) -> 0 | DG51: =IF(AK50="",0,AK50) -> 0 | DH51: =IF(AL50="",0,AL50) -> 0 | DI51: =IF(AM50="",0,AM50) -> 0 | DJ51: =IF(AN50="",0,AN50) -> Э | DK51: =IF(AO50="",0,AO50) -> Э | DL51: =IF(AP50="",0,AP50) -> П | DM51: =IF(AQ50="",0,AQ50) -> П | DN51: =IF(AR50="",0,AR50) -> П | DO51: =IF(AS50="",0,AS50) -> П | DP51: =IF(AT50="",0,AT50) -> К | DQ51: =IF(AU50="",0,AU50) -> К | DR51: =IF(AV50="",0,AV50) -> К | DS51: =IF(AW50="",0,AW50) -> К | DT51: =IF(AX50="",0,AX50) -> К | DU51: =IF(AY50="",0,AY50) -> К | DV51: =IF(AZ50="",0,AZ50) -> К | DW51: =IF(BA50="",0,BA50) -> К
BV52: =IF($BS29<=0,SUMIF(OFFSET($BX44:$DW49,0,52-INT(ABS($BS29)/6)-1,,INT(ABS($BS29)/6)+1),"=" & $AR$75,OFFSET($BX$20:$DW$25,0,52-INT(ABS($BS29)/6)-1,,INT(ABS($BS29)/6)+1)))-IF(AND($BS29<=0,ABS($BS29)<INT(ABS($BS29)/6+1)*6-1),SUMIF(OFFSET($BX44:$DW49,0,52-INT(ABS($BS29)/6)-1,INT(ABS($BS29)/6+1)*6-1-ABS($BS29),1),"=" & $AR$75,OFFSET($BX$20:$DW$25,0,52-INT(ABS($BS29)/6)-1,INT(ABS($BS29)/6+1)*6-1-ABS($BS29),1)))-IF($BS30<=0,SUMIF(OFFSET($BX50:$DW55,(INT(ABS($BS30)/6)+1)*6-ABS($BS30)-1,52-INT(ABS($BS30)/6)-1,ABS($BS30)-INT(ABS($BS30)/6)*6+1,1),"=" & $AR$75,OFFSET($BX$20:$DW$25,(INT(ABS($BS30)/6)+1)*6-ABS($BS30)-1,52-INT(ABS($BS30)/6)-1,ABS($BS30)-INT(ABS($BS30)/6)*6+1,1)),0) -> 0 | BX52: =IF(B50="",0,B50) -> 0 | BY52: =IF(C50="",0,C50) -> 0 | BZ52: =IF(D50="",0,D50) -> 0 | CA52: =IF(E50="",0,E50) -> 0 | CB52: =IF(F50="",0,F50) -> 0 | CC52: =IF(G50="",0,G50) -> 0 | CD52: =IF(H50="",0,H50) -> 0 | CE52: =IF(I50="",0,I50) -> 0 | CF52: =IF(J50="",0,J50) -> 0 | CG52: =IF(K50="",0,K50) -> 0 | CH52: =IF(L50="",0,L50) -> 0 | CI52: =IF(M50="",0,M50) -> 0 | CJ52: =IF(N50="",0,N50) -> 0 | CK52: =IF(O50="",0,O50) -> 0 | CL52: =IF(P50="",0,P50) -> 0 | CM52: =IF(Q50="",0,Q50) -> 0 | CN52: =IF(R50="",0,R50) -> 0 | CO52: =IF(S50="",0,S50) -> 0 | CP52: =IF(T50="",0,T50) -> Э | CQ52: =IF(U50="",0,U50) -> Э | CR52: =IF(V50="",0,V50) -> Э | CS52: =IF(W50="",0,W50) -> К | CT52: =IF(X50="",0,X50) -> К | CU52: =IF(Y50="",0,Y50) -> 0 | CV52: =IF(Z50="",0,Z50) -> 0 | CW52: =IF(AA50="",0,AA50) -> 0 | CX52: =IF(AB50="",0,AB50) -> 0 | CY52: =IF(AC50="",0,AC50) -> 0 | CZ52: =IF(AD50="",0,AD50) -> 0 | DA52: =IF(AE50="",0,AE50) -> 0 | DB52: =IF(AF50="",0,AF50) -> 0 | DC52: =IF(AG50="",0,AG50) -> 0 | DD52: =IF(AH50="",0,AH50) -> 0 | DE52: =IF(AI50="",0,AI50) -> 0 | DF52: =IF(AJ50="",0,AJ50) -> 0 | DG52: =IF(AK50="",0,AK50) -> 0 | DH52: =IF(AL50="",0,AL50) -> 0 | DI52: =IF(AM50="",0,AM50) -> 0 | DJ52: =IF(AN50="",0,AN50) -> Э | DK52: =IF(AO50="",0,AO50) -> Э | DL52: =IF(AP50="",0,AP50) -> П | DM52: =IF(AQ50="",0,AQ50) -> П | DN52: =IF(AR50="",0,AR50) -> П | DO52: =IF(AS50="",0,AS50) -> П | DP52: =IF(AT50="",0,AT50) -> К | DQ52: =IF(AU50="",0,AU50) -> К | DR52: =IF(AV50="",0,AV50) -> К | DS52: =IF(AW50="",0,AW50) -> К | DT52: =IF(AX50="",0,AX50) -> К | DU52: =IF(AY50="",0,AY50) -> К | DV52: =IF(AZ50="",0,AZ50) -> К | DW52: =IF(BA50="",0,BA50) -> К
BV53: =IF($BS29<=0,SUMIF(OFFSET($BX44:$DW49,0,52-INT(ABS($BS29)/6)-1,,INT(ABS($BS29)/6)+1),"=" & $G$77,OFFSET($BX$20:$DW$25,0,52-INT(ABS($BS29)/6)-1,,INT(ABS($BS29)/6)+1)))-IF(AND($BS29<=0,ABS($BS29)<INT(ABS($BS29)/6+1)*6-1),SUMIF(OFFSET($BX44:$DW49,0,52-INT(ABS($BS29)/6)-1,INT(ABS($BS29)/6+1)*6-1-ABS($BS29),1),"=" & $G$77,OFFSET($BX$20:$DW$25,0,52-INT(ABS($BS29)/6)-1,INT(ABS($BS29)/6+1)*6-1-ABS($BS29),1)))-IF($BS30<=0,SUMIF(OFFSET($BX50:$DW55,(INT(ABS($BS30)/6)+1)*6-ABS($BS30)-1,52-INT(ABS($BS30)/6)-1,ABS($BS30)-INT(ABS($BS30)/6)*6+1,1),"=" & $G$77,OFFSET($BX$20:$DW$25,(INT(ABS($BS30)/6)+1)*6-ABS($BS30)-1,52-INT(ABS($BS30)/6)-1,ABS($BS30)-INT(ABS($BS30)/6)*6+1,1)),0) -> 0 | BX53: =IF(B50="",0,B50) -> 0 | BY53: =IF(C50="",0,C50) -> 0 | BZ53: =IF(D50="",0,D50) -> 0 | CA53: =IF(E50="",0,E50) -> 0 | CB53: =IF(F50="",0,F50) -> 0 | CC53: =IF(G50="",0,G50) -> 0 | CD53: =IF(H50="",0,H50) -> 0 | CE53: =IF(I50="",0,I50) -> 0 | CF53: =IF(J50="",0,J50) -> 0 | CG53: =IF(K50="",0,K50) -> 0 | CH53: =IF(L50="",0,L50) -> 0 | CI53: =IF(M50="",0,M50) -> 0 | CJ53: =IF(N50="",0,N50) -> 0 | CK53: =IF(O50="",0,O50) -> 0 | CL53: =IF(P50="",0,P50) -> 0 | CM53: =IF(Q50="",0,Q50) -> 0 | CN53: =IF(R50="",0,R50) -> 0 | CO53: =IF(S50="",0,S50) -> 0 | CP53: =IF(T50="",0,T50) -> Э | CQ53: =IF(U50="",0,U50) -> Э | CR53: =IF(V50="",0,V50) -> Э | CS53: =IF(W50="",0,W50) -> К | CT53: =IF(X50="",0,X50) -> К | CU53: =IF(Y50="",0,Y50) -> 0 | CV53: =IF(Z50="",0,Z50) -> 0 | CW53: =IF(AA50="",0,AA50) -> 0 | CX53: =IF(AB50="",0,AB50) -> 0 | CY53: =IF(AC50="",0,AC50) -> 0 | CZ53: =IF(AD50="",0,AD50) -> 0 | DA53: =IF(AE50="",0,AE50) -> 0 | DB53: =IF(AF50="",0,AF50) -> 0 | DC53: =IF(AG50="",0,AG50) -> 0 | DD53: =IF(AH50="",0,AH50) -> 0 | DE53: =IF(AI50="",0,AI50) -> 0 | DF53: =IF(AJ50="",0,AJ50) -> 0 | DG53: =IF(AK50="",0,AK50) -> 0 | DH53: =IF(AL50="",0,AL50) -> 0 | DI53: =IF(AM50="",0,AM50) -> 0 | DJ53: =IF(AN50="",0,AN50) -> Э | DK53: =IF(AO50="",0,AO50) -> Э | DL53: =IF(AP50="",0,AP50) -> П | DM53: =IF(AQ50="",0,AQ50) -> П | DN53: =IF(AR50="",0,AR50) -> П | DO53: =IF(AS50="",0,AS50) -> П | DP53: =IF(AT50="",0,AT50) -> К | DQ53: =IF(AU50="",0,AU50) -> К | DR53: =IF(AV50="",0,AV50) -> К | DS53: =IF(AW50="",0,AW50) -> К | DT53: =IF(AX50="",0,AX50) -> К | DU53: =IF(AY50="",0,AY50) -> К | DV53: =IF(AZ50="",0,AZ50) -> К | DW53: =IF(BA50="",0,BA50) -> К
BV54: =IF($BS29<=0,SUMIF(OFFSET($BX44:$DW49,0,52-INT(ABS($BS29)/6)-1,,INT(ABS($BS29)/6)+1),"=" & $T$77,OFFSET($BX$20:$DW$25,0,52-INT(ABS($BS29)/6)-1,,INT(ABS($BS29)/6)+1)))-IF(AND($BS29<=0,ABS($BS29)<INT(ABS($BS29)/6+1)*6-1),SUMIF(OFFSET($BX44:$DW49,0,52-INT(ABS($BS29)/6)-1,INT(ABS($BS29)/6+1)*6-1-ABS($BS29),1),"=" & $T$77,OFFSET($BX$20:$DW$25,0,52-INT(ABS($BS29)/6)-1,INT(ABS($BS29)/6+1)*6-1-ABS($BS29),1)))-IF($BS30<=0,SUMIF(OFFSET($BX50:$DW55,(INT(ABS($BS30)/6)+1)*6-ABS($BS30)-1,52-INT(ABS($BS30)/6)-1,ABS($BS30)-INT(ABS($BS30)/6)*6+1,1),"=" & $T$77,OFFSET($BX$20:$DW$25,(INT(ABS($BS30)/6)+1)*6-ABS($BS30)-1,52-INT(ABS($BS30)/6)-1,ABS($BS30)-INT(ABS($BS30)/6)*6+1,1)),0) -> 0 | BX54: =IF(B50="",0,B50) -> 0 | BY54: =IF(C50="",0,C50) -> 0 | BZ54: =IF(D50="",0,D50) -> 0 | CA54: =IF(E50="",0,E50) -> 0 | CB54: =IF(F50="",0,F50) -> 0 | CC54: =IF(G50="",0,G50) -> 0 | CD54: =IF(H50="",0,H50) -> 0 | CE54: =IF(I50="",0,I50) -> 0 | CF54: =IF(J50="",0,J50) -> 0 | CG54: =IF(K50="",0,K50) -> 0 | CH54: =IF(L50="",0,L50) -> 0 | CI54: =IF(M50="",0,M50) -> 0 | CJ54: =IF(N50="",0,N50) -> 0 | CK54: =IF(O50="",0,O50) -> 0 | CL54: =IF(P50="",0,P50) -> 0 | CM54: =IF(Q50="",0,Q50) -> 0 | CN54: =IF(R50="",0,R50) -> 0 | CO54: =IF(S50="",0,S50) -> 0 | CP54: =IF(T50="",0,T50) -> Э | CQ54: =IF(U50="",0,U50) -> Э | CR54: =IF(V50="",0,V50) -> Э | CS54: =IF(W50="",0,W50) -> К | CT54: =IF(X50="",0,X50) -> К | CU54: =IF(Y50="",0,Y50) -> 0 | CV54: =IF(Z50="",0,Z50) -> 0 | CW54: =IF(AA50="",0,AA50) -> 0 | CX54: =IF(AB50="",0,AB50) -> 0 | CY54: =IF(AC50="",0,AC50) -> 0 | CZ54: =IF(AD50="",0,AD50) -> 0 | DA54: =IF(AE50="",0,AE50) -> 0 | DB54: =IF(AF50="",0,AF50) -> 0 | DC54: =IF(AG50="",0,AG50) -> 0 | DD54: =IF(AH50="",0,AH50) -> 0 | DE54: =IF(AI50="",0,AI50) -> 0 | DF54: =IF(AJ50="",0,AJ50) -> 0 | DG54: =IF(AK50="",0,AK50) -> 0 | DH54: =IF(AL50="",0,AL50) -> 0 | DI54: =IF(AM50="",0,AM50) -> 0 | DJ54: =IF(AN50="",0,AN50) -> Э | DK54: =IF(AO50="",0,AO50) -> Э | DL54: =IF(AP50="",0,AP50) -> П | DM54: =IF(AQ50="",0,AQ50) -> П | DN54: =IF(AR50="",0,AR50) -> П | DO54: =IF(AS50="",0,AS50) -> П | DP54: =IF(AT50="",0,AT50) -> К | DQ54: =IF(AU50="",0,AU50) -> К | DR54: =IF(AV50="",0,AV50) -> К | DS54: =IF(AW50="",0,AW50) -> К | DT54: =IF(AX50="",0,AX50) -> К | DU54: =IF(AY50="",0,AY50) -> К | DV54: =IF(AZ50="",0,AZ50) -> К | DW54: =IF(BA50="",0,BA50) -> К
A55: 4 | BO55: 4 | BU55: =SUMIF(OFFSET($BX50:$DW55,0,INT(($BT29-1)/6),,52-INT(($BT29-1)/6)-IF($BS30<=0,INT(ABS($BS30)/6),0)),"=" & $T$75,OFFSET($BX$20:$DW$25,0,INT(($BT29-1)/6),,52-INT(($BT29-1)/6)-IF($BS30<=0,INT(ABS($BS30)/6),0)))-IF($BT29>INT(($BT29-1)/6)*6+1,SUMIF(OFFSET($BX50:$DW55,0,INT(($BT29-1)/6),$BT29-INT(($BT29-1)/6)*6-1,1),"=" & $T$75,OFFSET($BX$20:$DW$25,0,INT(($BT29-1)/6),$BT29-INT(($BT29-1)/6)*6-1,1)))+IF($BS30>1,SUMIF(OFFSET($BX56:$DW61,0,0,,INT(($BS30-1)/6)+1),"=" & $T$75,OFFSET($BX$20:$DW$25,0,0,,INT(($BS30-1)/6)+1)))-IF($BS30>1,SUMIF(OFFSET($BX56:$DW61,$BS30-INT(($BS30-1)/6)*6-1,INT(($BS30-1)/6),(INT(($BS30-1)/6)+1)*6+1-$BS30,1),"=" & $T$75,OFFSET($BX$20:$DW$25,0,INT(($BS30-1)/6),(INT(($BS30-1)/6)+1)*6+1-$BS30,1)))-$DY50 -> 2 | BV55: =IF($BS29<=0,SUMIF(OFFSET($BX44:$DW49,0,52-INT(ABS($BS29)/6)-1,,INT(ABS($BS29)/6)+1),"=" & $AG$77,OFFSET($BX$20:$DW$25,0,52-INT(ABS($BS29)/6)-1,,INT(ABS($BS29)/6)+1)))-IF(AND($BS29<=0,ABS($BS29)<INT(ABS($BS29)/6+1)*6-1),SUMIF(OFFSET($BX44:$DW49,0,52-INT(ABS($BS29)/6)-1,INT(ABS($BS29)/6+1)*6-1-ABS($BS29),1),"=" & $AG$77,OFFSET($BX$20:$DW$25,0,52-INT(ABS($BS29)/6)-1,INT(ABS($BS29)/6+1)*6-1-ABS($BS29),1)))-IF($BS30<=0,SUMIF(OFFSET($BX50:$DW55,(INT(ABS($BS30)/6)+1)*6-ABS($BS30)-1,52-INT(ABS($BS30)/6)-1,ABS($BS30)-INT(ABS($BS30)/6)*6+1,1),"=" & $AG$77,OFFSET($BX$20:$DW$25,(INT(ABS($BS30)/6)+1)*6-ABS($BS30)-1,52-INT(ABS($BS30)/6)-1,ABS($BS30)-INT(ABS($BS30)/6)*6+1,1)),0) -> 0 | BX55: =IF(B50="",0,B50) -> 0 | BY55: =IF(C50="",0,C50) -> 0 | BZ55: =IF(D50="",0,D50) -> 0 | CA55: =IF(E50="",0,E50) -> 0 | CB55: =IF(F50="",0,F50) -> 0 | CC55: =IF(G50="",0,G50) -> 0 | CD55: =IF(H50="",0,H50) -> 0 | CE55: =IF(I50="",0,I50) -> 0 | CF55: =IF(J50="",0,J50) -> 0 | CG55: =IF(K50="",0,K50) -> 0 | CH55: =IF(L50="",0,L50) -> 0 | CI55: =IF(M50="",0,M50) -> 0 | CJ55: =IF(N50="",0,N50) -> 0 | CK55: =IF(O50="",0,O50) -> 0 | CL55: =IF(P50="",0,P50) -> 0 | CM55: =IF(Q50="",0,Q50) -> 0 | CN55: =IF(R50="",0,R50) -> 0 | CO55: =IF(S50="",0,S50) -> 0 | CP55: =IF(T50="",0,T50) -> Э | CQ55: =IF(U50="",0,U50) -> Э | CR55: =IF(V50="",0,V50) -> Э | CS55: =IF(W50="",0,W50) -> К | CT55: =IF(X50="",0,X50) -> К | CU55: =IF(Y50="",0,Y50) -> 0 | CV55: =IF(Z50="",0,Z50) -> 0 | CW55: =IF(AA50="",0,AA50) -> 0 | CX55: =IF(AB50="",0,AB50) -> 0 | CY55: =IF(AC50="",0,AC50) -> 0 | CZ55: =IF(AD50="",0,AD50) -> 0 | DA55: =IF(AE50="",0,AE50) -> 0 | DB55: =IF(AF50="",0,AF50) -> 0 | DC55: =IF(AG50="",0,AG50) -> 0 | DD55: =IF(AH50="",0,AH50) -> 0 | DE55: =IF(AI50="",0,AI50) -> 0 | DF55: =IF(AJ50="",0,AJ50) -> 0 | DG55: =IF(AK50="",0,AK50) -> 0 | DH55: =IF(AL50="",0,AL50) -> 0 | DI55: =IF(AM50="",0,AM50) -> 0 | DJ55: =IF(AN50="",0,AN50) -> Э | DK55: =IF(AO50="",0,AO50) -> Э | DL55: =IF(AP50="",0,AP50) -> П | DM55: =IF(AQ50="",0,AQ50) -> П | DN55: =IF(AR50="",0,AR50) -> П | DO55: =IF(AS50="",0,AS50) -> П | DP55: =IF(AT50="",0,AT50) -> К | DQ55: =IF(AU50="",0,AU50) -> К | DR55: =IF(AV50="",0,AV50) -> К | DS55: =IF(AW50="",0,AW50) -> К | DT55: =IF(AX50="",0,AX50) -> К | DU55: =IF(AY50="",0,AY50) -> К | DV55: =IF(AZ50="",0,AZ50) -> К | DW55: =IF(BA50="",0,BA50) -> К
A56: 5 | Q56: Э | R56: Э | S56: Э | T56: К | U56: К | V56: П | W56: П | X56: П | Y56: П | Z56: П | AA56: П | AB56: П | AC56: П | AD56: Г | AE56: Г | AF56: Д | AG56: Д | AH56: Д | AI56: Д | AJ56: Д | AK56: Д | AL56: Д | AM56: Д | AN56: Д | AO56: Д | AP56: Д | AQ56: Д | AR56: Д | AS56: Д | AT56: К | AU56: К | AV56: К | AW56: К | AX56: К | AY56: К | AZ56: К | BA56: К | BB56: =SUMIF(OFFSET($BX56:$DW61,0,INT((IF($BS30>0,$BS30,1)-1)/6),,INT(($BT30-1)/6)-INT((IF($BS30>0,$BS30,1)-1)/6)),"=0",OFFSET($BX$20:$DW$25,0,INT((IF($BS30>0,$BS30,1)-1)/6)))-IF(AND($BS30>0,$BS30>INT(($BS30-1)/6)*6+1),SUMIF(OFFSET($BX56:$DW61,0,INT(($BS30-1)/6),$BS30-INT(($BS30-1)/6)*6-1,1),"=0",OFFSET($BX$20:$DW$25,0,INT(($BS30-1)/6),$BS30-INT(($BS30-1)/6)*6-1,1)))+IF(AND($BT30>0,$BT30>INT(($BT30-1)/6)*6+1),SUMIF(OFFSET($BX56:$DW61,0,INT(($BT30-1)/6),$BT30-INT(($BT30-1)/6)*6-1,1),"=0",OFFSET($BX$20:$DW$25,0,INT(($BT30-1)/6),$BT30-INT(($BT30-1)/6)*6-1,1)))+$BW56 -> 15 | BC56: =SUMIF(OFFSET($BX56:$DW61,0,INT(($BT30-1)/6),,52-INT(($BT30-1)/6)-IF($BS31<=0,INT(ABS($BS31)/6)+1,0)),"=0",OFFSET($BX$20:$DW$25,0,INT(($BT30-1)/6),,52-INT(($BT30-1)/6)-IF($BS31<=0,INT(ABS($BS31)/6)+1,0)))-IF($BT30>INT(($BT30-1)/6)*6+1,SUMIF(OFFSET($BX56:$DW61,0,INT(($BT30-1)/6),$BT30-INT(($BT30-1)/6)*6-1,1),"=0",OFFSET($BX$20:$DW$25,0,INT(($BT30-1)/6),$BT30-INT(($BT30-1)/6)*6-1,1)))+IF($BS31>1,SUMIF(OFFSET($BX62:$DW67,0,0,,INT(($BS31-1)/6)+1),"=0",OFFSET($BX$20:$DW$25,0,0,,INT(($BS31-1)/6)+1)))-IF($BS31>1,SUMIF(OFFSET($BX62:$DW67,$BS31-INT(($BS31-1)/6)*6-1,INT(($BS31-1)/6),(INT(($BS31-1)/6)+1)*6+1-$BS31,1),"=0",OFFSET($BX$20:$DW$25,0,INT(($BS31-1)/6),(INT(($BS31-1)/6)+1)*6+1-$BS31,1)))-$DX56 -> 0 | BD56: =Недель9+Недель10 -> 15 | BE56: =Экз5Осень+Экз5Весна -> 3 | BF56: =SUMIF(OFFSET($BX56:$DW61,0,INT((IF($BS30>0,$BS30,1)-1)/6),,52-INT((IF($BS30>0,$BS30,1)-1)/6)-IF($BS31<=0,INT(ABS($BS31)/6),0)),"=" & $AR$77,OFFSET($BX$20:$DW$25,0,INT((IF($BS30>0,$BS30,1)-1)/6),,52-INT((IF($BS30>0,$BS30,1)-1)/6)-IF($BS31<=0,INT(ABS($BS31)/6),0)))-IF(AND($BS30>0,$BS30>INT(($BS30-1)/6)*6+1),SUMIF(OFFSET($BX56:$DW61,0,INT(($BS30-1)/6),$BS30-INT(($BS30-1)/6)*6-1,1),"=" & $AR$77,OFFSET($BX$20:$DW$25,0,INT(($BS30-1)/6),$BS30-INT(($BS30-1)/6)*6-1,1)))+IF($BS31>1,SUMIF(OFFSET($BX62:$DW67,0,0,,INT(($BS31-1)/6)+1),"=" & $AR$77,OFFSET($BX$20:$DW$25,0,0,,INT(($BS31-1)/6)+1)))-IF($BS31>1,SUMIF(OFFSET($BX62:$DW67,$BS31-INT(($BS31-1)/6)*6-1,INT(($BS31-1)/6),(INT(($BS31-1)/6)+1)*6+1-$BS31,1),"=" & $AR$77,OFFSET($BX$20:$DW$25,0,INT(($BS31-1)/6),(INT(($BS31-1)/6)+1)*6+1-$BS31,1)))+$BV56 -> 0 | BG56: =SUMIF(OFFSET($BX56:$DW61,0,INT((IF($BS30>0,$BS30,1)-1)/6),,52-INT((IF($BS30>0,$BS30,1)-1)/6)-IF($BS31<=0,INT(ABS($BS31)/6),0)),"=" & $AG$75,OFFSET($BX$20:$DW$25,0,INT((IF($BS30>0,$BS30,1)-1)/6),,52-INT((IF($BS30>0,$BS30,1)-1)/6)-IF($BS31<=0,INT(ABS($BS31)/6),0)))-IF(AND($BS30>0,$BS30>INT(($BS30-1)/6)*6+1),SUMIF(OFFSET($BX56:$DW61,0,INT(($BS30-1)/6),$BS30-INT(($BS30-1)/6)*6-1,1),"=" & $AG$75,OFFSET($BX$20:$DW$25,0,INT(($BS30-1)/6),$BS30-INT(($BS30-1)/6)*6-1,1)))+IF($BS31>1,SUMIF(OFFSET($BX62:$DW67,0,0,,INT(($BS31-1)/6)+1),"=" & $AG$75,OFFSET($BX$20:$DW$25,0,0,,INT(($BS31-1)/6)+1)))-IF($BS31>1,SUMIF(OFFSET($BX62:$DW67,$BS31-INT(($BS31-1)/6)*6-1,INT(($BS31-1)/6),(INT(($BS31-1)/6)+1)*6+1-$BS31,1),"=" & $AG$75,OFFSET($BX$20:$DW$25,0,INT(($BS31-1)/6),(INT(($BS31-1)/6)+1)*6+1-$BS31,1)))+$BV57 -> 0 | BH56: =SUMIF(OFFSET($BX56:$DW61,0,INT((IF($BS30>0,$BS30,1)-1)/6),,52-INT((IF($BS30>0,$BS30,1)-1)/6)-IF($BS31<=0,INT(ABS($BS31)/6),0)),"=" & $AR$75,OFFSET($BX$20:$DW$25,0,INT((IF($BS30>0,$BS30,1)-1)/6),,52-INT((IF($BS30>0,$BS30,1)-1)/6)-IF($BS31<=0,INT(ABS($BS31)/6),0)))-IF(AND($BS30>0,$BS30>INT(($BS30-1)/6)*6+1),SUMIF(OFFSET($BX56:$DW61,0,INT(($BS30-1)/6),$BS30-INT(($BS30-1)/6)*6-1,1),"=" & $AR$75,OFFSET($BX$20:$DW$25,0,INT(($BS30-1)/6),$BS30-INT(($BS30-1)/6)*6-1,1)))+IF($BS31>1,SUMIF(OFFSET($BX62:$DW67,0,0,,INT(($BS31-1)/6)+1),"=" & $AR$75,OFFSET($BX$20:$DW$25,0,0,,INT(($BS31-1)/6)+1)))-IF($BS31>1,SUMIF(OFFSET($BX62:$DW67,$BS31-INT(($BS31-1)/6)*6-1,INT(($BS31-1)/6),(INT(($BS31-1)/6)+1)*6+1-$BS31,1),"=" & $AR$75,OFFSET($BX$20:$DW$25,0,INT(($BS31-1)/6),(INT(($BS31-1)/6)+1)*6+1-$BS31,1)))+$BV58 -> 8 | BI56: =SUMIF(OFFSET($BX56:$DW61,0,INT((IF($BS30>0,$BS30,1)-1)/6),,52-INT((IF($BS30>0,$BS30,1)-1)/6)-IF($BS31<=0,INT(ABS($BS31)/6),0)),"=" & $G$77,OFFSET($BX$20:$DW$25,0,INT((IF($BS30>0,$BS30,1)-1)/6),,52-INT((IF($BS30>0,$BS30,1)-1)/6)-IF($BS31<=0,INT(ABS($BS31)/6),0)))-IF(AND($BS30>0,$BS30>INT(($BS30-1)/6)*6+1),SUMIF(OFFSET($BX56:$DW61,0,INT(($BS30-1)/6),$BS30-INT(($BS30-1)/6)*6-1,1),"=" & $G$77,OFFSET($BX$20:$DW$25,0,INT(($BS30-1)/6),$BS30-INT(($BS30-1)/6)*6-1,1)))+IF($BS31>1,SUMIF(OFFSET($BX62:$DW67,0,0,,INT(($BS31-1)/6)+1),"=" & $G$77,OFFSET($BX$20:$DW$25,0,0,,INT(($BS31-1)/6)+1)))-IF($BS31>1,SUMIF(OFFSET($BX62:$DW67,$BS31-INT(($BS31-1)/6)*6-1,INT(($BS31-1)/6),(INT(($BS31-1)/6)+1)*6+1-$BS31,1),"=" & $G$77,OFFSET($BX$20:$DW$25,0,INT(($BS31-1)/6),(INT(($BS31-1)/6)+1)*6+1-$BS31,1)))+$BV59 -> 14 | BJ56: =SUMIF(OFFSET($BX56:$DW61,0,INT((IF($BS30>0,$BS30,1)-1)/6),,52-INT((IF($BS30>0,$BS30,1)-1)/6)-IF($BS31<=0,INT(ABS($BS31)/6),0)),"=" & $T$77,OFFSET($BX$20:$DW$25,0,INT((IF($BS30>0,$BS30,1)-1)/6),,52-INT((IF($BS30>0,$BS30,1)-1)/6)-IF($BS31<=0,INT(ABS($BS31)/6),0)))-IF(AND($BS30>0,$BS30>INT(($BS30-1)/6)*6+1),SUMIF(OFFSET($BX56:$DW61,0,INT(($BS30-1)/6),$BS30-INT(($BS30-1)/6)*6-1,1),"=" & $T$77,OFFSET($BX$20:$DW$25,0,INT(($BS30-1)/6),$BS30-INT(($BS30-1)/6)*6-1,1)))+IF($BS31>1,SUMIF(OFFSET($BX62:$DW67,0,0,,INT(($BS31-1)/6)+1),"=" & $T$77,OFFSET($BX$20:$DW$25,0,0,,INT(($BS31-1)/6)+1)))-IF($BS31>1,SUMIF(OFFSET($BX62:$DW67,$BS31-INT(($BS31-1)/6)*6-1,INT(($BS31-1)/6),(INT(($BS31-1)/6)+1)*6+1-$BS31,1),"=" & $T$77,OFFSET($BX$20:$DW$25,0,INT(($BS31-1)/6),(INT(($BS31-1)/6)+1)*6+1-$BS31,1)))+$BV60 -> 2 | BK56: =SUMIF(OFFSET($BX56:$DW61,0,INT((IF($BS30>0,$BS30,1)-1)/6),,52-INT((IF($BS30>0,$BS30,1)-1)/6)-IF($BS31<=0,INT(ABS($BS31)/6),0)),"=" & $AG$77,OFFSET($BX$20:$DW$25,0,INT((IF($BS30>0,$BS30,1)-1)/6),,52-INT((IF($BS30>0,$BS30,1)-1)/6)-IF($BS31<=0,INT(ABS($BS31)/6),0)))-IF(AND($BS30>0,$BS30>INT(($BS30-1)/6)*6+1),SUMIF(OFFSET($BX56:$DW61,0,INT(($BS30-1)/6),$BS30-INT(($BS30-1)/6)*6-1,1),"=" & $AG$77,OFFSET($BX$20:$DW$25,0,INT(($BS30-1)/6),$BS30-INT(($BS30-1)/6)*6-1,1)))+IF($BS31>1,SUMIF(OFFSET($BX62:$DW67,0,0,,INT(($BS31-1)/6)+1),"=" & $AG$77,OFFSET($BX$20:$DW$25,0,0,,INT(($BS31-1)/6)+1)))-IF($BS31>1,SUMIF(OFFSET($BX62:$DW67,$BS31-INT(($BS31-1)/6)*6-1,INT(($BS31-1)/6),(INT(($BS31-1)/6)+1)*6+1-$BS31,1),"=" & $AG$77,OFFSET($BX$20:$DW$25,0,INT(($BS31-1)/6),(INT(($BS31-1)/6)+1)*6+1-$BS31,1)))+$BV61 -> 10 | BL56: =SUM($BD56:$BK61) -> 52 | BM56: 99 | BN56: 5 | BO56: 5 | BU56: =SUMIF(OFFSET($BX56:$DW61,0,INT((IF($BS30>0,$BS30,1)-1)/6),,INT(($BT30-1)/6)-INT((IF($BS30>0,$BS30,1)-1)/6)),"=" & $T$75,OFFSET($BX$20:$DW$25,0,INT((IF($BS30>0,$BS30,1)-1)/6)))-IF(AND($BS30>0,$BS30>INT(($BS30-1)/6)*6+1),SUMIF(OFFSET($BX56:$DW61,0,INT(($BS30-1)/6),$BS30-INT(($BS30-1)/6)*6-1,1),"=" & $T$75,OFFSET($BX$20:$DW$25,0,INT(($BS30-1)/6),$BS30-INT(($BS30-1)/6)*6-1,1)))+IF(AND($BT30>0,$BT30>INT(($BT30-1)/6)*6+1),SUMIF(OFFSET($BX56:$DW61,0,INT(($BT30-1)/6),$BT30-INT(($BT30-1)/6)*6-1,1),"=" & $T$75,OFFSET($BX$20:$DW$25,0,INT(($BT30-1)/6),$BT30-INT(($BT30-1)/6)*6-1,1)))+$BU57 -> 3 | BV56: =IF($BS30<=0,SUMIF(OFFSET($BX50:$DW55,0,52-INT(ABS($BS30)/6)-1,,INT(ABS($BS30)/6)+1),"=" & $AR$77,OFFSET($BX$20:$DW$25,0,52-INT(ABS($BS30)/6)-1,,INT(ABS($BS30)/6)+1)))-IF(AND($BS30<=0,ABS($BS30)<INT(ABS($BS30)/6+1)*6-1),SUMIF(OFFSET($BX50:$DW55,0,52-INT(ABS($BS30)/6)-1,INT(ABS($BS30)/6+1)*6-1-ABS($BS30),1),"=" & $AR$77,OFFSET($BX$20:$DW$25,0,52-INT(ABS($BS30)/6)-1,INT(ABS($BS30)/6+1)*6-1-ABS($BS30),1)))-IF($BS31<=0,SUMIF(OFFSET($BX56:$DW561,(INT(ABS($BS31)/6)+1)*6-ABS($BS31)-1,52-INT(ABS($BS31)/6)-1,ABS($BS31)-INT(ABS($BS31)/6)*6+1,1),"=" & $AR$77,OFFSET($BX$20:$DW$25,(INT(ABS($BS31)/6)+1)*6-ABS($BS31)-1,52-INT(ABS($BS31)/6)-1,ABS($BS31)-INT(ABS($BS31)/6)*6+1,1)),0) -> 0 | BW56: =IF($BS30<=0,SUMIF(OFFSET($BX50:$DW55,0,52-INT(ABS($BS30)/6)-1,,INT(ABS($BS30)/6)+1),"=0",OFFSET($BX$20:$DW$25,0,52-INT(ABS($BS30)/6)-1,,INT(ABS($BS30)/6)+1)))-IF(AND($BS30<=0,ABS($BS30)<INT(ABS($BS30)/6+1)*6-1),SUMIF(OFFSET($BX50:$DW55,0,52-INT(ABS($BS30)/6)-1,INT(ABS($BS30)/6+1)*6-1-ABS($BS30),1),"=0",OFFSET($BX$20:$DW$25,0,52-INT(ABS($BS30)/6)-1,INT(ABS($BS30)/6+1)*6-1-ABS($BS30),1))) -> 0 | BX56: =IF(B56="",0,B56) -> 0 | BY56: 0 | BZ56: 0 | CA56: 0 | CB56: 0 | CC56: 0 | CD56: 0 | CE56: 0 | CF56: 0 | CG56: 0 | CH56: 0 | CI56: 0 | CJ56: 0 | CK56: 0 | CL56: 0 | CM56: Э | CN56: Э | CO56: Э | CP56: К | CQ56: К | CR56: П | CS56: П | CT56: П | CU56: П | CV56: П | CW56: П | CX56: П | CY56: П | CZ56: Г | DA56: Г | DB56: Д | DC56: Д | DD56: =IF(AH56="",0,AH56) -> Д | DE56: Д | DF56: Д | DG56: Д | DH56: Д | DI56: Д | DJ56: Д | DK56: Д | DL56: Д | DM56: Д | DN56: Д | DO56: Д | DP56: К | DQ56: К | DR56: К | DS56: К | DT56: К | DU56: К | DV56: К | DW56: К | DX56: =IF($BS31<=0,SUMIF(OFFSET($BX56:$DW61,(INT(ABS($BS31)/6)+1)*6-ABS($BS31)-1,52-INT(ABS($BS31)/6)-1,ABS($BS31)-INT(ABS($BS31)/6)*6+1,1),"=0",OFFSET($BX$20:$DW$25,(INT(ABS($BS31)/6)+1)*6-ABS($BS31)-1,52-INT(ABS($BS31)/6)-1,ABS($BS31)-INT(ABS($BS31)/6)*6+1,1)),0) -> 0 | DY56: =IF($BS31<=0,SUMIF(OFFSET($BX56:$DW61,(INT(ABS($BS31)/6)+1)*6-ABS($BS31)-1,52-INT(ABS($BS31)/6)-1,ABS($BS31)-INT(ABS($BS31)/6)*6+1,1),"=" & $T$75,OFFSET($BX$20:$DW$25,(INT(ABS($BS31)/6)+1)*6-ABS($BS31)-1,52-INT(ABS($BS31)/6)-1,ABS($BS31)-INT(ABS($BS31)/6)*6+1,1)),0) -> 0
BU57: =IF($BS30<=0,SUMIF(OFFSET($BX50:$DW55,0,52-INT(ABS($BS30)/6)-1,,INT(ABS($BS30)/6)+1),"=" & $T$75,OFFSET($BX$20:$DW$25,0,52-INT(ABS($BS30)/6)-1,,INT(ABS($BS30)/6)+1)))-IF(AND($BS30<=0,ABS($BS30)<INT(ABS($BS30)/6+1)*6-1),SUMIF(OFFSET($BX50:$DW55,0,52-INT(ABS($BS30)/6)-1,INT(ABS($BS30)/6+1)*6-1-ABS($BS30),1),"=" & $T$75,OFFSET($BX$20:$DW$25,0,52-INT(ABS($BS30)/6)-1,INT(ABS($BS30)/6+1)*6-1-ABS($BS30),1))) -> 0 | BV57: =IF($BS30<=0,SUMIF(OFFSET($BX50:$DW55,0,52-INT(ABS($BS30)/6)-1,,INT(ABS($BS30)/6)+1),"=" & $AG$75,OFFSET($BX$20:$DW$25,0,52-INT(ABS($BS30)/6)-1,,INT(ABS($BS30)/6)+1)))-IF(AND($BS30<=0,ABS($BS30)<INT(ABS($BS30)/6+1)*6-1),SUMIF(OFFSET($BX50:$DW55,0,52-INT(ABS($BS30)/6)-1,INT(ABS($BS30)/6+1)*6-1-ABS($BS30),1),"=" & $AG$75,OFFSET($BX$20:$DW$25,0,52-INT(ABS($BS30)/6)-1,INT(ABS($BS30)/6+1)*6-1-ABS($BS30),1)))-IF($BS31<=0,SUMIF(OFFSET($BX56:$DW61,(INT(ABS($BS31)/6)+1)*6-ABS($BS31)-1,52-INT(ABS($BS31)/6)-1,ABS($BS31)-INT(ABS($BS31)/6)*6+1,1),"=" & $AG$75,OFFSET($BX$20:$DW$25,(INT(ABS($BS31)/6)+1)*6-ABS($BS31)-1,52-INT(ABS($BS31)/6)-1,ABS($BS31)-INT(ABS($BS31)/6)*6+1,1)),0) -> 0 | BX57: =IF(B56="",0,B56) -> 0 | BY57: =IF(C56="",0,C56) -> 0 | BZ57: =IF(D56="",0,D56) -> 0 | CA57: =IF(E56="",0,E56) -> 0 | CB57: =IF(F56="",0,F56) -> 0 | CC57: =IF(G56="",0,G56) -> 0 | CD57: =IF(H56="",0,H56) -> 0 | CE57: =IF(I56="",0,I56) -> 0 | CF57: =IF(J56="",0,J56) -> 0 | CG57: =IF(K56="",0,K56) -> 0 | CH57: =IF(L56="",0,L56) -> 0 | CI57: =IF(M56="",0,M56) -> 0 | CJ57: =IF(N56="",0,N56) -> 0 | CK57: =IF(O56="",0,O56) -> 0 | CL57: =IF(P56="",0,P56) -> 0 | CM57: =IF(Q56="",0,Q56) -> Э | CN57: =IF(R56="",0,R56) -> Э | CO57: =IF(S56="",0,S56) -> Э | CP57: =IF(T56="",0,T56) -> К | CQ57: =IF(U56="",0,U56) -> К | CR57: =IF(V56="",0,V56) -> П | CS57: =IF(W56="",0,W56) -> П | CT57: =IF(X56="",0,X56) -> П | CU57: =IF(Y56="",0,Y56) -> П | CV57: =IF(Z56="",0,Z56) -> П | CW57: =IF(AA56="",0,AA56) -> П | CX57: =IF(AB56="",0,AB56) -> П | CY57: =IF(AC56="",0,AC56) -> П | CZ57: =IF(AD56="",0,AD56) -> Г | DA57: =IF(AE56="",0,AE56) -> Г | DB57: =IF(AF56="",0,AF56) -> Д | DC57: =IF(AG56="",0,AG56) -> Д | DD57: =IF(AH56="",0,AH56) -> Д | DE57: =IF(AI56="",0,AI56) -> Д | DF57: =IF(AJ56="",0,AJ56) -> Д | DG57: =IF(AK56="",0,AK56) -> Д | DH57: =IF(AL56="",0,AL56) -> Д | DI57: =IF(AM56="",0,AM56) -> Д | DJ57: =IF(AN56="",0,AN56) -> Д | DK57: =IF(AO56="",0,AO56) -> Д | DL57: =IF(AP56="",0,AP56) -> Д | DM57: =IF(AQ56="",0,AQ56) -> Д | DN57: =IF(AR56="",0,AR56) -> Д | DO57: =IF(AS56="",0,AS56) -> Д | DP57: =IF(AT56="",0,AT56) -> К | DQ57: =IF(AU56="",0,AU56) -> К | DR57: =IF(AV56="",0,AV56) -> К | DS57: =IF(AW56="",0,AW56) -> К | DT57: =IF(AX56="",0,AX56) -> К | DU57: =IF(AY56="",0,AY56) -> К | DV57: =IF(AZ56="",0,AZ56) -> К | DW57: =IF(BA56="",0,BA56) -> К
BV58: =IF($BS30<=0,SUMIF(OFFSET($BX50:$DW55,0,52-INT(ABS($BS30)/6)-1,,INT(ABS($BS30)/6)+1),"=" & $AR$75,OFFSET($BX$20:$DW$25,0,52-INT(ABS($BS30)/6)-1,,INT(ABS($BS30)/6)+1)))-IF(AND($BS30<=0,ABS($BS30)<INT(ABS($BS30)/6+1)*6-1),SUMIF(OFFSET($BX50:$DW55,0,52-INT(ABS($BS30)/6)-1,INT(ABS($BS30)/6+1)*6-1-ABS($BS30),1),"=" & $AR$75,OFFSET($BX$20:$DW$25,0,52-INT(ABS($BS30)/6)-1,INT(ABS($BS30)/6+1)*6-1-ABS($BS30),1)))-IF($BS31<=0,SUMIF(OFFSET($BX56:$DW61,(INT(ABS($BS31)/6)+1)*6-ABS($BS31)-1,52-INT(ABS($BS31)/6)-1,ABS($BS31)-INT(ABS($BS31)/6)*6+1,1),"=" & $AR$75,OFFSET($BX$20:$DW$25,(INT(ABS($BS31)/6)+1)*6-ABS($BS31)-1,52-INT(ABS($BS31)/6)-1,ABS($BS31)-INT(ABS($BS31)/6)*6+1,1)),0) -> 0 | BX58: =IF(B56="",0,B56) -> 0 | BY58: =IF(C56="",0,C56) -> 0 | BZ58: =IF(D56="",0,D56) -> 0 | CA58: =IF(E56="",0,E56) -> 0 | CB58: =IF(F56="",0,F56) -> 0 | CC58: =IF(G56="",0,G56) -> 0 | CD58: =IF(H56="",0,H56) -> 0 | CE58: =IF(I56="",0,I56) -> 0 | CF58: =IF(J56="",0,J56) -> 0 | CG58: =IF(K56="",0,K56) -> 0 | CH58: =IF(L56="",0,L56) -> 0 | CI58: =IF(M56="",0,M56) -> 0 | CJ58: =IF(N56="",0,N56) -> 0 | CK58: =IF(O56="",0,O56) -> 0 | CL58: =IF(P56="",0,P56) -> 0 | CM58: =IF(Q56="",0,Q56) -> Э | CN58: =IF(R56="",0,R56) -> Э | CO58: =IF(S56="",0,S56) -> Э | CP58: =IF(T56="",0,T56) -> К | CQ58: =IF(U56="",0,U56) -> К | CR58: =IF(V56="",0,V56) -> П | CS58: =IF(W56="",0,W56) -> П | CT58: =IF(X56="",0,X56) -> П | CU58: =IF(Y56="",0,Y56) -> П | CV58: =IF(Z56="",0,Z56) -> П | CW58: =IF(AA56="",0,AA56) -> П | CX58: =IF(AB56="",0,AB56) -> П | CY58: =IF(AC56="",0,AC56) -> П | CZ58: =IF(AD56="",0,AD56) -> Г | DA58: =IF(AE56="",0,AE56) -> Г | DB58: =IF(AF56="",0,AF56) -> Д | DC58: =IF(AG56="",0,AG56) -> Д | DD58: =IF(AH56="",0,AH56) -> Д | DE58: =IF(AI56="",0,AI56) -> Д | DF58: =IF(AJ56="",0,AJ56) -> Д | DG58: =IF(AK56="",0,AK56) -> Д | DH58: =IF(AL56="",0,AL56) -> Д | DI58: =IF(AM56="",0,AM56) -> Д | DJ58: =IF(AN56="",0,AN56) -> Д | DK58: =IF(AO56="",0,AO56) -> Д | DL58: =IF(AP56="",0,AP56) -> Д | DM58: =IF(AQ56="",0,AQ56) -> Д | DN58: =IF(AR56="",0,AR56) -> Д | DO58: =IF(AS56="",0,AS56) -> Д | DP58: =IF(AT56="",0,AT56) -> К | DQ58: =IF(AU56="",0,AU56) -> К | DR58: =IF(AV56="",0,AV56) -> К | DS58: =IF(AW56="",0,AW56) -> К | DT58: =IF(AX56="",0,AX56) -> К | DU58: =IF(AY56="",0,AY56) -> К | DV58: =IF(AZ56="",0,AZ56) -> К | DW58: =IF(BA56="",0,BA56) -> К
BV59: =IF($BS30<=0,SUMIF(OFFSET($BX50:$DW55,0,52-INT(ABS($BS30)/6)-1,,INT(ABS($BS30)/6)+1),"=" & $G$77,OFFSET($BX$20:$DW$25,0,52-INT(ABS($BS30)/6)-1,,INT(ABS($BS30)/6)+1)))-IF(AND($BS30<=0,ABS($BS30)<INT(ABS($BS30)/6+1)*6-1),SUMIF(OFFSET($BX50:$DW55,0,52-INT(ABS($BS30)/6)-1,INT(ABS($BS30)/6+1)*6-1-ABS($BS30),1),"=" & $G$77,OFFSET($BX$20:$DW$25,0,52-INT(ABS($BS30)/6)-1,INT(ABS($BS30)/6+1)*6-1-ABS($BS30),1)))-IF($BS31<=0,SUMIF(OFFSET($BX56:$DW61,(INT(ABS($BS31)/6)+1)*6-ABS($BS31)-1,52-INT(ABS($BS31)/6)-1,ABS($BS31)-INT(ABS($BS31)/6)*6+1,1),"=" & $G$77,OFFSET($BX$20:$DW$25,(INT(ABS($BS31)/6)+1)*6-ABS($BS31)-1,52-INT(ABS($BS31)/6)-1,ABS($BS31)-INT(ABS($BS31)/6)*6+1,1)),0) -> 0 | BX59: =IF(B56="",0,B56) -> 0 | BY59: =IF(C56="",0,C56) -> 0 | BZ59: =IF(D56="",0,D56) -> 0 | CA59: =IF(E56="",0,E56) -> 0 | CB59: =IF(F56="",0,F56) -> 0 | CC59: =IF(G56="",0,G56) -> 0 | CD59: =IF(H56="",0,H56) -> 0 | CE59: =IF(I56="",0,I56) -> 0 | CF59: =IF(J56="",0,J56) -> 0 | CG59: =IF(K56="",0,K56) -> 0 | CH59: =IF(L56="",0,L56) -> 0 | CI59: =IF(M56="",0,M56) -> 0 | CJ59: =IF(N56="",0,N56) -> 0 | CK59: =IF(O56="",0,O56) -> 0 | CL59: =IF(P56="",0,P56) -> 0 | CM59: =IF(Q56="",0,Q56) -> Э | CN59: =IF(R56="",0,R56) -> Э | CO59: =IF(S56="",0,S56) -> Э | CP59: =IF(T56="",0,T56) -> К | CQ59: =IF(U56="",0,U56) -> К | CR59: =IF(V56="",0,V56) -> П | CS59: =IF(W56="",0,W56) -> П | CT59: =IF(X56="",0,X56) -> П | CU59: =IF(Y56="",0,Y56) -> П | CV59: =IF(Z56="",0,Z56) -> П | CW59: =IF(AA56="",0,AA56) -> П | CX59: =IF(AB56="",0,AB56) -> П | CY59: =IF(AC56="",0,AC56) -> П | CZ59: =IF(AD56="",0,AD56) -> Г | DA59: =IF(AE56="",0,AE56) -> Г | DB59: =IF(AF56="",0,AF56) -> Д | DC59: =IF(AG56="",0,AG56) -> Д | DD59: =IF(AH56="",0,AH56) -> Д | DE59: =IF(AI56="",0,AI56) -> Д | DF59: =IF(AJ56="",0,AJ56) -> Д | DG59: =IF(AK56="",0,AK56) -> Д | DH59: =IF(AL56="",0,AL56) -> Д | DI59: =IF(AM56="",0,AM56) -> Д | DJ59: =IF(AN56="",0,AN56) -> Д | DK59: =IF(AO56="",0,AO56) -> Д | DL59: =IF(AP56="",0,AP56) -> Д | DM59: =IF(AQ56="",0,AQ56) -> Д | DN59: =IF(AR56="",0,AR56) -> Д | DO59: =IF(AS56="",0,AS56) -> Д | DP59: =IF(AT56="",0,AT56) -> К | DQ59: =IF(AU56="",0,AU56) -> К | DR59: =IF(AV56="",0,AV56) -> К | DS59: =IF(AW56="",0,AW56) -> К | DT59: =IF(AX56="",0,AX56) -> К | DU59: =IF(AY56="",0,AY56) -> К | DV59: =IF(AZ56="",0,AZ56) -> К | DW59: =IF(BA56="",0,BA56) -> К
BV60: =IF($BS30<=0,SUMIF(OFFSET($BX50:$DW55,0,52-INT(ABS($BS30)/6)-1,,INT(ABS($BS30)/6)+1),"=" & $T$77,OFFSET($BX$20:$DW$25,0,52-INT(ABS($BS30)/6)-1,,INT(ABS($BS30)/6)+1)))-IF(AND($BS30<=0,ABS($BS30)<INT(ABS($BS30)/6+1)*6-1),SUMIF(OFFSET($BX50:$DW55,0,52-INT(ABS($BS30)/6)-1,INT(ABS($BS30)/6+1)*6-1-ABS($BS30),1),"=" & $T$77,OFFSET($BX$20:$DW$25,0,52-INT(ABS($BS30)/6)-1,INT(ABS($BS30)/6+1)*6-1-ABS($BS30),1)))-IF($BS31<=0,SUMIF(OFFSET($BX56:$DW61,(INT(ABS($BS31)/6)+1)*6-ABS($BS31)-1,52-INT(ABS($BS31)/6)-1,ABS($BS31)-INT(ABS($BS31)/6)*6+1,1),"=" & $T$77,OFFSET($BX$20:$DW$25,(INT(ABS($BS31)/6)+1)*6-ABS($BS31)-1,52-INT(ABS($BS31)/6)-1,ABS($BS31)-INT(ABS($BS31)/6)*6+1,1)),0) -> 0 | BX60: =IF(B56="",0,B56) -> 0 | BY60: =IF(C56="",0,C56) -> 0 | BZ60: =IF(D56="",0,D56) -> 0 | CA60: =IF(E56="",0,E56) -> 0 | CB60: =IF(F56="",0,F56) -> 0 | CC60: =IF(G56="",0,G56) -> 0 | CD60: =IF(H56="",0,H56) -> 0 | CE60: =IF(I56="",0,I56) -> 0 | CF60: =IF(J56="",0,J56) -> 0 | CG60: =IF(K56="",0,K56) -> 0 | CH60: =IF(L56="",0,L56) -> 0 | CI60: =IF(M56="",0,M56) -> 0 | CJ60: =IF(N56="",0,N56) -> 0 | CK60: =IF(O56="",0,O56) -> 0 | CL60: =IF(P56="",0,P56) -> 0 | CM60: =IF(Q56="",0,Q56) -> Э | CN60: =IF(R56="",0,R56) -> Э | CO60: =IF(S56="",0,S56) -> Э | CP60: =IF(T56="",0,T56) -> К | CQ60: =IF(U56="",0,U56) -> К | CR60: =IF(V56="",0,V56) -> П | CS60: =IF(W56="",0,W56) -> П | CT60: =IF(X56="",0,X56) -> П | CU60: =IF(Y56="",0,Y56) -> П | CV60: =IF(Z56="",0,Z56) -> П | CW60: =IF(AA56="",0,AA56) -> П | CX60: =IF(AB56="",0,AB56) -> П | CY60: =IF(AC56="",0,AC56) -> П | CZ60: =IF(AD56="",0,AD56) -> Г | DA60: =IF(AE56="",0,AE56) -> Г | DB60: =IF(AF56="",0,AF56) -> Д | DC60: =IF(AG56="",0,AG56) -> Д | DD60: =IF(AH56="",0,AH56) -> Д | DE60: =IF(AI56="",0,AI56) -> Д | DF60: =IF(AJ56="",0,AJ56) -> Д | DG60: =IF(AK56="",0,AK56) -> Д | DH60: =IF(AL56="",0,AL56) -> Д | DI60: =IF(AM56="",0,AM56) -> Д | DJ60: =IF(AN56="",0,AN56) -> Д | DK60: =IF(AO56="",0,AO56) -> Д | DL60: =IF(AP56="",0,AP56) -> Д | DM60: =IF(AQ56="",0,AQ56) -> Д | DN60: =IF(AR56="",0,AR56) -> Д | DO60: =IF(AS56="",0,AS56) -> Д | DP60: =IF(AT56="",0,AT56) -> К | DQ60: =IF(AU56="",0,AU56) -> К | DR60: =IF(AV56="",0,AV56) -> К | DS60: =IF(AW56="",0,AW56) -> К | DT60: =IF(AX56="",0,AX56) -> К | DU60: =IF(AY56="",0,AY56) -> К | DV60: =IF(AZ56="",0,AZ56) -> К | DW60: =IF(BA56="",0,BA56) -> К
BU61: =SUMIF(OFFSET($BX56:$DW61,0,INT(($BT30-1)/6),,52-INT(($BT30-1)/6)-IF($BS31<=0,INT(ABS($BS31)/6),0)),"=" & $T$75,OFFSET($BX$20:$DW$25,0,INT(($BT30-1)/6),,52-INT(($BT30-1)/6)-IF($BS31<=0,INT(ABS($BS31)/6),0)))-IF($BT30>INT(($BT30-1)/6)*6+1,SUMIF(OFFSET($BX56:$DW61,0,INT(($BT30-1)/6),$BT30-INT(($BT30-1)/6)*6-1,1),"=" & $T$75,OFFSET($BX$20:$DW$25,0,INT(($BT30-1)/6),$BT30-INT(($BT30-1)/6)*6-1,1)))+IF($BS31>1,SUMIF(OFFSET($BX62:$DW67,0,0,,INT(($BS31-1)/6)+1),"=" & $T$75,OFFSET($BX$20:$DW$25,0,0,,INT(($BS31-1)/6)+1)))-IF($BS31>1,SUMIF(OFFSET($BX62:$DW67,$BS31-INT(($BS31-1)/6)*6-1,INT(($BS31-1)/6),(INT(($BS31-1)/6)+1)*6+1-$BS31,1),"=" & $T$75,OFFSET($BX$20:$DW$25,0,INT(($BS31-1)/6),(INT(($BS31-1)/6)+1)*6+1-$BS31,1)))-$DY56 -> 0 | BV61: =IF($BS30<=0,SUMIF(OFFSET($BX50:$DW55,0,52-INT(ABS($BS30)/6)-1,,INT(ABS($BS30)/6)+1),"=" & $AG$77,OFFSET($BX$20:$DW$25,0,52-INT(ABS($BS30)/6)-1,,INT(ABS($BS30)/6)+1)))-IF(AND($BS30<=0,ABS($BS30)<INT(ABS($BS30)/6+1)*6-1),SUMIF(OFFSET($BX50:$DW55,0,52-INT(ABS($BS30)/6)-1,INT(ABS($BS30)/6+1)*6-1-ABS($BS30),1),"=" & $AG$77,OFFSET($BX$20:$DW$25,0,52-INT(ABS($BS30)/6)-1,INT(ABS($BS30)/6+1)*6-1-ABS($BS30),1)))-IF($BS31<=0,SUMIF(OFFSET($BX56:$DW61,(INT(ABS($BS31)/6)+1)*6-ABS($BS31)-1,52-INT(ABS($BS31)/6)-1,ABS($BS31)-INT(ABS($BS31)/6)*6+1,1),"=" & $AG$77,OFFSET($BX$20:$DW$25,(INT(ABS($BS31)/6)+1)*6-ABS($BS31)-1,52-INT(ABS($BS31)/6)-1,ABS($BS31)-INT(ABS($BS31)/6)*6+1,1)),0) -> 0 | BX61: =IF(B56="",0,B56) -> 0 | BY61: =IF(C56="",0,C56) -> 0 | BZ61: =IF(D56="",0,D56) -> 0 | CA61: =IF(E56="",0,E56) -> 0 | CB61: =IF(F56="",0,F56) -> 0 | CC61: =IF(G56="",0,G56) -> 0 | CD61: =IF(H56="",0,H56) -> 0 | CE61: =IF(I56="",0,I56) -> 0 | CF61: =IF(J56="",0,J56) -> 0 | CG61: =IF(K56="",0,K56) -> 0 | CH61: =IF(L56="",0,L56) -> 0 | CI61: =IF(M56="",0,M56) -> 0 | CJ61: =IF(N56="",0,N56) -> 0 | CK61: =IF(O56="",0,O56) -> 0 | CL61: =IF(P56="",0,P56) -> 0 | CM61: =IF(Q56="",0,Q56) -> Э | CN61: =IF(R56="",0,R56) -> Э | CO61: =IF(S56="",0,S56) -> Э | CP61: =IF(T56="",0,T56) -> К | CQ61: =IF(U56="",0,U56) -> К | CR61: =IF(V56="",0,V56) -> П | CS61: =IF(W56="",0,W56) -> П | CT61: =IF(X56="",0,X56) -> П | CU61: =IF(Y56="",0,Y56) -> П | CV61: =IF(Z56="",0,Z56) -> П | CW61: =IF(AA56="",0,AA56) -> П | CX61: =IF(AB56="",0,AB56) -> П | CY61: =IF(AC56="",0,AC56) -> П | CZ61: =IF(AD56="",0,AD56) -> Г | DA61: =IF(AE56="",0,AE56) -> Г | DB61: =IF(AF56="",0,AF56) -> Д | DC61: =IF(AG56="",0,AG56) -> Д | DD61: =IF(AH56="",0,AH56) -> Д | DE61: =IF(AI56="",0,AI56) -> Д | DF61: =IF(AJ56="",0,AJ56) -> Д | DG61: =IF(AK56="",0,AK56) -> Д | DH61: =IF(AL56="",0,AL56) -> Д | DI61: =IF(AM56="",0,AM56) -> Д | DJ61: =IF(AN56="",0,AN56) -> Д | DK61: =IF(AO56="",0,AO56) -> Д | DL61: =IF(AP56="",0,AP56) -> Д | DM61: =IF(AQ56="",0,AQ56) -> Д | DN61: =IF(AR56="",0,AR56) -> Д | DO61: =IF(AS56="",0,AS56) -> Д | DP61: =IF(AT56="",0,AT56) -> К | DQ61: =IF(AU56="",0,AU56) -> К | DR61: =IF(AV56="",0,AV56) -> К | DS61: =IF(AW56="",0,AW56) -> К | DT61: =IF(AX56="",0,AX56) -> К | DU61: =IF(AY56="",0,AY56) -> К | DV61: =IF(AZ56="",0,AZ56) -> К | DW61: =IF(BA56="",0,BA56) -> К
A62: 6 | B62: = | C62: = | D62: = | E62: = | F62: = | G62: = | H62: = | I62: = | J62: = | K62: = | L62: = | M62: = | N62: = | O62: = | P62: = | Q62: = | R62: = | S62: = | T62: = | U62: = | V62: = | W62: = | X62: = | Y62: = | Z62: = | AA62: = | AB62: = | AC62: = | AD62: = | AE62: = | AF62: = | AG62: = | AH62: = | AI62: = | AJ62: = | AK62: = | AL62: = | AM62: = | AN62: = | AO62: = | AP62: = | AQ62: = | AR62: = | AS62: = | AT62: = | AU62: = | AV62: = | AW62: = | AX62: = | AY62: = | AZ62: = | BA62: = | BB62: =SUMIF(OFFSET($BX62:$DW67,0,INT((IF($BS31>0,$BS31,1)-1)/6),,INT(($BT31-1)/6)-INT((IF($BS31>0,$BS31,1)-1)/6)),"=0",OFFSET($BX$20:$DW$25,0,INT((IF($BS31>0,$BS31,1)-1)/6)))-IF(AND($BS31>0,$BS31>INT(($BS31-1)/6)*6+1),SUMIF(OFFSET($BX62:$DW67,0,INT(($BS31-1)/6),$BS31-INT(($BS31-1)/6)*6-1,1),"=0",OFFSET($BX$20:$DW$25,0,INT(($BS31-1)/6),$BS31-INT(($BS31-1)/6)*6-1,1)))+IF(AND($BT31>0,$BT31>INT(($BT31-1)/6)*6+1),SUMIF(OFFSET($BX62:$DW67,0,INT(($BT31-1)/6),$BT31-INT(($BT31-1)/6)*6-1,1),"=0",OFFSET($BX$20:$DW$25,0,INT(($BT31-1)/6),$BT31-INT(($BT31-1)/6)*6-1,1)))+$BW62 -> 0 | BC62: =SUMIF(OFFSET($BX62:$DW67,0,INT(($BT31-1)/6),,52-INT(($BT31-1)/6)-IF($BS32<=0,INT(ABS($BS32)/6)+1,0)),"=0",OFFSET($BX$20:$DW$25,0,INT(($BT31-1)/6),,52-INT(($BT31-1)/6)-IF($BS32<=0,INT(ABS($BS32)/6)+1,0)))-IF($BT31>INT(($BT31-1)/6)*6+1,SUMIF(OFFSET($BX62:$DW67,0,INT(($BT31-1)/6),$BT31-INT(($BT31-1)/6)*6-1,1),"=0",OFFSET($BX$20:$DW$25,0,INT(($BT31-1)/6),$BT31-INT(($BT31-1)/6)*6-1,1)))+IF($BS32>1,SUMIF(OFFSET($BX68:$DW73,0,0,,INT(($BS32-1)/6)+1),"=0",OFFSET($BX$20:$DW$25,0,0,,INT(($BS32-1)/6)+1)))-IF($BS32>1,SUMIF(OFFSET($BX68:$DW73,$BS32-INT(($BS32-1)/6)*6-1,INT(($BS32-1)/6),(INT(($BS32-1)/6)+1)*6+1-$BS32,1),"=0",OFFSET($BX$20:$DW$25,0,INT(($BS32-1)/6),(INT(($BS32-1)/6)+1)*6+1-$BS32,1)))-$DX62 -> 0 | BD62: =Недель11+Недель12 -> 0 | BE62: =Экз6Осень+Экз6Весна -> 0 | BF62: =SUMIF(OFFSET($BX62:$DW67,0,INT((IF($BS31>0,$BS31,1)-1)/6),,52-INT((IF($BS31>0,$BS31,1)-1)/6)-IF($BS32<=0,INT(ABS($BS32)/6),0)),"=" & $AR$77,OFFSET($BX$20:$DW$25,0,INT((IF($BS31>0,$BS31,1)-1)/6),,52-INT((IF($BS31>0,$BS31,1)-1)/6)-IF($BS32<=0,INT(ABS($BS32)/6),0)))-IF(AND($BS31>0,$BS31>INT(($BS31-1)/6)*6+1),SUMIF(OFFSET($BX62:$DW67,0,INT(($BS31-1)/6),$BS31-INT(($BS31-1)/6)*6-1,1),"=" & $AR$77,OFFSET($BX$20:$DW$25,0,INT(($BS31-1)/6),$BS31-INT(($BS31-1)/6)*6-1,1)))+IF($BS32>1,SUMIF(OFFSET($BX68:$DW73,0,0,,INT(($BS32-1)/6)+1),"=" & $AR$77,OFFSET($BX$20:$DW$25,0,0,,INT(($BS32-1)/6)+1)))-IF($BS32>1,SUMIF(OFFSET($BX68:$DW73,$BS32-INT(($BS32-1)/6)*6-1,INT(($BS32-1)/6),(INT(($BS32-1)/6)+1)*6+1-$BS32,1),"=" & $AR$77,OFFSET($BX$20:$DW$25,0,INT(($BS32-1)/6),(INT(($BS32-1)/6)+1)*6+1-$BS32,1)))+$BV62 -> 0 | BG62: =SUMIF(OFFSET($BX62:$DW67,0,INT((IF($BS31>0,$BS31,1)-1)/6),,52-INT((IF($BS31>0,$BS31,1)-1)/6)-IF($BS32<=0,INT(ABS($BS32)/6),0)),"=" & $AG$75,OFFSET($BX$20:$DW$25,0,INT((IF($BS31>0,$BS31,1)-1)/6),,52-INT((IF($BS31>0,$BS31,1)-1)/6)-IF($BS32<=0,INT(ABS($BS32)/6),0)))-IF(AND($BS31>0,$BS31>INT(($BS31-1)/6)*6+1),SUMIF(OFFSET($BX62:$DW67,0,INT(($BS31-1)/6),$BS31-INT(($BS31-1)/6)*6-1,1),"=" & $AG$75,OFFSET($BX$20:$DW$25,0,INT(($BS31-1)/6),$BS31-INT(($BS31-1)/6)*6-1,1)))+IF($BS32>1,SUMIF(OFFSET($BX68:$DW73,0,0,,INT(($BS32-1)/6)+1),"=" & $AG$75,OFFSET($BX$20:$DW$25,0,0,,INT(($BS32-1)/6)+1)))-IF($BS32>1,SUMIF(OFFSET($BX68:$DW73,$BS32-INT(($BS32-1)/6)*6-1,INT(($BS32-1)/6),(INT(($BS32-1)/6)+1)*6+1-$BS32,1),"=" & $AG$75,OFFSET($BX$20:$DW$25,0,INT(($BS32-1)/6),(INT(($BS32-1)/6)+1)*6+1-$BS32,1)))+$BV63 -> 0 | BH62: =SUMIF(OFFSET($BX62:$DW67,0,INT((IF($BS31>0,$BS31,1)-1)/6),,52-INT((IF($BS31>0,$BS31,1)-1)/6)-IF($BS32<=0,INT(ABS($BS32)/6),0)),"=" & $AR$75,OFFSET($BX$20:$DW$25,0,INT((IF($BS31>0,$BS31,1)-1)/6),,52-INT((IF($BS31>0,$BS31,1)-1)/6)-IF($BS32<=0,INT(ABS($BS32)/6),0)))-IF(AND($BS31>0,$BS31>INT(($BS31-1)/6)*6+1),SUMIF(OFFSET($BX62:$DW67,0,INT(($BS31-1)/6),$BS31-INT(($BS31-1)/6)*6-1,1),"=" & $AR$75,OFFSET($BX$20:$DW$25,0,INT(($BS31-1)/6),$BS31-INT(($BS31-1)/6)*6-1,1)))+IF($BS32>1,SUMIF(OFFSET($BX68:$DW73,0,0,,INT(($BS32-1)/6)+1),"=" & $AR$75,OFFSET($BX$20:$DW$25,0,0,,INT(($BS32-1)/6)+1)))-IF($BS32>1,SUMIF(OFFSET($BX68:$DW73,$BS32-INT(($BS32-1)/6)*6-1,INT(($BS32-1)/6),(INT(($BS32-1)/6)+1)*6+1-$BS32,1),"=" & $AR$75,OFFSET($BX$20:$DW$25,0,INT(($BS32-1)/6),(INT(($BS32-1)/6)+1)*6+1-$BS32,1)))+$BV64 -> 0 | BI62: =SUMIF(OFFSET($BX62:$DW67,0,INT((IF($BS31>0,$BS31,1)-1)/6),,52-INT((IF($BS31>0,$BS31,1)-1)/6)-IF($BS32<=0,INT(ABS($BS32)/6),0)),"=" & $G$77,OFFSET($BX$20:$DW$25,0,INT((IF($BS31>0,$BS31,1)-1)/6),,52-INT((IF($BS31>0,$BS31,1)-1)/6)-IF($BS32<=0,INT(ABS($BS32)/6),0)))-IF(AND($BS31>0,$BS31>INT(($BS31-1)/6)*6+1),SUMIF(OFFSET($BX62:$DW67,0,INT(($BS31-1)/6),$BS31-INT(($BS31-1)/6)*6-1,1),"=" & $G$77,OFFSET($BX$20:$DW$25,0,INT(($BS31-1)/6),$BS31-INT(($BS31-1)/6)*6-1,1)))+IF($BS32>1,SUMIF(OFFSET($BX68:$DW73,0,0,,INT(($BS32-1)/6)+1),"=" & $G$77,OFFSET($BX$20:$DW$25,0,0,,INT(($BS32-1)/6)+1)))-IF($BS32>1,SUMIF(OFFSET($BX68:$DW73,$BS32-INT(($BS32-1)/6)*6-1,INT(($BS32-1)/6),(INT(($BS32-1)/6)+1)*6+1-$BS32,1),"=" & $G$77,OFFSET($BX$20:$DW$25,0,INT(($BS32-1)/6),(INT(($BS32-1)/6)+1)*6+1-$BS32,1)))+$BV65 -> 0 | BJ62: =SUMIF(OFFSET($BX62:$DW67,0,INT((IF($BS31>0,$BS31,1)-1)/6),,52-INT((IF($BS31>0,$BS31,1)-1)/6)-IF($BS32<=0,INT(ABS($BS32)/6),0)),"=" & $T$77,OFFSET($BX$20:$DW$25,0,INT((IF($BS31>0,$BS31,1)-1)/6),,52-INT((IF($BS31>0,$BS31,1)-1)/6)-IF($BS32<=0,INT(ABS($BS32)/6),0)))-IF(AND($BS31>0,$BS31>INT(($BS31-1)/6)*6+1),SUMIF(OFFSET($BX62:$DW67,0,INT(($BS31-1)/6),$BS31-INT(($BS31-1)/6)*6-1,1),"=" & $T$77,OFFSET($BX$20:$DW$25,0,INT(($BS31-1)/6),$BS31-INT(($BS31-1)/6)*6-1,1)))+IF($BS32>1,SUMIF(OFFSET($BX68:$DW73,0,0,,INT(($BS32-1)/6)+1),"=" & $T$77,OFFSET($BX$20:$DW$25,0,0,,INT(($BS32-1)/6)+1)))-IF($BS32>1,SUMIF(OFFSET($BX68:$DW73,$BS32-INT(($BS32-1)/6)*6-1,INT(($BS32-1)/6),(INT(($BS32-1)/6)+1)*6+1-$BS32,1),"=" & $T$77,OFFSET($BX$20:$DW$25,0,INT(($BS32-1)/6),(INT(($BS32-1)/6)+1)*6+1-$BS32,1)))+$BV66 -> 0 | BK62: =SUMIF(OFFSET($BX62:$DW67,0,INT((IF($BS31>0,$BS31,1)-1)/6),,52-INT((IF($BS31>0,$BS31,1)-1)/6)-IF($BS32<=0,INT(ABS($BS32)/6),0)),"=" & $AG$77,OFFSET($BX$20:$DW$25,0,INT((IF($BS31>0,$BS31,1)-1)/6),,52-INT((IF($BS31>0,$BS31,1)-1)/6)-IF($BS32<=0,INT(ABS($BS32)/6),0)))-IF(AND($BS31>0,$BS31>INT(($BS31-1)/6)*6+1),SUMIF(OFFSET($BX62:$DW67,0,INT(($BS31-1)/6),$BS31-INT(($BS31-1)/6)*6-1,1),"=" & $AG$77,OFFSET($BX$20:$DW$25,0,INT(($BS31-1)/6),$BS31-INT(($BS31-1)/6)*6-1,1)))+IF($BS32>1,SUMIF(OFFSET($BX68:$DW73,0,0,,INT(($BS32-1)/6)+1),"=" & $AG$77,OFFSET($BX$20:$DW$25,0,0,,INT(($BS32-1)/6)+1)))-IF($BS32>1,SUMIF(OFFSET($BX68:$DW73,$BS32-INT(($BS32-1)/6)*6-1,INT(($BS32-1)/6),(INT(($BS32-1)/6)+1)*6+1-$BS32,1),"=" & $AG$77,OFFSET($BX$20:$DW$25,0,INT(($BS32-1)/6),(INT(($BS32-1)/6)+1)*6+1-$BS32,1)))+$BV67 -> 0 | BL62: =SUM($BD62:$BK67) -> 0 | BM62: 0 | BN62: 0 | BO62: 6 | BU62: =SUMIF(OFFSET($BX62:$DW67,0,INT((IF($BS31>0,$BS31,1)-1)/6),,INT(($BT31-1)/6)-INT((IF($BS31>0,$BS31,1)-1)/6)),"=" & $T$75,OFFSET($BX$20:$DW$25,0,INT((IF($BS31>0,$BS31,1)-1)/6)))-IF(AND($BS31>0,$BS31>INT(($BS31-1)/6)*6+1),SUMIF(OFFSET($BX62:$DW67,0,INT(($BS31-1)/6),$BS31-INT(($BS31-1)/6)*6-1,1),"=" & $T$75,OFFSET($BX$20:$DW$25,0,INT(($BS31-1)/6),$BS31-INT(($BS31-1)/6)*6-1,1)))+IF(AND($BT31>0,$BT31>INT(($BT31-1)/6)*6+1),SUMIF(OFFSET($BX62:$DW67,0,INT(($BT31-1)/6),$BT31-INT(($BT31-1)/6)*6-1,1),"=" & $T$75,OFFSET($BX$20:$DW$25,0,INT(($BT31-1)/6),$BT31-INT(($BT31-1)/6)*6-1,1)))+$BU63 -> 0 | BV62: =IF($BS31<=0,SUMIF(OFFSET($BX56:$DW61,0,52-INT(ABS($BS31)/6)-1,,INT(ABS($BS31)/6)+1),"=" & $AR$77,OFFSET($BX$20:$DW$25,0,52-INT(ABS($BS31)/6)-1,,INT(ABS($BS31)/6)+1)))-IF(AND($BS31<=0,ABS($BS31)<INT(ABS($BS31)/6+1)*6-1),SUMIF(OFFSET($BX56:$DW61,0,52-INT(ABS($BS31)/6)-1,INT(ABS($BS31)/6+1)*6-1-ABS($BS31),1),"=" & $AR$77,OFFSET($BX$20:$DW$25,0,52-INT(ABS($BS31)/6)-1,INT(ABS($BS31)/6+1)*6-1-ABS($BS31),1)))-IF($BS32<=0,SUMIF(OFFSET($BX62:$DW67,(INT(ABS($BS32)/6)+1)*6-ABS($BS32)-1,52-INT(ABS($BS32)/6)-1,ABS($BS32)-INT(ABS($BS32)/6)*6+1,1),"=" & $AR$77,OFFSET($BX$20:$DW$25,(INT(ABS($BS32)/6)+1)*6-ABS($BS32)-1,52-INT(ABS($BS32)/6)-1,ABS($BS32)-INT(ABS($BS32)/6)*6+1,1)),0) -> 0 | BW62: =IF($BS31<=0,SUMIF(OFFSET($BX56:$DW61,0,52-INT(ABS($BS31)/6)-1,,INT(ABS($BS31)/6)+1),"=0",OFFSET($BX$20:$DW$25,0,52-INT(ABS($BS31)/6)-1,,INT(ABS($BS31)/6)+1)))-IF(AND($BS31<=0,ABS($BS31)<INT(ABS($BS31)/6+1)*6-1),SUMIF(OFFSET($BX56:$DW61,0,52-INT(ABS($BS31)/6)-1,INT(ABS($BS31)/6+1)*6-1-ABS($BS31),1),"=0",OFFSET($BX$20:$DW$25,0,52-INT(ABS($BS31)/6)-1,INT(ABS($BS31)/6+1)*6-1-ABS($BS31),1))) -> 0 | BX62: =IF(B62="",0,B62) -> = | BY62: = | BZ62: = | CA62: = | CB62: = | CC62: = | CD62: = | CE62: = | CF62: = | CG62: = | CH62: = | CI62: = | CJ62: = | CK62: = | CL62: = | CM62: = | CN62: = | CO62: = | CP62: = | CQ62: = | CR62: = | CS62: = | CT62: = | CU62: = | CV62: = | CW62: = | CX62: = | CY62: = | CZ62: = | DA62: = | DB62: = | DC62: = | DD62: =IF(AH62="",0,AH62) -> = | DE62: = | DF62: = | DG62: = | DH62: = | DI62: = | DJ62: = | DK62: = | DL62: = | DM62: = | DN62: = | DO62: = | DP62: = | DQ62: = | DR62: = | DS62: = | DT62: = | DU62: = | DV62: = | DW62: = | DX62: =IF($BS32<=0,SUMIF(OFFSET($BX62:$DW67,(INT(ABS($BS32)/6)+1)*6-ABS($BS32)-1,52-INT(ABS($BS32)/6)-1,ABS($BS32)-INT(ABS($BS32)/6)*6+1,1),"=0",OFFSET($BX$20:$DW$25,(INT(ABS($BS32)/6)+1)*6-ABS($BS32)-1,52-INT(ABS($BS32)/6)-1,ABS($BS32)-INT(ABS($BS32)/6)*6+1,1)),0) -> 0 | DY62: =IF($BS32<=0,SUMIF(OFFSET($BX62:$DW67,(INT(ABS($BS32)/6)+1)*6-ABS($BS32)-1,52-INT(ABS($BS32)/6)-1,ABS($BS32)-INT(ABS($BS32)/6)*6+1,1),"=" & $T$75,OFFSET($BX$20:$DW$25,(INT(ABS($BS32)/6)+1)*6-ABS($BS32)-1,52-INT(ABS($BS32)/6)-1,ABS($BS32)-INT(ABS($BS32)/6)*6+1,1)),0) -> 0
BU63: =IF($BS31<=0,SUMIF(OFFSET($BX56:$DW61,0,52-INT(ABS($BS31)/6)-1,,INT(ABS($BS31)/6)+1),"=" & $T$75,OFFSET($BX$20:$DW$25,0,52-INT(ABS($BS31)/6)-1,,INT(ABS($BS31)/6)+1)))-IF(AND($BS31<=0,ABS($BS31)<INT(ABS($BS31)/6+1)*6-1),SUMIF(OFFSET($BX56:$DW61,0,52-INT(ABS($BS31)/6)-1,INT(ABS($BS31)/6+1)*6-1-ABS($BS31),1),"=" & $T$75,OFFSET($BX$20:$DW$25,0,52-INT(ABS($BS31)/6)-1,INT(ABS($BS31)/6+1)*6-1-ABS($BS31),1))) -> 0 | BV63: =IF($BS31<=0,SUMIF(OFFSET($BX56:$DW61,0,52-INT(ABS($BS31)/6)-1,,INT(ABS($BS31)/6)+1),"=" & $AG$75,OFFSET($BX$20:$DW$25,0,52-INT(ABS($BS31)/6)-1,,INT(ABS($BS31)/6)+1)))-IF(AND($BS31<=0,ABS($BS31)<INT(ABS($BS31)/6+1)*6-1),SUMIF(OFFSET($BX56:$DW61,0,52-INT(ABS($BS31)/6)-1,INT(ABS($BS31)/6+1)*6-1-ABS($BS31),1),"=" & $AG$75,OFFSET($BX$20:$DW$25,0,52-INT(ABS($BS31)/6)-1,INT(ABS($BS31)/6+1)*6-1-ABS($BS31),1)))-IF($BS32<=0,SUMIF(OFFSET($BX62:$DW67,(INT(ABS($BS32)/6)+1)*6-ABS($BS32)-1,52-INT(ABS($BS32)/6)-1,ABS($BS32)-INT(ABS($BS32)/6)*6+1,1),"=" & $AG$75,OFFSET($BX$20:$DW$25,(INT(ABS($BS32)/6)+1)*6-ABS($BS32)-1,52-INT(ABS($BS32)/6)-1,ABS($BS32)-INT(ABS($BS32)/6)*6+1,1)),0) -> 0 | BX63: =IF(B62="",0,B62) -> = | BY63: =IF(C62="",0,C62) -> = | BZ63: =IF(D62="",0,D62) -> = | CA63: =IF(E62="",0,E62) -> = | CB63: =IF(F62="",0,F62) -> = | CC63: =IF(G62="",0,G62) -> = | CD63: =IF(H62="",0,H62) -> = | CE63: =IF(I62="",0,I62) -> = | CF63: =IF(J62="",0,J62) -> = | CG63: =IF(K62="",0,K62) -> = | CH63: =IF(L62="",0,L62) -> = | CI63: =IF(M62="",0,M62) -> = | CJ63: =IF(N62="",0,N62) -> = | CK63: =IF(O62="",0,O62) -> = | CL63: =IF(P62="",0,P62) -> = | CM63: =IF(Q62="",0,Q62) -> = | CN63: =IF(R62="",0,R62) -> = | CO63: =IF(S62="",0,S62) -> = | CP63: =IF(T62="",0,T62) -> = | CQ63: =IF(U62="",0,U62) -> = | CR63: =IF(V62="",0,V62) -> = | CS63: =IF(W62="",0,W62) -> = | CT63: =IF(X62="",0,X62) -> = | CU63: =IF(Y62="",0,Y62) -> = | CV63: =IF(Z62="",0,Z62) -> = | CW63: =IF(AA62="",0,AA62) -> = | CX63: =IF(AB62="",0,AB62) -> = | CY63: =IF(AC62="",0,AC62) -> = | CZ63: =IF(AD62="",0,AD62) -> = | DA63: =IF(AE62="",0,AE62) -> = | DB63: =IF(AF62="",0,AF62) -> = | DC63: =IF(AG62="",0,AG62) -> = | DD63: =IF(AH62="",0,AH62) -> = | DE63: =IF(AI62="",0,AI62) -> = | DF63: =IF(AJ62="",0,AJ62) -> = | DG63: =IF(AK62="",0,AK62) -> = | DH63: =IF(AL62="",0,AL62) -> = | DI63: =IF(AM62="",0,AM62) -> = | DJ63: =IF(AN62="",0,AN62) -> = | DK63: =IF(AO62="",0,AO62) -> = | DL63: =IF(AP62="",0,AP62) -> = | DM63: =IF(AQ62="",0,AQ62) -> = | DN63: =IF(AR62="",0,AR62) -> = | DO63: =IF(AS62="",0,AS62) -> = | DP63: =IF(AT62="",0,AT62) -> = | DQ63: =IF(AU62="",0,AU62) -> = | DR63: =IF(AV62="",0,AV62) -> = | DS63: =IF(AW62="",0,AW62) -> = | DT63: =IF(AX62="",0,AX62) -> = | DU63: =IF(AY62="",0,AY62) -> = | DV63: =IF(AZ62="",0,AZ62) -> = | DW63: =IF(BA62="",0,BA62) -> =
BV64: =IF($BS31<=0,SUMIF(OFFSET($BX56:$DW61,0,52-INT(ABS($BS31)/6)-1,,INT(ABS($BS31)/6)+1),"=" & $AR$75,OFFSET($BX$20:$DW$25,0,52-INT(ABS($BS31)/6)-1,,INT(ABS($BS31)/6)+1)))-IF(AND($BS31<=0,ABS($BS31)<INT(ABS($BS31)/6+1)*6-1),SUMIF(OFFSET($BX56:$DW61,0,52-INT(ABS($BS31)/6)-1,INT(ABS($BS31)/6+1)*6-1-ABS($BS31),1),"=" & $AR$75,OFFSET($BX$20:$DW$25,0,52-INT(ABS($BS31)/6)-1,INT(ABS($BS31)/6+1)*6-1-ABS($BS31),1)))-IF($BS32<=0,SUMIF(OFFSET($BX62:$DW67,(INT(ABS($BS32)/6)+1)*6-ABS($BS32)-1,52-INT(ABS($BS32)/6)-1,ABS($BS32)-INT(ABS($BS32)/6)*6+1,1),"=" & $AR$75,OFFSET($BX$20:$DW$25,(INT(ABS($BS32)/6)+1)*6-ABS($BS32)-1,52-INT(ABS($BS32)/6)-1,ABS($BS32)-INT(ABS($BS32)/6)*6+1,1)),0) -> 0 | BX64: =IF(B62="",0,B62) -> = | BY64: =IF(C62="",0,C62) -> = | BZ64: =IF(D62="",0,D62) -> = | CA64: =IF(E62="",0,E62) -> = | CB64: =IF(F62="",0,F62) -> = | CC64: =IF(G62="",0,G62) -> = | CD64: =IF(H62="",0,H62) -> = | CE64: =IF(I62="",0,I62) -> = | CF64: =IF(J62="",0,J62) -> = | CG64: =IF(K62="",0,K62) -> = | CH64: =IF(L62="",0,L62) -> = | CI64: =IF(M62="",0,M62) -> = | CJ64: =IF(N62="",0,N62) -> = | CK64: =IF(O62="",0,O62) -> = | CL64: =IF(P62="",0,P62) -> = | CM64: =IF(Q62="",0,Q62) -> = | CN64: =IF(R62="",0,R62) -> = | CO64: =IF(S62="",0,S62) -> = | CP64: =IF(T62="",0,T62) -> = | CQ64: =IF(U62="",0,U62) -> = | CR64: =IF(V62="",0,V62) -> = | CS64: =IF(W62="",0,W62) -> = | CT64: =IF(X62="",0,X62) -> = | CU64: =IF(Y62="",0,Y62) -> = | CV64: =IF(Z62="",0,Z62) -> = | CW64: =IF(AA62="",0,AA62) -> = | CX64: =IF(AB62="",0,AB62) -> = | CY64: =IF(AC62="",0,AC62) -> = | CZ64: =IF(AD62="",0,AD62) -> = | DA64: =IF(AE62="",0,AE62) -> = | DB64: =IF(AF62="",0,AF62) -> = | DC64: =IF(AG62="",0,AG62) -> = | DD64: =IF(AH62="",0,AH62) -> = | DE64: =IF(AI62="",0,AI62) -> = | DF64: =IF(AJ62="",0,AJ62) -> = | DG64: =IF(AK62="",0,AK62) -> = | DH64: =IF(AL62="",0,AL62) -> = | DI64: =IF(AM62="",0,AM62) -> = | DJ64: =IF(AN62="",0,AN62) -> = | DK64: =IF(AO62="",0,AO62) -> = | DL64: =IF(AP62="",0,AP62) -> = | DM64: =IF(AQ62="",0,AQ62) -> = | DN64: =IF(AR62="",0,AR62) -> = | DO64: =IF(AS62="",0,AS62) -> = | DP64: =IF(AT62="",0,AT62) -> = | DQ64: =IF(AU62="",0,AU62) -> = | DR64: =IF(AV62="",0,AV62) -> = | DS64: =IF(AW62="",0,AW62) -> = | DT64: =IF(AX62="",0,AX62) -> = | DU64: =IF(AY62="",0,AY62) -> = | DV64: =IF(AZ62="",0,AZ62) -> = | DW64: =IF(BA62="",0,BA62) -> =
BV65: =IF($BS31<=0,SUMIF(OFFSET($BX56:$DW61,0,52-INT(ABS($BS31)/6)-1,,INT(ABS($BS31)/6)+1),"=" & $G$77,OFFSET($BX$20:$DW$25,0,52-INT(ABS($BS31)/6)-1,,INT(ABS($BS31)/6)+1)))-IF(AND($BS31<=0,ABS($BS31)<INT(ABS($BS31)/6+1)*6-1),SUMIF(OFFSET($BX56:$DW61,0,52-INT(ABS($BS31)/6)-1,INT(ABS($BS31)/6+1)*6-1-ABS($BS31),1),"=" & $G$77,OFFSET($BX$20:$DW$25,0,52-INT(ABS($BS31)/6)-1,INT(ABS($BS31)/6+1)*6-1-ABS($BS31),1)))-IF($BS32<=0,SUMIF(OFFSET($BX62:$DW67,(INT(ABS($BS32)/6)+1)*6-ABS($BS32)-1,52-INT(ABS($BS32)/6)-1,ABS($BS32)-INT(ABS($BS32)/6)*6+1,1),"=" & $G$77,OFFSET($BX$20:$DW$25,(INT(ABS($BS32)/6)+1)*6-ABS($BS32)-1,52-INT(ABS($BS32)/6)-1,ABS($BS32)-INT(ABS($BS32)/6)*6+1,1)),0) -> 0 | BX65: =IF(B62="",0,B62) -> = | BY65: =IF(C62="",0,C62) -> = | BZ65: =IF(D62="",0,D62) -> = | CA65: =IF(E62="",0,E62) -> = | CB65: =IF(F62="",0,F62) -> = | CC65: =IF(G62="",0,G62) -> = | CD65: =IF(H62="",0,H62) -> = | CE65: =IF(I62="",0,I62) -> = | CF65: =IF(J62="",0,J62) -> = | CG65: =IF(K62="",0,K62) -> = | CH65: =IF(L62="",0,L62) -> = | CI65: =IF(M62="",0,M62) -> = | CJ65: =IF(N62="",0,N62) -> = | CK65: =IF(O62="",0,O62) -> = | CL65: =IF(P62="",0,P62) -> = | CM65: =IF(Q62="",0,Q62) -> = | CN65: =IF(R62="",0,R62) -> = | CO65: =IF(S62="",0,S62) -> = | CP65: =IF(T62="",0,T62) -> = | CQ65: =IF(U62="",0,U62) -> = | CR65: =IF(V62="",0,V62) -> = | CS65: =IF(W62="",0,W62) -> = | CT65: =IF(X62="",0,X62) -> = | CU65: =IF(Y62="",0,Y62) -> = | CV65: =IF(Z62="",0,Z62) -> = | CW65: =IF(AA62="",0,AA62) -> = | CX65: =IF(AB62="",0,AB62) -> = | CY65: =IF(AC62="",0,AC62) -> = | CZ65: =IF(AD62="",0,AD62) -> = | DA65: =IF(AE62="",0,AE62) -> = | DB65: =IF(AF62="",0,AF62) -> = | DC65: =IF(AG62="",0,AG62) -> = | DD65: =IF(AH62="",0,AH62) -> = | DE65: =IF(AI62="",0,AI62) -> = | DF65: =IF(AJ62="",0,AJ62) -> = | DG65: =IF(AK62="",0,AK62) -> = | DH65: =IF(AL62="",0,AL62) -> = | DI65: =IF(AM62="",0,AM62) -> = | DJ65: =IF(AN62="",0,AN62) -> = | DK65: =IF(AO62="",0,AO62) -> = | DL65: =IF(AP62="",0,AP62) -> = | DM65: =IF(AQ62="",0,AQ62) -> = | DN65: =IF(AR62="",0,AR62) -> = | DO65: =IF(AS62="",0,AS62) -> = | DP65: =IF(AT62="",0,AT62) -> = | DQ65: =IF(AU62="",0,AU62) -> = | DR65: =IF(AV62="",0,AV62) -> = | DS65: =IF(AW62="",0,AW62) -> = | DT65: =IF(AX62="",0,AX62) -> = | DU65: =IF(AY62="",0,AY62) -> = | DV65: =IF(AZ62="",0,AZ62) -> = | DW65: =IF(BA62="",0,BA62) -> =
BV66: =IF($BS31<=0,SUMIF(OFFSET($BX56:$DW61,0,52-INT(ABS($BS31)/6)-1,,INT(ABS($BS31)/6)+1),"=" & $T$77,OFFSET($BX$20:$DW$25,0,52-INT(ABS($BS31)/6)-1,,INT(ABS($BS31)/6)+1)))-IF(AND($BS31<=0,ABS($BS31)<INT(ABS($BS31)/6+1)*6-1),SUMIF(OFFSET($BX56:$DW61,0,52-INT(ABS($BS31)/6)-1,INT(ABS($BS31)/6+1)*6-1-ABS($BS31),1),"=" & $T$77,OFFSET($BX$20:$DW$25,0,52-INT(ABS($BS31)/6)-1,INT(ABS($BS31)/6+1)*6-1-ABS($BS31),1)))-IF($BS32<=0,SUMIF(OFFSET($BX62:$DW67,(INT(ABS($BS32)/6)+1)*6-ABS($BS32)-1,52-INT(ABS($BS32)/6)-1,ABS($BS32)-INT(ABS($BS32)/6)*6+1,1),"=" & $T$77,OFFSET($BX$20:$DW$25,(INT(ABS($BS32)/6)+1)*6-ABS($BS32)-1,52-INT(ABS($BS32)/6)-1,ABS($BS32)-INT(ABS($BS32)/6)*6+1,1)),0) -> 0 | BX66: =IF(B62="",0,B62) -> = | BY66: =IF(C62="",0,C62) -> = | BZ66: =IF(D62="",0,D62) -> = | CA66: =IF(E62="",0,E62) -> = | CB66: =IF(F62="",0,F62) -> = | CC66: =IF(G62="",0,G62) -> = | CD66: =IF(H62="",0,H62) -> = | CE66: =IF(I62="",0,I62) -> = | CF66: =IF(J62="",0,J62) -> = | CG66: =IF(K62="",0,K62) -> = | CH66: =IF(L62="",0,L62) -> = | CI66: =IF(M62="",0,M62) -> = | CJ66: =IF(N62="",0,N62) -> = | CK66: =IF(O62="",0,O62) -> = | CL66: =IF(P62="",0,P62) -> = | CM66: =IF(Q62="",0,Q62) -> = | CN66: =IF(R62="",0,R62) -> = | CO66: =IF(S62="",0,S62) -> = | CP66: =IF(T62="",0,T62) -> = | CQ66: =IF(U62="",0,U62) -> = | CR66: =IF(V62="",0,V62) -> = | CS66: =IF(W62="",0,W62) -> = | CT66: =IF(X62="",0,X62) -> = | CU66: =IF(Y62="",0,Y62) -> = | CV66: =IF(Z62="",0,Z62) -> = | CW66: =IF(AA62="",0,AA62) -> = | CX66: =IF(AB62="",0,AB62) -> = | CY66: =IF(AC62="",0,AC62) -> = | CZ66: =IF(AD62="",0,AD62) -> = | DA66: =IF(AE62="",0,AE62) -> = | DB66: =IF(AF62="",0,AF62) -> = | DC66: =IF(AG62="",0,AG62) -> = | DD66: =IF(AH62="",0,AH62) -> = | DE66: =IF(AI62="",0,AI62) -> = | DF66: =IF(AJ62="",0,AJ62) -> = | DG66: =IF(AK62="",0,AK62) -> = | DH66: =IF(AL62="",0,AL62) -> = | DI66: =IF(AM62="",0,AM62) -> = | DJ66: =IF(AN62="",0,AN62) -> = | DK66: =IF(AO62="",0,AO62) -> = | DL66: =IF(AP62="",0,AP62) -> = | DM66: =IF(AQ62="",0,AQ62) -> = | DN66: =IF(AR62="",0,AR62) -> = | DO66: =IF(AS62="",0,AS62) -> = | DP66: =IF(AT62="",0,AT62) -> = | DQ66: =IF(AU62="",0,AU62) -> = | DR66: =IF(AV62="",0,AV62) -> = | DS66: =IF(AW62="",0,AW62) -> = | DT66: =IF(AX62="",0,AX62) -> = | DU66: =IF(AY62="",0,AY62) -> = | DV66: =IF(AZ62="",0,AZ62) -> = | DW66: =IF(BA62="",0,BA62) -> =
BO67: 6 | BU67: =SUMIF(OFFSET($BX62:$DW67,0,INT(($BT31-1)/6),,52-INT(($BT31-1)/6)-IF($BS32<=0,INT(ABS($BS32)/6),0)),"=" & $T$75,OFFSET($BX$20:$DW$25,0,INT(($BT31-1)/6),,52-INT(($BT31-1)/6)-IF($BS32<=0,INT(ABS($BS32)/6),0)))-IF($BT31>INT(($BT31-1)/6)*6+1,SUMIF(OFFSET($BX62:$DW67,0,INT(($BT31-1)/6),$BT31-INT(($BT31-1)/6)*6-1,1),"=" & $T$75,OFFSET($BX$20:$DW$25,0,INT(($BT31-1)/6),$BT31-INT(($BT31-1)/6)*6-1,1)))+IF($BS32>1,SUMIF(OFFSET($BX68:$DW73,0,0,,INT(($BS32-1)/6)+1),"=" & $T$75,OFFSET($BX$20:$DW$25,0,0,,INT(($BS32-1)/6)+1)))-IF($BS32>1,SUMIF(OFFSET($BX68:$DW73,$BS32-INT(($BS32-1)/6)*6-1,INT(($BS32-1)/6),(INT(($BS32-1)/6)+1)*6+1-$BS32,1),"=" & $T$75,OFFSET($BX$20:$DW$25,0,INT(($BS32-1)/6),(INT(($BS32-1)/6)+1)*6+1-$BS32,1)))-$DY62 -> 0 | BV67: =IF($BS31<=0,SUMIF(OFFSET($BX56:$DW61,0,52-INT(ABS($BS31)/6)-1,,INT(ABS($BS31)/6)+1),"=" & $AG$77,OFFSET($BX$20:$DW$25,0,52-INT(ABS($BS31)/6)-1,,INT(ABS($BS31)/6)+1)))-IF(AND($BS31<=0,ABS($BS31)<INT(ABS($BS31)/6+1)*6-1),SUMIF(OFFSET($BX56:$DW61,0,52-INT(ABS($BS31)/6)-1,INT(ABS($BS31)/6+1)*6-1-ABS($BS31),1),"=" & $AG$77,OFFSET($BX$20:$DW$25,0,52-INT(ABS($BS31)/6)-1,INT(ABS($BS31)/6+1)*6-1-ABS($BS31),1)))-IF($BS32<=0,SUMIF(OFFSET($BX62:$DW67,(INT(ABS($BS32)/6)+1)*6-ABS($BS32)-1,52-INT(ABS($BS32)/6)-1,ABS($BS32)-INT(ABS($BS32)/6)*6+1,1),"=" & $AG$77,OFFSET($BX$20:$DW$25,(INT(ABS($BS32)/6)+1)*6-ABS($BS32)-1,52-INT(ABS($BS32)/6)-1,ABS($BS32)-INT(ABS($BS32)/6)*6+1,1)),0) -> 0 | BX67: =IF(B62="",0,B62) -> = | BY67: =IF(C62="",0,C62) -> = | BZ67: =IF(D62="",0,D62) -> = | CA67: =IF(E62="",0,E62) -> = | CB67: =IF(F62="",0,F62) -> = | CC67: =IF(G62="",0,G62) -> = | CD67: =IF(H62="",0,H62) -> = | CE67: =IF(I62="",0,I62) -> = | CF67: =IF(J62="",0,J62) -> = | CG67: =IF(K62="",0,K62) -> = | CH67: =IF(L62="",0,L62) -> = | CI67: =IF(M62="",0,M62) -> = | CJ67: =IF(N62="",0,N62) -> = | CK67: =IF(O62="",0,O62) -> = | CL67: =IF(P62="",0,P62) -> = | CM67: =IF(Q62="",0,Q62) -> = | CN67: =IF(R62="",0,R62) -> = | CO67: =IF(S62="",0,S62) -> = | CP67: =IF(T62="",0,T62) -> = | CQ67: =IF(U62="",0,U62) -> = | CR67: =IF(V62="",0,V62) -> = | CS67: =IF(W62="",0,W62) -> = | CT67: =IF(X62="",0,X62) -> = | CU67: =IF(Y62="",0,Y62) -> = | CV67: =IF(Z62="",0,Z62) -> = | CW67: =IF(AA62="",0,AA62) -> = | CX67: =IF(AB62="",0,AB62) -> = | CY67: =IF(AC62="",0,AC62) -> = | CZ67: =IF(AD62="",0,AD62) -> = | DA67: =IF(AE62="",0,AE62) -> = | DB67: =IF(AF62="",0,AF62) -> = | DC67: =IF(AG62="",0,AG62) -> = | DD67: =IF(AH62="",0,AH62) -> = | DE67: =IF(AI62="",0,AI62) -> = | DF67: =IF(AJ62="",0,AJ62) -> = | DG67: =IF(AK62="",0,AK62) -> = | DH67: =IF(AL62="",0,AL62) -> = | DI67: =IF(AM62="",0,AM62) -> = | DJ67: =IF(AN62="",0,AN62) -> = | DK67: =IF(AO62="",0,AO62) -> = | DL67: =IF(AP62="",0,AP62) -> = | DM67: =IF(AQ62="",0,AQ62) -> = | DN67: =IF(AR62="",0,AR62) -> = | DO67: =IF(AS62="",0,AS62) -> = | DP67: =IF(AT62="",0,AT62) -> = | DQ67: =IF(AU62="",0,AU62) -> = | DR67: =IF(AV62="",0,AV62) -> = | DS67: =IF(AW62="",0,AW62) -> = | DT67: =IF(AX62="",0,AX62) -> = | DU67: =IF(AY62="",0,AY62) -> = | DV67: =IF(AZ62="",0,AZ62) -> = | DW67: =IF(BA62="",0,BA62) -> =
A68: 7 | B68: = | C68: = | D68: = | E68: = | F68: = | G68: = | H68: = | I68: = | J68: = | K68: = | L68: = | M68: = | N68: = | O68: = | P68: = | Q68: = | R68: = | S68: = | T68: = | U68: = | V68: = | W68: = | X68: = | Y68: = | Z68: = | AA68: = | AB68: = | AC68: = | AD68: = | AE68: = | AF68: = | AG68: = | AH68: = | AI68: = | AJ68: = | AK68: = | AL68: = | AM68: = | AN68: = | AO68: = | AP68: = | AQ68: = | AR68: = | AS68: = | AT68: = | AU68: = | AV68: = | AW68: = | AX68: = | AY68: = | AZ68: = | BA68: = | BB68: =SUMIF(OFFSET($BX68:$DW73,0,INT((IF($BS32>0,$BS32,1)-1)/6),,INT(($BT32-1)/6)-INT((IF($BS32>0,$BS32,1)-1)/6)),"=0",OFFSET($BX$20:$DW$25,0,INT((IF($BS32>0,$BS32,1)-1)/6)))-IF(AND($BS32>0,$BS32>INT(($BS32-1)/6)*6+1),SUMIF(OFFSET($BX68:$DW73,0,INT(($BS32-1)/6),$BS32-INT(($BS32-1)/6)*6-1,1),"=0",OFFSET($BX$20:$DW$25,0,INT(($BS32-1)/6),$BS32-INT(($BS32-1)/6)*6-1,1)))+IF(AND($BT32>0,$BT32>INT(($BT32-1)/6)*6+1),SUMIF(OFFSET($BX68:$DW73,0,INT(($BT32-1)/6),$BT32-INT(($BT32-1)/6)*6-1,1),"=0",OFFSET($BX$20:$DW$25,0,INT(($BT32-1)/6),$BT32-INT(($BT32-1)/6)*6-1,1)))+$BW68 -> 0 | BC68: =SUMIF(OFFSET($BX68:$DW73,0,INT(($BT32-1)/6),,52-INT(($BT32-1)/6)),"=0",OFFSET($BX$20:$DW$25,0,INT(($BT32-1)/6),,52-INT(($BT32-1)/6)))-IF($BT32>INT(($BT32-1)/6)*6+1,SUMIF(OFFSET($BX68:$DW73,0,INT(($BT32-1)/6),$BT32-INT(($BT32-1)/6)*6-1,1),"=0",OFFSET($BX$20:$DW$25,0,INT(($BT32-1)/6),$BT32-INT(($BT32-1)/6)*6-1,1))) -> 0 | BD68: =Недель13+Недель14 -> 0 | BE68: =Экз7Осень+Экз7Весна -> 0 | BF68: =SUMIF(OFFSET($BX68:$DW73,0,INT((IF($BS32>0,$BS32,1)-1)/6),,52-INT((IF($BS32>0,$BS32,1)-1)/6)),"=" & $AR$77,OFFSET($BX$20:$DW$25,0,INT((IF($BS32>0,$BS32,1)-1)/6),,52-INT((IF($BS32>0,$BS32,1)-1)/6)))-IF(AND($BS32>0,$BS32>INT(($BS32-1)/6)*6+1),SUMIF(OFFSET($BX68:$DW73,0,INT(($BS32-1)/6),$BS32-INT(($BS32-1)/6)*6-1,1),"=" & $AR$77,OFFSET($BX$20:$DW$25,0,INT(($BS32-1)/6),$BS32-INT(($BS32-1)/6)*6-1,1)))+$BV68 -> 0 | BG68: =SUMIF(OFFSET($BX68:$DW73,0,INT((IF($BS32>0,$BS32,1)-1)/6),,52-INT((IF($BS32>0,$BS32,1)-1)/6)),"=" & $AG$75,OFFSET($BX$20:$DW$25,0,INT((IF($BS32>0,$BS32,1)-1)/6),,52-INT((IF($BS32>0,$BS32,1)-1)/6)))-IF(AND($BS32>0,$BS32>INT(($BS32-1)/6)*6+1),SUMIF(OFFSET($BX68:$DW73,0,INT(($BS32-1)/6),$BS32-INT(($BS32-1)/6)*6-1,1),"=" & $AG$75,OFFSET($BX$20:$DW$25,0,INT(($BS32-1)/6),$BS32-INT(($BS32-1)/6)*6-1,1)))+$BV69 -> 0 | BH68: =SUMIF(OFFSET($BX68:$DW73,0,INT((IF($BS32>0,$BS32,1)-1)/6),,52-INT((IF($BS32>0,$BS32,1)-1)/6)),"=" & $AR$75,OFFSET($BX$20:$DW$25,0,INT((IF($BS32>0,$BS32,1)-1)/6),,52-INT((IF($BS32>0,$BS32,1)-1)/6)))-IF(AND($BS32>0,$BS32>INT(($BS32-1)/6)*6+1),SUMIF(OFFSET($BX68:$DW73,0,INT(($BS32-1)/6),$BS32-INT(($BS32-1)/6)*6-1,1),"=" & $AR$75,OFFSET($BX$20:$DW$25,0,INT(($BS32-1)/6),$BS32-INT(($BS32-1)/6)*6-1,1)))+$BV70 -> 0 | BI68: =SUMIF(OFFSET($BX68:$DW73,0,INT((IF($BS32>0,$BS32,1)-1)/6),,52-INT((IF($BS32>0,$BS32,1)-1)/6)),"=" & $G$77,OFFSET($BX$20:$DW$25,0,INT((IF($BS32>0,$BS32,1)-1)/6),,52-INT((IF($BS32>0,$BS32,1)-1)/6)))-IF(AND($BS32>0,$BS32>INT(($BS32-1)/6)*6+1),SUMIF(OFFSET($BX68:$DW73,0,INT(($BS32-1)/6),$BS32-INT(($BS32-1)/6)*6-1,1),"=" & $G$77,OFFSET($BX$20:$DW$25,0,INT(($BS32-1)/6),$BS32-INT(($BS32-1)/6)*6-1,1)))+$BV71 -> 0 | BJ68: =SUMIF(OFFSET($BX68:$DW73,0,INT((IF($BS32>0,$BS32,1)-1)/6),,52-INT((IF($BS32>0,$BS32,1)-1)/6)),"=" & $T$77,OFFSET($BX$20:$DW$25,0,INT((IF($BS32>0,$BS32,1)-1)/6),,52-INT((IF($BS32>0,$BS32,1)-1)/6)))-IF(AND($BS32>0,$BS32>INT(($BS32-1)/6)*6+1),SUMIF(OFFSET($BX68:$DW73,0,INT(($BS32-1)/6),$BS32-INT(($BS32-1)/6)*6-1,1),"=" & $T$77,OFFSET($BX$20:$DW$25,0,INT(($BS32-1)/6),$BS32-INT(($BS32-1)/6)*6-1,1)))+$BV72 -> 0 | BK68: =SUMIF(OFFSET($BX68:$DW73,0,INT((IF($BS32>0,$BS32,1)-1)/6),,52-INT((IF($BS32>0,$BS32,1)-1)/6)),"=" & $AG$77,OFFSET($BX$20:$DW$25,0,INT((IF($BS32>0,$BS32,1)-1)/6),,52-INT((IF($BS32>0,$BS32,1)-1)/6)))-IF(AND($BS32>0,$BS32>INT(($BS32-1)/6)*6+1),SUMIF(OFFSET($BX68:$DW73,0,INT(($BS32-1)/6),$BS32-INT(($BS32-1)/6)*6-1,1),"=" & $AG$77,OFFSET($BX$20:$DW$25,0,INT(($BS32-1)/6),$BS32-INT(($BS32-1)/6)*6-1,1)))+$BV73 -> 0 | BL68: =SUM($BD68:$BK73) -> 0 | BM68: 0 | BN68: 0 | BO68: 7 | BU68: =SUMIF(OFFSET($BX68:$DW73,0,INT((IF($BS32>0,$BS32,1)-1)/6),,INT(($BT32-1)/6)-INT((IF($BS32>0,$BS32,1)-1)/6)),"=" & $T$75,OFFSET($BX$20:$DW$25,0,INT((IF($BS32>0,$BS32,1)-1)/6)))-IF(AND($BS32>0,$BS32>INT(($BS32-1)/6)*6+1),SUMIF(OFFSET($BX68:$DW73,0,INT(($BS32-1)/6),$BS32-INT(($BS32-1)/6)*6-1,1),"=" & $T$75,OFFSET($BX$20:$DW$25,0,INT(($BS32-1)/6),$BS32-INT(($BS32-1)/6)*6-1,1)))+IF(AND($BT32>0,$BT32>INT(($BT32-1)/6)*6+1),SUMIF(OFFSET($BX68:$DW73,0,INT(($BT32-1)/6),$BT32-INT(($BT32-1)/6)*6-1,1),"=" & $T$75,OFFSET($BX$20:$DW$25,0,INT(($BT32-1)/6),$BT32-INT(($BT32-1)/6)*6-1,1)))+$BU69 -> 0 | BV68: =IF($BS32<=0,SUMIF(OFFSET($BX62:$DW67,0,52-INT(ABS($BS32)/6)-1,,INT(ABS($BS32)/6)+1),"=" & $AR$77,OFFSET($BX$20:$DW$25,0,52-INT(ABS($BS32)/6)-1,,INT(ABS($BS32)/6)+1)))-IF(AND($BS32<=0,ABS($BS32)<INT(ABS($BS32)/6+1)*6-1),SUMIF(OFFSET($BX62:$DW67,0,52-INT(ABS($BS32)/6)-1,INT(ABS($BS32)/6+1)*6-1-ABS($BS32),1),"=" & $AR$77,OFFSET($BX$20:$DW$25,0,52-INT(ABS($BS32)/6)-1,INT(ABS($BS32)/6+1)*6-1-ABS($BS32),1))) -> 0 | BW68: =IF($BS32<=0,SUMIF(OFFSET($BX62:$DW67,0,52-INT(ABS($BS32)/6)-1,,INT(ABS($BS32)/6)+1),"=0",OFFSET($BX$20:$DW$25,0,52-INT(ABS($BS32)/6)-1,,INT(ABS($BS32)/6)+1)))-IF(AND($BS32<=0,ABS($BS32)<INT(ABS($BS32)/6+1)*6-1),SUMIF(OFFSET($BX62:$DW67,0,52-INT(ABS($BS32)/6)-1,INT(ABS($BS32)/6+1)*6-1-ABS($BS32),1),"=0",OFFSET($BX$20:$DW$25,0,52-INT(ABS($BS32)/6)-1,INT(ABS($BS32)/6+1)*6-1-ABS($BS32),1))) -> 0 | BX68: =IF(B68="",0,B68) -> = | BY68: = | BZ68: = | CA68: = | CB68: = | CC68: = | CD68: = | CE68: = | CF68: = | CG68: = | CH68: = | CI68: = | CJ68: = | CK68: = | CL68: = | CM68: = | CN68: = | CO68: = | CP68: = | CQ68: = | CR68: = | CS68: = | CT68: = | CU68: = | CV68: = | CW68: = | CX68: = | CY68: = | CZ68: = | DA68: = | DB68: = | DC68: = | DD68: =IF(AH68="",0,AH68) -> = | DE68: = | DF68: = | DG68: = | DH68: = | DI68: = | DJ68: = | DK68: = | DL68: = | DM68: = | DN68: = | DO68: = | DP68: = | DQ68: = | DR68: = | DS68: = | DT68: = | DU68: = | DV68: = | DW68: =
BU69: =IF($BS32<=0,SUMIF(OFFSET($BX62:$DW67,0,52-INT(ABS($BS32)/6)-1,,INT(ABS($BS32)/6)+1),"=" & $T$75,OFFSET($BX$20:$DW$25,0,52-INT(ABS($BS32)/6)-1,,INT(ABS($BS32)/6)+1)))-IF(AND($BS32<=0,ABS($BS32)<INT(ABS($BS32)/6+1)*6-1),SUMIF(OFFSET($BX62:$DW67,0,52-INT(ABS($BS32)/6)-1,INT(ABS($BS32)/6+1)*6-1-ABS($BS32),1),"=" & $T$75,OFFSET($BX$20:$DW$25,0,52-INT(ABS($BS32)/6)-1,INT(ABS($BS32)/6+1)*6-1-ABS($BS32),1))) -> 0 | BV69: =IF($BS32<=0,SUMIF(OFFSET($BX62:$DW67,0,52-INT(ABS($BS32)/6)-1,,INT(ABS($BS32)/6)+1),"=" & $AG$75,OFFSET($BX$20:$DW$25,0,52-INT(ABS($BS32)/6)-1,,INT(ABS($BS32)/6)+1)))-IF(AND($BS32<=0,ABS($BS32)<INT(ABS($BS32)/6+1)*6-1),SUMIF(OFFSET($BX62:$DW67,0,52-INT(ABS($BS32)/6)-1,INT(ABS($BS32)/6+1)*6-1-ABS($BS32),1),"=" & $AG$75,OFFSET($BX$20:$DW$25,0,52-INT(ABS($BS32)/6)-1,INT(ABS($BS32)/6+1)*6-1-ABS($BS32),1))) -> 0 | BX69: =IF(B68="",0,B68) -> = | BY69: =IF(C68="",0,C68) -> = | BZ69: =IF(D68="",0,D68) -> = | CA69: =IF(E68="",0,E68) -> = | CB69: =IF(F68="",0,F68) -> = | CC69: =IF(G68="",0,G68) -> = | CD69: =IF(H68="",0,H68) -> = | CE69: =IF(I68="",0,I68) -> = | CF69: =IF(J68="",0,J68) -> = | CG69: =IF(K68="",0,K68) -> = | CH69: =IF(L68="",0,L68) -> = | CI69: =IF(M68="",0,M68) -> = | CJ69: =IF(N68="",0,N68) -> = | CK69: =IF(O68="",0,O68) -> = | CL69: =IF(P68="",0,P68) -> = | CM69: =IF(Q68="",0,Q68) -> = | CN69: =IF(R68="",0,R68) -> = | CO69: =IF(S68="",0,S68) -> = | CP69: =IF(T68="",0,T68) -> = | CQ69: =IF(U68="",0,U68) -> = | CR69: =IF(V68="",0,V68) -> = | CS69: =IF(W68="",0,W68) -> = | CT69: =IF(X68="",0,X68) -> = | CU69: =IF(Y68="",0,Y68) -> = | CV69: =IF(Z68="",0,Z68) -> = | CW69: =IF(AA68="",0,AA68) -> = | CX69: =IF(AB68="",0,AB68) -> = | CY69: =IF(AC68="",0,AC68) -> = | CZ69: =IF(AD68="",0,AD68) -> = | DA69: =IF(AE68="",0,AE68) -> = | DB69: =IF(AF68="",0,AF68) -> = | DC69: =IF(AG68="",0,AG68) -> = | DD69: =IF(AH68="",0,AH68) -> = | DE69: =IF(AI68="",0,AI68) -> = | DF69: =IF(AJ68="",0,AJ68) -> = | DG69: =IF(AK68="",0,AK68) -> = | DH69: =IF(AL68="",0,AL68) -> = | DI69: =IF(AM68="",0,AM68) -> = | DJ69: =IF(AN68="",0,AN68) -> = | DK69: =IF(AO68="",0,AO68) -> = | DL69: =IF(AP68="",0,AP68) -> = | DM69: =IF(AQ68="",0,AQ68) -> = | DN69: =IF(AR68="",0,AR68) -> = | DO69: =IF(AS68="",0,AS68) -> = | DP69: =IF(AT68="",0,AT68) -> = | DQ69: =IF(AU68="",0,AU68) -> = | DR69: =IF(AV68="",0,AV68) -> = | DS69: =IF(AW68="",0,AW68) -> = | DT69: =IF(AX68="",0,AX68) -> = | DU69: =IF(AY68="",0,AY68) -> = | DV69: =IF(AZ68="",0,AZ68) -> = | DW69: =IF(BA68="",0,BA68) -> =
BV70: =IF($BS32<=0,SUMIF(OFFSET($BX62:$DW67,0,52-INT(ABS($BS32)/6)-1,,INT(ABS($BS32)/6)+1),"=" & $AR$75,OFFSET($BX$20:$DW$25,0,52-INT(ABS($BS32)/6)-1,,INT(ABS($BS32)/6)+1)))-IF(AND($BS32<=0,ABS($BS32)<INT(ABS($BS32)/6+1)*6-1),SUMIF(OFFSET($BX62:$DW67,0,52-INT(ABS($BS32)/6)-1,INT(ABS($BS32)/6+1)*6-1-ABS($BS32),1),"=" & $AR$75,OFFSET($BX$20:$DW$25,0,52-INT(ABS($BS32)/6)-1,INT(ABS($BS32)/6+1)*6-1-ABS($BS32),1))) -> 0 | BX70: =IF(B68="",0,B68) -> = | BY70: =IF(C68="",0,C68) -> = | BZ70: =IF(D68="",0,D68) -> = | CA70: =IF(E68="",0,E68) -> = | CB70: =IF(F68="",0,F68) -> = | CC70: =IF(G68="",0,G68) -> = | CD70: =IF(H68="",0,H68) -> = | CE70: =IF(I68="",0,I68) -> = | CF70: =IF(J68="",0,J68) -> = | CG70: =IF(K68="",0,K68) -> = | CH70: =IF(L68="",0,L68) -> = | CI70: =IF(M68="",0,M68) -> = | CJ70: =IF(N68="",0,N68) -> = | CK70: =IF(O68="",0,O68) -> = | CL70: =IF(P68="",0,P68) -> = | CM70: =IF(Q68="",0,Q68) -> = | CN70: =IF(R68="",0,R68) -> = | CO70: =IF(S68="",0,S68) -> = | CP70: =IF(T68="",0,T68) -> = | CQ70: =IF(U68="",0,U68) -> = | CR70: =IF(V68="",0,V68) -> = | CS70: =IF(W68="",0,W68) -> = | CT70: =IF(X68="",0,X68) -> = | CU70: =IF(Y68="",0,Y68) -> = | CV70: =IF(Z68="",0,Z68) -> = | CW70: =IF(AA68="",0,AA68) -> = | CX70: =IF(AB68="",0,AB68) -> = | CY70: =IF(AC68="",0,AC68) -> = | CZ70: =IF(AD68="",0,AD68) -> = | DA70: =IF(AE68="",0,AE68) -> = | DB70: =IF(AF68="",0,AF68) -> = | DC70: =IF(AG68="",0,AG68) -> = | DD70: =IF(AH68="",0,AH68) -> = | DE70: =IF(AI68="",0,AI68) -> = | DF70: =IF(AJ68="",0,AJ68) -> = | DG70: =IF(AK68="",0,AK68) -> = | DH70: =IF(AL68="",0,AL68) -> = | DI70: =IF(AM68="",0,AM68) -> = | DJ70: =IF(AN68="",0,AN68) -> = | DK70: =IF(AO68="",0,AO68) -> = | DL70: =IF(AP68="",0,AP68) -> = | DM70: =IF(AQ68="",0,AQ68) -> = | DN70: =IF(AR68="",0,AR68) -> = | DO70: =IF(AS68="",0,AS68) -> = | DP70: =IF(AT68="",0,AT68) -> = | DQ70: =IF(AU68="",0,AU68) -> = | DR70: =IF(AV68="",0,AV68) -> = | DS70: =IF(AW68="",0,AW68) -> = | DT70: =IF(AX68="",0,AX68) -> = | DU70: =IF(AY68="",0,AY68) -> = | DV70: =IF(AZ68="",0,AZ68) -> = | DW70: =IF(BA68="",0,BA68) -> =
BV71: =IF($BS32<=0,SUMIF(OFFSET($BX62:$DW67,0,52-INT(ABS($BS32)/6)-1,,INT(ABS($BS32)/6)+1),"=" & $G$77,OFFSET($BX$20:$DW$25,0,52-INT(ABS($BS32)/6)-1,,INT(ABS($BS32)/6)+1)))-IF(AND($BS32<=0,ABS($BS32)<INT(ABS($BS32)/6+1)*6-1),SUMIF(OFFSET($BX62:$DW67,0,52-INT(ABS($BS32)/6)-1,INT(ABS($BS32)/6+1)*6-1-ABS($BS32),1),"=" & $G$77,OFFSET($BX$20:$DW$25,0,52-INT(ABS($BS32)/6)-1,INT(ABS($BS32)/6+1)*6-1-ABS($BS32),1))) -> 0 | BX71: =IF(B68="",0,B68) -> = | BY71: =IF(C68="",0,C68) -> = | BZ71: =IF(D68="",0,D68) -> = | CA71: =IF(E68="",0,E68) -> = | CB71: =IF(F68="",0,F68) -> = | CC71: =IF(G68="",0,G68) -> = | CD71: =IF(H68="",0,H68) -> = | CE71: =IF(I68="",0,I68) -> = | CF71: =IF(J68="",0,J68) -> = | CG71: =IF(K68="",0,K68) -> = | CH71: =IF(L68="",0,L68) -> = | CI71: =IF(M68="",0,M68) -> = | CJ71: =IF(N68="",0,N68) -> = | CK71: =IF(O68="",0,O68) -> = | CL71: =IF(P68="",0,P68) -> = | CM71: =IF(Q68="",0,Q68) -> = | CN71: =IF(R68="",0,R68) -> = | CO71: =IF(S68="",0,S68) -> = | CP71: =IF(T68="",0,T68) -> = | CQ71: =IF(U68="",0,U68) -> = | CR71: =IF(V68="",0,V68) -> = | CS71: =IF(W68="",0,W68) -> = | CT71: =IF(X68="",0,X68) -> = | CU71: =IF(Y68="",0,Y68) -> = | CV71: =IF(Z68="",0,Z68) -> = | CW71: =IF(AA68="",0,AA68) -> = | CX71: =IF(AB68="",0,AB68) -> = | CY71: =IF(AC68="",0,AC68) -> = | CZ71: =IF(AD68="",0,AD68) -> = | DA71: =IF(AE68="",0,AE68) -> = | DB71: =IF(AF68="",0,AF68) -> = | DC71: =IF(AG68="",0,AG68) -> = | DD71: =IF(AH68="",0,AH68) -> = | DE71: =IF(AI68="",0,AI68) -> = | DF71: =IF(AJ68="",0,AJ68) -> = | DG71: =IF(AK68="",0,AK68) -> = | DH71: =IF(AL68="",0,AL68) -> = | DI71: =IF(AM68="",0,AM68) -> = | DJ71: =IF(AN68="",0,AN68) -> = | DK71: =IF(AO68="",0,AO68) -> = | DL71: =IF(AP68="",0,AP68) -> = | DM71: =IF(AQ68="",0,AQ68) -> = | DN71: =IF(AR68="",0,AR68) -> = | DO71: =IF(AS68="",0,AS68) -> = | DP71: =IF(AT68="",0,AT68) -> = | DQ71: =IF(AU68="",0,AU68) -> = | DR71: =IF(AV68="",0,AV68) -> = | DS71: =IF(AW68="",0,AW68) -> = | DT71: =IF(AX68="",0,AX68) -> = | DU71: =IF(AY68="",0,AY68) -> = | DV71: =IF(AZ68="",0,AZ68) -> = | DW71: =IF(BA68="",0,BA68) -> =
BV72: =IF($BS32<=0,SUMIF(OFFSET($BX62:$DW67,0,52-INT(ABS($BS32)/6)-1,,INT(ABS($BS32)/6)+1),"=" & $T$77,OFFSET($BX$20:$DW$25,0,52-INT(ABS($BS32)/6)-1,,INT(ABS($BS32)/6)+1)))-IF(AND($BS32<=0,ABS($BS32)<INT(ABS($BS32)/6+1)*6-1),SUMIF(OFFSET($BX62:$DW67,0,52-INT(ABS($BS32)/6)-1,INT(ABS($BS32)/6+1)*6-1-ABS($BS32),1),"=" & $T$77,OFFSET($BX$20:$DW$25,0,52-INT(ABS($BS32)/6)-1,INT(ABS($BS32)/6+1)*6-1-ABS($BS32),1))) -> 0 | BX72: =IF(B68="",0,B68) -> = | BY72: =IF(C68="",0,C68) -> = | BZ72: =IF(D68="",0,D68) -> = | CA72: =IF(E68="",0,E68) -> = | CB72: =IF(F68="",0,F68) -> = | CC72: =IF(G68="",0,G68) -> = | CD72: =IF(H68="",0,H68) -> = | CE72: =IF(I68="",0,I68) -> = | CF72: =IF(J68="",0,J68) -> = | CG72: =IF(K68="",0,K68) -> = | CH72: =IF(L68="",0,L68) -> = | CI72: =IF(M68="",0,M68) -> = | CJ72: =IF(N68="",0,N68) -> = | CK72: =IF(O68="",0,O68) -> = | CL72: =IF(P68="",0,P68) -> = | CM72: =IF(Q68="",0,Q68) -> = | CN72: =IF(R68="",0,R68) -> = | CO72: =IF(S68="",0,S68) -> = | CP72: =IF(T68="",0,T68) -> = | CQ72: =IF(U68="",0,U68) -> = | CR72: =IF(V68="",0,V68) -> = | CS72: =IF(W68="",0,W68) -> = | CT72: =IF(X68="",0,X68) -> = | CU72: =IF(Y68="",0,Y68) -> = | CV72: =IF(Z68="",0,Z68) -> = | CW72: =IF(AA68="",0,AA68) -> = | CX72: =IF(AB68="",0,AB68) -> = | CY72: =IF(AC68="",0,AC68) -> = | CZ72: =IF(AD68="",0,AD68) -> = | DA72: =IF(AE68="",0,AE68) -> = | DB72: =IF(AF68="",0,AF68) -> = | DC72: =IF(AG68="",0,AG68) -> = | DD72: =IF(AH68="",0,AH68) -> = | DE72: =IF(AI68="",0,AI68) -> = | DF72: =IF(AJ68="",0,AJ68) -> = | DG72: =IF(AK68="",0,AK68) -> = | DH72: =IF(AL68="",0,AL68) -> = | DI72: =IF(AM68="",0,AM68) -> = | DJ72: =IF(AN68="",0,AN68) -> = | DK72: =IF(AO68="",0,AO68) -> = | DL72: =IF(AP68="",0,AP68) -> = | DM72: =IF(AQ68="",0,AQ68) -> = | DN72: =IF(AR68="",0,AR68) -> = | DO72: =IF(AS68="",0,AS68) -> = | DP72: =IF(AT68="",0,AT68) -> = | DQ72: =IF(AU68="",0,AU68) -> = | DR72: =IF(AV68="",0,AV68) -> = | DS72: =IF(AW68="",0,AW68) -> = | DT72: =IF(AX68="",0,AX68) -> = | DU72: =IF(AY68="",0,AY68) -> = | DV72: =IF(AZ68="",0,AZ68) -> = | DW72: =IF(BA68="",0,BA68) -> =
BO73: 6 | BU73: =SUMIF(OFFSET($BX68:$DW73,0,INT(($BT32-1)/6),,52-INT(($BT32-1)/6)-IF($BS63<=0,INT(ABS($BS63)/6)-1,0)),"=" & $T$75,OFFSET($BX$20:$DW$25,0,INT(($BT32-1)/6),,52-INT(($BT32-1)/6)-IF($BS63<=0,INT(ABS($BS63)/6)-1,0)))-IF($BT32>INT(($BT32-1)/6)*6+1,SUMIF(OFFSET($BX68:$DW73,0,INT(($BT32-1)/6),$BT32-INT(($BT32-1)/6)*6-1,1),"=" & $T$75,OFFSET($BX$20:$DW$25,0,INT(($BT32-1)/6),$BT32-INT(($BT32-1)/6)*6-1,1))) -> 0 | BV73: =IF($BS32<=0,SUMIF(OFFSET($BX62:$DW67,0,52-INT(ABS($BS32)/6)-1,,INT(ABS($BS32)/6)+1),"=" & $AG$77,OFFSET($BX$20:$DW$25,0,52-INT(ABS($BS32)/6)-1,,INT(ABS($BS32)/6)+1)))-IF(AND($BS32<=0,ABS($BS32)<INT(ABS($BS32)/6+1)*6-1),SUMIF(OFFSET($BX62:$DW67,0,52-INT(ABS($BS32)/6)-1,INT(ABS($BS32)/6+1)*6-1-ABS($BS32),1),"=" & $AG$77,OFFSET($BX$20:$DW$25,0,52-INT(ABS($BS32)/6)-1,INT(ABS($BS32)/6+1)*6-1-ABS($BS32),1))) -> 0 | BX73: =IF(B68="",0,B68) -> = | BY73: =IF(C68="",0,C68) -> = | BZ73: =IF(D68="",0,D68) -> = | CA73: =IF(E68="",0,E68) -> = | CB73: =IF(F68="",0,F68) -> = | CC73: =IF(G68="",0,G68) -> = | CD73: =IF(H68="",0,H68) -> = | CE73: =IF(I68="",0,I68) -> = | CF73: =IF(J68="",0,J68) -> = | CG73: =IF(K68="",0,K68) -> = | CH73: =IF(L68="",0,L68) -> = | CI73: =IF(M68="",0,M68) -> = | CJ73: =IF(N68="",0,N68) -> = | CK73: =IF(O68="",0,O68) -> = | CL73: =IF(P68="",0,P68) -> = | CM73: =IF(Q68="",0,Q68) -> = | CN73: =IF(R68="",0,R68) -> = | CO73: =IF(S68="",0,S68) -> = | CP73: =IF(T68="",0,T68) -> = | CQ73: =IF(U68="",0,U68) -> = | CR73: =IF(V68="",0,V68) -> = | CS73: =IF(W68="",0,W68) -> = | CT73: =IF(X68="",0,X68) -> = | CU73: =IF(Y68="",0,Y68) -> = | CV73: =IF(Z68="",0,Z68) -> = | CW73: =IF(AA68="",0,AA68) -> = | CX73: =IF(AB68="",0,AB68) -> = | CY73: =IF(AC68="",0,AC68) -> = | CZ73: =IF(AD68="",0,AD68) -> = | DA73: =IF(AE68="",0,AE68) -> = | DB73: =IF(AF68="",0,AF68) -> = | DC73: =IF(AG68="",0,AG68) -> = | DD73: =IF(AH68="",0,AH68) -> = | DE73: =IF(AI68="",0,AI68) -> = | DF73: =IF(AJ68="",0,AJ68) -> = | DG73: =IF(AK68="",0,AK68) -> = | DH73: =IF(AL68="",0,AL68) -> = | DI73: =IF(AM68="",0,AM68) -> = | DJ73: =IF(AN68="",0,AN68) -> = | DK73: =IF(AO68="",0,AO68) -> = | DL73: =IF(AP68="",0,AP68) -> = | DM73: =IF(AQ68="",0,AQ68) -> = | DN73: =IF(AR68="",0,AR68) -> = | DO73: =IF(AS68="",0,AS68) -> = | DP73: =IF(AT68="",0,AT68) -> = | DQ73: =IF(AU68="",0,AU68) -> = | DR73: =IF(AV68="",0,AV68) -> = | DS73: =IF(AW68="",0,AW68) -> = | DT73: =IF(AX68="",0,AX68) -> = | DU73: =IF(AY68="",0,AY68) -> = | DV73: =IF(AZ68="",0,AZ68) -> = | DW73: =IF(BA68="",0,BA68) -> =
BD74: =SUM(BD26:BD73) -> 152 | BE74: =SUM(BE26:BE73) -> 26 | BF74: 0 | BG74: 4 | BH74: 12 | BI74: 14 | BJ74: 2 | BK74: 50 | BL74: 260 | BM74: 328 | BN74: 16
A75: Обозначения: | H75: ="- " & BB24 -> - Теоретическое обучение | T75: Э | U75: ="- " & BE24 -> - Экзаменационные сессии | AG75: У | AH75: ="- " &BG24 -> - Учебная практика | AR75: П | AS75: ="- " &BH24 -> - Другие Практики, НИР | BB75: число | BC75: - Наличие распределенной практики или НИР | BK75: =IF(B11="Сокращенный срок обучения на базе ВПО"," - Перезачтено"," - Переаттестовано") -> - Переаттестовано
G77: Д | H77: ="- "&BI24 -> - Дипломная работа (ВКР) | T77: Г | U77: ="- "&BJ24 -> - Гос. Экзамены и защита | AG77: К | AH77: ="- "&BK24 -> - Каникулы | AR77: А | AS77: ="- "&BF24 -> - Итоговая Аттестация | BG77: = | BH77: - Неделя отсутствует

Sheet План
L1: Распределение по курсам и семестрам | BP1: Закрепленная кафедра | BQ1: КСР | BY1: Общая трудоемкость | BZ1: Индикатор итогового | CA1: 2 | CC1: =IF(OR(CA1>0,TRIM(B1)<>""),1,0) -> 1 | CF1: ="Уже изучено и "&IF(Титул!B11="Сокращенный срок обучения на базе ВПО","перзачтено","переаттестовано") -> Уже изучено и переаттестовано | CK1: Всего подлежит изучению (час) | EU1: 1 | EV1: 1 | EW1: 1 | EX1: 1 | EY1: 1 | EZ1: 1 | FA1: 1 | FB1: 1 | FC1: 1 | FD1: 1 | FE1: 1 | FF1: 1 | FG1: 1 | FH1: 1 | FM1: 6 | FN1: 65 | FO1: Ф | FP1: Индикатор дисциплины без учета контроля | FT1: Всего ЗЕТ (эксперт) | FU1: Всего ЗЕТ по Плану | FV1: Перечень реализуемых компетенций | FW1: =LEFT(Рабочий!B95,1)="С" -> FALSE | FX1: В интерактивной форме, час | FY1: Накоплено по листам курсов, ЗЕТ
A2: № | B2: Название дисциплины | C2: По семестрам | G2: Часов | I2: =IF(ПерезачтеноВсего>0,"По сокращенной","В том числе") -> В том числе | L2: 1 курс | T2: 2 курс | AB2: 3 курс | AJ2: 4 курс | AR2: 5 курс | AZ2: 6 курс | BH2: 7 курс | BQ2: ИЗ | CA2: 2 | CC2: =IF(OR(CA2>0,TRIM(B2)<>""),1,0) -> 1 | CF2: Контроль (сем) | CJ2: Час | CL2: 1 | CP2: 2 | CT2: 3 | CX2: 4 | DB2: 5 | DF2: 6 | DJ2: 7 | DN2: 8 | DR2: 9 | DV2: A | DZ2: B | ED2: C | EH2: D | EL2: E | EP2: Перезачет | EU2: 1 | EV2: 1 | EW2: 1 | EX2: 1 | EY2: 1 | EZ2: 1 | FA2: 1 | FB2: 1 | FC2: 1 | FD2: 1 | FE2: 1 | FF2: 1 | FG2: 1 | FH2: 1 | FM2: 66 | FN2: 99 | FO2: Р
C3: Экзамены | D3: Зачеты | E3: Курсовые проекты, контрольные (к), рефераты (р), эссе (э), РГР (г), Оц. (о) | F3: Курсовые работы | G3: =IF(СЭкзаменами,"Всего с Эк","Всего") -> Всего | H3: =IF(СЭкзаменами,"Всего по ГОС или по ЗЕТ с Эк","Всего по ГОС или по ЗЕТ") -> Всего по ГОС или по ЗЕТ | I3: Аудиторные | J3: КСР | K3: Сам.работа | L3: 1 | M3: сем | N3: =Недель1-IF(isFGOS,Курс1!L4,0) -> 18 | O3: нед | P3: 2 | Q3: сем | R3: =Недель2-IF(isFGOS,Курс1!V4,0) -> 18 | S3: нед | T3: 3 | U3: сем | V3: =Недель3-IF(isFGOS,Курс2!L4,0) -> 18 | W3: нед | X3: 4 | Y3: сем | Z3: =Недель4-IF(isFGOS,Курс2!V4,0) -> 18 | AA3: нед | AB3: 5 | AC3: сем | AD3: =Недель5-IF(isFGOS,Курс3!L4,0) -> 18 | AE3: нед | AF3: 6 | AG3: сем | AH3: =Недель6-IF(isFGOS,Курс3!V4,0) -> 14 | AI3: нед | AJ3: 7 | AK3: сем | AL3: =Недель7-IF(isFGOS,Курс4!L4,0) -> 18 | AM3: нед | AN3: 8 | AO3: сем | AP3: =Недель8-IF(isFGOS,Курс4!V4,0) -> 15 | AQ3: нед | AR3: 9 | AS3: сем | AT3: =Недель9-IF(isFGOS,Курс5!L4,0) -> 15 | AU3: нед | AV3: A | AW3: сем | AX3: =Недель10-IF(isFGOS,Курс5!V4,0) -> 0 | AY3: нед | AZ3: B | BA3: сем | BB3: =Недель11-IF(isFGOS,Курс6!L4,0) -> 0 | BC3: нед | BD3: C | BE3: сем | BF3: =Недель12-IF(isFGOS,Курс6!V4,0) -> 0 | BG3: нед | BH3: D | BI3: сем | BJ3: =Недель13-IF(isFGOS,Курс7!L4,0) -> 0 | BK3: нед | BL3: E | BM3: сем | BN3: =Недель14-IF(isFGOS,Курс7!V4,0) -> 0 | BO3: нед | BQ3: По курсам | CA3: 2 | CC3: =IF(OR(CA3>0,TRIM(B3)<>""),1,0) -> 1 | CF3: Экзамены | CG3: Зачеты | CH3: =E3 -> Курсовые проекты, контрольные (к), рефераты (р), эссе (э), РГР (г), Оц. (о) | CI3: Курсовые работы | CJ3: =IF(Титул!B11="Сокращенный срок обучения на базе ВПО","Всего перезачтено","Всего переаттест.") -> Всего переаттест. | CL3: Экзамены | CM3: Зачеты | CN3: Курсовые проекты | CO3: Курсовые работы | CP3: Экзамены | CQ3: Зачеты | CR3: Курсовые проекты | CS3: Курсовые работы | CT3: Экзамены | CU3: Зачеты | CV3: Курсовые проекты | CW3: Курсовые работы | CX3: Экзамены | CY3: Зачеты | CZ3: Курсовые проекты | DA3: Курсовые работы | DB3: Экзамены | DC3: Зачеты | DD3: Курсовые проекты | DE3: Курсовые работы | DF3: Экзамены | DG3: Зачеты | DH3: Курсовые проекты | DI3: Курсовые работы | DJ3: Экзамены | DK3: Зачеты | DL3: Курсовые проекты | DM3: Курсовые работы | DN3: Экзамены | DO3: Зачеты | DP3: Курсовые проекты | DQ3: Курсовые работы | DR3: Экзамены | DS3: Зачеты | DT3: Курсовые проекты | DU3: Курсовые работы | DV3: Экзамены | DW3: Зачеты | DX3: Курсовые проекты | DY3: Курсовые работы | DZ3: Экзамены | EA3: Зачеты | EB3: Курсовые проекты | EC3: Курсовые работы | ED3: Экзамены | EE3: Зачеты | EF3: Курсовые проекты | EG3: Курсовые работы | EH3: Экзамены | EI3: Зачеты | EJ3: Курсовые проекты | EK3: Курсовые работы | EL3: Экзамены | EM3: Зачеты | EN3: Курсовые проекты | EO3: Курсовые работы | EP3: Экзамены | EQ3: Зачеты | ER3: Курсовые проекты | ES3: Курсовые работы | EU3: 1 | EV3: 1 | EW3: 1 | EX3: 1 | EY3: 1 | EZ3: 1 | FA3: 1 | FB3: 1 | FC3: 1 | FD3: 1 | FE3: 1 | FF3: 1 | FG3: 1 | FH3: 1 | FM3: 103 | FN3: 109 | FO3: В
L4: Лекций | M4: Лабораторных | N4: Практических | O4: =КСР -> КСР | P4: Лекций | Q4: Лабораторных | R4: Практических | S4: =КСР -> КСР | T4: Лекций | U4: Лабораторных | V4: Практических | W4: =КСР -> КСР | X4: Лекций | Y4: Лабораторных | Z4: Практических | AA4: =КСР -> КСР | AB4: Лекций | AC4: Лабораторных | AD4: Практических | AE4: =КСР -> КСР | AF4: Лекций | AG4: Лабораторных | AH4: Практических | AI4: =КСР -> КСР | AJ4: Лекций | AK4: Лабораторных | AL4: Практических | AM4: =КСР -> КСР | AN4: Лекций | AO4: Лабораторных | AP4: Практических | AQ4: =КСР -> КСР | AR4: Лекций | AS4: Лабораторных | AT4: Практических | AU4: =КСР -> КСР | AV4: Лекций | AW4: Лабораторных | AX4: Практических | AY4: =КСР -> КСР | AZ4: Лекций | BA4: Лабораторных | BB4: Практических | BC4: =КСР -> КСР | BD4: Лекций | BE4: Лабораторных | BF4: Практических | BG4: =КСР -> КСР | BH4: Лекций | BI4: Лабораторных | BJ4: Практических | BK4: =КСР -> КСР | BL4: Лекций | BM4: Лабораторных | BN4: Практических | BO4: =КСР -> КСР | BQ4: 1 | BR4: 2 | BS4: 3 | BT4: 4 | BU4: 5 | BV4: 6 | BW4: 7 | BX4: Ку | CA4: 2 | CC4: =IF(OR(CA4>0,TRIM(B4)<>""),1,0) -> 1 | EU4: 1 | EV4: 2 | EW4: 3 | EX4: 4 | EY4: 5 | EZ4: 6 | FA4: 7 | FB4: 8 | FC4: 9 | FD4: 10 | FE4: 11 | FF4: 12 | FG4: 13 | FH4: 14 | FI4: Признак названия разделов | FJ4: Признак раздела | FK4: Индикатор физкультуры | FL4: Номер блока | FM4: 113 | FN4: 119 | FO4: В | FS4: Часов в кредите
A5: =IF(isFGOS,"["&Свод!E21&";"&Свод!F21&"]",НормаГСЭ) -> 1800 | B5: =Рабочий!B95 -> ГСЭ | C5: =IF(OR(B100<>"",A5>0),Рабочий!C95,"") -> Цикл общих гуманитарных и социально-экономических дисциплин | T5: =IF(isFGOS," Всего ЗЕТ: "&FU232&"="&FU5&"+"&FU232-FU5,"") ->  | CA5: =IF(TRIM(B6)<>"",2,0) -> 2 | CC5: =IF(OR(CA5>0,TRIM(B5)<>""),1,0) -> 1 | EU5: =IF(SUM(EU6:EU99)>0,1,0) -> 1 | EV5: 1 | EW5: 1 | EX5: 1 | EY5: 1 | EZ5: 1 | FA5: 1 | FB5: 1 | FC5: 0 | FD5: 0 | FE5: 0 | FF5: 0 | FG5: 0 | FH5: 0 | FI5: 0 | FJ5: 0 | FM5: 123 | FN5: 129 | FO5: В | FU5: =SUMIF($FI6:$FI65,"=0",FU6:FU65)-SUMIF(План!$FK6:$FK65,"=1",План!FU6:FU65) -> 26.5 | FY5: =SUMIF($FI6:$FI65,"=0",FY6:FY65)-SUMIF(План!$FK6:$FK65,"=1",План!FY6:FY65) -> 26.5
A6: =IF(TRIM(B6)<>"",B$5&IF(isFGOS,".Б.",".Ф.")&FQ6&IF(FR6>0,"."&FR6,""),"") -> ГСЭ.Ф.1 | B6: Иностранный язык | C6: 4 | D6: 123 | G6: =IF($FI6>0,$FW6,SUM(I6:K6)+CJ6+IF(СЭкзаменами,SUMIF(Курс1!$AL$7:$AL$75,"="&ROW(),Курс1!$AA$7:$AA$75)+SUMIF(Курс2!$AL$7:$AL$75,"="&ROW(),Курс2!$AA$7:$AA$75)+SUMIF(Курс3!$AL$7:$AL$75,"="&ROW(),Курс3!$AA$7:$AA$75)+SUMIF(Курс4!$AL$7:$AL$75,"="&ROW(),Курс4!$AA$7:$AA$75)+SUMIF(Курс5!$AL$7:$AL$75,"="&ROW(),Курс5!$AA$7:$AA$75)+SUMIF(Курс6!$AL$7:$AL$75,"="&ROW(),Курс6!$AA$7:$AA$75)+SUMIF(Курс7!$AL$7:$AL$75,"="&ROW(),Курс7!$AA$7:$AA$75),0)) -> 340 | H6: 340 | I6: =SUM(L6:N6)+SUM(P6:R6)+SUM(T6:V6)+SUM(X6:Z6)+SUM(AB6:AD6)+SUM(AF6:AH6)+SUM(AJ6:AL6)+SUM(AN6:AP6)+SUM(AR6:AT6)+SUM(AV6:AX6)+SUM(AZ6:BB6)+SUM(BD6:BF6)+SUM(BH6:BJ6)+SUM(BL6:BN6) -> 180 | J6: =O6+S6+W6+AA6+AE6+AI6+AM6+AQ6+AU6+AY6+BC6+BG6+BK6+BO6 -> 0 | K6: 160 | N6: 54 | R6: 36 | V6: 36 | Z6: 54 | BP6: 3 | BQ6: =IF(SUM($L6:$S6)>0,SUM($L6:$S6)/SUM($L6:$BO6),0) -> 0.5 | BR6: =IF(SUM($T6:$AA6)>0,SUM($T6:$AA6)/SUM($L6:$BO6),0) -> 0.5 | BS6: =IF(SUM($AB6:$AI6)>0,SUM($AB6:$AI6)/SUM($L6:$BO6),0) -> 0 | BT6: =IF(SUM($AJ6:$AQ6)>0,SUM($AJ6:$AQ6)/SUM($L6:$BO6),0) -> 0 | BU6: =IF(SUM($AR6:$AY6)>0,SUM($AR6:$AY6)/SUM($L6:$BO6),0) -> 0 | BV6: =IF(SUM($AZ6:$BG6)>0,SUM($AZ6:$BG6)/SUM($L6:$BO6),0) -> 0 | BW6: =IF(SUM($BH6:$BO6)>0,SUM($BH6:$BO6)/SUM($L6:$BO6),0) -> 0 | BX6: 0 | BY6: =IF(FI6=0,$H6*MAX(1,$BX6)*($BQ6*Конт1+$BR6*Конт2+$BS6*Конт3+$BT6*Конт4+$BU6*Конт5+$BV6*Конт6)/IF(СреднееКСГ>0,СреднееКСГ,21)+((CL6+CP6)*Экз+(CM6+CQ6)*Зач+(CN6+CR6)*Проект+(CO6+CS6)*Работа)*Конт1+((CT6+CX6)*Экз+(CU6+CY6)*Зач+(CV6+CZ6)*Проект+(CW6+DA6)*Работа)*Конт2+((DB6+DF6)*Экз+(DC6+DG6)*Зач+(DD6+DH6)*Проект+(DE6+DI6)*Работа)*Конт3+((DJ6+DN6)*Экз+(DK6+DO6)*Зач+(DL6+DP6)*Проект+(DM6+DQ6)*Работа)*Конт4+((DR6+DV6)*Экз+(DO6+DW6)*Зач+(DT6+DX6)*Проект+(DU6+DY6)*Работа)*Конт5+((DZ6+ED6)*Экз+(EA6+EE6)*Зач+(EB6+EF6)*Проект+(EC6+EG6)*Работа)*Конт6,0) -> 580.1809524 | BZ6: =IF(AND(UPPER(LEFT(B6,8))="ИТОГОВЫЙ",TRIM(C6)<>""),1,0) -> 0 | CA6: =IF(SUM(G6:H6)=0,0,IF(SUM(L6:O6,T6:W6,AB6:AE6,AJ6:AM6,AR6:AU6,AZ6:BC6)=0,3,IF(SUM(P6:S6,X6:AA6,AF6:AI6,AN6:AQ6,AV6:AY6,BD6:BG6)=0,1,2))) -> 2 | CB6: =IF(OR(TRIM(B6)="",FJ6=1),0,1) -> 1 | CC6: 1 | CE6: =CL6+CP6+CT6+CX6+DB6+DF6+DJ6+DN6+DR6+DV6+DZ6+ED6+CM6+CQ6+CU6+CY6+DC6+DG6+DK6+DO6+DS6+DW6+EA6+EE6 -> 4 | CJ6: 0 | CK6: =SUM(I6:K6) -> 340 | CL6: =IF(OR($FI6=1,$FP6=1),0,IF(ISNUMBER(FIND(CL$2,$C6,1)),MAX(1-$BZ6,0),0)) -> 0 | CM6: =IF(OR($FI6=1,$FP6=1),0,IF(ISNUMBER(FIND(CL$2,$D6,1)),1,0)) -> 1 | CN6: =IF(ISNUMBER(FIND(CL$2,$E6,1)),IF(OR(FI6=1,$FP6=1),0,1),0) -> 0 | CO6: =IF(ISNUMBER(FIND(CL$2,$F6,1)),IF(OR(FI6=1,$FP6=1),0,1),0) -> 0 | CP6: =IF(OR($FI6=1,$FP6=1),0,IF(ISNUMBER(FIND(CP$2,$C6,1)),MAX(1-$BZ6,0),0)) -> 0 | CQ6: =IF(OR($FI6=1,$FP6=1),0,IF(ISNUMBER(FIND(CP$2,$D6,1)),1,0)) -> 1 | CR6: =IF(ISNUMBER(FIND(CP$2,$E6,1)),IF(OR(FI6=1,$FP6=1),0,1),0) -> 0 | CS6: =IF(ISNUMBER(FIND(CP$2,$F6,1)),IF(OR($FI6=1,$FP6=1),0,1),0) -> 0 | CT6: =IF(OR($FI6=1,$FP6=1),0,IF(ISNUMBER(FIND(CT$2,$C6,1)),MAX(1-$BZ6,0),0)) -> 0 | CU6: =IF(OR($FI6=1,$FP6=1),0,IF(ISNUMBER(FIND(CT$2,$D6,1)),1,0)) -> 1 | CV6: =IF(ISNUMBER(FIND(CT$2,$E6,1)),IF(OR($FI6=1,$FP6=1),0,1),0) -> 0 | CW6: =IF(ISNUMBER(FIND(CT$2,$F6,1)),IF(OR($FI6=1,$FP6=1),0,1),0) -> 0 | CX6: =IF(OR($FI6=1,$FP6=1),0,IF(ISNUMBER(FIND(CX$2,$C6,1)),MAX(1-$BZ6,0),0)) -> 1 | CY6: =IF(OR($FI6=1,$FP6=1),0,IF(ISNUMBER(FIND(CX$2,$D6,1)),1,0)) -> 0 | CZ6: =IF(ISNUMBER(FIND(CX$2,$E6,1)),IF(OR($FI6=1,$FP6=1),0,1),0) -> 0 | DA6: =IF(ISNUMBER(FIND(CX$2,$F6,1)),IF(OR($FI6=1,$FP6=1),0,1),0) -> 0 | DB6: =IF(OR($FI6=1,$FP6=1),0,IF(ISNUMBER(FIND(DB$2,$C6,1)),MAX(1-$BZ6,0),0)) -> 0 | DC6: =IF(OR($FI6=1,$FP6=1),0,IF(ISNUMBER(FIND(DB$2,$D6,1)),1,0)) -> 0 | DD6: =IF(ISNUMBER(FIND(DB$2,$E6,1)),IF(OR($FI6=1,$FP6=1),0,1),0) -> 0 | DE6: =IF(ISNUMBER(FIND(DB$2,$F6,1)),IF(OR($FI6=1,$FP6=1),0,1),0) -> 0 | DF6: =IF(OR($FI6=1,$FP6=1),0,IF(ISNUMBER(FIND(DF$2,$C6,1)),MAX(1-$BZ6,0),0)) -> 0 | DG6: =IF(OR($FI6=1,$FP6=1),0,IF(ISNUMBER(FIND(DF$2,$D6,1)),1,0)) -> 0 | DH6: =IF(ISNUMBER(FIND(DF$2,$E6,1)),IF(OR($FI6=1,$FP6=1),0,1),0) -> 0 | DI6: =IF(ISNUMBER(FIND(DF$2,$F6,1)),IF(OR($FI6=1,$FP6=1),0,1),0) -> 0 | DJ6: =IF(OR($FI6=1,$FP6=1),0,IF(ISNUMBER(FIND(DJ$2,$C6,1)),MAX(1-$BZ6,0),0)) -> 0 | DK6: =IF(OR($FI6=1,$FP6=1),0,IF(ISNUMBER(FIND(DJ$2,$D6,1)),1,0)) -> 0 | DL6: =IF(ISNUMBER(FIND(DJ$2,$E6,1)),IF(OR($FI6=1,$FP6=1),0,1),0) -> 0 | DM6: =IF(ISNUMBER(FIND(DJ$2,$F6,1)),IF(OR($FI6=1,$FP6=1),0,1),0) -> 0 | DN6: =IF(OR($FI6=1,$FP6=1),0,IF(ISNUMBER(FIND(DN$2,$C6,1)),MAX(1-$BZ6,0),0)) -> 0 | DO6: =IF(OR($FI6=1,$FP6=1),0,IF(ISNUMBER(FIND(DN$2,$D6,1)),1,0)) -> 0 | DP6: =IF(ISNUMBER(FIND(DN$2,$E6,1)),IF(OR($FI6=1,$FP6=1),0,1),0) -> 0 | DQ6: =IF(ISNUMBER(FIND(DN$2,$F6,1)),IF(OR($FI6=1,$FP6=1),0,1),0) -> 0 | DR6: =IF(OR($FI6=1,$FP6=1),0,IF(ISNUMBER(FIND(DR$2,$C6,1)),MAX(1-$BZ6,0),0)) -> 0 | DS6: =IF(OR($FI6=1,$FP6=1),0,IF(ISNUMBER(FIND(DR$2,$D6,1)),1,0)) -> 0 | DT6: =IF(ISNUMBER(FIND(DR$2,$E6,1)),IF(OR($FI6=1,$FP6=1),0,1),0) -> 0 | DU6: =IF(ISNUMBER(FIND(DR$2,$F6,1)),IF(OR($FI6=1,$FP6=1),0,1),0) -> 0 | DV6: =IF(OR($FI6=1,$FP6=1),0,IF(ISNUMBER(FIND(DV$2,$C6,1)),MAX(1-$BZ6,0),0)) -> 0 | DW6: =IF(OR($FI6=1,$FP6=1),0,IF(ISNUMBER(FIND(DV$2,$D6,1)),1,0)) -> 0 | DX6: =IF(ISNUMBER(FIND(DV$2,$E6,1)),IF(OR($FI6=1,$FP6=1),0,1),0) -> 0 | DY6: =IF(ISNUMBER(FIND(DV$2,$F6,1)),IF(OR($FI6=1,$FP6=1),0,1),0) -> 0 | DZ6: =IF(OR($FI6=1,$FP6=1),0,IF(ISNUMBER(FIND(DZ$2,$C6,1)),MAX(1-$BZ6,0),0)) -> 0 | EA6: =IF(OR($FI6=1,$FP6=1),0,IF(ISNUMBER(FIND(DZ$2,$D6,1)),1,0)) -> 0 | EB6: =IF(ISNUMBER(FIND(DZ$2,$E6,1)),IF(OR($FI6=1,$FP6=1),0,1),0) -> 0 | EC6: =IF(ISNUMBER(FIND(DZ$2,$F6,1)),IF(OR($FI6=1,$FP6=1),0,1),0) -> 0 | ED6: =IF(OR($FI6=1,$FP6=1),0,IF(ISNUMBER(FIND(ED$2,$C6,1)),MAX(1-$BZ6,0),0)) -> 0 | EE6: =IF(OR($FI6=1,$FP6=1),0,IF(ISNUMBER(FIND(ED$2,$D6,1)),1,0)) -> 0 | EF6: =IF(ISNUMBER(FIND(ED$2,$E6,1)),IF(OR($FI6=1,$FP6=1),0,1),0) -> 0 | EG6: =IF(ISNUMBER(FIND(ED$2,$F6,1)),IF(OR($FI6=1,$FP6=1),0,1),0) -> 0 | EH6: =IF(OR($FI6=1,$FP6=1),0,IF(ISNUMBER(FIND(EH$2,$C6,1)),MAX(1-$BZ6,0),0)) -> 0 | EI6: =IF(OR($FI6=1,$FP6=1),0,IF(ISNUMBER(FIND(EH$2,$D6,1)),1,0)) -> 0 | EJ6: =IF(ISNUMBER(FIND(EH$2,$E6,1)),IF(OR($FI6=1,$FP6=1),0,1),0) -> 0 | EK6: =IF(ISNUMBER(FIND(EH$2,$F6,1)),IF(OR($FI6=1,$FP6=1),0,1),0) -> 0 | EL6: =IF(OR($FI6=1,$FP6=1),0,IF(ISNUMBER(FIND(EL$2,$C6,1)),MAX(1-$BZ6,0),0)) -> 0 | EM6: =IF(OR($FI6=1,$FP6=1),0,IF(ISNUMBER(FIND(EL$2,$D6,1)),1,0)) -> 0 | EN6: =IF(ISNUMBER(FIND(EL$2,$E6,1)),IF(OR($FI6=1,$FP6=1),0,1),0) -> 0 | EO6: =IF(ISNUMBER(FIND(EL$2,$F6,1)),IF(OR($FI6=1,$FP6=1),0,1),0) -> 0 | EP6: =IF(OR($FI6=1,$FP6=1),0,LEN(TRIM(CF6))) -> 0 | EQ6: =IF(OR($FI6=1,$FP6=1),0,LEN(TRIM(CG6))) -> 0 | ER6: =FormKontroljaInRange(CH6) -> 0 | ES6: =IF(OR($FI6=1,$FP6=1),0,LEN(TRIM(CI6))) -> 0 | EU6: =IF(SUM(L6:O6)>0,1,0) -> 1 | EV6: =IF(SUM(P6:S6)>0,1,0) -> 1 | EW6: =IF(SUM(T6:W6)>0,1,0) -> 1 | EX6: =IF(SUM(X6:AA6)>0,1,0) -> 1 | EY6: =IF(SUM(AB6:AE6)>0,1,0) -> 0 | EZ6: =IF(SUM(AF6:AI6)>0,1,0) -> 0 | FA6: =IF(SUM(AJ6:AM6)>0,1,0) -> 0 | FB6: =IF(SUM(AN6:AQ6)>0,1,0) -> 0 | FC6: =IF(SUM(AR6:AU6)>0,1,0) -> 0 | FD6: =IF(SUM(AV6:AY6)>0,1,0) -> 0 | FE6: =IF(SUM(AZ6:BC6)>0,1,0) -> 0 | FF6: =IF(SUM(BD6:BG6)>0,1,0) -> 0 | FG6: =IF(SUM(BH6:BK6)>0,1,0) -> 0 | FH6: =IF(SUM(BL6:BO6)>0,1,0) -> 0 | FI6: 0 | FJ6: 0 | FK6: =IF(AND(OR(LEFT(B6,19)="Физическая культура",LEFT(B6,21)="Физическая подготовка"),FI6<>1),1,0) -> 0 | FL6: 1 | FM6: 133 | FN6: 139 | FO6: В | FP6: 0 | FQ6: =SUM($CB$6:$CB6) -> 1 | FR6: =IF(FI5=1,1,IF(FJ6=1,FR5+1,0)) -> 0 | FS6: 0 | FT6: 0 | FU6: =IF(FT6=0,FLOOR(IF(СЭкзаменами,H6,(H6+SUMIF(Курс1!$AL$7:$AL$75,"="&ROW(),Курс1!$AA$7:$AA$75)+SUMIF(Курс2!$AL$7:$AL$75,"="&ROW(),Курс2!$AA$7:$AA$75)+SUMIF(Курс3!$AL$7:$AL$75,"="&ROW(),Курс3!$AA$7:$AA$75)+SUMIF(Курс4!$AL$7:$AL$75,"="&ROW(),Курс4!$AA$7:$AA$75)+SUMIF(Курс5!$AL$7:$AL$75,"="&ROW(),Курс5!$AA$7:$AA$75)+SUMIF(Курс6!$AL$7:$AL$75,"="&ROW(),Курс6!$AA$7:$AA$75)+SUMIF(Курс7!$AL$7:$AL$75,"="&ROW(),Курс7!$AA$7:$AA$75)))/IF(ЧасовВКредите>0,ЧасовВКредите,36),0.5),FT6) -> 10 | FX6: 0 | FY6: =SUMIF(Курс1!$AL$7:$AL$75,"="&ROW(),Курс1!$AC$7:$AC$75)+SUMIF(Курс2!$AL$7:$AL$75,"="&ROW(),Курс2!$AC$7:$AC$75)+SUMIF(Курс3!$AL$7:$AL$75,"="&ROW(),Курс3!$AC$7:$AC$75)+SUMIF(Курс4!$AL$7:$AL$75,"="&ROW(),Курс4!$AC$7:$AC$75)+SUMIF(Курс5!$AL$7:$AL$75,"="&ROW(),Курс5!$AC$7:$AC$75)+SUMIF(Курс6!$AL$7:$AL$75,"="&ROW(),Курс6!$AC$7:$AC$75)+SUMIF(Курс7!$AL$7:$AL$75,"="&ROW(),Курс7!$AC$7:$AC$75) -> 10
A7: ГСЭ.Ф.2 | B7: Физическая культура | D7: 12345678 | G7: =IF($FI7>0,$FW7,SUM(I7:K7)+CJ7+IF(СЭкзаменами,SUMIF(Курс1!$AL$7:$AL$75,"="&ROW(),Курс1!$AA$7:$AA$75)+SUMIF(Курс2!$AL$7:$AL$75,"="&ROW(),Курс2!$AA$7:$AA$75)+SUMIF(Курс3!$AL$7:$AL$75,"="&ROW(),Курс3!$AA$7:$AA$75)+SUMIF(Курс4!$AL$7:$AL$75,"="&ROW(),Курс4!$AA$7:$AA$75)+SUMIF(Курс5!$AL$7:$AL$75,"="&ROW(),Курс5!$AA$7:$AA$75)+SUMIF(Курс6!$AL$7:$AL$75,"="&ROW(),Курс6!$AA$7:$AA$75)+SUMIF(Курс7!$AL$7:$AL$75,"="&ROW(),Курс7!$AA$7:$AA$75),0)) -> 408 | H7: 408 | I7: =SUM(L7:N7)+SUM(P7:R7)+SUM(T7:V7)+SUM(X7:Z7)+SUM(AB7:AD7)+SUM(AF7:AH7)+SUM(AJ7:AL7)+SUM(AN7:AP7)+SUM(AR7:AT7)+SUM(AV7:AX7)+SUM(AZ7:BB7)+SUM(BD7:BF7)+SUM(BH7:BJ7)+SUM(BL7:BN7) -> 378 | J7: =O7+S7+W7+AA7+AE7+AI7+AM7+AQ7+AU7+AY7+BC7+BG7+BK7+BO7 -> 0 | K7: 30 | L7: 8 | N7: 28 | P7: 6 | R7: 48 | T7: 8 | V7: 46 | X7: 6 | Z7: 48 | AB7: 4 | AD7: 50 | AF7: 4 | AH7: 38 | AL7: 54 | AP7: 30 | BP7: 21 | BQ7: =IF(SUM($L7:$S7)>0,SUM($L7:$S7)/SUM($L7:$BO7),0) -> 0.2380952381 | BR7: =IF(SUM($T7:$AA7)>0,SUM($T7:$AA7)/SUM($L7:$BO7),0) -> 0.2857142857 | BS7: =IF(SUM($AB7:$AI7)>0,SUM($AB7:$AI7)/SUM($L7:$BO7),0) -> 0.253968254 | BT7: =IF(SUM($AJ7:$AQ7)>0,SUM($AJ7:$AQ7)/SUM($L7:$BO7),0) -> 0.2222222222 | BU7: =IF(SUM($AR7:$AY7)>0,SUM($AR7:$AY7)/SUM($L7:$BO7),0) -> 0 | BV7: =IF(SUM($AZ7:$BG7)>0,SUM($AZ7:$BG7)/SUM($L7:$BO7),0) -> 0 | BW7: =IF(SUM($BH7:$BO7)>0,SUM($BH7:$BO7)/SUM($L7:$BO7),0) -> 0 | BX7: 0 | BY7: 1096.634921 | BZ7: 0 | CA7: 2 | CB7: =IF(OR(TRIM(B7)="",FJ7=1),0,1) -> 1 | CC7: 1 | CE7: 0 | CJ7: 0 | CK7: 408 | CL7: =IF(OR($FI7=1,$FP7=1),0,IF(ISNUMBER(FIND(CL$2,$C7,1)),MAX(1-$BZ7,0),0)) -> 0 | CM7: =IF(OR($FI7=1,$FP7=1),0,IF(ISNUMBER(FIND(CL$2,$D7,1)),1,0)) -> 0 | CN7: =IF(ISNUMBER(FIND(CL$2,$E7,1)),IF(OR(FI7=1,$FP7=1),0,1),0) -> 0 | CO7: =IF(ISNUMBER(FIND(CL$2,$F7,1)),IF(OR(FI7=1,$FP7=1),0,1),0) -> 0 | CP7: =IF(OR($FI7=1,$FP7=1),0,IF(ISNUMBER(FIND(CP$2,$C7,1)),MAX(1-$BZ7,0),0)) -> 0 | CQ7: =IF(OR($FI7=1,$FP7=1),0,IF(ISNUMBER(FIND(CP$2,$D7,1)),1,0)) -> 0 | CR7: =IF(ISNUMBER(FIND(CP$2,$E7,1)),IF(OR(FI7=1,$FP7=1),0,1),0) -> 0 | CS7: =IF(ISNUMBER(FIND(CP$2,$F7,1)),IF(OR($FI7=1,$FP7=1),0,1),0) -> 0 | CT7: =IF(OR($FI7=1,$FP7=1),0,IF(ISNUMBER(FIND(CT$2,$C7,1)),MAX(1-$BZ7,0),0)) -> 0 | CU7: =IF(OR($FI7=1,$FP7=1),0,IF(ISNUMBER(FIND(CT$2,$D7,1)),1,0)) -> 0 | CV7: =IF(ISNUMBER(FIND(CT$2,$E7,1)),IF(OR($FI7=1,$FP7=1),0,1),0) -> 0 | CW7: =IF(ISNUMBER(FIND(CT$2,$F7,1)),IF(OR($FI7=1,$FP7=1),0,1),0) -> 0 | CX7: =IF(OR($FI7=1,$FP7=1),0,IF(ISNUMBER(FIND(CX$2,$C7,1)),MAX(1-$BZ7,0),0)) -> 0 | CY7: =IF(OR($FI7=1,$FP7=1),0,IF(ISNUMBER(FIND(CX$2,$D7,1)),1,0)) -> 0 | CZ7: =IF(ISNUMBER(FIND(CX$2,$E7,1)),IF(OR($FI7=1,$FP7=1),0,1),0) -> 0 | DA7: =IF(ISNUMBER(FIND(CX$2,$F7,1)),IF(OR($FI7=1,$FP7=1),0,1),0) -> 0 | DB7: =IF(OR($FI7=1,$FP7=1),0,IF(ISNUMBER(FIND(DB$2,$C7,1)),MAX(1-$BZ7,0),0)) -> 0 | DC7: =IF(OR($FI7=1,$FP7=1),0,IF(ISNUMBER(FIND(DB$2,$D7,1)),1,0)) -> 0 | DD7: =IF(ISNUMBER(FIND(DB$2,$E7,1)),IF(OR($FI7=1,$FP7=1),0,1),0) -> 0 | DE7: =IF(ISNUMBER(FIND(DB$2,$F7,1)),IF(OR($FI7=1,$FP7=1),0,1),0) -> 0 | DF7: =IF(OR($FI7=1,$FP7=1),0,IF(ISNUMBER(FIND(DF$2,$C7,1)),MAX(1-$BZ7,0),0)) -> 0 | DG7: =IF(OR($FI7=1,$FP7=1),0,IF(ISNUMBER(FIND(DF$2,$D7,1)),1,0)) -> 0 | DH7: =IF(ISNUMBER(FIND(DF$2,$E7,1)),IF(OR($FI7=1,$FP7=1),0,1),0) -> 0 | DI7: =IF(ISNUMBER(FIND(DF$2,$F7,1)),IF(OR($FI7=1,$FP7=1),0,1),0) -> 0 | DJ7: =IF(OR($FI7=1,$FP7=1),0,IF(ISNUMBER(FIND(DJ$2,$C7,1)),MAX(1-$BZ7,0),0)) -> 0 | DK7: =IF(OR($FI7=1,$FP7=1),0,IF(ISNUMBER(FIND(DJ$2,$D7,1)),1,0)) -> 0 | DL7: =IF(ISNUMBER(FIND(DJ$2,$E7,1)),IF(OR($FI7=1,$FP7=1),0,1),0) -> 0 | DM7: =IF(ISNUMBER(FIND(DJ$2,$F7,1)),IF(OR($FI7=1,$FP7=1),0,1),0) -> 0 | DN7: =IF(OR($FI7=1,$FP7=1),0,IF(ISNUMBER(FIND(DN$2,$C7,1)),MAX(1-$BZ7,0),0)) -> 0 | DO7: =IF(OR($FI7=1,$FP7=1),0,IF(ISNUMBER(FIND(DN$2,$D7,1)),1,0)) -> 0 | DP7: =IF(ISNUMBER(FIND(DN$2,$E7,1)),IF(OR($FI7=1,$FP7=1),0,1),0) -> 0 | DQ7: =IF(ISNUMBER(FIND(DN$2,$F7,1)),IF(OR($FI7=1,$FP7=1),0,1),0) -> 0 | DR7: =IF(OR($FI7=1,$FP7=1),0,IF(ISNUMBER(FIND(DR$2,$C7,1)),MAX(1-$BZ7,0),0)) -> 0 | DS7: =IF(OR($FI7=1,$FP7=1),0,IF(ISNUMBER(FIND(DR$2,$D7,1)),1,0)) -> 0 | DT7: =IF(ISNUMBER(FIND(DR$2,$E7,1)),IF(OR($FI7=1,$FP7=1),0,1),0) -> 0 | DU7: =IF(ISNUMBER(FIND(DR$2,$F7,1)),IF(OR($FI7=1,$FP7=1),0,1),0) -> 0 | DV7: =IF(OR($FI7=1,$FP7=1),0,IF(ISNUMBER(FIND(DV$2,$C7,1)),MAX(1-$BZ7,0),0)) -> 0 | DW7: =IF(OR($FI7=1,$FP7=1),0,IF(ISNUMBER(FIND(DV$2,$D7,1)),1,0)) -> 0 | DX7: =IF(ISNUMBER(FIND(DV$2,$E7,1)),IF(OR($FI7=1,$FP7=1),0,1),0) -> 0 | DY7: =IF(ISNUMBER(FIND(DV$2,$F7,1)),IF(OR($FI7=1,$FP7=1),0,1),0) -> 0 | DZ7: =IF(OR($FI7=1,$FP7=1),0,IF(ISNUMBER(FIND(DZ$2,$C7,1)),MAX(1-$BZ7,0),0)) -> 0 | EA7: =IF(OR($FI7=1,$FP7=1),0,IF(ISNUMBER(FIND(DZ$2,$D7,1)),1,0)) -> 0 | EB7: =IF(ISNUMBER(FIND(DZ$2,$E7,1)),IF(OR($FI7=1,$FP7=1),0,1),0) -> 0 | EC7: =IF(ISNUMBER(FIND(DZ$2,$F7,1)),IF(OR($FI7=1,$FP7=1),0,1),0) -> 0 | ED7: =IF(OR($FI7=1,$FP7=1),0,IF(ISNUMBER(FIND(ED$2,$C7,1)),MAX(1-$BZ7,0),0)) -> 0 | EE7: =IF(OR($FI7=1,$FP7=1),0,IF(ISNUMBER(FIND(ED$2,$D7,1)),1,0)) -> 0 | EF7: =IF(ISNUMBER(FIND(ED$2,$E7,1)),IF(OR($FI7=1,$FP7=1),0,1),0) -> 0 | EG7: =IF(ISNUMBER(FIND(ED$2,$F7,1)),IF(OR($FI7=1,$FP7=1),0,1),0) -> 0 | EH7: =IF(OR($FI7=1,$FP7=1),0,IF(ISNUMBER(FIND(EH$2,$C7,1)),MAX(1-$BZ7,0),0)) -> 0 | EI7: =IF(OR($FI7=1,$FP7=1),0,IF(ISNUMBER(FIND(EH$2,$D7,1)),1,0)) -> 0 | EJ7: =IF(ISNUMBER(FIND(EH$2,$E7,1)),IF(OR($FI7=1,$FP7=1),0,1),0) -> 0 | EK7: =IF(ISNUMBER(FIND(EH$2,$F7,1)),IF(OR($FI7=1,$FP7=1),0,1),0) -> 0 | EL7: =IF(OR($FI7=1,$FP7=1),0,IF(ISNUMBER(FIND(EL$2,$C7,1)),MAX(1-$BZ7,0),0)) -> 0 | EM7: =IF(OR($FI7=1,$FP7=1),0,IF(ISNUMBER(FIND(EL$2,$D7,1)),1,0)) -> 0 | EN7: =IF(ISNUMBER(FIND(EL$2,$E7,1)),IF(OR($FI7=1,$FP7=1),0,1),0) -> 0 | EO7: =IF(ISNUMBER(FIND(EL$2,$F7,1)),IF(OR($FI7=1,$FP7=1),0,1),0) -> 0 | EP7: =IF(OR($FI7=1,$FP7=1),0,LEN(TRIM(CF7))) -> 0 | EQ7: =IF(OR($FI7=1,$FP7=1),0,LEN(TRIM(CG7))) -> 0 | ER7: 0 | ES7: =IF(OR($FI7=1,$FP7=1),0,LEN(TRIM(CI7))) -> 0 | EU7: =IF(SUM(L7:O7)>0,1,0) -> 1 | EV7: 1 | EW7: 1 | EX7: 1 | EY7: 1 | EZ7: 1 | FA7: 1 | FB7: 1 | FC7: 0 | FD7: 0 | FE7: 0 | FF7: =IF(SUM(BD7:BG7)>0,1,0) -> 0 | FG7: =IF(SUM(BH7:BK7)>0,1,0) -> 0 | FH7: =IF(SUM(BL7:BO7)>0,1,0) -> 0 | FI7: 0 | FJ7: 0 | FK7: 1 | FL7: 1 | FM7: 143 | FN7: 149 | FO7: В | FP7: 1 | FQ7: =SUM($CB$6:$CB7) -> 2 | FR7: =IF(FI6=1,1,IF(FJ7=1,FR6+1,0)) -> 0 | FS7: 0 | FT7: 0 | FU7: =IF(FT7=0,FLOOR(IF(СЭкзаменами,H7,(H7+SUMIF(Курс1!$AL$7:$AL$75,"="&ROW(),Курс1!$AA$7:$AA$75)+SUMIF(Курс2!$AL$7:$AL$75,"="&ROW(),Курс2!$AA$7:$AA$75)+SUMIF(Курс3!$AL$7:$AL$75,"="&ROW(),Курс3!$AA$7:$AA$75)+SUMIF(Курс4!$AL$7:$AL$75,"="&ROW(),Курс4!$AA$7:$AA$75)+SUMIF(Курс5!$AL$7:$AL$75,"="&ROW(),Курс5!$AA$7:$AA$75)+SUMIF(Курс6!$AL$7:$AL$75,"="&ROW(),Курс6!$AA$7:$AA$75)+SUMIF(Курс7!$AL$7:$AL$75,"="&ROW(),Курс7!$AA$7:$AA$75)))/IF(ЧасовВКредите>0,ЧасовВКредите,36),0.5),FT7) -> 11 | FX7: 0 | FY7: =SUMIF(Курс1!$AL$7:$AL$75,"="&ROW(),Курс1!$AC$7:$AC$75)+SUMIF(Курс2!$AL$7:$AL$75,"="&ROW(),Курс2!$AC$7:$AC$75)+SUMIF(Курс3!$AL$7:$AL$75,"="&ROW(),Курс3!$AC$7:$AC$75)+SUMIF(Курс4!$AL$7:$AL$75,"="&ROW(),Курс4!$AC$7:$AC$75)+SUMIF(Курс5!$AL$7:$AL$75,"="&ROW(),Курс5!$AC$7:$AC$75)+SUMIF(Курс6!$AL$7:$AL$75,"="&ROW(),Курс6!$AC$7:$AC$75)+SUMIF(Курс7!$AL$7:$AL$75,"="&ROW(),Курс7!$AC$7:$AC$75) -> 11
A8: ГСЭ.Ф.3 | B8: Отечественная история | C8: 2 | G8: =IF($FI8>0,$FW8,SUM(I8:K8)+CJ8+IF(СЭкзаменами,SUMIF(Курс1!$AL$7:$AL$75,"="&ROW(),Курс1!$AA$7:$AA$75)+SUMIF(Курс2!$AL$7:$AL$75,"="&ROW(),Курс2!$AA$7:$AA$75)+SUMIF(Курс3!$AL$7:$AL$75,"="&ROW(),Курс3!$AA$7:$AA$75)+SUMIF(Курс4!$AL$7:$AL$75,"="&ROW(),Курс4!$AA$7:$AA$75)+SUMIF(Курс5!$AL$7:$AL$75,"="&ROW(),Курс5!$AA$7:$AA$75)+SUMIF(Курс6!$AL$7:$AL$75,"="&ROW(),Курс6!$AA$7:$AA$75)+SUMIF(Курс7!$AL$7:$AL$75,"="&ROW(),Курс7!$AA$7:$AA$75),0)) -> 136 | H8: 136 | I8: 72 | J8: 0 | K8: 64 | P8: 36 | R8: 36 | BP8: 1 | BQ8: 1 | BR8: 0 | BS8: 0 | BT8: 0 | BU8: 0 | BV8: 0 | BW8: 0 | BX8: 0 | BY8: 163.8285714 | BZ8: 0 | CA8: 3 | CB8: 1 | CC8: 1 | CE8: 1 | CJ8: 0 | CK8: 136 | CL8: 0 | CM8: 0 | CN8: 0 | CO8: 0 | CP8: 1 | CQ8: 0 | CR8: 0 | CS8: 0 | CT8: 0 | CU8: 0 | CV8: 0 | CW8: 0 | CX8: 0 | CY8: 0 | CZ8: 0 | DA8: 0 | DB8: 0 | DC8: 0 | DD8: 0 | DE8: 0 | DF8: 0 | DG8: 0 | DH8: 0 | DI8: 0 | DJ8: 0 | DK8: 0 | DL8: 0 | DM8: 0 | DN8: 0 | DO8: 0 | DP8: 0 | DQ8: 0 | DR8: 0 | DS8: 0 | DT8: 0 | DU8: 0 | DV8: 0 | DW8: 0 | DX8: 0 | DY8: 0 | DZ8: 0 | EA8: 0 | EB8: 0 | EC8: 0 | ED8: 0 | EE8: 0 | EF8: 0 | EG8: 0 | EH8: 0 | EI8: 0 | EJ8: 0 | EK8: 0 | EL8: 0 | EM8: 0 | EN8: 0 | EO8: 0 | EP8: 0 | EQ8: 0 | ER8: 0 | ES8: 0 | EU8: 0 | EV8: 1 | EW8: 0 | EX8: 0 | EY8: 0 | EZ8: 0 | FA8: 0 | FB8: 0 | FC8: 0 | FD8: 0 | FE8: 0 | FF8: 0 | FG8: 0 | FH8: 0 | FI8: 0 | FJ8: 0 | FK8: 0 | FL8: 1 | FM8: 153 | FN8: 159 | FO8: В | FP8: 0 | FQ8: =SUM($CB$6:$CB8) -> 3 | FR8: 0 | FS8: 0 | FT8: 0 | FU8: =IF(FT8=0,FLOOR(IF(СЭкзаменами,H8,(H8+SUMIF(Курс1!$AL$7:$AL$75,"="&ROW(),Курс1!$AA$7:$AA$75)+SUMIF(Курс2!$AL$7:$AL$75,"="&ROW(),Курс2!$AA$7:$AA$75)+SUMIF(Курс3!$AL$7:$AL$75,"="&ROW(),Курс3!$AA$7:$AA$75)+SUMIF(Курс4!$AL$7:$AL$75,"="&ROW(),Курс4!$AA$7:$AA$75)+SUMIF(Курс5!$AL$7:$AL$75,"="&ROW(),Курс5!$AA$7:$AA$75)+SUMIF(Курс6!$AL$7:$AL$75,"="&ROW(),Курс6!$AA$7:$AA$75)+SUMIF(Курс7!$AL$7:$AL$75,"="&ROW(),Курс7!$AA$7:$AA$75)))/IF(ЧасовВКредите>0,ЧасовВКредите,36),0.5),FT8) -> 4.5 | FX8: 0 | FY8: =SUMIF(Курс1!$AL$7:$AL$75,"="&ROW(),Курс1!$AC$7:$AC$75)+SUMIF(Курс2!$AL$7:$AL$75,"="&ROW(),Курс2!$AC$7:$AC$75)+SUMIF(Курс3!$AL$7:$AL$75,"="&ROW(),Курс3!$AC$7:$AC$75)+SUMIF(Курс4!$AL$7:$AL$75,"="&ROW(),Курс4!$AC$7:$AC$75)+SUMIF(Курс5!$AL$7:$AL$75,"="&ROW(),Курс5!$AC$7:$AC$75)+SUMIF(Курс6!$AL$7:$AL$75,"="&ROW(),Курс6!$AC$7:$AC$75)+SUMIF(Курс7!$AL$7:$AL$75,"="&ROW(),Курс7!$AC$7:$AC$75) -> 4.5
A9: ГСЭ.Ф.4 | B9: Философия | C9: 3 | G9: =IF($FI9>0,$FW9,SUM(I9:K9)+CJ9+IF(СЭкзаменами,SUMIF(Курс1!$AL$7:$AL$75,"="&ROW(),Курс1!$AA$7:$AA$75)+SUMIF(Курс2!$AL$7:$AL$75,"="&ROW(),Курс2!$AA$7:$AA$75)+SUMIF(Курс3!$AL$7:$AL$75,"="&ROW(),Курс3!$AA$7:$AA$75)+SUMIF(Курс4!$AL$7:$AL$75,"="&ROW(),Курс4!$AA$7:$AA$75)+SUMIF(Курс5!$AL$7:$AL$75,"="&ROW(),Курс5!$AA$7:$AA$75)+SUMIF(Курс6!$AL$7:$AL$75,"="&ROW(),Курс6!$AA$7:$AA$75)+SUMIF(Курс7!$AL$7:$AL$75,"="&ROW(),Курс7!$AA$7:$AA$75),0)) -> 144 | H9: 144 | I9: 72 | J9: 0 | K9: 72 | T9: 36 | V9: 36 | BP9: 2 | BQ9: 0 | BR9: 1 | BS9: 0 | BT9: 0 | BU9: 0 | BV9: 0 | BW9: 0 | BX9: 0 | BY9: 309.9071429 | BZ9: 0 | CA9: 1 | CB9: 1 | CC9: 1 | CE9: 1 | CJ9: 0 | CK9: 144 | CL9: 0 | CM9: 0 | CN9: 0 | CO9: 0 | CP9: 0 | CQ9: 0 | CR9: 0 | CS9: 0 | CT9: 1 | CU9: 0 | CV9: 0 | CW9: 0 | CX9: 0 | CY9: 0 | CZ9: 0 | DA9: 0 | DB9: 0 | DC9: 0 | DD9: 0 | DE9: 0 | DF9: 0 | DG9: 0 | DH9: 0 | DI9: 0 | DJ9: 0 | DK9: 0 | DL9: 0 | DM9: 0 | DN9: 0 | DO9: 0 | DP9: 0 | DQ9: 0 | DR9: 0 | DS9: 0 | DT9: 0 | DU9: 0 | DV9: 0 | DW9: 0 | DX9: 0 | DY9: 0 | DZ9: 0 | EA9: 0 | EB9: 0 | EC9: 0 | ED9: 0 | EE9: 0 | EF9: 0 | EG9: 0 | EH9: 0 | EI9: 0 | EJ9: 0 | EK9: 0 | EL9: 0 | EM9: 0 | EN9: 0 | EO9: 0 | EP9: 0 | EQ9: 0 | ER9: 0 | ES9: 0 | EU9: 0 | EV9: 0 | EW9: 1 | EX9: 0 | EY9: 0 | EZ9: 0 | FA9: 0 | FB9: 0 | FC9: 0 | FD9: 0 | FE9: 0 | FF9: 0 | FG9: 0 | FH9: 0 | FI9: 0 | FJ9: 0 | FK9: 0 | FL9: 1 | FM9: 163 | FN9: 169 | FO9: В | FP9: 0 | FQ9: =SUM($CB$6:$CB9) -> 4 | FR9: 0 | FS9: 0 | FT9: 0 | FU9: =IF(FT9=0,FLOOR(IF(СЭкзаменами,H9,(H9+SUMIF(Курс1!$AL$7:$AL$75,"="&ROW(),Курс1!$AA$7:$AA$75)+SUMIF(Курс2!$AL$7:$AL$75,"="&ROW(),Курс2!$AA$7:$AA$75)+SUMIF(Курс3!$AL$7:$AL$75,"="&ROW(),Курс3!$AA$7:$AA$75)+SUMIF(Курс4!$AL$7:$AL$75,"="&ROW(),Курс4!$AA$7:$AA$75)+SUMIF(Курс5!$AL$7:$AL$75,"="&ROW(),Курс5!$AA$7:$AA$75)+SUMIF(Курс6!$AL$7:$AL$75,"="&ROW(),Курс6!$AA$7:$AA$75)+SUMIF(Курс7!$AL$7:$AL$75,"="&ROW(),Курс7!$AA$7:$AA$75)))/IF(ЧасовВКредите>0,ЧасовВКредите,36),0.5),FT9) -> 4.5 | FX9: 0 | FY9: =SUMIF(Курс1!$AL$7:$AL$75,"="&ROW(),Курс1!$AC$7:$AC$75)+SUMIF(Курс2!$AL$7:$AL$75,"="&ROW(),Курс2!$AC$7:$AC$75)+SUMIF(Курс3!$AL$7:$AL$75,"="&ROW(),Курс3!$AC$7:$AC$75)+SUMIF(Курс4!$AL$7:$AL$75,"="&ROW(),Курс4!$AC$7:$AC$75)+SUMIF(Курс5!$AL$7:$AL$75,"="&ROW(),Курс5!$AC$7:$AC$75)+SUMIF(Курс6!$AL$7:$AL$75,"="&ROW(),Курс6!$AC$7:$AC$75)+SUMIF(Курс7!$AL$7:$AL$75,"="&ROW(),Курс7!$AC$7:$AC$75) -> 4.5
A10: ГСЭ.Ф.5 | B10: Психология и педагогика | C10: 2 | G10: =IF($FI10>0,$FW10,SUM(I10:K10)+CJ10+IF(СЭкзаменами,SUMIF(Курс1!$AL$7:$AL$75,"="&ROW(),Курс1!$AA$7:$AA$75)+SUMIF(Курс2!$AL$7:$AL$75,"="&ROW(),Курс2!$AA$7:$AA$75)+SUMIF(Курс3!$AL$7:$AL$75,"="&ROW(),Курс3!$AA$7:$AA$75)+SUMIF(Курс4!$AL$7:$AL$75,"="&ROW(),Курс4!$AA$7:$AA$75)+SUMIF(Курс5!$AL$7:$AL$75,"="&ROW(),Курс5!$AA$7:$AA$75)+SUMIF(Курс6!$AL$7:$AL$75,"="&ROW(),Курс6!$AA$7:$AA$75)+SUMIF(Курс7!$AL$7:$AL$75,"="&ROW(),Курс7!$AA$7:$AA$75),0)) -> 108 | H10: 108 | I10: 54 | J10: 0 | K10: 54 | P10: 36 | R10: 18 | BP10: 4 | BQ10: 1 | BR10: 0 | BS10: 0 | BT10: 0 | BU10: 0 | BV10: 0 | BW10: 0 | BX10: 0 | BY10: 131.8285714 | BZ10: 0 | CA10: 3 | CB10: 1 | CC10: 1 | CE10: 1 | CJ10: 0 | CK10: 108 | CL10: 0 | CM10: 0 | CN10: 0 | CO10: 0 | CP10: 1 | CQ10: 0 | CR10: 0 | CS10: 0 | CT10: 0 | CU10: 0 | CV10: 0 | CW10: 0 | CX10: 0 | CY10: 0 | CZ10: 0 | DA10: 0 | DB10: 0 | DC10: 0 | DD10: 0 | DE10: 0 | DF10: 0 | DG10: 0 | DH10: 0 | DI10: 0 | DJ10: 0 | DK10: 0 | DL10: 0 | DM10: 0 | DN10: 0 | DO10: 0 | DP10: 0 | DQ10: 0 | DR10: 0 | DS10: 0 | DT10: 0 | DU10: 0 | DV10: 0 | DW10: 0 | DX10: 0 | DY10: 0 | DZ10: 0 | EA10: 0 | EB10: 0 | EC10: 0 | ED10: 0 | EE10: 0 | EF10: 0 | EG10: 0 | EH10: 0 | EI10: 0 | EJ10: 0 | EK10: 0 | EL10: 0 | EM10: 0 | EN10: 0 | EO10: 0 | EP10: 0 | EQ10: 0 | ER10: 0 | ES10: 0 | EU10: 0 | EV10: 1 | EW10: 0 | EX10: 0 | EY10: 0 | EZ10: 0 | FA10: 0 | FB10: 0 | FC10: 0 | FD10: 0 | FE10: 0 | FF10: 0 | FG10: 0 | FH10: 0 | FI10: 0 | FJ10: 0 | FK10: 0 | FL10: 1 | FM10: 173 | FN10: 179 | FO10: В | FP10: 0 | FQ10: =SUM($CB$6:$CB10) -> 5 | FR10: 0 | FS10: 0 | FT10: 0 | FU10: =IF(FT10=0,FLOOR(IF(СЭкзаменами,H10,(H10+SUMIF(Курс1!$AL$7:$AL$75,"="&ROW(),Курс1!$AA$7:$AA$75)+SUMIF(Курс2!$AL$7:$AL$75,"="&ROW(),Курс2!$AA$7:$AA$75)+SUMIF(Курс3!$AL$7:$AL$75,"="&ROW(),Курс3!$AA$7:$AA$75)+SUMIF(Курс4!$AL$7:$AL$75,"="&ROW(),Курс4!$AA$7:$AA$75)+SUMIF(Курс5!$AL$7:$AL$75,"="&ROW(),Курс5!$AA$7:$AA$75)+SUMIF(Курс6!$AL$7:$AL$75,"="&ROW(),Курс6!$AA$7:$AA$75)+SUMIF(Курс7!$AL$7:$AL$75,"="&ROW(),Курс7!$AA$7:$AA$75)))/IF(ЧасовВКредите>0,ЧасовВКредите,36),0.5),FT10) -> 3.5 | FX10: 0 | FY10: =SUMIF(Курс1!$AL$7:$AL$75,"="&ROW(),Курс1!$AC$7:$AC$75)+SUMIF(Курс2!$AL$7:$AL$75,"="&ROW(),Курс2!$AC$7:$AC$75)+SUMIF(Курс3!$AL$7:$AL$75,"="&ROW(),Курс3!$AC$7:$AC$75)+SUMIF(Курс4!$AL$7:$AL$75,"="&ROW(),Курс4!$AC$7:$AC$75)+SUMIF(Курс5!$AL$7:$AL$75,"="&ROW(),Курс5!$AC$7:$AC$75)+SUMIF(Курс6!$AL$7:$AL$75,"="&ROW(),Курс6!$AC$7:$AC$75)+SUMIF(Курс7!$AL$7:$AL$75,"="&ROW(),Курс7!$AC$7:$AC$75) -> 3.5
A11: ГСЭ.Ф.6 | B11: Экономика | C11: 4 | G11: =IF($FI11>0,$FW11,SUM(I11:K11)+CJ11+IF(СЭкзаменами,SUMIF(Курс1!$AL$7:$AL$75,"="&ROW(),Курс1!$AA$7:$AA$75)+SUMIF(Курс2!$AL$7:$AL$75,"="&ROW(),Курс2!$AA$7:$AA$75)+SUMIF(Курс3!$AL$7:$AL$75,"="&ROW(),Курс3!$AA$7:$AA$75)+SUMIF(Курс4!$AL$7:$AL$75,"="&ROW(),Курс4!$AA$7:$AA$75)+SUMIF(Курс5!$AL$7:$AL$75,"="&ROW(),Курс5!$AA$7:$AA$75)+SUMIF(Курс6!$AL$7:$AL$75,"="&ROW(),Курс6!$AA$7:$AA$75)+SUMIF(Курс7!$AL$7:$AL$75,"="&ROW(),Курс7!$AA$7:$AA$75),0)) -> 124 | H11: 124 | I11: 72 | J11: 0 | K11: 52 | X11: 36 | Z11: 36 | BP11: 10 | BQ11: 0 | BR11: 1 | BS11: 0 | BT11: 0 | BU11: 0 | BV11: 0 | BW11: 0 | BX11: 0 | BY11: 268.9547619 | BZ11: 0 | CA11: 3 | CB11: 1 | CC11: 1 | CE11: 1 | CJ11: 0 | CK11: 124 | CL11: 0 | CM11: 0 | CN11: 0 | CO11: 0 | CP11: 0 | CQ11: 0 | CR11: 0 | CS11: 0 | CT11: 0 | CU11: 0 | CV11: 0 | CW11: 0 | CX11: 1 | CY11: 0 | CZ11: 0 | DA11: 0 | DB11: 0 | DC11: 0 | DD11: 0 | DE11: 0 | DF11: 0 | DG11: 0 | DH11: 0 | DI11: 0 | DJ11: 0 | DK11: 0 | DL11: 0 | DM11: 0 | DN11: 0 | DO11: 0 | DP11: 0 | DQ11: 0 | DR11: 0 | DS11: 0 | DT11: 0 | DU11: 0 | DV11: 0 | DW11: 0 | DX11: 0 | DY11: 0 | DZ11: 0 | EA11: 0 | EB11: 0 | EC11: 0 | ED11: 0 | EE11: 0 | EF11: 0 | EG11: 0 | EH11: 0 | EI11: 0 | EJ11: 0 | EK11: 0 | EL11: 0 | EM11: 0 | EN11: 0 | EO11: 0 | EP11: 0 | EQ11: 0 | ER11: 0 | ES11: 0 | EU11: 0 | EV11: 0 | EW11: 0 | EX11: 1 | EY11: 0 | EZ11: 0 | FA11: 0 | FB11: 0 | FC11: 0 | FD11: 0 | FE11: 0 | FF11: 0 | FG11: 0 | FH11: 0 | FI11: 0 | FJ11: 0 | FK11: 0 | FL11: 1 | FM11: 183 | FN11: 189 | FO11: В | FP11: 0 | FQ11: =SUM($CB$6:$CB11) -> 6 | FR11: 0 | FS11: 0 | FT11: 0 | FU11: =IF(FT11=0,FLOOR(IF(СЭкзаменами,H11,(H11+SUMIF(Курс1!$AL$7:$AL$75,"="&ROW(),Курс1!$AA$7:$AA$75)+SUMIF(Курс2!$AL$7:$AL$75,"="&ROW(),Курс2!$AA$7:$AA$75)+SUMIF(Курс3!$AL$7:$AL$75,"="&ROW(),Курс3!$AA$7:$AA$75)+SUMIF(Курс4!$AL$7:$AL$75,"="&ROW(),Курс4!$AA$7:$AA$75)+SUMIF(Курс5!$AL$7:$AL$75,"="&ROW(),Курс5!$AA$7:$AA$75)+SUMIF(Курс6!$AL$7:$AL$75,"="&ROW(),Курс6!$AA$7:$AA$75)+SUMIF(Курс7!$AL$7:$AL$75,"="&ROW(),Курс7!$AA$7:$AA$75)))/IF(ЧасовВКредите>0,ЧасовВКредите,36),0.5),FT11) -> 4 | FX11: 0 | FY11: =SUMIF(Курс1!$AL$7:$AL$75,"="&ROW(),Курс1!$AC$7:$AC$75)+SUMIF(Курс2!$AL$7:$AL$75,"="&ROW(),Курс2!$AC$7:$AC$75)+SUMIF(Курс3!$AL$7:$AL$75,"="&ROW(),Курс3!$AC$7:$AC$75)+SUMIF(Курс4!$AL$7:$AL$75,"="&ROW(),Курс4!$AC$7:$AC$75)+SUMIF(Курс5!$AL$7:$AL$75,"="&ROW(),Курс5!$AC$7:$AC$75)+SUMIF(Курс6!$AL$7:$AL$75,"="&ROW(),Курс6!$AC$7:$AC$75)+SUMIF(Курс7!$AL$7:$AL$75,"="&ROW(),Курс7!$AC$7:$AC$75) -> 4
G12: =IF($FI12>0,$FW12,SUM(I12:K12)+CJ12+IF(СЭкзаменами,SUMIF(Курс1!$AL$7:$AL$75,"="&ROW(),Курс1!$AA$7:$AA$75)+SUMIF(Курс2!$AL$7:$AL$75,"="&ROW(),Курс2!$AA$7:$AA$75)+SUMIF(Курс3!$AL$7:$AL$75,"="&ROW(),Курс3!$AA$7:$AA$75)+SUMIF(Курс4!$AL$7:$AL$75,"="&ROW(),Курс4!$AA$7:$AA$75)+SUMIF(Курс5!$AL$7:$AL$75,"="&ROW(),Курс5!$AA$7:$AA$75)+SUMIF(Курс6!$AL$7:$AL$75,"="&ROW(),Курс6!$AA$7:$AA$75)+SUMIF(Курс7!$AL$7:$AL$75,"="&ROW(),Курс7!$AA$7:$AA$75),0)) -> 0 | I12: 0 | J12: 0 | BQ12: 0 | BR12: 0 | BS12: 0 | BT12: 0 | BU12: 0 | BV12: 0 | BW12: 0 | BY12: 0 | BZ12: 0 | CA12: 0 | CB12: 0 | CC12: 0 | CE12: 0 | CK12: 0 | CL12: 0 | CM12: 0 | CN12: 0 | CO12: 0 | CP12: 0 | CQ12: 0 | CR12: 0 | CS12: 0 | CT12: 0 | CU12: 0 | CV12: 0 | CW12: 0 | CX12: 0 | CY12: 0 | CZ12: 0 | DA12: 0 | DB12: 0 | DC12: 0 | DD12: 0 | DE12: 0 | DF12: 0 | DG12: 0 | DH12: 0 | DI12: 0 | DJ12: 0 | DK12: 0 | DL12: 0 | DM12: 0 | DN12: 0 | DO12: 0 | DP12: 0 | DQ12: 0 | DR12: 0 | DS12: 0 | DT12: 0 | DU12: 0 | DV12: 0 | DW12: 0 | DX12: 0 | DY12: 0 | DZ12: 0 | EA12: 0 | EB12: 0 | EC12: 0 | ED12: 0 | EE12: 0 | EF12: 0 | EG12: 0 | EH12: 0 | EI12: 0 | EJ12: 0 | EK12: 0 | EL12: 0 | EM12: 0 | EN12: 0 | EO12: 0 | EP12: 0 | EQ12: 0 | ER12: 0 | ES12: 0 | EU12: 0 | EV12: 0 | EW12: 0 | EX12: 0 | EY12: 0 | EZ12: 0 | FA12: 0 | FB12: 0 | FC12: 0 | FD12: 0 | FE12: 0 | FF12: 0 | FG12: 0 | FH12: 0 | FI12: 0 | FJ12: 0 | FK12: 0 | FL12: 1 | FM12: 193 | FN12: 199 | FO12: В | FP12: 0 | FQ12: =SUM($CB$6:$CB12) -> 6 | FR12: 0 | FS12: 0 | FT12: 0 | FU12: =IF(FT12=0,FLOOR(IF(СЭкзаменами,H12,(H12+SUMIF(Курс1!$AL$7:$AL$75,"="&ROW(),Курс1!$AA$7:$AA$75)+SUMIF(Курс2!$AL$7:$AL$75,"="&ROW(),Курс2!$AA$7:$AA$75)+SUMIF(Курс3!$AL$7:$AL$75,"="&ROW(),Курс3!$AA$7:$AA$75)+SUMIF(Курс4!$AL$7:$AL$75,"="&ROW(),Курс4!$AA$7:$AA$75)+SUMIF(Курс5!$AL$7:$AL$75,"="&ROW(),Курс5!$AA$7:$AA$75)+SUMIF(Курс6!$AL$7:$AL$75,"="&ROW(),Курс6!$AA$7:$AA$75)+SUMIF(Курс7!$AL$7:$AL$75,"="&ROW(),Курс7!$AA$7:$AA$75)))/IF(ЧасовВКредите>0,ЧасовВКредите,36),0.5),FT12) -> 0 | FY12: =SUMIF(Курс1!$AL$7:$AL$75,"="&ROW(),Курс1!$AC$7:$AC$75)+SUMIF(Курс2!$AL$7:$AL$75,"="&ROW(),Курс2!$AC$7:$AC$75)+SUMIF(Курс3!$AL$7:$AL$75,"="&ROW(),Курс3!$AC$7:$AC$75)+SUMIF(Курс4!$AL$7:$AL$75,"="&ROW(),Курс4!$AC$7:$AC$75)+SUMIF(Курс5!$AL$7:$AL$75,"="&ROW(),Курс5!$AC$7:$AC$75)+SUMIF(Курс6!$AL$7:$AL$75,"="&ROW(),Курс6!$AC$7:$AC$75)+SUMIF(Курс7!$AL$7:$AL$75,"="&ROW(),Курс7!$AC$7:$AC$75) -> 0
G13: =IF($FI13>0,$FW13,SUM(I13:K13)+CJ13+IF(СЭкзаменами,SUMIF(Курс1!$AL$7:$AL$75,"="&ROW(),Курс1!$AA$7:$AA$75)+SUMIF(Курс2!$AL$7:$AL$75,"="&ROW(),Курс2!$AA$7:$AA$75)+SUMIF(Курс3!$AL$7:$AL$75,"="&ROW(),Курс3!$AA$7:$AA$75)+SUMIF(Курс4!$AL$7:$AL$75,"="&ROW(),Курс4!$AA$7:$AA$75)+SUMIF(Курс5!$AL$7:$AL$75,"="&ROW(),Курс5!$AA$7:$AA$75)+SUMIF(Курс6!$AL$7:$AL$75,"="&ROW(),Курс6!$AA$7:$AA$75)+SUMIF(Курс7!$AL$7:$AL$75,"="&ROW(),Курс7!$AA$7:$AA$75),0)) -> 0 | I13: 0 | J13: 0 | BQ13: 0 | BR13: 0 | BS13: 0 | BT13: 0 | BU13: 0 | BV13: 0 | BW13: 0 | BY13: 0 | BZ13: 0 | CA13: 0 | CB13: 0 | CC13: 0 | CE13: 0 | CK13: 0 | CL13: 0 | CM13: 0 | CN13: 0 | CO13: 0 | CP13: 0 | CQ13: 0 | CR13: 0 | CS13: 0 | CT13: 0 | CU13: 0 | CV13: 0 | CW13: 0 | CX13: 0 | CY13: 0 | CZ13: 0 | DA13: 0 | DB13: 0 | DC13: 0 | DD13: 0 | DE13: 0 | DF13: 0 | DG13: 0 | DH13: 0 | DI13: 0 | DJ13: 0 | DK13: 0 | DL13: 0 | DM13: 0 | DN13: 0 | DO13: 0 | DP13: 0 | DQ13: 0 | DR13: 0 | DS13: 0 | DT13: 0 | DU13: 0 | DV13: 0 | DW13: 0 | DX13: 0 | DY13: 0 | DZ13: 0 | EA13: 0 | EB13: 0 | EC13: 0 | ED13: 0 | EE13: 0 | EF13: 0 | EG13: 0 | EH13: 0 | EI13: 0 | EJ13: 0 | EK13: 0 | EL13: 0 | EM13: 0 | EN13: 0 | EO13: 0 | EP13: 0 | EQ13: 0 | ER13: 0 | ES13: 0 | EU13: 0 | EV13: 0 | EW13: 0 | EX13: 0 | EY13: 0 | EZ13: 0 | FA13: 0 | FB13: 0 | FC13: 0 | FD13: 0 | FE13: 0 | FF13: 0 | FG13: 0 | FH13: 0 | FI13: 0 | FJ13: 0 | FK13: 0 | FL13: 1 | FM13: 203 | FN13: 209 | FO13: В | FP13: 0 | FQ13: =SUM($CB$6:$CB13) -> 6 | FR13: 0 | FS13: 0 | FT13: 0 | FU13: =IF(FT13=0,FLOOR(IF(СЭкзаменами,H13,(H13+SUMIF(Курс1!$AL$7:$AL$75,"="&ROW(),Курс1!$AA$7:$AA$75)+SUMIF(Курс2!$AL$7:$AL$75,"="&ROW(),Курс2!$AA$7:$AA$75)+SUMIF(Курс3!$AL$7:$AL$75,"="&ROW(),Курс3!$AA$7:$AA$75)+SUMIF(Курс4!$AL$7:$AL$75,"="&ROW(),Курс4!$AA$7:$AA$75)+SUMIF(Курс5!$AL$7:$AL$75,"="&ROW(),Курс5!$AA$7:$AA$75)+SUMIF(Курс6!$AL$7:$AL$75,"="&ROW(),Курс6!$AA$7:$AA$75)+SUMIF(Курс7!$AL$7:$AL$75,"="&ROW(),Курс7!$AA$7:$AA$75)))/IF(ЧасовВКредите>0,ЧасовВКредите,36),0.5),FT13) -> 0 | FY13: =SUMIF(Курс1!$AL$7:$AL$75,"="&ROW(),Курс1!$AC$7:$AC$75)+SUMIF(Курс2!$AL$7:$AL$75,"="&ROW(),Курс2!$AC$7:$AC$75)+SUMIF(Курс3!$AL$7:$AL$75,"="&ROW(),Курс3!$AC$7:$AC$75)+SUMIF(Курс4!$AL$7:$AL$75,"="&ROW(),Курс4!$AC$7:$AC$75)+SUMIF(Курс5!$AL$7:$AL$75,"="&ROW(),Курс5!$AC$7:$AC$75)+SUMIF(Курс6!$AL$7:$AL$75,"="&ROW(),Курс6!$AC$7:$AC$75)+SUMIF(Курс7!$AL$7:$AL$75,"="&ROW(),Курс7!$AC$7:$AC$75) -> 0
G14: =IF($FI14>0,$FW14,SUM(I14:K14)+CJ14+IF(СЭкзаменами,SUMIF(Курс1!$AL$7:$AL$75,"="&ROW(),Курс1!$AA$7:$AA$75)+SUMIF(Курс2!$AL$7:$AL$75,"="&ROW(),Курс2!$AA$7:$AA$75)+SUMIF(Курс3!$AL$7:$AL$75,"="&ROW(),Курс3!$AA$7:$AA$75)+SUMIF(Курс4!$AL$7:$AL$75,"="&ROW(),Курс4!$AA$7:$AA$75)+SUMIF(Курс5!$AL$7:$AL$75,"="&ROW(),Курс5!$AA$7:$AA$75)+SUMIF(Курс6!$AL$7:$AL$75,"="&ROW(),Курс6!$AA$7:$AA$75)+SUMIF(Курс7!$AL$7:$AL$75,"="&ROW(),Курс7!$AA$7:$AA$75),0)) -> 0 | I14: 0 | J14: 0 | BQ14: 0 | BR14: 0 | BS14: 0 | BT14: 0 | BU14: 0 | BV14: 0 | BW14: 0 | BY14: 0 | BZ14: 0 | CA14: 0 | CB14: 0 | CC14: 0 | CE14: 0 | CK14: 0 | CL14: 0 | CM14: 0 | CN14: 0 | CO14: 0 | CP14: 0 | CQ14: 0 | CR14: 0 | CS14: 0 | CT14: 0 | CU14: 0 | CV14: 0 | CW14: 0 | CX14: 0 | CY14: 0 | CZ14: 0 | DA14: 0 | DB14: 0 | DC14: 0 | DD14: 0 | DE14: 0 | DF14: 0 | DG14: 0 | DH14: 0 | DI14: 0 | DJ14: 0 | DK14: 0 | DL14: 0 | DM14: 0 | DN14: 0 | DO14: 0 | DP14: 0 | DQ14: 0 | DR14: 0 | DS14: 0 | DT14: 0 | DU14: 0 | DV14: 0 | DW14: 0 | DX14: 0 | DY14: 0 | DZ14: 0 | EA14: 0 | EB14: 0 | EC14: 0 | ED14: 0 | EE14: 0 | EF14: 0 | EG14: 0 | EH14: 0 | EI14: 0 | EJ14: 0 | EK14: 0 | EL14: 0 | EM14: 0 | EN14: 0 | EO14: 0 | EP14: 0 | EQ14: 0 | ER14: 0 | ES14: 0 | EU14: 0 | EV14: 0 | EW14: 0 | EX14: 0 | EY14: 0 | EZ14: 0 | FA14: 0 | FB14: 0 | FC14: 0 | FD14: 0 | FE14: 0 | FF14: 0 | FG14: 0 | FH14: 0 | FI14: 0 | FJ14: 0 | FK14: 0 | FL14: 1 | FM14: 213 | FN14: 219 | FO14: В | FP14: 0 | FQ14: =SUM($CB$6:$CB14) -> 6 | FR14: 0 | FS14: 0 | FT14: 0 | FU14: =IF(FT14=0,FLOOR(IF(СЭкзаменами,H14,(H14+SUMIF(Курс1!$AL$7:$AL$75,"="&ROW(),Курс1!$AA$7:$AA$75)+SUMIF(Курс2!$AL$7:$AL$75,"="&ROW(),Курс2!$AA$7:$AA$75)+SUMIF(Курс3!$AL$7:$AL$75,"="&ROW(),Курс3!$AA$7:$AA$75)+SUMIF(Курс4!$AL$7:$AL$75,"="&ROW(),Курс4!$AA$7:$AA$75)+SUMIF(Курс5!$AL$7:$AL$75,"="&ROW(),Курс5!$AA$7:$AA$75)+SUMIF(Курс6!$AL$7:$AL$75,"="&ROW(),Курс6!$AA$7:$AA$75)+SUMIF(Курс7!$AL$7:$AL$75,"="&ROW(),Курс7!$AA$7:$AA$75)))/IF(ЧасовВКредите>0,ЧасовВКредите,36),0.5),FT14) -> 0 | FY14: =SUMIF(Курс1!$AL$7:$AL$75,"="&ROW(),Курс1!$AC$7:$AC$75)+SUMIF(Курс2!$AL$7:$AL$75,"="&ROW(),Курс2!$AC$7:$AC$75)+SUMIF(Курс3!$AL$7:$AL$75,"="&ROW(),Курс3!$AC$7:$AC$75)+SUMIF(Курс4!$AL$7:$AL$75,"="&ROW(),Курс4!$AC$7:$AC$75)+SUMIF(Курс5!$AL$7:$AL$75,"="&ROW(),Курс5!$AC$7:$AC$75)+SUMIF(Курс6!$AL$7:$AL$75,"="&ROW(),Курс6!$AC$7:$AC$75)+SUMIF(Курс7!$AL$7:$AL$75,"="&ROW(),Курс7!$AC$7:$AC$75) -> 0
G15: =IF($FI15>0,$FW15,SUM(I15:K15)+CJ15+IF(СЭкзаменами,SUMIF(Курс1!$AL$7:$AL$75,"="&ROW(),Курс1!$AA$7:$AA$75)+SUMIF(Курс2!$AL$7:$AL$75,"="&ROW(),Курс2!$AA$7:$AA$75)+SUMIF(Курс3!$AL$7:$AL$75,"="&ROW(),Курс3!$AA$7:$AA$75)+SUMIF(Курс4!$AL$7:$AL$75,"="&ROW(),Курс4!$AA$7:$AA$75)+SUMIF(Курс5!$AL$7:$AL$75,"="&ROW(),Курс5!$AA$7:$AA$75)+SUMIF(Курс6!$AL$7:$AL$75,"="&ROW(),Курс6!$AA$7:$AA$75)+SUMIF(Курс7!$AL$7:$AL$75,"="&ROW(),Курс7!$AA$7:$AA$75),0)) -> 0 | I15: 0 | J15: 0 | BQ15: 0 | BR15: 0 | BS15: 0 | BT15: 0 | BU15: 0 | BV15: 0 | BW15: 0 | BY15: 0 | BZ15: 0 | CA15: 0 | CB15: 0 | CC15: 0 | CE15: 0 | CK15: 0 | CL15: 0 | CM15: 0 | CN15: 0 | CO15: 0 | CP15: 0 | CQ15: 0 | CR15: 0 | CS15: 0 | CT15: 0 | CU15: 0 | CV15: 0 | CW15: 0 | CX15: 0 | CY15: 0 | CZ15: 0 | DA15: 0 | DB15: 0 | DC15: 0 | DD15: 0 | DE15: 0 | DF15: 0 | DG15: 0 | DH15: 0 | DI15: 0 | DJ15: 0 | DK15: 0 | DL15: 0 | DM15: 0 | DN15: 0 | DO15: 0 | DP15: 0 | DQ15: 0 | DR15: 0 | DS15: 0 | DT15: 0 | DU15: 0 | DV15: 0 | DW15: 0 | DX15: 0 | DY15: 0 | DZ15: 0 | EA15: 0 | EB15: 0 | EC15: 0 | ED15: 0 | EE15: 0 | EF15: 0 | EG15: 0 | EH15: 0 | EI15: 0 | EJ15: 0 | EK15: 0 | EL15: 0 | EM15: 0 | EN15: 0 | EO15: 0 | EP15: 0 | EQ15: 0 | ER15: 0 | ES15: 0 | EU15: 0 | EV15: 0 | EW15: 0 | EX15: 0 | EY15: 0 | EZ15: 0 | FA15: 0 | FB15: 0 | FC15: 0 | FD15: 0 | FE15: 0 | FF15: 0 | FG15: 0 | FH15: 0 | FI15: 0 | FJ15: 0 | FK15: 0 | FL15: 1 | FM15: 223 | FN15: 229 | FO15: В | FP15: 0 | FQ15: =SUM($CB$6:$CB15) -> 6 | FR15: 0 | FT15: 0 | FU15: =IF(FT15=0,FLOOR(IF(СЭкзаменами,H15,(H15+SUMIF(Курс1!$AL$7:$AL$75,"="&ROW(),Курс1!$AA$7:$AA$75)+SUMIF(Курс2!$AL$7:$AL$75,"="&ROW(),Курс2!$AA$7:$AA$75)+SUMIF(Курс3!$AL$7:$AL$75,"="&ROW(),Курс3!$AA$7:$AA$75)+SUMIF(Курс4!$AL$7:$AL$75,"="&ROW(),Курс4!$AA$7:$AA$75)+SUMIF(Курс5!$AL$7:$AL$75,"="&ROW(),Курс5!$AA$7:$AA$75)+SUMIF(Курс6!$AL$7:$AL$75,"="&ROW(),Курс6!$AA$7:$AA$75)+SUMIF(Курс7!$AL$7:$AL$75,"="&ROW(),Курс7!$AA$7:$AA$75)))/IF(ЧасовВКредите>0,ЧасовВКредите,36),0.5),FT15) -> 0 | FY15: =SUMIF(Курс1!$AL$7:$AL$75,"="&ROW(),Курс1!$AC$7:$AC$75)+SUMIF(Курс2!$AL$7:$AL$75,"="&ROW(),Курс2!$AC$7:$AC$75)+SUMIF(Курс3!$AL$7:$AL$75,"="&ROW(),Курс3!$AC$7:$AC$75)+SUMIF(Курс4!$AL$7:$AL$75,"="&ROW(),Курс4!$AC$7:$AC$75)+SUMIF(Курс5!$AL$7:$AL$75,"="&ROW(),Курс5!$AC$7:$AC$75)+SUMIF(Курс6!$AL$7:$AL$75,"="&ROW(),Курс6!$AC$7:$AC$75)+SUMIF(Курс7!$AL$7:$AL$75,"="&ROW(),Курс7!$AC$7:$AC$75) -> 0
G16: =IF($FI16>0,$FW16,SUM(I16:K16)+CJ16+IF(СЭкзаменами,SUMIF(Курс1!$AL$7:$AL$75,"="&ROW(),Курс1!$AA$7:$AA$75)+SUMIF(Курс2!$AL$7:$AL$75,"="&ROW(),Курс2!$AA$7:$AA$75)+SUMIF(Курс3!$AL$7:$AL$75,"="&ROW(),Курс3!$AA$7:$AA$75)+SUMIF(Курс4!$AL$7:$AL$75,"="&ROW(),Курс4!$AA$7:$AA$75)+SUMIF(Курс5!$AL$7:$AL$75,"="&ROW(),Курс5!$AA$7:$AA$75)+SUMIF(Курс6!$AL$7:$AL$75,"="&ROW(),Курс6!$AA$7:$AA$75)+SUMIF(Курс7!$AL$7:$AL$75,"="&ROW(),Курс7!$AA$7:$AA$75),0)) -> 0 | I16: 0 | J16: 0 | BQ16: 0 | BR16: 0 | BS16: 0 | BT16: 0 | BU16: 0 | BV16: 0 | BW16: 0 | BY16: 0 | BZ16: 0 | CA16: 0 | CB16: 0 | CC16: 0 | CE16: 0 | CK16: 0 | CL16: 0 | CM16: 0 | CN16: 0 | CO16: 0 | CP16: 0 | CQ16: 0 | CR16: 0 | CS16: 0 | CT16: 0 | CU16: 0 | CV16: 0 | CW16: 0 | CX16: 0 | CY16: 0 | CZ16: 0 | DA16: 0 | DB16: 0 | DC16: 0 | DD16: 0 | DE16: 0 | DF16: 0 | DG16: 0 | DH16: 0 | DI16: 0 | DJ16: 0 | DK16: 0 | DL16: 0 | DM16: 0 | DN16: 0 | DO16: 0 | DP16: 0 | DQ16: 0 | DR16: 0 | DS16: 0 | DT16: 0 | DU16: 0 | DV16: 0 | DW16: 0 | DX16: 0 | DY16: 0 | DZ16: 0 | EA16: 0 | EB16: 0 | EC16: 0 | ED16: 0 | EE16: 0 | EF16: 0 | EG16: 0 | EH16: 0 | EI16: 0 | EJ16: 0 | EK16: 0 | EL16: 0 | EM16: 0 | EN16: 0 | EO16: 0 | EP16: 0 | EQ16: 0 | ER16: 0 | ES16: 0 | EU16: 0 | EV16: 0 | EW16: 0 | EX16: 0 | EY16: 0 | EZ16: 0 | FA16: 0 | FB16: 0 | FC16: 0 | FD16: 0 | FE16: 0 | FF16: 0 | FG16: 0 | FH16: 0 | FI16: 0 | FJ16: 0 | FK16: 0 | FL16: 1 | FM16: 234 | FN16: 293 | FO16: Ф | FP16: 0 | FQ16: =SUM($CB$6:$CB16) -> 6 | FR16: 0 | FT16: 0 | FU16: =IF(FT16=0,FLOOR(IF(СЭкзаменами,H16,(H16+SUMIF(Курс1!$AL$7:$AL$75,"="&ROW(),Курс1!$AA$7:$AA$75)+SUMIF(Курс2!$AL$7:$AL$75,"="&ROW(),Курс2!$AA$7:$AA$75)+SUMIF(Курс3!$AL$7:$AL$75,"="&ROW(),Курс3!$AA$7:$AA$75)+SUMIF(Курс4!$AL$7:$AL$75,"="&ROW(),Курс4!$AA$7:$AA$75)+SUMIF(Курс5!$AL$7:$AL$75,"="&ROW(),Курс5!$AA$7:$AA$75)+SUMIF(Курс6!$AL$7:$AL$75,"="&ROW(),Курс6!$AA$7:$AA$75)+SUMIF(Курс7!$AL$7:$AL$75,"="&ROW(),Курс7!$AA$7:$AA$75)))/IF(ЧасовВКредите>0,ЧасовВКредите,36),0.5),FT16) -> 0 | FY16: =SUMIF(Курс1!$AL$7:$AL$75,"="&ROW(),Курс1!$AC$7:$AC$75)+SUMIF(Курс2!$AL$7:$AL$75,"="&ROW(),Курс2!$AC$7:$AC$75)+SUMIF(Курс3!$AL$7:$AL$75,"="&ROW(),Курс3!$AC$7:$AC$75)+SUMIF(Курс4!$AL$7:$AL$75,"="&ROW(),Курс4!$AC$7:$AC$75)+SUMIF(Курс5!$AL$7:$AL$75,"="&ROW(),Курс5!$AC$7:$AC$75)+SUMIF(Курс6!$AL$7:$AL$75,"="&ROW(),Курс6!$AC$7:$AC$75)+SUMIF(Курс7!$AL$7:$AL$75,"="&ROW(),Курс7!$AC$7:$AC$75) -> 0
G17: =IF($FI17>0,$FW17,SUM(I17:K17)+CJ17+IF(СЭкзаменами,SUMIF(Курс1!$AL$7:$AL$75,"="&ROW(),Курс1!$AA$7:$AA$75)+SUMIF(Курс2!$AL$7:$AL$75,"="&ROW(),Курс2!$AA$7:$AA$75)+SUMIF(Курс3!$AL$7:$AL$75,"="&ROW(),Курс3!$AA$7:$AA$75)+SUMIF(Курс4!$AL$7:$AL$75,"="&ROW(),Курс4!$AA$7:$AA$75)+SUMIF(Курс5!$AL$7:$AL$75,"="&ROW(),Курс5!$AA$7:$AA$75)+SUMIF(Курс6!$AL$7:$AL$75,"="&ROW(),Курс6!$AA$7:$AA$75)+SUMIF(Курс7!$AL$7:$AL$75,"="&ROW(),Курс7!$AA$7:$AA$75),0)) -> 0 | I17: 0 | J17: 0 | BQ17: 0 | BR17: 0 | BS17: 0 | BT17: 0 | BU17: 0 | BV17: 0 | BW17: 0 | BY17: 0 | BZ17: 0 | CA17: 0 | CB17: 0 | CC17: 0 | CE17: 0 | CK17: 0 | CL17: 0 | CM17: 0 | CN17: 0 | CO17: 0 | CP17: 0 | CQ17: 0 | CR17: 0 | CS17: 0 | CT17: 0 | CU17: 0 | CV17: 0 | CW17: 0 | CX17: 0 | CY17: 0 | CZ17: 0 | DA17: 0 | DB17: 0 | DC17: 0 | DD17: 0 | DE17: 0 | DF17: 0 | DG17: 0 | DH17: 0 | DI17: 0 | DJ17: 0 | DK17: 0 | DL17: 0 | DM17: 0 | DN17: 0 | DO17: 0 | DP17: 0 | DQ17: 0 | DR17: 0 | DS17: 0 | DT17: 0 | DU17: 0 | DV17: 0 | DW17: 0 | DX17: 0 | DY17: 0 | DZ17: 0 | EA17: 0 | EB17: 0 | EC17: 0 | ED17: 0 | EE17: 0 | EF17: 0 | EG17: 0 | EH17: 0 | EI17: 0 | EJ17: 0 | EK17: 0 | EL17: 0 | EM17: 0 | EN17: 0 | EO17: 0 | EP17: 0 | EQ17: 0 | ER17: 0 | ES17: 0 | EU17: 0 | EV17: 0 | EW17: 0 | EX17: 0 | EY17: 0 | EZ17: 0 | FA17: 0 | FB17: 0 | FC17: 0 | FD17: 0 | FE17: 0 | FF17: 0 | FG17: 0 | FH17: 0 | FI17: 0 | FJ17: 0 | FK17: 0 | FL17: 1 | FM17: 294 | FN17: 327 | FO17: Р | FP17: 0 | FQ17: =SUM($CB$6:$CB17) -> 6 | FR17: 0 | FT17: 0 | FU17: =IF(FT17=0,FLOOR(IF(СЭкзаменами,H17,(H17+SUMIF(Курс1!$AL$7:$AL$75,"="&ROW(),Курс1!$AA$7:$AA$75)+SUMIF(Курс2!$AL$7:$AL$75,"="&ROW(),Курс2!$AA$7:$AA$75)+SUMIF(Курс3!$AL$7:$AL$75,"="&ROW(),Курс3!$AA$7:$AA$75)+SUMIF(Курс4!$AL$7:$AL$75,"="&ROW(),Курс4!$AA$7:$AA$75)+SUMIF(Курс5!$AL$7:$AL$75,"="&ROW(),Курс5!$AA$7:$AA$75)+SUMIF(Курс6!$AL$7:$AL$75,"="&ROW(),Курс6!$AA$7:$AA$75)+SUMIF(Курс7!$AL$7:$AL$75,"="&ROW(),Курс7!$AA$7:$AA$75)))/IF(ЧасовВКредите>0,ЧасовВКредите,36),0.5),FT17) -> 0 | FY17: =SUMIF(Курс1!$AL$7:$AL$75,"="&ROW(),Курс1!$AC$7:$AC$75)+SUMIF(Курс2!$AL$7:$AL$75,"="&ROW(),Курс2!$AC$7:$AC$75)+SUMIF(Курс3!$AL$7:$AL$75,"="&ROW(),Курс3!$AC$7:$AC$75)+SUMIF(Курс4!$AL$7:$AL$75,"="&ROW(),Курс4!$AC$7:$AC$75)+SUMIF(Курс5!$AL$7:$AL$75,"="&ROW(),Курс5!$AC$7:$AC$75)+SUMIF(Курс6!$AL$7:$AL$75,"="&ROW(),Курс6!$AC$7:$AC$75)+SUMIF(Курс7!$AL$7:$AL$75,"="&ROW(),Курс7!$AC$7:$AC$75) -> 0
G18: =IF($FI18>0,$FW18,SUM(I18:K18)+CJ18+IF(СЭкзаменами,SUMIF(Курс1!$AL$7:$AL$75,"="&ROW(),Курс1!$AA$7:$AA$75)+SUMIF(Курс2!$AL$7:$AL$75,"="&ROW(),Курс2!$AA$7:$AA$75)+SUMIF(Курс3!$AL$7:$AL$75,"="&ROW(),Курс3!$AA$7:$AA$75)+SUMIF(Курс4!$AL$7:$AL$75,"="&ROW(),Курс4!$AA$7:$AA$75)+SUMIF(Курс5!$AL$7:$AL$75,"="&ROW(),Курс5!$AA$7:$AA$75)+SUMIF(Курс6!$AL$7:$AL$75,"="&ROW(),Курс6!$AA$7:$AA$75)+SUMIF(Курс7!$AL$7:$AL$75,"="&ROW(),Курс7!$AA$7:$AA$75),0)) -> 0 | I18: 0 | J18: 0 | BQ18: 0 | BR18: 0 | BS18: 0 | BT18: 0 | BU18: 0 | BV18: 0 | BW18: 0 | BY18: 0 | BZ18: 0 | CA18: 0 | CB18: 0 | CC18: 0 | CE18: 0 | CK18: 0 | CL18: 0 | CM18: 0 | CN18: 0 | CO18: 0 | CP18: 0 | CQ18: 0 | CR18: 0 | CS18: 0 | CT18: 0 | CU18: 0 | CV18: 0 | CW18: 0 | CX18: 0 | CY18: 0 | CZ18: 0 | DA18: 0 | DB18: 0 | DC18: 0 | DD18: 0 | DE18: 0 | DF18: 0 | DG18: 0 | DH18: 0 | DI18: 0 | DJ18: 0 | DK18: 0 | DL18: 0 | DM18: 0 | DN18: 0 | DO18: 0 | DP18: 0 | DQ18: 0 | DR18: 0 | DS18: 0 | DT18: 0 | DU18: 0 | DV18: 0 | DW18: 0 | DX18: 0 | DY18: 0 | DZ18: 0 | EA18: 0 | EB18: 0 | EC18: 0 | ED18: 0 | EE18: 0 | EF18: 0 | EG18: 0 | EH18: 0 | EI18: 0 | EJ18: 0 | EK18: 0 | EL18: 0 | EM18: 0 | EN18: 0 | EO18: 0 | EP18: 0 | EQ18: 0 | ER18: 0 | ES18: 0 | EU18: 0 | EV18: 0 | EW18: 0 | EX18: 0 | EY18: 0 | EZ18: 0 | FA18: 0 | FB18: 0 | FC18: 0 | FD18: 0 | FE18: 0 | FF18: 0 | FG18: 0 | FH18: 0 | FI18: 0 | FJ18: 0 | FK18: 0 | FL18: 1 | FM18: 331 | FN18: 337 | FO18: В | FP18: 0 | FQ18: =SUM($CB$6:$CB18) -> 6 | FR18: 0 | FT18: 0 | FU18: =IF(FT18=0,FLOOR(IF(СЭкзаменами,H18,(H18+SUMIF(Курс1!$AL$7:$AL$75,"="&ROW(),Курс1!$AA$7:$AA$75)+SUMIF(Курс2!$AL$7:$AL$75,"="&ROW(),Курс2!$AA$7:$AA$75)+SUMIF(Курс3!$AL$7:$AL$75,"="&ROW(),Курс3!$AA$7:$AA$75)+SUMIF(Курс4!$AL$7:$AL$75,"="&ROW(),Курс4!$AA$7:$AA$75)+SUMIF(Курс5!$AL$7:$AL$75,"="&ROW(),Курс5!$AA$7:$AA$75)+SUMIF(Курс6!$AL$7:$AL$75,"="&ROW(),Курс6!$AA$7:$AA$75)+SUMIF(Курс7!$AL$7:$AL$75,"="&ROW(),Курс7!$AA$7:$AA$75)))/IF(ЧасовВКредите>0,ЧасовВКредите,36),0.5),FT18) -> 0 | FY18: =SUMIF(Курс1!$AL$7:$AL$75,"="&ROW(),Курс1!$AC$7:$AC$75)+SUMIF(Курс2!$AL$7:$AL$75,"="&ROW(),Курс2!$AC$7:$AC$75)+SUMIF(Курс3!$AL$7:$AL$75,"="&ROW(),Курс3!$AC$7:$AC$75)+SUMIF(Курс4!$AL$7:$AL$75,"="&ROW(),Курс4!$AC$7:$AC$75)+SUMIF(Курс5!$AL$7:$AL$75,"="&ROW(),Курс5!$AC$7:$AC$75)+SUMIF(Курс6!$AL$7:$AL$75,"="&ROW(),Курс6!$AC$7:$AC$75)+SUMIF(Курс7!$AL$7:$AL$75,"="&ROW(),Курс7!$AC$7:$AC$75) -> 0
G19: =IF($FI19>0,$FW19,SUM(I19:K19)+CJ19+IF(СЭкзаменами,SUMIF(Курс1!$AL$7:$AL$75,"="&ROW(),Курс1!$AA$7:$AA$75)+SUMIF(Курс2!$AL$7:$AL$75,"="&ROW(),Курс2!$AA$7:$AA$75)+SUMIF(Курс3!$AL$7:$AL$75,"="&ROW(),Курс3!$AA$7:$AA$75)+SUMIF(Курс4!$AL$7:$AL$75,"="&ROW(),Курс4!$AA$7:$AA$75)+SUMIF(Курс5!$AL$7:$AL$75,"="&ROW(),Курс5!$AA$7:$AA$75)+SUMIF(Курс6!$AL$7:$AL$75,"="&ROW(),Курс6!$AA$7:$AA$75)+SUMIF(Курс7!$AL$7:$AL$75,"="&ROW(),Курс7!$AA$7:$AA$75),0)) -> 0 | I19: 0 | J19: 0 | BQ19: 0 | BR19: 0 | BS19: 0 | BT19: 0 | BU19: 0 | BV19: 0 | BW19: 0 | BY19: 0 | BZ19: 0 | CA19: 0 | CB19: 0 | CC19: 0 | CE19: 0 | CK19: 0 | CL19: 0 | CM19: 0 | CN19: 0 | CO19: 0 | CP19: 0 | CQ19: 0 | CR19: 0 | CS19: 0 | CT19: 0 | CU19: 0 | CV19: 0 | CW19: 0 | CX19: 0 | CY19: 0 | CZ19: 0 | DA19: 0 | DB19: 0 | DC19: 0 | DD19: 0 | DE19: 0 | DF19: 0 | DG19: 0 | DH19: 0 | DI19: 0 | DJ19: 0 | DK19: 0 | DL19: 0 | DM19: 0 | DN19: 0 | DO19: 0 | DP19: 0 | DQ19: 0 | DR19: 0 | DS19: 0 | DT19: 0 | DU19: 0 | DV19: 0 | DW19: 0 | DX19: 0 | DY19: 0 | DZ19: 0 | EA19: 0 | EB19: 0 | EC19: 0 | ED19: 0 | EE19: 0 | EF19: 0 | EG19: 0 | EH19: 0 | EI19: 0 | EJ19: 0 | EK19: 0 | EL19: 0 | EM19: 0 | EN19: 0 | EO19: 0 | EP19: 0 | EQ19: 0 | ER19: 0 | ES19: 0 | EU19: 0 | EV19: 0 | EW19: 0 | EX19: 0 | EY19: 0 | EZ19: 0 | FA19: 0 | FB19: 0 | FC19: 0 | FD19: 0 | FE19: 0 | FF19: 0 | FG19: 0 | FH19: 0 | FI19: 0 | FJ19: 0 | FK19: 0 | FL19: 1 | FM19: 341 | FN19: 347 | FO19: В | FP19: 0 | FQ19: =SUM($CB$6:$CB19) -> 6 | FR19: 0 | FT19: 0 | FU19: =IF(FT19=0,FLOOR(IF(СЭкзаменами,H19,(H19+SUMIF(Курс1!$AL$7:$AL$75,"="&ROW(),Курс1!$AA$7:$AA$75)+SUMIF(Курс2!$AL$7:$AL$75,"="&ROW(),Курс2!$AA$7:$AA$75)+SUMIF(Курс3!$AL$7:$AL$75,"="&ROW(),Курс3!$AA$7:$AA$75)+SUMIF(Курс4!$AL$7:$AL$75,"="&ROW(),Курс4!$AA$7:$AA$75)+SUMIF(Курс5!$AL$7:$AL$75,"="&ROW(),Курс5!$AA$7:$AA$75)+SUMIF(Курс6!$AL$7:$AL$75,"="&ROW(),Курс6!$AA$7:$AA$75)+SUMIF(Курс7!$AL$7:$AL$75,"="&ROW(),Курс7!$AA$7:$AA$75)))/IF(ЧасовВКредите>0,ЧасовВКредите,36),0.5),FT19) -> 0 | FY19: =SUMIF(Курс1!$AL$7:$AL$75,"="&ROW(),Курс1!$AC$7:$AC$75)+SUMIF(Курс2!$AL$7:$AL$75,"="&ROW(),Курс2!$AC$7:$AC$75)+SUMIF(Курс3!$AL$7:$AL$75,"="&ROW(),Курс3!$AC$7:$AC$75)+SUMIF(Курс4!$AL$7:$AL$75,"="&ROW(),Курс4!$AC$7:$AC$75)+SUMIF(Курс5!$AL$7:$AL$75,"="&ROW(),Курс5!$AC$7:$AC$75)+SUMIF(Курс6!$AL$7:$AL$75,"="&ROW(),Курс6!$AC$7:$AC$75)+SUMIF(Курс7!$AL$7:$AL$75,"="&ROW(),Курс7!$AC$7:$AC$75) -> 0
G20: =IF($FI20>0,$FW20,SUM(I20:K20)+CJ20+IF(СЭкзаменами,SUMIF(Курс1!$AL$7:$AL$75,"="&ROW(),Курс1!$AA$7:$AA$75)+SUMIF(Курс2!$AL$7:$AL$75,"="&ROW(),Курс2!$AA$7:$AA$75)+SUMIF(Курс3!$AL$7:$AL$75,"="&ROW(),Курс3!$AA$7:$AA$75)+SUMIF(Курс4!$AL$7:$AL$75,"="&ROW(),Курс4!$AA$7:$AA$75)+SUMIF(Курс5!$AL$7:$AL$75,"="&ROW(),Курс5!$AA$7:$AA$75)+SUMIF(Курс6!$AL$7:$AL$75,"="&ROW(),Курс6!$AA$7:$AA$75)+SUMIF(Курс7!$AL$7:$AL$75,"="&ROW(),Курс7!$AA$7:$AA$75),0)) -> 0 | I20: 0 | J20: 0 | BQ20: 0 | BR20: 0 | BS20: 0 | BT20: 0 | BU20: 0 | BV20: 0 | BW20: 0 | BY20: 0 | BZ20: 0 | CA20: 0 | CB20: 0 | CC20: 0 | CE20: 0 | CK20: 0 | CL20: 0 | CM20: 0 | CN20: 0 | CO20: 0 | CP20: 0 | CQ20: 0 | CR20: 0 | CS20: 0 | CT20: 0 | CU20: 0 | CV20: 0 | CW20: 0 | CX20: 0 | CY20: 0 | CZ20: 0 | DA20: 0 | DB20: 0 | DC20: 0 | DD20: 0 | DE20: 0 | DF20: 0 | DG20: 0 | DH20: 0 | DI20: 0 | DJ20: 0 | DK20: 0 | DL20: 0 | DM20: 0 | DN20: 0 | DO20: 0 | DP20: 0 | DQ20: 0 | DR20: 0 | DS20: 0 | DT20: 0 | DU20: 0 | DV20: 0 | DW20: 0 | DX20: 0 | DY20: 0 | DZ20: 0 | EA20: 0 | EB20: 0 | EC20: 0 | ED20: 0 | EE20: 0 | EF20: 0 | EG20: 0 | EH20: 0 | EI20: 0 | EJ20: 0 | EK20: 0 | EL20: 0 | EM20: 0 | EN20: 0 | EO20: 0 | EP20: 0 | EQ20: 0 | ER20: 0 | ES20: 0 | EU20: 0 | EV20: 0 | EW20: 0 | EX20: 0 | EY20: 0 | EZ20: 0 | FA20: 0 | FB20: 0 | FC20: 0 | FD20: 0 | FE20: 0 | FF20: 0 | FG20: 0 | FH20: 0 | FI20: 0 | FJ20: 0 | FK20: 0 | FL20: 1 | FM20: 351 | FN20: 357 | FO20: В | FP20: 0 | FQ20: =SUM($CB$6:$CB20) -> 6 | FR20: 0 | FT20: 0 | FU20: =IF(FT20=0,FLOOR(IF(СЭкзаменами,H20,(H20+SUMIF(Курс1!$AL$7:$AL$75,"="&ROW(),Курс1!$AA$7:$AA$75)+SUMIF(Курс2!$AL$7:$AL$75,"="&ROW(),Курс2!$AA$7:$AA$75)+SUMIF(Курс3!$AL$7:$AL$75,"="&ROW(),Курс3!$AA$7:$AA$75)+SUMIF(Курс4!$AL$7:$AL$75,"="&ROW(),Курс4!$AA$7:$AA$75)+SUMIF(Курс5!$AL$7:$AL$75,"="&ROW(),Курс5!$AA$7:$AA$75)+SUMIF(Курс6!$AL$7:$AL$75,"="&ROW(),Курс6!$AA$7:$AA$75)+SUMIF(Курс7!$AL$7:$AL$75,"="&ROW(),Курс7!$AA$7:$AA$75)))/IF(ЧасовВКредите>0,ЧасовВКредите,36),0.5),FT20) -> 0 | FY20: =SUMIF(Курс1!$AL$7:$AL$75,"="&ROW(),Курс1!$AC$7:$AC$75)+SUMIF(Курс2!$AL$7:$AL$75,"="&ROW(),Курс2!$AC$7:$AC$75)+SUMIF(Курс3!$AL$7:$AL$75,"="&ROW(),Курс3!$AC$7:$AC$75)+SUMIF(Курс4!$AL$7:$AL$75,"="&ROW(),Курс4!$AC$7:$AC$75)+SUMIF(Курс5!$AL$7:$AL$75,"="&ROW(),Курс5!$AC$7:$AC$75)+SUMIF(Курс6!$AL$7:$AL$75,"="&ROW(),Курс6!$AC$7:$AC$75)+SUMIF(Курс7!$AL$7:$AL$75,"="&ROW(),Курс7!$AC$7:$AC$75) -> 0
G21: =IF($FI21>0,$FW21,SUM(I21:K21)+CJ21+IF(СЭкзаменами,SUMIF(Курс1!$AL$7:$AL$75,"="&ROW(),Курс1!$AA$7:$AA$75)+SUMIF(Курс2!$AL$7:$AL$75,"="&ROW(),Курс2!$AA$7:$AA$75)+SUMIF(Курс3!$AL$7:$AL$75,"="&ROW(),Курс3!$AA$7:$AA$75)+SUMIF(Курс4!$AL$7:$AL$75,"="&ROW(),Курс4!$AA$7:$AA$75)+SUMIF(Курс5!$AL$7:$AL$75,"="&ROW(),Курс5!$AA$7:$AA$75)+SUMIF(Курс6!$AL$7:$AL$75,"="&ROW(),Курс6!$AA$7:$AA$75)+SUMIF(Курс7!$AL$7:$AL$75,"="&ROW(),Курс7!$AA$7:$AA$75),0)) -> 0 | I21: 0 | J21: 0 | BQ21: 0 | BR21: 0 | BS21: 0 | BT21: 0 | BU21: 0 | BV21: 0 | BW21: 0 | BY21: 0 | BZ21: 0 | CA21: 0 | CB21: 0 | CC21: 0 | CE21: 0 | CK21: 0 | CL21: 0 | CM21: 0 | CN21: 0 | CO21: 0 | CP21: 0 | CQ21: 0 | CR21: 0 | CS21: 0 | CT21: 0 | CU21: 0 | CV21: 0 | CW21: 0 | CX21: 0 | CY21: 0 | CZ21: 0 | DA21: 0 | DB21: 0 | DC21: 0 | DD21: 0 | DE21: 0 | DF21: 0 | DG21: 0 | DH21: 0 | DI21: 0 | DJ21: 0 | DK21: 0 | DL21: 0 | DM21: 0 | DN21: 0 | DO21: 0 | DP21: 0 | DQ21: 0 | DR21: 0 | DS21: 0 | DT21: 0 | DU21: 0 | DV21: 0 | DW21: 0 | DX21: 0 | DY21: 0 | DZ21: 0 | EA21: 0 | EB21: 0 | EC21: 0 | ED21: 0 | EE21: 0 | EF21: 0 | EG21: 0 | EH21: 0 | EI21: 0 | EJ21: 0 | EK21: 0 | EL21: 0 | EM21: 0 | EN21: 0 | EO21: 0 | EP21: 0 | EQ21: 0 | ER21: 0 | ES21: 0 | EU21: 0 | EV21: 0 | EW21: 0 | EX21: 0 | EY21: 0 | EZ21: 0 | FA21: 0 | FB21: 0 | FC21: 0 | FD21: 0 | FE21: 0 | FF21: 0 | FG21: 0 | FH21: 0 | FI21: 0 | FJ21: 0 | FK21: 0 | FL21: 1 | FM21: 361 | FN21: 367 | FO21: В | FP21: 0 | FQ21: =SUM($CB$6:$CB21) -> 6 | FR21: 0 | FT21: 0 | FU21: =IF(FT21=0,FLOOR(IF(СЭкзаменами,H21,(H21+SUMIF(Курс1!$AL$7:$AL$75,"="&ROW(),Курс1!$AA$7:$AA$75)+SUMIF(Курс2!$AL$7:$AL$75,"="&ROW(),Курс2!$AA$7:$AA$75)+SUMIF(Курс3!$AL$7:$AL$75,"="&ROW(),Курс3!$AA$7:$AA$75)+SUMIF(Курс4!$AL$7:$AL$75,"="&ROW(),Курс4!$AA$7:$AA$75)+SUMIF(Курс5!$AL$7:$AL$75,"="&ROW(),Курс5!$AA$7:$AA$75)+SUMIF(Курс6!$AL$7:$AL$75,"="&ROW(),Курс6!$AA$7:$AA$75)+SUMIF(Курс7!$AL$7:$AL$75,"="&ROW(),Курс7!$AA$7:$AA$75)))/IF(ЧасовВКредите>0,ЧасовВКредите,36),0.5),FT21) -> 0 | FY21: =SUMIF(Курс1!$AL$7:$AL$75,"="&ROW(),Курс1!$AC$7:$AC$75)+SUMIF(Курс2!$AL$7:$AL$75,"="&ROW(),Курс2!$AC$7:$AC$75)+SUMIF(Курс3!$AL$7:$AL$75,"="&ROW(),Курс3!$AC$7:$AC$75)+SUMIF(Курс4!$AL$7:$AL$75,"="&ROW(),Курс4!$AC$7:$AC$75)+SUMIF(Курс5!$AL$7:$AL$75,"="&ROW(),Курс5!$AC$7:$AC$75)+SUMIF(Курс6!$AL$7:$AL$75,"="&ROW(),Курс6!$AC$7:$AC$75)+SUMIF(Курс7!$AL$7:$AL$75,"="&ROW(),Курс7!$AC$7:$AC$75) -> 0
G22: =IF($FI22>0,$FW22,SUM(I22:K22)+CJ22+IF(СЭкзаменами,SUMIF(Курс1!$AL$7:$AL$75,"="&ROW(),Курс1!$AA$7:$AA$75)+SUMIF(Курс2!$AL$7:$AL$75,"="&ROW(),Курс2!$AA$7:$AA$75)+SUMIF(Курс3!$AL$7:$AL$75,"="&ROW(),Курс3!$AA$7:$AA$75)+SUMIF(Курс4!$AL$7:$AL$75,"="&ROW(),Курс4!$AA$7:$AA$75)+SUMIF(Курс5!$AL$7:$AL$75,"="&ROW(),Курс5!$AA$7:$AA$75)+SUMIF(Курс6!$AL$7:$AL$75,"="&ROW(),Курс6!$AA$7:$AA$75)+SUMIF(Курс7!$AL$7:$AL$75,"="&ROW(),Курс7!$AA$7:$AA$75),0)) -> 0 | I22: 0 | J22: 0 | BQ22: 0 | BR22: 0 | BS22: 0 | BT22: 0 | BU22: 0 | BV22: 0 | BW22: 0 | BY22: 0 | BZ22: 0 | CA22: 0 | CB22: 0 | CC22: 0 | CE22: 0 | CK22: 0 | CL22: 0 | CM22: 0 | CN22: 0 | CO22: 0 | CP22: 0 | CQ22: 0 | CR22: 0 | CS22: 0 | CT22: 0 | CU22: 0 | CV22: 0 | CW22: 0 | CX22: 0 | CY22: 0 | CZ22: 0 | DA22: 0 | DB22: 0 | DC22: 0 | DD22: 0 | DE22: 0 | DF22: 0 | DG22: 0 | DH22: 0 | DI22: 0 | DJ22: 0 | DK22: 0 | DL22: 0 | DM22: 0 | DN22: 0 | DO22: 0 | DP22: 0 | DQ22: 0 | DR22: 0 | DS22: 0 | DT22: 0 | DU22: 0 | DV22: 0 | DW22: 0 | DX22: 0 | DY22: 0 | DZ22: 0 | EA22: 0 | EB22: 0 | EC22: 0 | ED22: 0 | EE22: 0 | EF22: 0 | EG22: 0 | EH22: 0 | EI22: 0 | EJ22: 0 | EK22: 0 | EL22: 0 | EM22: 0 | EN22: 0 | EO22: 0 | EP22: 0 | EQ22: 0 | ER22: 0 | ES22: 0 | EU22: 0 | EV22: 0 | EW22: 0 | EX22: 0 | EY22: 0 | EZ22: 0 | FA22: 0 | FB22: 0 | FC22: 0 | FD22: 0 | FE22: 0 | FF22: 0 | FG22: 0 | FH22: 0 | FI22: 0 | FJ22: 0 | FK22: 0 | FL22: 1 | FM22: 371 | FN22: 377 | FO22: В | FP22: 0 | FQ22: =SUM($CB$6:$CB22) -> 6 | FR22: 0 | FT22: 0 | FU22: =IF(FT22=0,FLOOR(IF(СЭкзаменами,H22,(H22+SUMIF(Курс1!$AL$7:$AL$75,"="&ROW(),Курс1!$AA$7:$AA$75)+SUMIF(Курс2!$AL$7:$AL$75,"="&ROW(),Курс2!$AA$7:$AA$75)+SUMIF(Курс3!$AL$7:$AL$75,"="&ROW(),Курс3!$AA$7:$AA$75)+SUMIF(Курс4!$AL$7:$AL$75,"="&ROW(),Курс4!$AA$7:$AA$75)+SUMIF(Курс5!$AL$7:$AL$75,"="&ROW(),Курс5!$AA$7:$AA$75)+SUMIF(Курс6!$AL$7:$AL$75,"="&ROW(),Курс6!$AA$7:$AA$75)+SUMIF(Курс7!$AL$7:$AL$75,"="&ROW(),Курс7!$AA$7:$AA$75)))/IF(ЧасовВКредите>0,ЧасовВКредите,36),0.5),FT22) -> 0 | FY22: =SUMIF(Курс1!$AL$7:$AL$75,"="&ROW(),Курс1!$AC$7:$AC$75)+SUMIF(Курс2!$AL$7:$AL$75,"="&ROW(),Курс2!$AC$7:$AC$75)+SUMIF(Курс3!$AL$7:$AL$75,"="&ROW(),Курс3!$AC$7:$AC$75)+SUMIF(Курс4!$AL$7:$AL$75,"="&ROW(),Курс4!$AC$7:$AC$75)+SUMIF(Курс5!$AL$7:$AL$75,"="&ROW(),Курс5!$AC$7:$AC$75)+SUMIF(Курс6!$AL$7:$AL$75,"="&ROW(),Курс6!$AC$7:$AC$75)+SUMIF(Курс7!$AL$7:$AL$75,"="&ROW(),Курс7!$AC$7:$AC$75) -> 0
G23: =IF($FI23>0,$FW23,SUM(I23:K23)+CJ23+IF(СЭкзаменами,SUMIF(Курс1!$AL$7:$AL$75,"="&ROW(),Курс1!$AA$7:$AA$75)+SUMIF(Курс2!$AL$7:$AL$75,"="&ROW(),Курс2!$AA$7:$AA$75)+SUMIF(Курс3!$AL$7:$AL$75,"="&ROW(),Курс3!$AA$7:$AA$75)+SUMIF(Курс4!$AL$7:$AL$75,"="&ROW(),Курс4!$AA$7:$AA$75)+SUMIF(Курс5!$AL$7:$AL$75,"="&ROW(),Курс5!$AA$7:$AA$75)+SUMIF(Курс6!$AL$7:$AL$75,"="&ROW(),Курс6!$AA$7:$AA$75)+SUMIF(Курс7!$AL$7:$AL$75,"="&ROW(),Курс7!$AA$7:$AA$75),0)) -> 0 | I23: 0 | J23: 0 | BQ23: 0 | BR23: 0 | BS23: 0 | BT23: 0 | BU23: 0 | BV23: 0 | BW23: 0 | BY23: 0 | BZ23: 0 | CA23: 0 | CB23: 0 | CC23: 0 | CE23: 0 | CK23: 0 | CL23: 0 | CM23: 0 | CN23: 0 | CO23: 0 | CP23: 0 | CQ23: 0 | CR23: 0 | CS23: 0 | CT23: 0 | CU23: 0 | CV23: 0 | CW23: 0 | CX23: 0 | CY23: 0 | CZ23: 0 | DA23: 0 | DB23: 0 | DC23: 0 | DD23: 0 | DE23: 0 | DF23: 0 | DG23: 0 | DH23: 0 | DI23: 0 | DJ23: 0 | DK23: 0 | DL23: 0 | DM23: 0 | DN23: 0 | DO23: 0 | DP23: 0 | DQ23: 0 | DR23: 0 | DS23: 0 | DT23: 0 | DU23: 0 | DV23: 0 | DW23: 0 | DX23: 0 | DY23: 0 | DZ23: 0 | EA23: 0 | EB23: 0 | EC23: 0 | ED23: 0 | EE23: 0 | EF23: 0 | EG23: 0 | EH23: 0 | EI23: 0 | EJ23: 0 | EK23: 0 | EL23: 0 | EM23: 0 | EN23: 0 | EO23: 0 | EP23: 0 | EQ23: 0 | ER23: 0 | ES23: 0 | EU23: 0 | EV23: 0 | EW23: 0 | EX23: 0 | EY23: 0 | EZ23: 0 | FA23: 0 | FB23: 0 | FC23: 0 | FD23: 0 | FE23: 0 | FF23: 0 | FG23: 0 | FH23: 0 | FI23: 0 | FJ23: 0 | FK23: 0 | FL23: 1 | FM23: 381 | FN23: 387 | FO23: В | FP23: 0 | FQ23: =SUM($CB$6:$CB23) -> 6 | FR23: 0 | FT23: 0 | FU23: =IF(FT23=0,FLOOR(IF(СЭкзаменами,H23,(H23+SUMIF(Курс1!$AL$7:$AL$75,"="&ROW(),Курс1!$AA$7:$AA$75)+SUMIF(Курс2!$AL$7:$AL$75,"="&ROW(),Курс2!$AA$7:$AA$75)+SUMIF(Курс3!$AL$7:$AL$75,"="&ROW(),Курс3!$AA$7:$AA$75)+SUMIF(Курс4!$AL$7:$AL$75,"="&ROW(),Курс4!$AA$7:$AA$75)+SUMIF(Курс5!$AL$7:$AL$75,"="&ROW(),Курс5!$AA$7:$AA$75)+SUMIF(Курс6!$AL$7:$AL$75,"="&ROW(),Курс6!$AA$7:$AA$75)+SUMIF(Курс7!$AL$7:$AL$75,"="&ROW(),Курс7!$AA$7:$AA$75)))/IF(ЧасовВКредите>0,ЧасовВКредите,36),0.5),FT23) -> 0 | FY23: =SUMIF(Курс1!$AL$7:$AL$75,"="&ROW(),Курс1!$AC$7:$AC$75)+SUMIF(Курс2!$AL$7:$AL$75,"="&ROW(),Курс2!$AC$7:$AC$75)+SUMIF(Курс3!$AL$7:$AL$75,"="&ROW(),Курс3!$AC$7:$AC$75)+SUMIF(Курс4!$AL$7:$AL$75,"="&ROW(),Курс4!$AC$7:$AC$75)+SUMIF(Курс5!$AL$7:$AL$75,"="&ROW(),Курс5!$AC$7:$AC$75)+SUMIF(Курс6!$AL$7:$AL$75,"="&ROW(),Курс6!$AC$7:$AC$75)+SUMIF(Курс7!$AL$7:$AL$75,"="&ROW(),Курс7!$AC$7:$AC$75) -> 0
G24: =IF($FI24>0,$FW24,SUM(I24:K24)+CJ24+IF(СЭкзаменами,SUMIF(Курс1!$AL$7:$AL$75,"="&ROW(),Курс1!$AA$7:$AA$75)+SUMIF(Курс2!$AL$7:$AL$75,"="&ROW(),Курс2!$AA$7:$AA$75)+SUMIF(Курс3!$AL$7:$AL$75,"="&ROW(),Курс3!$AA$7:$AA$75)+SUMIF(Курс4!$AL$7:$AL$75,"="&ROW(),Курс4!$AA$7:$AA$75)+SUMIF(Курс5!$AL$7:$AL$75,"="&ROW(),Курс5!$AA$7:$AA$75)+SUMIF(Курс6!$AL$7:$AL$75,"="&ROW(),Курс6!$AA$7:$AA$75)+SUMIF(Курс7!$AL$7:$AL$75,"="&ROW(),Курс7!$AA$7:$AA$75),0)) -> 0 | I24: 0 | J24: 0 | BQ24: 0 | BR24: 0 | BS24: 0 | BT24: 0 | BU24: 0 | BV24: 0 | BW24: 0 | BY24: 0 | BZ24: 0 | CA24: 0 | CB24: 0 | CC24: 0 | CE24: 0 | CK24: 0 | CL24: 0 | CM24: 0 | CN24: 0 | CO24: 0 | CP24: 0 | CQ24: 0 | CR24: 0 | CS24: 0 | CT24: 0 | CU24: 0 | CV24: 0 | CW24: 0 | CX24: 0 | CY24: 0 | CZ24: 0 | DA24: 0 | DB24: 0 | DC24: 0 | DD24: 0 | DE24: 0 | DF24: 0 | DG24: 0 | DH24: 0 | DI24: 0 | DJ24: 0 | DK24: 0 | DL24: 0 | DM24: 0 | DN24: 0 | DO24: 0 | DP24: 0 | DQ24: 0 | DR24: 0 | DS24: 0 | DT24: 0 | DU24: 0 | DV24: 0 | DW24: 0 | DX24: 0 | DY24: 0 | DZ24: 0 | EA24: 0 | EB24: 0 | EC24: 0 | ED24: 0 | EE24: 0 | EF24: 0 | EG24: 0 | EH24: 0 | EI24: 0 | EJ24: 0 | EK24: 0 | EL24: 0 | EM24: 0 | EN24: 0 | EO24: 0 | EP24: 0 | EQ24: 0 | ER24: 0 | ES24: 0 | EU24: 0 | EV24: 0 | EW24: 0 | EX24: 0 | EY24: 0 | EZ24: 0 | FA24: 0 | FB24: 0 | FC24: 0 | FD24: 0 | FE24: 0 | FF24: 0 | FG24: 0 | FH24: 0 | FI24: 0 | FJ24: 0 | FK24: 0 | FL24: 1 | FM24: 391 | FN24: 397 | FO24: В | FP24: 0 | FQ24: =SUM($CB$6:$CB24) -> 6 | FR24: 0 | FT24: 0 | FU24: =IF(FT24=0,FLOOR(IF(СЭкзаменами,H24,(H24+SUMIF(Курс1!$AL$7:$AL$75,"="&ROW(),Курс1!$AA$7:$AA$75)+SUMIF(Курс2!$AL$7:$AL$75,"="&ROW(),Курс2!$AA$7:$AA$75)+SUMIF(Курс3!$AL$7:$AL$75,"="&ROW(),Курс3!$AA$7:$AA$75)+SUMIF(Курс4!$AL$7:$AL$75,"="&ROW(),Курс4!$AA$7:$AA$75)+SUMIF(Курс5!$AL$7:$AL$75,"="&ROW(),Курс5!$AA$7:$AA$75)+SUMIF(Курс6!$AL$7:$AL$75,"="&ROW(),Курс6!$AA$7:$AA$75)+SUMIF(Курс7!$AL$7:$AL$75,"="&ROW(),Курс7!$AA$7:$AA$75)))/IF(ЧасовВКредите>0,ЧасовВКредите,36),0.5),FT24) -> 0 | FY24: =SUMIF(Курс1!$AL$7:$AL$75,"="&ROW(),Курс1!$AC$7:$AC$75)+SUMIF(Курс2!$AL$7:$AL$75,"="&ROW(),Курс2!$AC$7:$AC$75)+SUMIF(Курс3!$AL$7:$AL$75,"="&ROW(),Курс3!$AC$7:$AC$75)+SUMIF(Курс4!$AL$7:$AL$75,"="&ROW(),Курс4!$AC$7:$AC$75)+SUMIF(Курс5!$AL$7:$AL$75,"="&ROW(),Курс5!$AC$7:$AC$75)+SUMIF(Курс6!$AL$7:$AL$75,"="&ROW(),Курс6!$AC$7:$AC$75)+SUMIF(Курс7!$AL$7:$AL$75,"="&ROW(),Курс7!$AC$7:$AC$75) -> 0
G25: =IF($FI25>0,$FW25,SUM(I25:K25)+CJ25+IF(СЭкзаменами,SUMIF(Курс1!$AL$7:$AL$75,"="&ROW(),Курс1!$AA$7:$AA$75)+SUMIF(Курс2!$AL$7:$AL$75,"="&ROW(),Курс2!$AA$7:$AA$75)+SUMIF(Курс3!$AL$7:$AL$75,"="&ROW(),Курс3!$AA$7:$AA$75)+SUMIF(Курс4!$AL$7:$AL$75,"="&ROW(),Курс4!$AA$7:$AA$75)+SUMIF(Курс5!$AL$7:$AL$75,"="&ROW(),Курс5!$AA$7:$AA$75)+SUMIF(Курс6!$AL$7:$AL$75,"="&ROW(),Курс6!$AA$7:$AA$75)+SUMIF(Курс7!$AL$7:$AL$75,"="&ROW(),Курс7!$AA$7:$AA$75),0)) -> 0 | I25: 0 | J25: 0 | BQ25: 0 | BR25: 0 | BS25: 0 | BT25: 0 | BU25: 0 | BV25: 0 | BW25: 0 | BY25: 0 | BZ25: 0 | CA25: 0 | CB25: 0 | CC25: 0 | CE25: 0 | CK25: 0 | CL25: 0 | CM25: 0 | CN25: 0 | CO25: 0 | CP25: 0 | CQ25: 0 | CR25: 0 | CS25: 0 | CT25: 0 | CU25: 0 | CV25: 0 | CW25: 0 | CX25: 0 | CY25: 0 | CZ25: 0 | DA25: 0 | DB25: 0 | DC25: 0 | DD25: 0 | DE25: 0 | DF25: 0 | DG25: 0 | DH25: 0 | DI25: 0 | DJ25: 0 | DK25: 0 | DL25: 0 | DM25: 0 | DN25: 0 | DO25: 0 | DP25: 0 | DQ25: 0 | DR25: 0 | DS25: 0 | DT25: 0 | DU25: 0 | DV25: 0 | DW25: 0 | DX25: 0 | DY25: 0 | DZ25: 0 | EA25: 0 | EB25: 0 | EC25: 0 | ED25: 0 | EE25: 0 | EF25: 0 | EG25: 0 | EH25: 0 | EI25: 0 | EJ25: 0 | EK25: 0 | EL25: 0 | EM25: 0 | EN25: 0 | EO25: 0 | EP25: 0 | EQ25: 0 | ER25: 0 | ES25: 0 | EU25: 0 | EV25: 0 | EW25: 0 | EX25: 0 | EY25: 0 | EZ25: 0 | FA25: 0 | FB25: 0 | FC25: 0 | FD25: 0 | FE25: 0 | FF25: 0 | FG25: 0 | FH25: 0 | FI25: 0 | FJ25: 0 | FK25: 0 | FL25: 1 | FM25: 401 | FN25: 407 | FO25: В | FP25: 0 | FQ25: =SUM($CB$6:$CB25) -> 6 | FR25: 0 | FT25: 0 | FU25: =IF(FT25=0,FLOOR(IF(СЭкзаменами,H25,(H25+SUMIF(Курс1!$AL$7:$AL$75,"="&ROW(),Курс1!$AA$7:$AA$75)+SUMIF(Курс2!$AL$7:$AL$75,"="&ROW(),Курс2!$AA$7:$AA$75)+SUMIF(Курс3!$AL$7:$AL$75,"="&ROW(),Курс3!$AA$7:$AA$75)+SUMIF(Курс4!$AL$7:$AL$75,"="&ROW(),Курс4!$AA$7:$AA$75)+SUMIF(Курс5!$AL$7:$AL$75,"="&ROW(),Курс5!$AA$7:$AA$75)+SUMIF(Курс6!$AL$7:$AL$75,"="&ROW(),Курс6!$AA$7:$AA$75)+SUMIF(Курс7!$AL$7:$AL$75,"="&ROW(),Курс7!$AA$7:$AA$75)))/IF(ЧасовВКредите>0,ЧасовВКредите,36),0.5),FT25) -> 0 | FY25: =SUMIF(Курс1!$AL$7:$AL$75,"="&ROW(),Курс1!$AC$7:$AC$75)+SUMIF(Курс2!$AL$7:$AL$75,"="&ROW(),Курс2!$AC$7:$AC$75)+SUMIF(Курс3!$AL$7:$AL$75,"="&ROW(),Курс3!$AC$7:$AC$75)+SUMIF(Курс4!$AL$7:$AL$75,"="&ROW(),Курс4!$AC$7:$AC$75)+SUMIF(Курс5!$AL$7:$AL$75,"="&ROW(),Курс5!$AC$7:$AC$75)+SUMIF(Курс6!$AL$7:$AL$75,"="&ROW(),Курс6!$AC$7:$AC$75)+SUMIF(Курс7!$AL$7:$AL$75,"="&ROW(),Курс7!$AC$7:$AC$75) -> 0
G26: =IF($FI26>0,$FW26,SUM(I26:K26)+CJ26+IF(СЭкзаменами,SUMIF(Курс1!$AL$7:$AL$75,"="&ROW(),Курс1!$AA$7:$AA$75)+SUMIF(Курс2!$AL$7:$AL$75,"="&ROW(),Курс2!$AA$7:$AA$75)+SUMIF(Курс3!$AL$7:$AL$75,"="&ROW(),Курс3!$AA$7:$AA$75)+SUMIF(Курс4!$AL$7:$AL$75,"="&ROW(),Курс4!$AA$7:$AA$75)+SUMIF(Курс5!$AL$7:$AL$75,"="&ROW(),Курс5!$AA$7:$AA$75)+SUMIF(Курс6!$AL$7:$AL$75,"="&ROW(),Курс6!$AA$7:$AA$75)+SUMIF(Курс7!$AL$7:$AL$75,"="&ROW(),Курс7!$AA$7:$AA$75),0)) -> 0 | I26: 0 | J26: 0 | BQ26: 0 | BR26: 0 | BS26: 0 | BT26: 0 | BU26: 0 | BV26: 0 | BW26: 0 | BY26: 0 | BZ26: 0 | CA26: 0 | CB26: 0 | CC26: 0 | CE26: 0 | CK26: 0 | CL26: 0 | CM26: 0 | CN26: 0 | CO26: 0 | CP26: 0 | CQ26: 0 | CR26: 0 | CS26: 0 | CT26: 0 | CU26: 0 | CV26: 0 | CW26: 0 | CX26: 0 | CY26: 0 | CZ26: 0 | DA26: 0 | DB26: 0 | DC26: 0 | DD26: 0 | DE26: 0 | DF26: 0 | DG26: 0 | DH26: 0 | DI26: 0 | DJ26: 0 | DK26: 0 | DL26: 0 | DM26: 0 | DN26: 0 | DO26: 0 | DP26: 0 | DQ26: 0 | DR26: 0 | DS26: 0 | DT26: 0 | DU26: 0 | DV26: 0 | DW26: 0 | DX26: 0 | DY26: 0 | DZ26: 0 | EA26: 0 | EB26: 0 | EC26: 0 | ED26: 0 | EE26: 0 | EF26: 0 | EG26: 0 | EH26: 0 | EI26: 0 | EJ26: 0 | EK26: 0 | EL26: 0 | EM26: 0 | EN26: 0 | EO26: 0 | EP26: 0 | EQ26: 0 | ER26: 0 | ES26: 0 | EU26: 0 | EV26: 0 | EW26: 0 | EX26: 0 | EY26: 0 | EZ26: 0 | FA26: 0 | FB26: 0 | FC26: 0 | FD26: 0 | FE26: 0 | FF26: 0 | FG26: 0 | FH26: 0 | FI26: 0 | FJ26: 0 | FK26: 0 | FL26: 1 | FM26: 411 | FN26: 417 | FO26: В | FP26: 0 | FQ26: =SUM($CB$6:$CB26) -> 6 | FR26: 0 | FT26: 0 | FU26: =IF(FT26=0,FLOOR(IF(СЭкзаменами,H26,(H26+SUMIF(Курс1!$AL$7:$AL$75,"="&ROW(),Курс1!$AA$7:$AA$75)+SUMIF(Курс2!$AL$7:$AL$75,"="&ROW(),Курс2!$AA$7:$AA$75)+SUMIF(Курс3!$AL$7:$AL$75,"="&ROW(),Курс3!$AA$7:$AA$75)+SUMIF(Курс4!$AL$7:$AL$75,"="&ROW(),Курс4!$AA$7:$AA$75)+SUMIF(Курс5!$AL$7:$AL$75,"="&ROW(),Курс5!$AA$7:$AA$75)+SUMIF(Курс6!$AL$7:$AL$75,"="&ROW(),Курс6!$AA$7:$AA$75)+SUMIF(Курс7!$AL$7:$AL$75,"="&ROW(),Курс7!$AA$7:$AA$75)))/IF(ЧасовВКредите>0,ЧасовВКредите,36),0.5),FT26) -> 0 | FY26: =SUMIF(Курс1!$AL$7:$AL$75,"="&ROW(),Курс1!$AC$7:$AC$75)+SUMIF(Курс2!$AL$7:$AL$75,"="&ROW(),Курс2!$AC$7:$AC$75)+SUMIF(Курс3!$AL$7:$AL$75,"="&ROW(),Курс3!$AC$7:$AC$75)+SUMIF(Курс4!$AL$7:$AL$75,"="&ROW(),Курс4!$AC$7:$AC$75)+SUMIF(Курс5!$AL$7:$AL$75,"="&ROW(),Курс5!$AC$7:$AC$75)+SUMIF(Курс6!$AL$7:$AL$75,"="&ROW(),Курс6!$AC$7:$AC$75)+SUMIF(Курс7!$AL$7:$AL$75,"="&ROW(),Курс7!$AC$7:$AC$75) -> 0
G27: =IF($FI27>0,$FW27,SUM(I27:K27)+CJ27+IF(СЭкзаменами,SUMIF(Курс1!$AL$7:$AL$75,"="&ROW(),Курс1!$AA$7:$AA$75)+SUMIF(Курс2!$AL$7:$AL$75,"="&ROW(),Курс2!$AA$7:$AA$75)+SUMIF(Курс3!$AL$7:$AL$75,"="&ROW(),Курс3!$AA$7:$AA$75)+SUMIF(Курс4!$AL$7:$AL$75,"="&ROW(),Курс4!$AA$7:$AA$75)+SUMIF(Курс5!$AL$7:$AL$75,"="&ROW(),Курс5!$AA$7:$AA$75)+SUMIF(Курс6!$AL$7:$AL$75,"="&ROW(),Курс6!$AA$7:$AA$75)+SUMIF(Курс7!$AL$7:$AL$75,"="&ROW(),Курс7!$AA$7:$AA$75),0)) -> 0 | I27: 0 | J27: 0 | BQ27: 0 | BR27: 0 | BS27: 0 | BT27: 0 | BU27: 0 | BV27: 0 | BW27: 0 | BY27: 0 | BZ27: 0 | CA27: 0 | CB27: 0 | CC27: 0 | CE27: 0 | CK27: 0 | CL27: 0 | CM27: 0 | CN27: 0 | CO27: 0 | CP27: 0 | CQ27: 0 | CR27: 0 | CS27: 0 | CT27: 0 | CU27: 0 | CV27: 0 | CW27: 0 | CX27: 0 | CY27: 0 | CZ27: 0 | DA27: 0 | DB27: 0 | DC27: 0 | DD27: 0 | DE27: 0 | DF27: 0 | DG27: 0 | DH27: 0 | DI27: 0 | DJ27: 0 | DK27: 0 | DL27: 0 | DM27: 0 | DN27: 0 | DO27: 0 | DP27: 0 | DQ27: 0 | DR27: 0 | DS27: 0 | DT27: 0 | DU27: 0 | DV27: 0 | DW27: 0 | DX27: 0 | DY27: 0 | DZ27: 0 | EA27: 0 | EB27: 0 | EC27: 0 | ED27: 0 | EE27: 0 | EF27: 0 | EG27: 0 | EH27: 0 | EI27: 0 | EJ27: 0 | EK27: 0 | EL27: 0 | EM27: 0 | EN27: 0 | EO27: 0 | EP27: 0 | EQ27: 0 | ER27: 0 | ES27: 0 | EU27: 0 | EV27: 0 | EW27: 0 | EX27: 0 | EY27: 0 | EZ27: 0 | FA27: 0 | FB27: 0 | FC27: 0 | FD27: 0 | FE27: 0 | FF27: 0 | FG27: 0 | FH27: 0 | FI27: 0 | FJ27: 0 | FK27: 0 | FL27: 1 | FM27: 421 | FN27: 427 | FO27: В | FP27: 0 | FQ27: =SUM($CB$6:$CB27) -> 6 | FR27: 0 | FT27: 0 | FU27: =IF(FT27=0,FLOOR(IF(СЭкзаменами,H27,(H27+SUMIF(Курс1!$AL$7:$AL$75,"="&ROW(),Курс1!$AA$7:$AA$75)+SUMIF(Курс2!$AL$7:$AL$75,"="&ROW(),Курс2!$AA$7:$AA$75)+SUMIF(Курс3!$AL$7:$AL$75,"="&ROW(),Курс3!$AA$7:$AA$75)+SUMIF(Курс4!$AL$7:$AL$75,"="&ROW(),Курс4!$AA$7:$AA$75)+SUMIF(Курс5!$AL$7:$AL$75,"="&ROW(),Курс5!$AA$7:$AA$75)+SUMIF(Курс6!$AL$7:$AL$75,"="&ROW(),Курс6!$AA$7:$AA$75)+SUMIF(Курс7!$AL$7:$AL$75,"="&ROW(),Курс7!$AA$7:$AA$75)))/IF(ЧасовВКредите>0,ЧасовВКредите,36),0.5),FT27) -> 0 | FY27: =SUMIF(Курс1!$AL$7:$AL$75,"="&ROW(),Курс1!$AC$7:$AC$75)+SUMIF(Курс2!$AL$7:$AL$75,"="&ROW(),Курс2!$AC$7:$AC$75)+SUMIF(Курс3!$AL$7:$AL$75,"="&ROW(),Курс3!$AC$7:$AC$75)+SUMIF(Курс4!$AL$7:$AL$75,"="&ROW(),Курс4!$AC$7:$AC$75)+SUMIF(Курс5!$AL$7:$AL$75,"="&ROW(),Курс5!$AC$7:$AC$75)+SUMIF(Курс6!$AL$7:$AL$75,"="&ROW(),Курс6!$AC$7:$AC$75)+SUMIF(Курс7!$AL$7:$AL$75,"="&ROW(),Курс7!$AC$7:$AC$75) -> 0
G28: =IF($FI28>0,$FW28,SUM(I28:K28)+CJ28+IF(СЭкзаменами,SUMIF(Курс1!$AL$7:$AL$75,"="&ROW(),Курс1!$AA$7:$AA$75)+SUMIF(Курс2!$AL$7:$AL$75,"="&ROW(),Курс2!$AA$7:$AA$75)+SUMIF(Курс3!$AL$7:$AL$75,"="&ROW(),Курс3!$AA$7:$AA$75)+SUMIF(Курс4!$AL$7:$AL$75,"="&ROW(),Курс4!$AA$7:$AA$75)+SUMIF(Курс5!$AL$7:$AL$75,"="&ROW(),Курс5!$AA$7:$AA$75)+SUMIF(Курс6!$AL$7:$AL$75,"="&ROW(),Курс6!$AA$7:$AA$75)+SUMIF(Курс7!$AL$7:$AL$75,"="&ROW(),Курс7!$AA$7:$AA$75),0)) -> 0 | I28: 0 | J28: 0 | BQ28: 0 | BR28: 0 | BS28: 0 | BT28: 0 | BU28: 0 | BV28: 0 | BW28: 0 | BY28: 0 | BZ28: 0 | CA28: 0 | CB28: 0 | CC28: 0 | CE28: 0 | CK28: 0 | CL28: 0 | CM28: 0 | CN28: 0 | CO28: 0 | CP28: 0 | CQ28: 0 | CR28: 0 | CS28: 0 | CT28: 0 | CU28: 0 | CV28: 0 | CW28: 0 | CX28: 0 | CY28: 0 | CZ28: 0 | DA28: 0 | DB28: 0 | DC28: 0 | DD28: 0 | DE28: 0 | DF28: 0 | DG28: 0 | DH28: 0 | DI28: 0 | DJ28: 0 | DK28: 0 | DL28: 0 | DM28: 0 | DN28: 0 | DO28: 0 | DP28: 0 | DQ28: 0 | DR28: 0 | DS28: 0 | DT28: 0 | DU28: 0 | DV28: 0 | DW28: 0 | DX28: 0 | DY28: 0 | DZ28: 0 | EA28: 0 | EB28: 0 | EC28: 0 | ED28: 0 | EE28: 0 | EF28: 0 | EG28: 0 | EH28: 0 | EI28: 0 | EJ28: 0 | EK28: 0 | EL28: 0 | EM28: 0 | EN28: 0 | EO28: 0 | EP28: 0 | EQ28: 0 | ER28: 0 | ES28: 0 | EU28: 0 | EV28: 0 | EW28: 0 | EX28: 0 | EY28: 0 | EZ28: 0 | FA28: 0 | FB28: 0 | FC28: 0 | FD28: 0 | FE28: 0 | FF28: 0 | FG28: 0 | FH28: 0 | FI28: 0 | FJ28: 0 | FK28: 0 | FL28: 1 | FM28: 431 | FN28: 437 | FO28: В | FP28: 0 | FQ28: =SUM($CB$6:$CB28) -> 6 | FR28: 0 | FT28: 0 | FU28: =IF(FT28=0,FLOOR(IF(СЭкзаменами,H28,(H28+SUMIF(Курс1!$AL$7:$AL$75,"="&ROW(),Курс1!$AA$7:$AA$75)+SUMIF(Курс2!$AL$7:$AL$75,"="&ROW(),Курс2!$AA$7:$AA$75)+SUMIF(Курс3!$AL$7:$AL$75,"="&ROW(),Курс3!$AA$7:$AA$75)+SUMIF(Курс4!$AL$7:$AL$75,"="&ROW(),Курс4!$AA$7:$AA$75)+SUMIF(Курс5!$AL$7:$AL$75,"="&ROW(),Курс5!$AA$7:$AA$75)+SUMIF(Курс6!$AL$7:$AL$75,"="&ROW(),Курс6!$AA$7:$AA$75)+SUMIF(Курс7!$AL$7:$AL$75,"="&ROW(),Курс7!$AA$7:$AA$75)))/IF(ЧасовВКредите>0,ЧасовВКредите,36),0.5),FT28) -> 0 | FY28: =SUMIF(Курс1!$AL$7:$AL$75,"="&ROW(),Курс1!$AC$7:$AC$75)+SUMIF(Курс2!$AL$7:$AL$75,"="&ROW(),Курс2!$AC$7:$AC$75)+SUMIF(Курс3!$AL$7:$AL$75,"="&ROW(),Курс3!$AC$7:$AC$75)+SUMIF(Курс4!$AL$7:$AL$75,"="&ROW(),Курс4!$AC$7:$AC$75)+SUMIF(Курс5!$AL$7:$AL$75,"="&ROW(),Курс5!$AC$7:$AC$75)+SUMIF(Курс6!$AL$7:$AL$75,"="&ROW(),Курс6!$AC$7:$AC$75)+SUMIF(Курс7!$AL$7:$AL$75,"="&ROW(),Курс7!$AC$7:$AC$75) -> 0
G29: =IF($FI29>0,$FW29,SUM(I29:K29)+CJ29+IF(СЭкзаменами,SUMIF(Курс1!$AL$7:$AL$75,"="&ROW(),Курс1!$AA$7:$AA$75)+SUMIF(Курс2!$AL$7:$AL$75,"="&ROW(),Курс2!$AA$7:$AA$75)+SUMIF(Курс3!$AL$7:$AL$75,"="&ROW(),Курс3!$AA$7:$AA$75)+SUMIF(Курс4!$AL$7:$AL$75,"="&ROW(),Курс4!$AA$7:$AA$75)+SUMIF(Курс5!$AL$7:$AL$75,"="&ROW(),Курс5!$AA$7:$AA$75)+SUMIF(Курс6!$AL$7:$AL$75,"="&ROW(),Курс6!$AA$7:$AA$75)+SUMIF(Курс7!$AL$7:$AL$75,"="&ROW(),Курс7!$AA$7:$AA$75),0)) -> 0 | I29: 0 | J29: 0 | BQ29: 0 | BR29: 0 | BS29: 0 | BT29: 0 | BU29: 0 | BV29: 0 | BW29: 0 | BY29: 0 | BZ29: 0 | CA29: 0 | CB29: 0 | CC29: 0 | CE29: 0 | CK29: 0 | CL29: 0 | CM29: 0 | CN29: 0 | CO29: 0 | CP29: 0 | CQ29: 0 | CR29: 0 | CS29: 0 | CT29: 0 | CU29: 0 | CV29: 0 | CW29: 0 | CX29: 0 | CY29: 0 | CZ29: 0 | DA29: 0 | DB29: 0 | DC29: 0 | DD29: 0 | DE29: 0 | DF29: 0 | DG29: 0 | DH29: 0 | DI29: 0 | DJ29: 0 | DK29: 0 | DL29: 0 | DM29: 0 | DN29: 0 | DO29: 0 | DP29: 0 | DQ29: 0 | DR29: 0 | DS29: 0 | DT29: 0 | DU29: 0 | DV29: 0 | DW29: 0 | DX29: 0 | DY29: 0 | DZ29: 0 | EA29: 0 | EB29: 0 | EC29: 0 | ED29: 0 | EE29: 0 | EF29: 0 | EG29: 0 | EH29: 0 | EI29: 0 | EJ29: 0 | EK29: 0 | EL29: 0 | EM29: 0 | EN29: 0 | EO29: 0 | EP29: 0 | EQ29: 0 | ER29: 0 | ES29: 0 | EU29: 0 | EV29: 0 | EW29: 0 | EX29: 0 | EY29: 0 | EZ29: 0 | FA29: 0 | FB29: 0 | FC29: 0 | FD29: 0 | FE29: 0 | FF29: 0 | FG29: 0 | FH29: 0 | FI29: 0 | FJ29: 0 | FK29: 0 | FL29: 1 | FM29: 441 | FN29: 447 | FO29: В | FP29: 0 | FQ29: =SUM($CB$6:$CB29) -> 6 | FR29: 0 | FT29: 0 | FU29: =IF(FT29=0,FLOOR(IF(СЭкзаменами,H29,(H29+SUMIF(Курс1!$AL$7:$AL$75,"="&ROW(),Курс1!$AA$7:$AA$75)+SUMIF(Курс2!$AL$7:$AL$75,"="&ROW(),Курс2!$AA$7:$AA$75)+SUMIF(Курс3!$AL$7:$AL$75,"="&ROW(),Курс3!$AA$7:$AA$75)+SUMIF(Курс4!$AL$7:$AL$75,"="&ROW(),Курс4!$AA$7:$AA$75)+SUMIF(Курс5!$AL$7:$AL$75,"="&ROW(),Курс5!$AA$7:$AA$75)+SUMIF(Курс6!$AL$7:$AL$75,"="&ROW(),Курс6!$AA$7:$AA$75)+SUMIF(Курс7!$AL$7:$AL$75,"="&ROW(),Курс7!$AA$7:$AA$75)))/IF(ЧасовВКредите>0,ЧасовВКредите,36),0.5),FT29) -> 0 | FY29: =SUMIF(Курс1!$AL$7:$AL$75,"="&ROW(),Курс1!$AC$7:$AC$75)+SUMIF(Курс2!$AL$7:$AL$75,"="&ROW(),Курс2!$AC$7:$AC$75)+SUMIF(Курс3!$AL$7:$AL$75,"="&ROW(),Курс3!$AC$7:$AC$75)+SUMIF(Курс4!$AL$7:$AL$75,"="&ROW(),Курс4!$AC$7:$AC$75)+SUMIF(Курс5!$AL$7:$AL$75,"="&ROW(),Курс5!$AC$7:$AC$75)+SUMIF(Курс6!$AL$7:$AL$75,"="&ROW(),Курс6!$AC$7:$AC$75)+SUMIF(Курс7!$AL$7:$AL$75,"="&ROW(),Курс7!$AC$7:$AC$75) -> 0
G30: =IF($FI30>0,$FW30,SUM(I30:K30)+CJ30+IF(СЭкзаменами,SUMIF(Курс1!$AL$7:$AL$75,"="&ROW(),Курс1!$AA$7:$AA$75)+SUMIF(Курс2!$AL$7:$AL$75,"="&ROW(),Курс2!$AA$7:$AA$75)+SUMIF(Курс3!$AL$7:$AL$75,"="&ROW(),Курс3!$AA$7:$AA$75)+SUMIF(Курс4!$AL$7:$AL$75,"="&ROW(),Курс4!$AA$7:$AA$75)+SUMIF(Курс5!$AL$7:$AL$75,"="&ROW(),Курс5!$AA$7:$AA$75)+SUMIF(Курс6!$AL$7:$AL$75,"="&ROW(),Курс6!$AA$7:$AA$75)+SUMIF(Курс7!$AL$7:$AL$75,"="&ROW(),Курс7!$AA$7:$AA$75),0)) -> 0 | I30: 0 | J30: 0 | BQ30: 0 | BR30: 0 | BS30: 0 | BT30: 0 | BU30: 0 | BV30: 0 | BW30: 0 | BY30: 0 | BZ30: 0 | CA30: 0 | CB30: 0 | CC30: 0 | CE30: 0 | CK30: 0 | CL30: 0 | CM30: 0 | CN30: 0 | CO30: 0 | CP30: 0 | CQ30: 0 | CR30: 0 | CS30: 0 | CT30: 0 | CU30: 0 | CV30: 0 | CW30: 0 | CX30: 0 | CY30: 0 | CZ30: 0 | DA30: 0 | DB30: 0 | DC30: 0 | DD30: 0 | DE30: 0 | DF30: 0 | DG30: 0 | DH30: 0 | DI30: 0 | DJ30: 0 | DK30: 0 | DL30: 0 | DM30: 0 | DN30: 0 | DO30: 0 | DP30: 0 | DQ30: 0 | DR30: 0 | DS30: 0 | DT30: 0 | DU30: 0 | DV30: 0 | DW30: 0 | DX30: 0 | DY30: 0 | DZ30: 0 | EA30: 0 | EB30: 0 | EC30: 0 | ED30: 0 | EE30: 0 | EF30: 0 | EG30: 0 | EH30: 0 | EI30: 0 | EJ30: 0 | EK30: 0 | EL30: 0 | EM30: 0 | EN30: 0 | EO30: 0 | EP30: 0 | EQ30: 0 | ER30: 0 | ES30: 0 | EU30: 0 | EV30: 0 | EW30: 0 | EX30: 0 | EY30: 0 | EZ30: 0 | FA30: 0 | FB30: 0 | FC30: 0 | FD30: 0 | FE30: 0 | FF30: 0 | FG30: 0 | FH30: 0 | FI30: 0 | FJ30: 0 | FK30: 0 | FL30: 1 | FM30: 451 | FN30: 457 | FO30: В | FP30: 0 | FQ30: =SUM($CB$6:$CB30) -> 6 | FR30: 0 | FT30: 0 | FU30: =IF(FT30=0,FLOOR(IF(СЭкзаменами,H30,(H30+SUMIF(Курс1!$AL$7:$AL$75,"="&ROW(),Курс1!$AA$7:$AA$75)+SUMIF(Курс2!$AL$7:$AL$75,"="&ROW(),Курс2!$AA$7:$AA$75)+SUMIF(Курс3!$AL$7:$AL$75,"="&ROW(),Курс3!$AA$7:$AA$75)+SUMIF(Курс4!$AL$7:$AL$75,"="&ROW(),Курс4!$AA$7:$AA$75)+SUMIF(Курс5!$AL$7:$AL$75,"="&ROW(),Курс5!$AA$7:$AA$75)+SUMIF(Курс6!$AL$7:$AL$75,"="&ROW(),Курс6!$AA$7:$AA$75)+SUMIF(Курс7!$AL$7:$AL$75,"="&ROW(),Курс7!$AA$7:$AA$75)))/IF(ЧасовВКредите>0,ЧасовВКредите,36),0.5),FT30) -> 0 | FY30: =SUMIF(Курс1!$AL$7:$AL$75,"="&ROW(),Курс1!$AC$7:$AC$75)+SUMIF(Курс2!$AL$7:$AL$75,"="&ROW(),Курс2!$AC$7:$AC$75)+SUMIF(Курс3!$AL$7:$AL$75,"="&ROW(),Курс3!$AC$7:$AC$75)+SUMIF(Курс4!$AL$7:$AL$75,"="&ROW(),Курс4!$AC$7:$AC$75)+SUMIF(Курс5!$AL$7:$AL$75,"="&ROW(),Курс5!$AC$7:$AC$75)+SUMIF(Курс6!$AL$7:$AL$75,"="&ROW(),Курс6!$AC$7:$AC$75)+SUMIF(Курс7!$AL$7:$AL$75,"="&ROW(),Курс7!$AC$7:$AC$75) -> 0
G31: =IF($FI31>0,$FW31,SUM(I31:K31)+CJ31+IF(СЭкзаменами,SUMIF(Курс1!$AL$7:$AL$75,"="&ROW(),Курс1!$AA$7:$AA$75)+SUMIF(Курс2!$AL$7:$AL$75,"="&ROW(),Курс2!$AA$7:$AA$75)+SUMIF(Курс3!$AL$7:$AL$75,"="&ROW(),Курс3!$AA$7:$AA$75)+SUMIF(Курс4!$AL$7:$AL$75,"="&ROW(),Курс4!$AA$7:$AA$75)+SUMIF(Курс5!$AL$7:$AL$75,"="&ROW(),Курс5!$AA$7:$AA$75)+SUMIF(Курс6!$AL$7:$AL$75,"="&ROW(),Курс6!$AA$7:$AA$75)+SUMIF(Курс7!$AL$7:$AL$75,"="&ROW(),Курс7!$AA$7:$AA$75),0)) -> 0 | I31: =SUM(L31:N31)+SUM(P31:R31)+SUM(T31:V31)+SUM(X31:Z31)+SUM(AB31:AD31)+SUM(AF31:AH31)+SUM(AJ31:AL31)+SUM(AN31:AP31)+SUM(AR31:AT31)+SUM(AV31:AX31)+SUM(AZ31:BB31)+SUM(BD31:BF31)+SUM(BH31:BJ31)+SUM(BL31:BN31) -> 0 | J31: =O31+S31+W31+AA31+AE31+AI31+AM31+AQ31+AU31+AY31+BC31+BG31+BK31+BO31 -> 0 | BQ31: 0 | BR31: 0 | BS31: 0 | BT31: 0 | BU31: 0 | BV31: 0 | BW31: 0 | BY31: =IF(FI31=0,$H31*MAX(1,$BX31)*($BQ31*Конт1+$BR31*Конт2+$BS31*Конт3+$BT31*Конт4+$BU31*Конт5+$BV31*Конт6)/IF(СреднееКСГ>0,СреднееКСГ,21)+((CL31+CP31)*Экз+(CM31+CQ31)*Зач+(CN31+CR31)*Проект+(CO31+CS31)*Работа)*Конт1+((CT31+CX31)*Экз+(CU31+CY31)*Зач+(CV31+CZ31)*Проект+(CW31+DA31)*Работа)*Конт2+((DB31+DF31)*Экз+(DC31+DG31)*Зач+(DD31+DH31)*Проект+(DE31+DI31)*Работа)*Конт3+((DJ31+DN31)*Экз+(DK31+DO31)*Зач+(DL31+DP31)*Проект+(DM31+DQ31)*Работа)*Конт4+((DR31+DV31)*Экз+(DO31+DW31)*Зач+(DT31+DX31)*Проект+(DU31+DY31)*Работа)*Конт5+((DZ31+ED31)*Экз+(EA31+EE31)*Зач+(EB31+EF31)*Проект+(EC31+EG31)*Работа)*Конт6,0) -> 0 | BZ31: =IF(AND(UPPER(LEFT(B31,8))="ИТОГОВЫЙ",TRIM(C31)<>""),1,0) -> 0 | CA31: =IF(SUM(G31:H31)=0,0,IF(SUM(L31:O31,T31:W31,AB31:AE31,AJ31:AM31,AR31:AU31,AZ31:BC31)=0,3,IF(SUM(P31:S31,X31:AA31,AF31:AI31,AN31:AQ31,AV31:AY31,BD31:BG31)=0,1,2))) -> 0 | CB31: =IF(OR(TRIM(B31)="",FJ31=1),0,1) -> 0 | CC31: =IF(OR(CA31>0,TRIM(B31)<>""),1,0) -> 0 | CE31: =CL31+CP31+CT31+CX31+DB31+DF31+DJ31+DN31+DR31+DV31+DZ31+ED31+CM31+CQ31+CU31+CY31+DC31+DG31+DK31+DO31+DS31+DW31+EA31+EE31 -> 0 | CK31: =SUM(I31:K31) -> 0 | CL31: 0 | CM31: 0 | CN31: =IF(ISNUMBER(FIND(CL$2,$E31,1)),IF(OR(FI31=1,$FP31=1),0,1),0) -> 0 | CO31: =IF(ISNUMBER(FIND(CL$2,$F31,1)),IF(OR(FI31=1,$FP31=1),0,1),0) -> 0 | CP31: 0 | CQ31: 0 | CR31: =IF(ISNUMBER(FIND(CP$2,$E31,1)),IF(OR(FI31=1,$FP31=1),0,1),0) -> 0 | CS31: =IF(ISNUMBER(FIND(CP$2,$F31,1)),IF(OR($FI31=1,$FP31=1),0,1),0) -> 0 | CT31: 0 | CU31: 0 | CV31: =IF(ISNUMBER(FIND(CT$2,$E31,1)),IF(OR($FI31=1,$FP31=1),0,1),0) -> 0 | CW31: =IF(ISNUMBER(FIND(CT$2,$F31,1)),IF(OR($FI31=1,$FP31=1),0,1),0) -> 0 | CX31: 0 | CY31: 0 | CZ31: =IF(ISNUMBER(FIND(CX$2,$E31,1)),IF(OR($FI31=1,$FP31=1),0,1),0) -> 0 | DA31: =IF(ISNUMBER(FIND(CX$2,$F31,1)),IF(OR($FI31=1,$FP31=1),0,1),0) -> 0 | DB31: 0 | DC31: 0 | DD31: =IF(ISNUMBER(FIND(DB$2,$E31,1)),IF(OR($FI31=1,$FP31=1),0,1),0) -> 0 | DE31: =IF(ISNUMBER(FIND(DB$2,$F31,1)),IF(OR($FI31=1,$FP31=1),0,1),0) -> 0 | DF31: 0 | DG31: 0 | DH31: =IF(ISNUMBER(FIND(DF$2,$E31,1)),IF(OR($FI31=1,$FP31=1),0,1),0) -> 0 | DI31: =IF(ISNUMBER(FIND(DF$2,$F31,1)),IF(OR($FI31=1,$FP31=1),0,1),0) -> 0 | DJ31: 0 | DK31: 0 | DL31: =IF(ISNUMBER(FIND(DJ$2,$E31,1)),IF(OR($FI31=1,$FP31=1),0,1),0) -> 0 | DM31: =IF(ISNUMBER(FIND(DJ$2,$F31,1)),IF(OR($FI31=1,$FP31=1),0,1),0) -> 0 | DN31: 0 | DO31: 0 | DP31: =IF(ISNUMBER(FIND(DN$2,$E31,1)),IF(OR($FI31=1,$FP31=1),0,1),0) -> 0 | DQ31: =IF(ISNUMBER(FIND(DN$2,$F31,1)),IF(OR($FI31=1,$FP31=1),0,1),0) -> 0 | DR31: 0 | DS31: 0 | DT31: =IF(ISNUMBER(FIND(DR$2,$E31,1)),IF(OR($FI31=1,$FP31=1),0,1),0) -> 0 | DU31: =IF(ISNUMBER(FIND(DR$2,$F31,1)),IF(OR($FI31=1,$FP31=1),0,1),0) -> 0 | DV31: 0 | DW31: 0 | DX31: =IF(ISNUMBER(FIND(DV$2,$E31,1)),IF(OR($FI31=1,$FP31=1),0,1),0) -> 0 | DY31: =IF(ISNUMBER(FIND(DV$2,$F31,1)),IF(OR($FI31=1,$FP31=1),0,1),0) -> 0 | DZ31: 0 | EA31: 0 | EB31: =IF(ISNUMBER(FIND(DZ$2,$E31,1)),IF(OR($FI31=1,$FP31=1),0,1),0) -> 0 | EC31: =IF(ISNUMBER(FIND(DZ$2,$F31,1)),IF(OR($FI31=1,$FP31=1),0,1),0) -> 0 | ED31: 0 | EE31: 0 | EF31: =IF(ISNUMBER(FIND(ED$2,$E31,1)),IF(OR($FI31=1,$FP31=1),0,1),0) -> 0 | EG31: =IF(ISNUMBER(FIND(ED$2,$F31,1)),IF(OR($FI31=1,$FP31=1),0,1),0) -> 0 | EH31: 0 | EI31: 0 | EJ31: =IF(ISNUMBER(FIND(EH$2,$E31,1)),IF(OR($FI31=1,$FP31=1),0,1),0) -> 0 | EK31: =IF(ISNUMBER(FIND(EH$2,$F31,1)),IF(OR($FI31=1,$FP31=1),0,1),0) -> 0 | EL31: 0 | EM31: 0 | EN31: =IF(ISNUMBER(FIND(EL$2,$E31,1)),IF(OR($FI31=1,$FP31=1),0,1),0) -> 0 | EO31: =IF(ISNUMBER(FIND(EL$2,$F31,1)),IF(OR($FI31=1,$FP31=1),0,1),0) -> 0 | EP31: =IF(OR($FI31=1,$FP31=1),0,LEN(TRIM(CF31))) -> 0 | EQ31: =IF(OR($FI31=1,$FP31=1),0,LEN(TRIM(CG31))) -> 0 | ER31: 0 | ES31: =IF(OR($FI31=1,$FP31=1),0,LEN(TRIM(CI31))) -> 0 | EU31: =IF(SUM(L31:O31)>0,1,0) -> 0 | EV31: =IF(SUM(P31:S31)>0,1,0) -> 0 | EW31: =IF(SUM(T31:W31)>0,1,0) -> 0 | EX31: =IF(SUM(X31:AA31)>0,1,0) -> 0 | EY31: =IF(SUM(AB31:AE31)>0,1,0) -> 0 | EZ31: =IF(SUM(AF31:AI31)>0,1,0) -> 0 | FA31: =IF(SUM(AJ31:AM31)>0,1,0) -> 0 | FB31: =IF(SUM(AN31:AQ31)>0,1,0) -> 0 | FC31: =IF(SUM(AR31:AU31)>0,1,0) -> 0 | FD31: =IF(SUM(AV31:AY31)>0,1,0) -> 0 | FE31: =IF(SUM(AZ31:BC31)>0,1,0) -> 0 | FF31: =IF(SUM(BD31:BG31)>0,1,0) -> 0 | FG31: =IF(SUM(BH31:BK31)>0,1,0) -> 0 | FH31: =IF(SUM(BL31:BO31)>0,1,0) -> 0 | FI31: 0 | FJ31: 0 | FK31: 0 | FL31: 1 | FM31: 462 | FN31: 521 | FO31: Ф | FP31: 0 | FQ31: =SUM($CB$6:$CB31) -> 6 | FR31: =IF(FI30=1,1,IF(FJ31=1,FR30+1,0)) -> 0 | FS31: 0 | FT31: 0 | FU31: =IF(FT31=0,FLOOR(IF(СЭкзаменами,H31,(H31+SUMIF(Курс1!$AL$7:$AL$75,"="&ROW(),Курс1!$AA$7:$AA$75)+SUMIF(Курс2!$AL$7:$AL$75,"="&ROW(),Курс2!$AA$7:$AA$75)+SUMIF(Курс3!$AL$7:$AL$75,"="&ROW(),Курс3!$AA$7:$AA$75)+SUMIF(Курс4!$AL$7:$AL$75,"="&ROW(),Курс4!$AA$7:$AA$75)+SUMIF(Курс5!$AL$7:$AL$75,"="&ROW(),Курс5!$AA$7:$AA$75)+SUMIF(Курс6!$AL$7:$AL$75,"="&ROW(),Курс6!$AA$7:$AA$75)+SUMIF(Курс7!$AL$7:$AL$75,"="&ROW(),Курс7!$AA$7:$AA$75)))/IF(ЧасовВКредите>0,ЧасовВКредите,36),0.5),FT31) -> 0 | FY31: =SUMIF(Курс1!$AL$7:$AL$75,"="&ROW(),Курс1!$AC$7:$AC$75)+SUMIF(Курс2!$AL$7:$AL$75,"="&ROW(),Курс2!$AC$7:$AC$75)+SUMIF(Курс3!$AL$7:$AL$75,"="&ROW(),Курс3!$AC$7:$AC$75)+SUMIF(Курс4!$AL$7:$AL$75,"="&ROW(),Курс4!$AC$7:$AC$75)+SUMIF(Курс5!$AL$7:$AL$75,"="&ROW(),Курс5!$AC$7:$AC$75)+SUMIF(Курс6!$AL$7:$AL$75,"="&ROW(),Курс6!$AC$7:$AC$75)+SUMIF(Курс7!$AL$7:$AL$75,"="&ROW(),Курс7!$AC$7:$AC$75) -> 0
G32: =IF($FI32>0,$FW32,SUM(I32:K32)+CJ32+IF(СЭкзаменами,SUMIF(Курс1!$AL$7:$AL$75,"="&ROW(),Курс1!$AA$7:$AA$75)+SUMIF(Курс2!$AL$7:$AL$75,"="&ROW(),Курс2!$AA$7:$AA$75)+SUMIF(Курс3!$AL$7:$AL$75,"="&ROW(),Курс3!$AA$7:$AA$75)+SUMIF(Курс4!$AL$7:$AL$75,"="&ROW(),Курс4!$AA$7:$AA$75)+SUMIF(Курс5!$AL$7:$AL$75,"="&ROW(),Курс5!$AA$7:$AA$75)+SUMIF(Курс6!$AL$7:$AL$75,"="&ROW(),Курс6!$AA$7:$AA$75)+SUMIF(Курс7!$AL$7:$AL$75,"="&ROW(),Курс7!$AA$7:$AA$75),0)) -> 0 | I32: 0 | J32: 0 | BQ32: 0 | BR32: 0 | BS32: 0 | BT32: 0 | BU32: 0 | BV32: 0 | BW32: 0 | BY32: 0 | BZ32: 0 | CA32: 0 | CB32: 0 | CC32: 0 | CE32: 0 | CK32: 0 | CL32: 0 | CM32: 0 | CN32: 0 | CO32: 0 | CP32: 0 | CQ32: 0 | CR32: 0 | CS32: 0 | CT32: 0 | CU32: 0 | CV32: 0 | CW32: 0 | CX32: 0 | CY32: 0 | CZ32: 0 | DA32: 0 | DB32: 0 | DC32: 0 | DD32: 0 | DE32: 0 | DF32: 0 | DG32: 0 | DH32: 0 | DI32: 0 | DJ32: 0 | DK32: 0 | DL32: 0 | DM32: 0 | DN32: 0 | DO32: 0 | DP32: 0 | DQ32: 0 | DR32: 0 | DS32: 0 | DT32: 0 | DU32: 0 | DV32: 0 | DW32: 0 | DX32: 0 | DY32: 0 | DZ32: 0 | EA32: 0 | EB32: 0 | EC32: 0 | ED32: 0 | EE32: 0 | EF32: 0 | EG32: 0 | EH32: 0 | EI32: 0 | EJ32: 0 | EK32: 0 | EL32: 0 | EM32: 0 | EN32: 0 | EO32: 0 | EP32: 0 | EQ32: 0 | ER32: 0 | ES32: 0 | EU32: 0 | EV32: 0 | EW32: 0 | EX32: 0 | EY32: 0 | EZ32: 0 | FA32: 0 | FB32: 0 | FC32: 0 | FD32: 0 | FE32: 0 | FF32: 0 | FG32: 0 | FH32: 0 | FI32: 0 | FJ32: 0 | FK32: 0 | FL32: 1 | FM32: 522 | FN32: 555 | FO32: Р | FP32: 0 | FQ32: =SUM($CB$6:$CB32) -> 6 | FR32: 0 | FS32: 0 | FT32: 0 | FU32: =IF(FT32=0,FLOOR(IF(СЭкзаменами,H32,(H32+SUMIF(Курс1!$AL$7:$AL$75,"="&ROW(),Курс1!$AA$7:$AA$75)+SUMIF(Курс2!$AL$7:$AL$75,"="&ROW(),Курс2!$AA$7:$AA$75)+SUMIF(Курс3!$AL$7:$AL$75,"="&ROW(),Курс3!$AA$7:$AA$75)+SUMIF(Курс4!$AL$7:$AL$75,"="&ROW(),Курс4!$AA$7:$AA$75)+SUMIF(Курс5!$AL$7:$AL$75,"="&ROW(),Курс5!$AA$7:$AA$75)+SUMIF(Курс6!$AL$7:$AL$75,"="&ROW(),Курс6!$AA$7:$AA$75)+SUMIF(Курс7!$AL$7:$AL$75,"="&ROW(),Курс7!$AA$7:$AA$75)))/IF(ЧасовВКредите>0,ЧасовВКредите,36),0.5),FT32) -> 0 | FY32: =SUMIF(Курс1!$AL$7:$AL$75,"="&ROW(),Курс1!$AC$7:$AC$75)+SUMIF(Курс2!$AL$7:$AL$75,"="&ROW(),Курс2!$AC$7:$AC$75)+SUMIF(Курс3!$AL$7:$AL$75,"="&ROW(),Курс3!$AC$7:$AC$75)+SUMIF(Курс4!$AL$7:$AL$75,"="&ROW(),Курс4!$AC$7:$AC$75)+SUMIF(Курс5!$AL$7:$AL$75,"="&ROW(),Курс5!$AC$7:$AC$75)+SUMIF(Курс6!$AL$7:$AL$75,"="&ROW(),Курс6!$AC$7:$AC$75)+SUMIF(Курс7!$AL$7:$AL$75,"="&ROW(),Курс7!$AC$7:$AC$75) -> 0
G33: =IF($FI33>0,$FW33,SUM(I33:K33)+CJ33+IF(СЭкзаменами,SUMIF(Курс1!$AL$7:$AL$75,"="&ROW(),Курс1!$AA$7:$AA$75)+SUMIF(Курс2!$AL$7:$AL$75,"="&ROW(),Курс2!$AA$7:$AA$75)+SUMIF(Курс3!$AL$7:$AL$75,"="&ROW(),Курс3!$AA$7:$AA$75)+SUMIF(Курс4!$AL$7:$AL$75,"="&ROW(),Курс4!$AA$7:$AA$75)+SUMIF(Курс5!$AL$7:$AL$75,"="&ROW(),Курс5!$AA$7:$AA$75)+SUMIF(Курс6!$AL$7:$AL$75,"="&ROW(),Курс6!$AA$7:$AA$75)+SUMIF(Курс7!$AL$7:$AL$75,"="&ROW(),Курс7!$AA$7:$AA$75),0)) -> 0 | I33: 0 | J33: 0 | BQ33: 0 | BR33: 0 | BS33: 0 | BT33: 0 | BU33: 0 | BV33: 0 | BW33: 0 | BY33: 0 | BZ33: 0 | CA33: 0 | CB33: 0 | CC33: 0 | CE33: 0 | CK33: 0 | CL33: 0 | CM33: 0 | CN33: 0 | CO33: 0 | CP33: 0 | CQ33: 0 | CR33: 0 | CS33: 0 | CT33: 0 | CU33: 0 | CV33: 0 | CW33: 0 | CX33: 0 | CY33: 0 | CZ33: 0 | DA33: 0 | DB33: 0 | DC33: 0 | DD33: 0 | DE33: 0 | DF33: 0 | DG33: 0 | DH33: 0 | DI33: 0 | DJ33: 0 | DK33: 0 | DL33: 0 | DM33: 0 | DN33: 0 | DO33: 0 | DP33: 0 | DQ33: 0 | DR33: 0 | DS33: 0 | DT33: 0 | DU33: 0 | DV33: 0 | DW33: 0 | DX33: 0 | DY33: 0 | DZ33: 0 | EA33: 0 | EB33: 0 | EC33: 0 | ED33: 0 | EE33: 0 | EF33: 0 | EG33: 0 | EH33: 0 | EI33: 0 | EJ33: 0 | EK33: 0 | EL33: 0 | EM33: 0 | EN33: 0 | EO33: 0 | EP33: 0 | EQ33: 0 | ER33: 0 | ES33: 0 | EU33: 0 | EV33: 0 | EW33: 0 | EX33: 0 | EY33: 0 | EZ33: 0 | FA33: 0 | FB33: 0 | FC33: 0 | FD33: 0 | FE33: 0 | FF33: 0 | FG33: 0 | FH33: 0 | FI33: 0 | FJ33: 0 | FK33: 0 | FL33: 1 | FM33: 559 | FN33: 565 | FO33: В | FP33: 0 | FQ33: =SUM($CB$6:$CB33) -> 6 | FR33: 0 | FS33: 0 | FT33: 0 | FU33: =IF(FT33=0,FLOOR(IF(СЭкзаменами,H33,(H33+SUMIF(Курс1!$AL$7:$AL$75,"="&ROW(),Курс1!$AA$7:$AA$75)+SUMIF(Курс2!$AL$7:$AL$75,"="&ROW(),Курс2!$AA$7:$AA$75)+SUMIF(Курс3!$AL$7:$AL$75,"="&ROW(),Курс3!$AA$7:$AA$75)+SUMIF(Курс4!$AL$7:$AL$75,"="&ROW(),Курс4!$AA$7:$AA$75)+SUMIF(Курс5!$AL$7:$AL$75,"="&ROW(),Курс5!$AA$7:$AA$75)+SUMIF(Курс6!$AL$7:$AL$75,"="&ROW(),Курс6!$AA$7:$AA$75)+SUMIF(Курс7!$AL$7:$AL$75,"="&ROW(),Курс7!$AA$7:$AA$75)))/IF(ЧасовВКредите>0,ЧасовВКредите,36),0.5),FT33) -> 0 | FY33: =SUMIF(Курс1!$AL$7:$AL$75,"="&ROW(),Курс1!$AC$7:$AC$75)+SUMIF(Курс2!$AL$7:$AL$75,"="&ROW(),Курс2!$AC$7:$AC$75)+SUMIF(Курс3!$AL$7:$AL$75,"="&ROW(),Курс3!$AC$7:$AC$75)+SUMIF(Курс4!$AL$7:$AL$75,"="&ROW(),Курс4!$AC$7:$AC$75)+SUMIF(Курс5!$AL$7:$AL$75,"="&ROW(),Курс5!$AC$7:$AC$75)+SUMIF(Курс6!$AL$7:$AL$75,"="&ROW(),Курс6!$AC$7:$AC$75)+SUMIF(Курс7!$AL$7:$AL$75,"="&ROW(),Курс7!$AC$7:$AC$75) -> 0
G34: =IF($FI34>0,$FW34,SUM(I34:K34)+CJ34+IF(СЭкзаменами,SUMIF(Курс1!$AL$7:$AL$75,"="&ROW(),Курс1!$AA$7:$AA$75)+SUMIF(Курс2!$AL$7:$AL$75,"="&ROW(),Курс2!$AA$7:$AA$75)+SUMIF(Курс3!$AL$7:$AL$75,"="&ROW(),Курс3!$AA$7:$AA$75)+SUMIF(Курс4!$AL$7:$AL$75,"="&ROW(),Курс4!$AA$7:$AA$75)+SUMIF(Курс5!$AL$7:$AL$75,"="&ROW(),Курс5!$AA$7:$AA$75)+SUMIF(Курс6!$AL$7:$AL$75,"="&ROW(),Курс6!$AA$7:$AA$75)+SUMIF(Курс7!$AL$7:$AL$75,"="&ROW(),Курс7!$AA$7:$AA$75),0)) -> 0 | I34: 0 | J34: 0 | BQ34: 0 | BR34: 0 | BS34: 0 | BT34: 0 | BU34: 0 | BV34: 0 | BW34: 0 | BY34: 0 | BZ34: 0 | CA34: 0 | CB34: 0 | CC34: 0 | CE34: 0 | CK34: 0 | CL34: 0 | CM34: 0 | CN34: 0 | CO34: 0 | CP34: 0 | CQ34: 0 | CR34: 0 | CS34: 0 | CT34: 0 | CU34: 0 | CV34: 0 | CW34: 0 | CX34: 0 | CY34: 0 | CZ34: 0 | DA34: 0 | DB34: 0 | DC34: 0 | DD34: 0 | DE34: 0 | DF34: 0 | DG34: 0 | DH34: 0 | DI34: 0 | DJ34: 0 | DK34: 0 | DL34: 0 | DM34: 0 | DN34: 0 | DO34: 0 | DP34: 0 | DQ34: 0 | DR34: 0 | DS34: 0 | DT34: 0 | DU34: 0 | DV34: 0 | DW34: 0 | DX34: 0 | DY34: 0 | DZ34: 0 | EA34: 0 | EB34: 0 | EC34: 0 | ED34: 0 | EE34: 0 | EF34: 0 | EG34: 0 | EH34: 0 | EI34: 0 | EJ34: 0 | EK34: 0 | EL34: 0 | EM34: 0 | EN34: 0 | EO34: 0 | EP34: 0 | EQ34: 0 | ER34: 0 | ES34: 0 | EU34: 0 | EV34: 0 | EW34: 0 | EX34: 0 | EY34: 0 | EZ34: 0 | FA34: 0 | FB34: 0 | FC34: 0 | FD34: 0 | FE34: 0 | FF34: 0 | FG34: 0 | FH34: 0 | FI34: 0 | FJ34: 0 | FK34: 0 | FL34: 1 | FM34: 569 | FN34: 575 | FO34: В | FP34: 0 | FQ34: =SUM($CB$6:$CB34) -> 6 | FR34: 0 | FS34: 0 | FT34: 0 | FU34: =IF(FT34=0,FLOOR(IF(СЭкзаменами,H34,(H34+SUMIF(Курс1!$AL$7:$AL$75,"="&ROW(),Курс1!$AA$7:$AA$75)+SUMIF(Курс2!$AL$7:$AL$75,"="&ROW(),Курс2!$AA$7:$AA$75)+SUMIF(Курс3!$AL$7:$AL$75,"="&ROW(),Курс3!$AA$7:$AA$75)+SUMIF(Курс4!$AL$7:$AL$75,"="&ROW(),Курс4!$AA$7:$AA$75)+SUMIF(Курс5!$AL$7:$AL$75,"="&ROW(),Курс5!$AA$7:$AA$75)+SUMIF(Курс6!$AL$7:$AL$75,"="&ROW(),Курс6!$AA$7:$AA$75)+SUMIF(Курс7!$AL$7:$AL$75,"="&ROW(),Курс7!$AA$7:$AA$75)))/IF(ЧасовВКредите>0,ЧасовВКредите,36),0.5),FT34) -> 0 | FY34: =SUMIF(Курс1!$AL$7:$AL$75,"="&ROW(),Курс1!$AC$7:$AC$75)+SUMIF(Курс2!$AL$7:$AL$75,"="&ROW(),Курс2!$AC$7:$AC$75)+SUMIF(Курс3!$AL$7:$AL$75,"="&ROW(),Курс3!$AC$7:$AC$75)+SUMIF(Курс4!$AL$7:$AL$75,"="&ROW(),Курс4!$AC$7:$AC$75)+SUMIF(Курс5!$AL$7:$AL$75,"="&ROW(),Курс5!$AC$7:$AC$75)+SUMIF(Курс6!$AL$7:$AL$75,"="&ROW(),Курс6!$AC$7:$AC$75)+SUMIF(Курс7!$AL$7:$AL$75,"="&ROW(),Курс7!$AC$7:$AC$75) -> 0
G35: =IF($FI35>0,$FW35,SUM(I35:K35)+CJ35+IF(СЭкзаменами,SUMIF(Курс1!$AL$7:$AL$75,"="&ROW(),Курс1!$AA$7:$AA$75)+SUMIF(Курс2!$AL$7:$AL$75,"="&ROW(),Курс2!$AA$7:$AA$75)+SUMIF(Курс3!$AL$7:$AL$75,"="&ROW(),Курс3!$AA$7:$AA$75)+SUMIF(Курс4!$AL$7:$AL$75,"="&ROW(),Курс4!$AA$7:$AA$75)+SUMIF(Курс5!$AL$7:$AL$75,"="&ROW(),Курс5!$AA$7:$AA$75)+SUMIF(Курс6!$AL$7:$AL$75,"="&ROW(),Курс6!$AA$7:$AA$75)+SUMIF(Курс7!$AL$7:$AL$75,"="&ROW(),Курс7!$AA$7:$AA$75),0)) -> 0 | I35: 0 | J35: 0 | BQ35: 0 | BR35: 0 | BS35: 0 | BT35: 0 | BU35: 0 | BV35: 0 | BW35: 0 | BY35: 0 | BZ35: 0 | CA35: 0 | CB35: 0 | CC35: 0 | CE35: 0 | CK35: 0 | CL35: 0 | CM35: 0 | CN35: 0 | CO35: 0 | CP35: 0 | CQ35: 0 | CR35: 0 | CS35: 0 | CT35: 0 | CU35: 0 | CV35: 0 | CW35: 0 | CX35: 0 | CY35: 0 | CZ35: 0 | DA35: 0 | DB35: 0 | DC35: 0 | DD35: 0 | DE35: 0 | DF35: 0 | DG35: 0 | DH35: 0 | DI35: 0 | DJ35: 0 | DK35: 0 | DL35: 0 | DM35: 0 | DN35: 0 | DO35: 0 | DP35: 0 | DQ35: 0 | DR35: 0 | DS35: 0 | DT35: 0 | DU35: 0 | DV35: 0 | DW35: 0 | DX35: 0 | DY35: 0 | DZ35: 0 | EA35: 0 | EB35: 0 | EC35: 0 | ED35: 0 | EE35: 0 | EF35: 0 | EG35: 0 | EH35: 0 | EI35: 0 | EJ35: 0 | EK35: 0 | EL35: 0 | EM35: 0 | EN35: 0 | EO35: 0 | EP35: 0 | EQ35: 0 | ER35: 0 | ES35: 0 | EU35: 0 | EV35: 0 | EW35: 0 | EX35: 0 | EY35: 0 | EZ35: 0 | FA35: 0 | FB35: 0 | FC35: 0 | FD35: 0 | FE35: 0 | FF35: 0 | FG35: 0 | FH35: 0 | FI35: 0 | FJ35: 0 | FK35: 0 | FL35: 1 | FM35: 579 | FN35: 585 | FO35: В | FP35: 0 | FQ35: =SUM($CB$6:$CB35) -> 6 | FR35: 0 | FT35: 0 | FU35: =IF(FT35=0,FLOOR(IF(СЭкзаменами,H35,(H35+SUMIF(Курс1!$AL$7:$AL$75,"="&ROW(),Курс1!$AA$7:$AA$75)+SUMIF(Курс2!$AL$7:$AL$75,"="&ROW(),Курс2!$AA$7:$AA$75)+SUMIF(Курс3!$AL$7:$AL$75,"="&ROW(),Курс3!$AA$7:$AA$75)+SUMIF(Курс4!$AL$7:$AL$75,"="&ROW(),Курс4!$AA$7:$AA$75)+SUMIF(Курс5!$AL$7:$AL$75,"="&ROW(),Курс5!$AA$7:$AA$75)+SUMIF(Курс6!$AL$7:$AL$75,"="&ROW(),Курс6!$AA$7:$AA$75)+SUMIF(Курс7!$AL$7:$AL$75,"="&ROW(),Курс7!$AA$7:$AA$75)))/IF(ЧасовВКредите>0,ЧасовВКредите,36),0.5),FT35) -> 0 | FY35: =SUMIF(Курс1!$AL$7:$AL$75,"="&ROW(),Курс1!$AC$7:$AC$75)+SUMIF(Курс2!$AL$7:$AL$75,"="&ROW(),Курс2!$AC$7:$AC$75)+SUMIF(Курс3!$AL$7:$AL$75,"="&ROW(),Курс3!$AC$7:$AC$75)+SUMIF(Курс4!$AL$7:$AL$75,"="&ROW(),Курс4!$AC$7:$AC$75)+SUMIF(Курс5!$AL$7:$AL$75,"="&ROW(),Курс5!$AC$7:$AC$75)+SUMIF(Курс6!$AL$7:$AL$75,"="&ROW(),Курс6!$AC$7:$AC$75)+SUMIF(Курс7!$AL$7:$AL$75,"="&ROW(),Курс7!$AC$7:$AC$75) -> 0
G36: =IF($FI36>0,$FW36,SUM(I36:K36)+CJ36+IF(СЭкзаменами,SUMIF(Курс1!$AL$7:$AL$75,"="&ROW(),Курс1!$AA$7:$AA$75)+SUMIF(Курс2!$AL$7:$AL$75,"="&ROW(),Курс2!$AA$7:$AA$75)+SUMIF(Курс3!$AL$7:$AL$75,"="&ROW(),Курс3!$AA$7:$AA$75)+SUMIF(Курс4!$AL$7:$AL$75,"="&ROW(),Курс4!$AA$7:$AA$75)+SUMIF(Курс5!$AL$7:$AL$75,"="&ROW(),Курс5!$AA$7:$AA$75)+SUMIF(Курс6!$AL$7:$AL$75,"="&ROW(),Курс6!$AA$7:$AA$75)+SUMIF(Курс7!$AL$7:$AL$75,"="&ROW(),Курс7!$AA$7:$AA$75),0)) -> 0 | I36: 0 | J36: 0 | BQ36: 0 | BR36: 0 | BS36: 0 | BT36: 0 | BU36: 0 | BV36: 0 | BW36: 0 | BY36: 0 | BZ36: 0 | CA36: 0 | CB36: 0 | CC36: 0 | CE36: 0 | CK36: 0 | CL36: 0 | CM36: 0 | CN36: 0 | CO36: 0 | CP36: 0 | CQ36: 0 | CR36: 0 | CS36: 0 | CT36: 0 | CU36: 0 | CV36: 0 | CW36: 0 | CX36: 0 | CY36: 0 | CZ36: 0 | DA36: 0 | DB36: 0 | DC36: 0 | DD36: 0 | DE36: 0 | DF36: 0 | DG36: 0 | DH36: 0 | DI36: 0 | DJ36: 0 | DK36: 0 | DL36: 0 | DM36: 0 | DN36: 0 | DO36: 0 | DP36: 0 | DQ36: 0 | DR36: 0 | DS36: 0 | DT36: 0 | DU36: 0 | DV36: 0 | DW36: 0 | DX36: 0 | DY36: 0 | DZ36: 0 | EA36: 0 | EB36: 0 | EC36: 0 | ED36: 0 | EE36: 0 | EF36: 0 | EG36: 0 | EH36: 0 | EI36: 0 | EJ36: 0 | EK36: 0 | EL36: 0 | EM36: 0 | EN36: 0 | EO36: 0 | EP36: 0 | EQ36: 0 | ER36: 0 | ES36: 0 | EU36: 0 | EV36: 0 | EW36: 0 | EX36: 0 | EY36: 0 | EZ36: 0 | FA36: 0 | FB36: 0 | FC36: 0 | FD36: 0 | FE36: 0 | FF36: 0 | FG36: 0 | FH36: 0 | FI36: 0 | FJ36: 0 | FK36: 0 | FL36: 1 | FM36: 589 | FN36: 595 | FO36: В | FP36: 0 | FQ36: =SUM($CB$6:$CB36) -> 6 | FR36: 0 | FT36: 0 | FU36: =IF(FT36=0,FLOOR(IF(СЭкзаменами,H36,(H36+SUMIF(Курс1!$AL$7:$AL$75,"="&ROW(),Курс1!$AA$7:$AA$75)+SUMIF(Курс2!$AL$7:$AL$75,"="&ROW(),Курс2!$AA$7:$AA$75)+SUMIF(Курс3!$AL$7:$AL$75,"="&ROW(),Курс3!$AA$7:$AA$75)+SUMIF(Курс4!$AL$7:$AL$75,"="&ROW(),Курс4!$AA$7:$AA$75)+SUMIF(Курс5!$AL$7:$AL$75,"="&ROW(),Курс5!$AA$7:$AA$75)+SUMIF(Курс6!$AL$7:$AL$75,"="&ROW(),Курс6!$AA$7:$AA$75)+SUMIF(Курс7!$AL$7:$AL$75,"="&ROW(),Курс7!$AA$7:$AA$75)))/IF(ЧасовВКредите>0,ЧасовВКредите,36),0.5),FT36) -> 0 | FY36: =SUMIF(Курс1!$AL$7:$AL$75,"="&ROW(),Курс1!$AC$7:$AC$75)+SUMIF(Курс2!$AL$7:$AL$75,"="&ROW(),Курс2!$AC$7:$AC$75)+SUMIF(Курс3!$AL$7:$AL$75,"="&ROW(),Курс3!$AC$7:$AC$75)+SUMIF(Курс4!$AL$7:$AL$75,"="&ROW(),Курс4!$AC$7:$AC$75)+SUMIF(Курс5!$AL$7:$AL$75,"="&ROW(),Курс5!$AC$7:$AC$75)+SUMIF(Курс6!$AL$7:$AL$75,"="&ROW(),Курс6!$AC$7:$AC$75)+SUMIF(Курс7!$AL$7:$AL$75,"="&ROW(),Курс7!$AC$7:$AC$75) -> 0
G37: =IF($FI37>0,$FW37,SUM(I37:K37)+CJ37+IF(СЭкзаменами,SUMIF(Курс1!$AL$7:$AL$75,"="&ROW(),Курс1!$AA$7:$AA$75)+SUMIF(Курс2!$AL$7:$AL$75,"="&ROW(),Курс2!$AA$7:$AA$75)+SUMIF(Курс3!$AL$7:$AL$75,"="&ROW(),Курс3!$AA$7:$AA$75)+SUMIF(Курс4!$AL$7:$AL$75,"="&ROW(),Курс4!$AA$7:$AA$75)+SUMIF(Курс5!$AL$7:$AL$75,"="&ROW(),Курс5!$AA$7:$AA$75)+SUMIF(Курс6!$AL$7:$AL$75,"="&ROW(),Курс6!$AA$7:$AA$75)+SUMIF(Курс7!$AL$7:$AL$75,"="&ROW(),Курс7!$AA$7:$AA$75),0)) -> 0 | I37: 0 | J37: 0 | BQ37: 0 | BR37: 0 | BS37: 0 | BT37: 0 | BU37: 0 | BV37: 0 | BW37: 0 | BY37: 0 | BZ37: 0 | CA37: 0 | CB37: 0 | CC37: 0 | CE37: 0 | CK37: 0 | CL37: 0 | CM37: 0 | CN37: 0 | CO37: 0 | CP37: 0 | CQ37: 0 | CR37: 0 | CS37: 0 | CT37: 0 | CU37: 0 | CV37: 0 | CW37: 0 | CX37: 0 | CY37: 0 | CZ37: 0 | DA37: 0 | DB37: 0 | DC37: 0 | DD37: 0 | DE37: 0 | DF37: 0 | DG37: 0 | DH37: 0 | DI37: 0 | DJ37: 0 | DK37: 0 | DL37: 0 | DM37: 0 | DN37: 0 | DO37: 0 | DP37: 0 | DQ37: 0 | DR37: 0 | DS37: 0 | DT37: 0 | DU37: 0 | DV37: 0 | DW37: 0 | DX37: 0 | DY37: 0 | DZ37: 0 | EA37: 0 | EB37: 0 | EC37: 0 | ED37: 0 | EE37: 0 | EF37: 0 | EG37: 0 | EH37: 0 | EI37: 0 | EJ37: 0 | EK37: 0 | EL37: 0 | EM37: 0 | EN37: 0 | EO37: 0 | EP37: 0 | EQ37: 0 | ER37: 0 | ES37: 0 | EU37: 0 | EV37: 0 | EW37: 0 | EX37: 0 | EY37: 0 | EZ37: 0 | FA37: 0 | FB37: 0 | FC37: 0 | FD37: 0 | FE37: 0 | FF37: 0 | FG37: 0 | FH37: 0 | FI37: 0 | FJ37: 0 | FK37: 0 | FL37: 1 | FM37: 599 | FN37: 605 | FO37: В | FP37: 0 | FQ37: =SUM($CB$6:$CB37) -> 6 | FR37: 0 | FT37: 0 | FU37: =IF(FT37=0,FLOOR(IF(СЭкзаменами,H37,(H37+SUMIF(Курс1!$AL$7:$AL$75,"="&ROW(),Курс1!$AA$7:$AA$75)+SUMIF(Курс2!$AL$7:$AL$75,"="&ROW(),Курс2!$AA$7:$AA$75)+SUMIF(Курс3!$AL$7:$AL$75,"="&ROW(),Курс3!$AA$7:$AA$75)+SUMIF(Курс4!$AL$7:$AL$75,"="&ROW(),Курс4!$AA$7:$AA$75)+SUMIF(Курс5!$AL$7:$AL$75,"="&ROW(),Курс5!$AA$7:$AA$75)+SUMIF(Курс6!$AL$7:$AL$75,"="&ROW(),Курс6!$AA$7:$AA$75)+SUMIF(Курс7!$AL$7:$AL$75,"="&ROW(),Курс7!$AA$7:$AA$75)))/IF(ЧасовВКредите>0,ЧасовВКредите,36),0.5),FT37) -> 0 | FY37: =SUMIF(Курс1!$AL$7:$AL$75,"="&ROW(),Курс1!$AC$7:$AC$75)+SUMIF(Курс2!$AL$7:$AL$75,"="&ROW(),Курс2!$AC$7:$AC$75)+SUMIF(Курс3!$AL$7:$AL$75,"="&ROW(),Курс3!$AC$7:$AC$75)+SUMIF(Курс4!$AL$7:$AL$75,"="&ROW(),Курс4!$AC$7:$AC$75)+SUMIF(Курс5!$AL$7:$AL$75,"="&ROW(),Курс5!$AC$7:$AC$75)+SUMIF(Курс6!$AL$7:$AL$75,"="&ROW(),Курс6!$AC$7:$AC$75)+SUMIF(Курс7!$AL$7:$AL$75,"="&ROW(),Курс7!$AC$7:$AC$75) -> 0
A38: =IF(TRIM(B38)<>"",B$5&IF(isFGOS,".Б.",".Ф.")&FQ38&IF(FR38>0,"."&FR38,""),"") ->  | G38: =IF($FI38>0,$FW38,SUM(I38:K38)+CJ38+IF(СЭкзаменами,SUMIF(Курс1!$AL$7:$AL$75,"="&ROW(),Курс1!$AA$7:$AA$75)+SUMIF(Курс2!$AL$7:$AL$75,"="&ROW(),Курс2!$AA$7:$AA$75)+SUMIF(Курс3!$AL$7:$AL$75,"="&ROW(),Курс3!$AA$7:$AA$75)+SUMIF(Курс4!$AL$7:$AL$75,"="&ROW(),Курс4!$AA$7:$AA$75)+SUMIF(Курс5!$AL$7:$AL$75,"="&ROW(),Курс5!$AA$7:$AA$75)+SUMIF(Курс6!$AL$7:$AL$75,"="&ROW(),Курс6!$AA$7:$AA$75)+SUMIF(Курс7!$AL$7:$AL$75,"="&ROW(),Курс7!$AA$7:$AA$75),0)) -> 0 | I38: 0 | J38: 0 | BQ38: 0 | BR38: 0 | BS38: 0 | BT38: 0 | BU38: 0 | BV38: 0 | BW38: 0 | BY38: 0 | BZ38: 0 | CA38: 0 | CB38: 0 | CC38: 0 | CE38: 0 | CK38: 0 | CL38: 0 | CM38: 0 | CN38: 0 | CO38: 0 | CP38: 0 | CQ38: 0 | CR38: 0 | CS38: 0 | CT38: 0 | CU38: 0 | CV38: 0 | CW38: 0 | CX38: 0 | CY38: 0 | CZ38: 0 | DA38: 0 | DB38: 0 | DC38: 0 | DD38: 0 | DE38: 0 | DF38: 0 | DG38: 0 | DH38: 0 | DI38: 0 | DJ38: 0 | DK38: 0 | DL38: 0 | DM38: 0 | DN38: 0 | DO38: 0 | DP38: 0 | DQ38: 0 | DR38: 0 | DS38: 0 | DT38: 0 | DU38: 0 | DV38: 0 | DW38: 0 | DX38: 0 | DY38: 0 | DZ38: 0 | EA38: 0 | EB38: 0 | EC38: 0 | ED38: 0 | EE38: 0 | EF38: 0 | EG38: 0 | EH38: 0 | EI38: 0 | EJ38: 0 | EK38: 0 | EL38: 0 | EM38: 0 | EN38: 0 | EO38: 0 | EP38: 0 | EQ38: 0 | ER38: =FormKontroljaInRange(CH38) -> 0 | ES38: 0 | EU38: 0 | EV38: 0 | EW38: 0 | EX38: 0 | EY38: 0 | EZ38: 0 | FA38: 0 | FB38: 0 | FC38: 0 | FD38: 0 | FE38: 0 | FF38: 0 | FG38: 0 | FH38: 0 | FI38: 0 | FJ38: 0 | FK38: =IF(AND(OR(LEFT(B38,19)="Физическая культура",LEFT(B38,21)="Физическая подготовка"),FI38<>1),1,0) -> 0 | FL38: 1 | FM38: 609 | FN38: 615 | FO38: В | FP38: 0 | FQ38: =SUM($CB$6:$CB38) -> 6 | FR38: 0 | FT38: 0 | FU38: =IF(FT38=0,FLOOR(IF(СЭкзаменами,H38,(H38+SUMIF(Курс1!$AL$7:$AL$75,"="&ROW(),Курс1!$AA$7:$AA$75)+SUMIF(Курс2!$AL$7:$AL$75,"="&ROW(),Курс2!$AA$7:$AA$75)+SUMIF(Курс3!$AL$7:$AL$75,"="&ROW(),Курс3!$AA$7:$AA$75)+SUMIF(Курс4!$AL$7:$AL$75,"="&ROW(),Курс4!$AA$7:$AA$75)+SUMIF(Курс5!$AL$7:$AL$75,"="&ROW(),Курс5!$AA$7:$AA$75)+SUMIF(Курс6!$AL$7:$AL$75,"="&ROW(),Курс6!$AA$7:$AA$75)+SUMIF(Курс7!$AL$7:$AL$75,"="&ROW(),Курс7!$AA$7:$AA$75)))/IF(ЧасовВКредите>0,ЧасовВКредите,36),0.5),FT38) -> 0 | FY38: =SUMIF(Курс1!$AL$7:$AL$75,"="&ROW(),Курс1!$AC$7:$AC$75)+SUMIF(Курс2!$AL$7:$AL$75,"="&ROW(),Курс2!$AC$7:$AC$75)+SUMIF(Курс3!$AL$7:$AL$75,"="&ROW(),Курс3!$AC$7:$AC$75)+SUMIF(Курс4!$AL$7:$AL$75,"="&ROW(),Курс4!$AC$7:$AC$75)+SUMIF(Курс5!$AL$7:$AL$75,"="&ROW(),Курс5!$AC$7:$AC$75)+SUMIF(Курс6!$AL$7:$AL$75,"="&ROW(),Курс6!$AC$7:$AC$75)+SUMIF(Курс7!$AL$7:$AL$75,"="&ROW(),Курс7!$AC$7:$AC$75) -> 0
G39: =IF($FI39>0,$FW39,SUM(I39:K39)+CJ39+IF(СЭкзаменами,SUMIF(Курс1!$AL$7:$AL$75,"="&ROW(),Курс1!$AA$7:$AA$75)+SUMIF(Курс2!$AL$7:$AL$75,"="&ROW(),Курс2!$AA$7:$AA$75)+SUMIF(Курс3!$AL$7:$AL$75,"="&ROW(),Курс3!$AA$7:$AA$75)+SUMIF(Курс4!$AL$7:$AL$75,"="&ROW(),Курс4!$AA$7:$AA$75)+SUMIF(Курс5!$AL$7:$AL$75,"="&ROW(),Курс5!$AA$7:$AA$75)+SUMIF(Курс6!$AL$7:$AL$75,"="&ROW(),Курс6!$AA$7:$AA$75)+SUMIF(Курс7!$AL$7:$AL$75,"="&ROW(),Курс7!$AA$7:$AA$75),0)) -> 0 | I39: 0 | J39: 0 | BQ39: 0 | BR39: 0 | BS39: 0 | BT39: 0 | BU39: 0 | BV39: 0 | BW39: 0 | BY39: 0 | BZ39: 0 | CA39: 0 | CB39: 0 | CC39: 0 | CE39: 0 | CK39: 0 | CL39: 0 | CM39: 0 | CN39: 0 | CO39: 0 | CP39: 0 | CQ39: 0 | CR39: 0 | CS39: 0 | CT39: 0 | CU39: 0 | CV39: 0 | CW39: 0 | CX39: 0 | CY39: 0 | CZ39: 0 | DA39: 0 | DB39: 0 | DC39: 0 | DD39: 0 | DE39: 0 | DF39: 0 | DG39: 0 | DH39: 0 | DI39: 0 | DJ39: 0 | DK39: 0 | DL39: 0 | DM39: 0 | DN39: 0 | DO39: 0 | DP39: 0 | DQ39: 0 | DR39: 0 | DS39: 0 | DT39: 0 | DU39: 0 | DV39: 0 | DW39: 0 | DX39: 0 | DY39: 0 | DZ39: 0 | EA39: 0 | EB39: 0 | EC39: 0 | ED39: 0 | EE39: 0 | EF39: 0 | EG39: 0 | EH39: 0 | EI39: 0 | EJ39: 0 | EK39: 0 | EL39: 0 | EM39: 0 | EN39: 0 | EO39: 0 | EP39: 0 | EQ39: 0 | ER39: 0 | ES39: 0 | EU39: 0 | EV39: 0 | EW39: 0 | EX39: 0 | EY39: 0 | EZ39: 0 | FA39: 0 | FB39: 0 | FC39: 0 | FD39: 0 | FE39: 0 | FF39: 0 | FG39: 0 | FH39: 0 | FI39: 0 | FJ39: 0 | FK39: 0 | FL39: 1 | FM39: 619 | FN39: 625 | FO39: В | FP39: 0 | FQ39: =SUM($CB$6:$CB39) -> 6 | FR39: 0 | FT39: 0 | FU39: =IF(FT39=0,FLOOR(IF(СЭкзаменами,H39,(H39+SUMIF(Курс1!$AL$7:$AL$75,"="&ROW(),Курс1!$AA$7:$AA$75)+SUMIF(Курс2!$AL$7:$AL$75,"="&ROW(),Курс2!$AA$7:$AA$75)+SUMIF(Курс3!$AL$7:$AL$75,"="&ROW(),Курс3!$AA$7:$AA$75)+SUMIF(Курс4!$AL$7:$AL$75,"="&ROW(),Курс4!$AA$7:$AA$75)+SUMIF(Курс5!$AL$7:$AL$75,"="&ROW(),Курс5!$AA$7:$AA$75)+SUMIF(Курс6!$AL$7:$AL$75,"="&ROW(),Курс6!$AA$7:$AA$75)+SUMIF(Курс7!$AL$7:$AL$75,"="&ROW(),Курс7!$AA$7:$AA$75)))/IF(ЧасовВКредите>0,ЧасовВКредите,36),0.5),FT39) -> 0 | FY39: =SUMIF(Курс1!$AL$7:$AL$75,"="&ROW(),Курс1!$AC$7:$AC$75)+SUMIF(Курс2!$AL$7:$AL$75,"="&ROW(),Курс2!$AC$7:$AC$75)+SUMIF(Курс3!$AL$7:$AL$75,"="&ROW(),Курс3!$AC$7:$AC$75)+SUMIF(Курс4!$AL$7:$AL$75,"="&ROW(),Курс4!$AC$7:$AC$75)+SUMIF(Курс5!$AL$7:$AL$75,"="&ROW(),Курс5!$AC$7:$AC$75)+SUMIF(Курс6!$AL$7:$AL$75,"="&ROW(),Курс6!$AC$7:$AC$75)+SUMIF(Курс7!$AL$7:$AL$75,"="&ROW(),Курс7!$AC$7:$AC$75) -> 0
G40: =IF($FI40>0,$FW40,SUM(I40:K40)+CJ40+IF(СЭкзаменами,SUMIF(Курс1!$AL$7:$AL$75,"="&ROW(),Курс1!$AA$7:$AA$75)+SUMIF(Курс2!$AL$7:$AL$75,"="&ROW(),Курс2!$AA$7:$AA$75)+SUMIF(Курс3!$AL$7:$AL$75,"="&ROW(),Курс3!$AA$7:$AA$75)+SUMIF(Курс4!$AL$7:$AL$75,"="&ROW(),Курс4!$AA$7:$AA$75)+SUMIF(Курс5!$AL$7:$AL$75,"="&ROW(),Курс5!$AA$7:$AA$75)+SUMIF(Курс6!$AL$7:$AL$75,"="&ROW(),Курс6!$AA$7:$AA$75)+SUMIF(Курс7!$AL$7:$AL$75,"="&ROW(),Курс7!$AA$7:$AA$75),0)) -> 0 | I40: 0 | J40: 0 | BQ40: 0 | BR40: 0 | BS40: 0 | BT40: 0 | BU40: 0 | BV40: 0 | BW40: 0 | BY40: 0 | BZ40: 0 | CA40: 0 | CB40: 0 | CC40: 0 | CE40: 0 | CK40: 0 | CL40: 0 | CM40: 0 | CN40: 0 | CO40: 0 | CP40: 0 | CQ40: 0 | CR40: 0 | CS40: 0 | CT40: 0 | CU40: 0 | CV40: 0 | CW40: 0 | CX40: 0 | CY40: 0 | CZ40: 0 | DA40: 0 | DB40: 0 | DC40: 0 | DD40: 0 | DE40: 0 | DF40: 0 | DG40: 0 | DH40: 0 | DI40: 0 | DJ40: 0 | DK40: 0 | DL40: 0 | DM40: 0 | DN40: 0 | DO40: 0 | DP40: 0 | DQ40: 0 | DR40: 0 | DS40: 0 | DT40: 0 | DU40: 0 | DV40: 0 | DW40: 0 | DX40: 0 | DY40: 0 | DZ40: 0 | EA40: 0 | EB40: 0 | EC40: 0 | ED40: 0 | EE40: 0 | EF40: 0 | EG40: 0 | EH40: 0 | EI40: 0 | EJ40: 0 | EK40: 0 | EL40: 0 | EM40: 0 | EN40: 0 | EO40: 0 | EP40: 0 | EQ40: 0 | ER40: 0 | ES40: 0 | EU40: 0 | EV40: 0 | EW40: 0 | EX40: 0 | EY40: 0 | EZ40: 0 | FA40: 0 | FB40: 0 | FC40: 0 | FD40: 0 | FE40: 0 | FF40: 0 | FG40: 0 | FH40: 0 | FI40: 0 | FJ40: 0 | FK40: 0 | FL40: 1 | FM40: 629 | FN40: 635 | FO40: В | FP40: 0 | FQ40: =SUM($CB$6:$CB40) -> 6 | FR40: 0 | FT40: 0 | FU40: =IF(FT40=0,FLOOR(IF(СЭкзаменами,H40,(H40+SUMIF(Курс1!$AL$7:$AL$75,"="&ROW(),Курс1!$AA$7:$AA$75)+SUMIF(Курс2!$AL$7:$AL$75,"="&ROW(),Курс2!$AA$7:$AA$75)+SUMIF(Курс3!$AL$7:$AL$75,"="&ROW(),Курс3!$AA$7:$AA$75)+SUMIF(Курс4!$AL$7:$AL$75,"="&ROW(),Курс4!$AA$7:$AA$75)+SUMIF(Курс5!$AL$7:$AL$75,"="&ROW(),Курс5!$AA$7:$AA$75)+SUMIF(Курс6!$AL$7:$AL$75,"="&ROW(),Курс6!$AA$7:$AA$75)+SUMIF(Курс7!$AL$7:$AL$75,"="&ROW(),Курс7!$AA$7:$AA$75)))/IF(ЧасовВКредите>0,ЧасовВКредите,36),0.5),FT40) -> 0 | FY40: =SUMIF(Курс1!$AL$7:$AL$75,"="&ROW(),Курс1!$AC$7:$AC$75)+SUMIF(Курс2!$AL$7:$AL$75,"="&ROW(),Курс2!$AC$7:$AC$75)+SUMIF(Курс3!$AL$7:$AL$75,"="&ROW(),Курс3!$AC$7:$AC$75)+SUMIF(Курс4!$AL$7:$AL$75,"="&ROW(),Курс4!$AC$7:$AC$75)+SUMIF(Курс5!$AL$7:$AL$75,"="&ROW(),Курс5!$AC$7:$AC$75)+SUMIF(Курс6!$AL$7:$AL$75,"="&ROW(),Курс6!$AC$7:$AC$75)+SUMIF(Курс7!$AL$7:$AL$75,"="&ROW(),Курс7!$AC$7:$AC$75) -> 0
G41: =IF($FI41>0,$FW41,SUM(I41:K41)+CJ41+IF(СЭкзаменами,SUMIF(Курс1!$AL$7:$AL$75,"="&ROW(),Курс1!$AA$7:$AA$75)+SUMIF(Курс2!$AL$7:$AL$75,"="&ROW(),Курс2!$AA$7:$AA$75)+SUMIF(Курс3!$AL$7:$AL$75,"="&ROW(),Курс3!$AA$7:$AA$75)+SUMIF(Курс4!$AL$7:$AL$75,"="&ROW(),Курс4!$AA$7:$AA$75)+SUMIF(Курс5!$AL$7:$AL$75,"="&ROW(),Курс5!$AA$7:$AA$75)+SUMIF(Курс6!$AL$7:$AL$75,"="&ROW(),Курс6!$AA$7:$AA$75)+SUMIF(Курс7!$AL$7:$AL$75,"="&ROW(),Курс7!$AA$7:$AA$75),0)) -> 0 | I41: 0 | J41: 0 | BQ41: 0 | BR41: 0 | BS41: 0 | BT41: 0 | BU41: 0 | BV41: 0 | BW41: 0 | BY41: 0 | BZ41: 0 | CA41: 0 | CB41: 0 | CC41: 0 | CE41: 0 | CK41: 0 | CL41: 0 | CM41: 0 | CN41: 0 | CO41: 0 | CP41: 0 | CQ41: 0 | CR41: 0 | CS41: 0 | CT41: 0 | CU41: 0 | CV41: 0 | CW41: 0 | CX41: 0 | CY41: 0 | CZ41: 0 | DA41: 0 | DB41: 0 | DC41: 0 | DD41: 0 | DE41: 0 | DF41: 0 | DG41: 0 | DH41: 0 | DI41: 0 | DJ41: 0 | DK41: 0 | DL41: 0 | DM41: 0 | DN41: 0 | DO41: 0 | DP41: 0 | DQ41: 0 | DR41: 0 | DS41: 0 | DT41: 0 | DU41: 0 | DV41: 0 | DW41: 0 | DX41: 0 | DY41: 0 | DZ41: 0 | EA41: 0 | EB41: 0 | EC41: 0 | ED41: 0 | EE41: 0 | EF41: 0 | EG41: 0 | EH41: 0 | EI41: 0 | EJ41: 0 | EK41: 0 | EL41: 0 | EM41: 0 | EN41: 0 | EO41: 0 | EP41: 0 | EQ41: 0 | ER41: 0 | ES41: 0 | EU41: 0 | EV41: 0 | EW41: 0 | EX41: 0 | EY41: 0 | EZ41: 0 | FA41: 0 | FB41: 0 | FC41: 0 | FD41: 0 | FE41: 0 | FF41: 0 | FG41: 0 | FH41: 0 | FI41: 0 | FJ41: 0 | FK41: 0 | FL41: 1 | FM41: 639 | FN41: 645 | FO41: В | FP41: 0 | FQ41: =SUM($CB$6:$CB41) -> 6 | FR41: 0 | FT41: 0 | FU41: =IF(FT41=0,FLOOR(IF(СЭкзаменами,H41,(H41+SUMIF(Курс1!$AL$7:$AL$75,"="&ROW(),Курс1!$AA$7:$AA$75)+SUMIF(Курс2!$AL$7:$AL$75,"="&ROW(),Курс2!$AA$7:$AA$75)+SUMIF(Курс3!$AL$7:$AL$75,"="&ROW(),Курс3!$AA$7:$AA$75)+SUMIF(Курс4!$AL$7:$AL$75,"="&ROW(),Курс4!$AA$7:$AA$75)+SUMIF(Курс5!$AL$7:$AL$75,"="&ROW(),Курс5!$AA$7:$AA$75)+SUMIF(Курс6!$AL$7:$AL$75,"="&ROW(),Курс6!$AA$7:$AA$75)+SUMIF(Курс7!$AL$7:$AL$75,"="&ROW(),Курс7!$AA$7:$AA$75)))/IF(ЧасовВКредите>0,ЧасовВКредите,36),0.5),FT41) -> 0 | FY41: =SUMIF(Курс1!$AL$7:$AL$75,"="&ROW(),Курс1!$AC$7:$AC$75)+SUMIF(Курс2!$AL$7:$AL$75,"="&ROW(),Курс2!$AC$7:$AC$75)+SUMIF(Курс3!$AL$7:$AL$75,"="&ROW(),Курс3!$AC$7:$AC$75)+SUMIF(Курс4!$AL$7:$AL$75,"="&ROW(),Курс4!$AC$7:$AC$75)+SUMIF(Курс5!$AL$7:$AL$75,"="&ROW(),Курс5!$AC$7:$AC$75)+SUMIF(Курс6!$AL$7:$AL$75,"="&ROW(),Курс6!$AC$7:$AC$75)+SUMIF(Курс7!$AL$7:$AL$75,"="&ROW(),Курс7!$AC$7:$AC$75) -> 0
G42: =IF($FI42>0,$FW42,SUM(I42:K42)+CJ42+IF(СЭкзаменами,SUMIF(Курс1!$AL$7:$AL$75,"="&ROW(),Курс1!$AA$7:$AA$75)+SUMIF(Курс2!$AL$7:$AL$75,"="&ROW(),Курс2!$AA$7:$AA$75)+SUMIF(Курс3!$AL$7:$AL$75,"="&ROW(),Курс3!$AA$7:$AA$75)+SUMIF(Курс4!$AL$7:$AL$75,"="&ROW(),Курс4!$AA$7:$AA$75)+SUMIF(Курс5!$AL$7:$AL$75,"="&ROW(),Курс5!$AA$7:$AA$75)+SUMIF(Курс6!$AL$7:$AL$75,"="&ROW(),Курс6!$AA$7:$AA$75)+SUMIF(Курс7!$AL$7:$AL$75,"="&ROW(),Курс7!$AA$7:$AA$75),0)) -> 0 | I42: 0 | J42: 0 | BQ42: 0 | BR42: 0 | BS42: 0 | BT42: 0 | BU42: 0 | BV42: 0 | BW42: 0 | BY42: 0 | BZ42: 0 | CA42: 0 | CB42: 0 | CC42: 0 | CE42: 0 | CK42: 0 | CL42: 0 | CM42: 0 | CN42: 0 | CO42: 0 | CP42: 0 | CQ42: 0 | CR42: 0 | CS42: 0 | CT42: 0 | CU42: 0 | CV42: 0 | CW42: 0 | CX42: 0 | CY42: 0 | CZ42: 0 | DA42: 0 | DB42: 0 | DC42: 0 | DD42: 0 | DE42: 0 | DF42: 0 | DG42: 0 | DH42: 0 | DI42: 0 | DJ42: 0 | DK42: 0 | DL42: 0 | DM42: 0 | DN42: 0 | DO42: 0 | DP42: 0 | DQ42: 0 | DR42: 0 | DS42: 0 | DT42: 0 | DU42: 0 | DV42: 0 | DW42: 0 | DX42: 0 | DY42: 0 | DZ42: 0 | EA42: 0 | EB42: 0 | EC42: 0 | ED42: 0 | EE42: 0 | EF42: 0 | EG42: 0 | EH42: 0 | EI42: 0 | EJ42: 0 | EK42: 0 | EL42: 0 | EM42: 0 | EN42: 0 | EO42: 0 | EP42: 0 | EQ42: 0 | ER42: 0 | ES42: 0 | EU42: 0 | EV42: 0 | EW42: 0 | EX42: 0 | EY42: 0 | EZ42: 0 | FA42: 0 | FB42: 0 | FC42: 0 | FD42: 0 | FE42: 0 | FF42: 0 | FG42: 0 | FH42: 0 | FI42: 0 | FJ42: 0 | FK42: 0 | FL42: 1 | FM42: 649 | FN42: 655 | FO42: В | FP42: 0 | FQ42: =SUM($CB$6:$CB42) -> 6 | FR42: 0 | FT42: 0 | FU42: =IF(FT42=0,FLOOR(IF(СЭкзаменами,H42,(H42+SUMIF(Курс1!$AL$7:$AL$75,"="&ROW(),Курс1!$AA$7:$AA$75)+SUMIF(Курс2!$AL$7:$AL$75,"="&ROW(),Курс2!$AA$7:$AA$75)+SUMIF(Курс3!$AL$7:$AL$75,"="&ROW(),Курс3!$AA$7:$AA$75)+SUMIF(Курс4!$AL$7:$AL$75,"="&ROW(),Курс4!$AA$7:$AA$75)+SUMIF(Курс5!$AL$7:$AL$75,"="&ROW(),Курс5!$AA$7:$AA$75)+SUMIF(Курс6!$AL$7:$AL$75,"="&ROW(),Курс6!$AA$7:$AA$75)+SUMIF(Курс7!$AL$7:$AL$75,"="&ROW(),Курс7!$AA$7:$AA$75)))/IF(ЧасовВКредите>0,ЧасовВКредите,36),0.5),FT42) -> 0 | FY42: =SUMIF(Курс1!$AL$7:$AL$75,"="&ROW(),Курс1!$AC$7:$AC$75)+SUMIF(Курс2!$AL$7:$AL$75,"="&ROW(),Курс2!$AC$7:$AC$75)+SUMIF(Курс3!$AL$7:$AL$75,"="&ROW(),Курс3!$AC$7:$AC$75)+SUMIF(Курс4!$AL$7:$AL$75,"="&ROW(),Курс4!$AC$7:$AC$75)+SUMIF(Курс5!$AL$7:$AL$75,"="&ROW(),Курс5!$AC$7:$AC$75)+SUMIF(Курс6!$AL$7:$AL$75,"="&ROW(),Курс6!$AC$7:$AC$75)+SUMIF(Курс7!$AL$7:$AL$75,"="&ROW(),Курс7!$AC$7:$AC$75) -> 0
G43: =IF($FI43>0,$FW43,SUM(I43:K43)+CJ43+IF(СЭкзаменами,SUMIF(Курс1!$AL$7:$AL$75,"="&ROW(),Курс1!$AA$7:$AA$75)+SUMIF(Курс2!$AL$7:$AL$75,"="&ROW(),Курс2!$AA$7:$AA$75)+SUMIF(Курс3!$AL$7:$AL$75,"="&ROW(),Курс3!$AA$7:$AA$75)+SUMIF(Курс4!$AL$7:$AL$75,"="&ROW(),Курс4!$AA$7:$AA$75)+SUMIF(Курс5!$AL$7:$AL$75,"="&ROW(),Курс5!$AA$7:$AA$75)+SUMIF(Курс6!$AL$7:$AL$75,"="&ROW(),Курс6!$AA$7:$AA$75)+SUMIF(Курс7!$AL$7:$AL$75,"="&ROW(),Курс7!$AA$7:$AA$75),0)) -> 0 | I43: 0 | J43: 0 | BQ43: 0 | BR43: 0 | BS43: 0 | BT43: 0 | BU43: 0 | BV43: 0 | BW43: 0 | BY43: 0 | BZ43: 0 | CA43: 0 | CB43: 0 | CC43: 0 | CE43: 0 | CK43: 0 | CL43: 0 | CM43: 0 | CN43: 0 | CO43: 0 | CP43: 0 | CQ43: 0 | CR43: 0 | CS43: 0 | CT43: 0 | CU43: 0 | CV43: 0 | CW43: 0 | CX43: 0 | CY43: 0 | CZ43: 0 | DA43: 0 | DB43: 0 | DC43: 0 | DD43: 0 | DE43: 0 | DF43: 0 | DG43: 0 | DH43: 0 | DI43: 0 | DJ43: 0 | DK43: 0 | DL43: 0 | DM43: 0 | DN43: 0 | DO43: 0 | DP43: 0 | DQ43: 0 | DR43: 0 | DS43: 0 | DT43: 0 | DU43: 0 | DV43: 0 | DW43: 0 | DX43: 0 | DY43: 0 | DZ43: 0 | EA43: 0 | EB43: 0 | EC43: 0 | ED43: 0 | EE43: 0 | EF43: 0 | EG43: 0 | EH43: 0 | EI43: 0 | EJ43: 0 | EK43: 0 | EL43: 0 | EM43: 0 | EN43: 0 | EO43: 0 | EP43: 0 | EQ43: 0 | ER43: 0 | ES43: 0 | EU43: 0 | EV43: 0 | EW43: 0 | EX43: 0 | EY43: 0 | EZ43: 0 | FA43: 0 | FB43: 0 | FC43: 0 | FD43: 0 | FE43: 0 | FF43: 0 | FG43: 0 | FH43: 0 | FI43: 0 | FJ43: 0 | FK43: 0 | FL43: 1 | FM43: 659 | FN43: 665 | FO43: В | FP43: 0 | FQ43: =SUM($CB$6:$CB43) -> 6 | FR43: 0 | FT43: 0 | FU43: =IF(FT43=0,FLOOR(IF(СЭкзаменами,H43,(H43+SUMIF(Курс1!$AL$7:$AL$75,"="&ROW(),Курс1!$AA$7:$AA$75)+SUMIF(Курс2!$AL$7:$AL$75,"="&ROW(),Курс2!$AA$7:$AA$75)+SUMIF(Курс3!$AL$7:$AL$75,"="&ROW(),Курс3!$AA$7:$AA$75)+SUMIF(Курс4!$AL$7:$AL$75,"="&ROW(),Курс4!$AA$7:$AA$75)+SUMIF(Курс5!$AL$7:$AL$75,"="&ROW(),Курс5!$AA$7:$AA$75)+SUMIF(Курс6!$AL$7:$AL$75,"="&ROW(),Курс6!$AA$7:$AA$75)+SUMIF(Курс7!$AL$7:$AL$75,"="&ROW(),Курс7!$AA$7:$AA$75)))/IF(ЧасовВКредите>0,ЧасовВКредите,36),0.5),FT43) -> 0 | FY43: =SUMIF(Курс1!$AL$7:$AL$75,"="&ROW(),Курс1!$AC$7:$AC$75)+SUMIF(Курс2!$AL$7:$AL$75,"="&ROW(),Курс2!$AC$7:$AC$75)+SUMIF(Курс3!$AL$7:$AL$75,"="&ROW(),Курс3!$AC$7:$AC$75)+SUMIF(Курс4!$AL$7:$AL$75,"="&ROW(),Курс4!$AC$7:$AC$75)+SUMIF(Курс5!$AL$7:$AL$75,"="&ROW(),Курс5!$AC$7:$AC$75)+SUMIF(Курс6!$AL$7:$AL$75,"="&ROW(),Курс6!$AC$7:$AC$75)+SUMIF(Курс7!$AL$7:$AL$75,"="&ROW(),Курс7!$AC$7:$AC$75) -> 0
G44: =IF($FI44>0,$FW44,SUM(I44:K44)+CJ44+IF(СЭкзаменами,SUMIF(Курс1!$AL$7:$AL$75,"="&ROW(),Курс1!$AA$7:$AA$75)+SUMIF(Курс2!$AL$7:$AL$75,"="&ROW(),Курс2!$AA$7:$AA$75)+SUMIF(Курс3!$AL$7:$AL$75,"="&ROW(),Курс3!$AA$7:$AA$75)+SUMIF(Курс4!$AL$7:$AL$75,"="&ROW(),Курс4!$AA$7:$AA$75)+SUMIF(Курс5!$AL$7:$AL$75,"="&ROW(),Курс5!$AA$7:$AA$75)+SUMIF(Курс6!$AL$7:$AL$75,"="&ROW(),Курс6!$AA$7:$AA$75)+SUMIF(Курс7!$AL$7:$AL$75,"="&ROW(),Курс7!$AA$7:$AA$75),0)) -> 0 | I44: 0 | J44: 0 | BQ44: 0 | BR44: 0 | BS44: 0 | BT44: 0 | BU44: 0 | BV44: 0 | BW44: 0 | BY44: 0 | BZ44: 0 | CA44: 0 | CB44: 0 | CC44: 0 | CE44: 0 | CK44: 0 | CL44: 0 | CM44: 0 | CN44: 0 | CO44: 0 | CP44: 0 | CQ44: 0 | CR44: 0 | CS44: 0 | CT44: 0 | CU44: 0 | CV44: 0 | CW44: 0 | CX44: 0 | CY44: 0 | CZ44: 0 | DA44: 0 | DB44: 0 | DC44: 0 | DD44: 0 | DE44: 0 | DF44: 0 | DG44: 0 | DH44: 0 | DI44: 0 | DJ44: 0 | DK44: 0 | DL44: 0 | DM44: 0 | DN44: 0 | DO44: 0 | DP44: 0 | DQ44: 0 | DR44: 0 | DS44: 0 | DT44: 0 | DU44: 0 | DV44: 0 | DW44: 0 | DX44: 0 | DY44: 0 | DZ44: 0 | EA44: 0 | EB44: 0 | EC44: 0 | ED44: 0 | EE44: 0 | EF44: 0 | EG44: 0 | EH44: 0 | EI44: 0 | EJ44: 0 | EK44: 0 | EL44: 0 | EM44: 0 | EN44: 0 | EO44: 0 | EP44: 0 | EQ44: 0 | ER44: 0 | ES44: 0 | EU44: 0 | EV44: 0 | EW44: 0 | EX44: 0 | EY44: 0 | EZ44: 0 | FA44: 0 | FB44: 0 | FC44: 0 | FD44: 0 | FE44: 0 | FF44: 0 | FG44: 0 | FH44: 0 | FI44: 0 | FJ44: 0 | FK44: 0 | FL44: 1 | FM44: 669 | FN44: 675 | FO44: В | FP44: 0 | FQ44: =SUM($CB$6:$CB44) -> 6 | FR44: 0 | FT44: 0 | FU44: =IF(FT44=0,FLOOR(IF(СЭкзаменами,H44,(H44+SUMIF(Курс1!$AL$7:$AL$75,"="&ROW(),Курс1!$AA$7:$AA$75)+SUMIF(Курс2!$AL$7:$AL$75,"="&ROW(),Курс2!$AA$7:$AA$75)+SUMIF(Курс3!$AL$7:$AL$75,"="&ROW(),Курс3!$AA$7:$AA$75)+SUMIF(Курс4!$AL$7:$AL$75,"="&ROW(),Курс4!$AA$7:$AA$75)+SUMIF(Курс5!$AL$7:$AL$75,"="&ROW(),Курс5!$AA$7:$AA$75)+SUMIF(Курс6!$AL$7:$AL$75,"="&ROW(),Курс6!$AA$7:$AA$75)+SUMIF(Курс7!$AL$7:$AL$75,"="&ROW(),Курс7!$AA$7:$AA$75)))/IF(ЧасовВКредите>0,ЧасовВКредите,36),0.5),FT44) -> 0 | FY44: =SUMIF(Курс1!$AL$7:$AL$75,"="&ROW(),Курс1!$AC$7:$AC$75)+SUMIF(Курс2!$AL$7:$AL$75,"="&ROW(),Курс2!$AC$7:$AC$75)+SUMIF(Курс3!$AL$7:$AL$75,"="&ROW(),Курс3!$AC$7:$AC$75)+SUMIF(Курс4!$AL$7:$AL$75,"="&ROW(),Курс4!$AC$7:$AC$75)+SUMIF(Курс5!$AL$7:$AL$75,"="&ROW(),Курс5!$AC$7:$AC$75)+SUMIF(Курс6!$AL$7:$AL$75,"="&ROW(),Курс6!$AC$7:$AC$75)+SUMIF(Курс7!$AL$7:$AL$75,"="&ROW(),Курс7!$AC$7:$AC$75) -> 0
G45: =IF($FI45>0,$FW45,SUM(I45:K45)+CJ45+IF(СЭкзаменами,SUMIF(Курс1!$AL$7:$AL$75,"="&ROW(),Курс1!$AA$7:$AA$75)+SUMIF(Курс2!$AL$7:$AL$75,"="&ROW(),Курс2!$AA$7:$AA$75)+SUMIF(Курс3!$AL$7:$AL$75,"="&ROW(),Курс3!$AA$7:$AA$75)+SUMIF(Курс4!$AL$7:$AL$75,"="&ROW(),Курс4!$AA$7:$AA$75)+SUMIF(Курс5!$AL$7:$AL$75,"="&ROW(),Курс5!$AA$7:$AA$75)+SUMIF(Курс6!$AL$7:$AL$75,"="&ROW(),Курс6!$AA$7:$AA$75)+SUMIF(Курс7!$AL$7:$AL$75,"="&ROW(),Курс7!$AA$7:$AA$75),0)) -> 0 | I45: 0 | J45: 0 | BQ45: 0 | BR45: 0 | BS45: 0 | BT45: 0 | BU45: 0 | BV45: 0 | BW45: 0 | BY45: 0 | BZ45: 0 | CA45: 0 | CB45: 0 | CC45: 0 | CE45: 0 | CK45: 0 | CL45: 0 | CM45: 0 | CN45: 0 | CO45: 0 | CP45: 0 | CQ45: 0 | CR45: 0 | CS45: 0 | CT45: 0 | CU45: 0 | CV45: 0 | CW45: 0 | CX45: 0 | CY45: 0 | CZ45: 0 | DA45: 0 | DB45: 0 | DC45: 0 | DD45: 0 | DE45: 0 | DF45: 0 | DG45: 0 | DH45: 0 | DI45: 0 | DJ45: 0 | DK45: 0 | DL45: 0 | DM45: 0 | DN45: 0 | DO45: 0 | DP45: 0 | DQ45: 0 | DR45: 0 | DS45: 0 | DT45: 0 | DU45: 0 | DV45: 0 | DW45: 0 | DX45: 0 | DY45: 0 | DZ45: 0 | EA45: 0 | EB45: 0 | EC45: 0 | ED45: 0 | EE45: 0 | EF45: 0 | EG45: 0 | EH45: 0 | EI45: 0 | EJ45: 0 | EK45: 0 | EL45: 0 | EM45: 0 | EN45: 0 | EO45: 0 | EP45: 0 | EQ45: 0 | ER45: 0 | ES45: 0 | EU45: 0 | EV45: 0 | EW45: 0 | EX45: 0 | EY45: 0 | EZ45: 0 | FA45: 0 | FB45: 0 | FC45: 0 | FD45: 0 | FE45: 0 | FF45: 0 | FG45: 0 | FH45: 0 | FI45: 0 | FJ45: 0 | FK45: 0 | FL45: 1 | FM45: 679 | FN45: 685 | FO45: В | FP45: 0 | FQ45: =SUM($CB$6:$CB45) -> 6 | FR45: 0 | FT45: 0 | FU45: =IF(FT45=0,FLOOR(IF(СЭкзаменами,H45,(H45+SUMIF(Курс1!$AL$7:$AL$75,"="&ROW(),Курс1!$AA$7:$AA$75)+SUMIF(Курс2!$AL$7:$AL$75,"="&ROW(),Курс2!$AA$7:$AA$75)+SUMIF(Курс3!$AL$7:$AL$75,"="&ROW(),Курс3!$AA$7:$AA$75)+SUMIF(Курс4!$AL$7:$AL$75,"="&ROW(),Курс4!$AA$7:$AA$75)+SUMIF(Курс5!$AL$7:$AL$75,"="&ROW(),Курс5!$AA$7:$AA$75)+SUMIF(Курс6!$AL$7:$AL$75,"="&ROW(),Курс6!$AA$7:$AA$75)+SUMIF(Курс7!$AL$7:$AL$75,"="&ROW(),Курс7!$AA$7:$AA$75)))/IF(ЧасовВКредите>0,ЧасовВКредите,36),0.5),FT45) -> 0 | FY45: =SUMIF(Курс1!$AL$7:$AL$75,"="&ROW(),Курс1!$AC$7:$AC$75)+SUMIF(Курс2!$AL$7:$AL$75,"="&ROW(),Курс2!$AC$7:$AC$75)+SUMIF(Курс3!$AL$7:$AL$75,"="&ROW(),Курс3!$AC$7:$AC$75)+SUMIF(Курс4!$AL$7:$AL$75,"="&ROW(),Курс4!$AC$7:$AC$75)+SUMIF(Курс5!$AL$7:$AL$75,"="&ROW(),Курс5!$AC$7:$AC$75)+SUMIF(Курс6!$AL$7:$AL$75,"="&ROW(),Курс6!$AC$7:$AC$75)+SUMIF(Курс7!$AL$7:$AL$75,"="&ROW(),Курс7!$AC$7:$AC$75) -> 0
G46: =IF($FI46>0,$FW46,SUM(I46:K46)+CJ46+IF(СЭкзаменами,SUMIF(Курс1!$AL$7:$AL$75,"="&ROW(),Курс1!$AA$7:$AA$75)+SUMIF(Курс2!$AL$7:$AL$75,"="&ROW(),Курс2!$AA$7:$AA$75)+SUMIF(Курс3!$AL$7:$AL$75,"="&ROW(),Курс3!$AA$7:$AA$75)+SUMIF(Курс4!$AL$7:$AL$75,"="&ROW(),Курс4!$AA$7:$AA$75)+SUMIF(Курс5!$AL$7:$AL$75,"="&ROW(),Курс5!$AA$7:$AA$75)+SUMIF(Курс6!$AL$7:$AL$75,"="&ROW(),Курс6!$AA$7:$AA$75)+SUMIF(Курс7!$AL$7:$AL$75,"="&ROW(),Курс7!$AA$7:$AA$75),0)) -> 0 | I46: 0 | J46: 0 | BQ46: 0 | BR46: 0 | BS46: 0 | BT46: 0 | BU46: 0 | BV46: 0 | BW46: 0 | BY46: 0 | BZ46: 0 | CA46: 0 | CB46: 0 | CC46: 0 | CE46: 0 | CK46: 0 | CL46: 0 | CM46: 0 | CN46: 0 | CO46: 0 | CP46: 0 | CQ46: 0 | CR46: 0 | CS46: 0 | CT46: 0 | CU46: 0 | CV46: 0 | CW46: 0 | CX46: 0 | CY46: 0 | CZ46: 0 | DA46: 0 | DB46: 0 | DC46: 0 | DD46: 0 | DE46: 0 | DF46: 0 | DG46: 0 | DH46: 0 | DI46: 0 | DJ46: 0 | DK46: 0 | DL46: 0 | DM46: 0 | DN46: 0 | DO46: 0 | DP46: 0 | DQ46: 0 | DR46: 0 | DS46: 0 | DT46: 0 | DU46: 0 | DV46: 0 | DW46: 0 | DX46: 0 | DY46: 0 | DZ46: 0 | EA46: 0 | EB46: 0 | EC46: 0 | ED46: 0 | EE46: 0 | EF46: 0 | EG46: 0 | EH46: 0 | EI46: 0 | EJ46: 0 | EK46: 0 | EL46: 0 | EM46: 0 | EN46: 0 | EO46: 0 | EP46: 0 | EQ46: 0 | ER46: 0 | ES46: 0 | EU46: 0 | EV46: 0 | EW46: 0 | EX46: 0 | EY46: 0 | EZ46: 0 | FA46: 0 | FB46: 0 | FC46: 0 | FD46: 0 | FE46: 0 | FF46: 0 | FG46: 0 | FH46: 0 | FI46: 0 | FJ46: 0 | FK46: 0 | FL46: 1 | FM46: 690 | FN46: 749 | FO46: Ф | FP46: 0 | FQ46: =SUM($CB$6:$CB46) -> 6 | FR46: 0 | FT46: 0 | FU46: =IF(FT46=0,FLOOR(IF(СЭкзаменами,H46,(H46+SUMIF(Курс1!$AL$7:$AL$75,"="&ROW(),Курс1!$AA$7:$AA$75)+SUMIF(Курс2!$AL$7:$AL$75,"="&ROW(),Курс2!$AA$7:$AA$75)+SUMIF(Курс3!$AL$7:$AL$75,"="&ROW(),Курс3!$AA$7:$AA$75)+SUMIF(Курс4!$AL$7:$AL$75,"="&ROW(),Курс4!$AA$7:$AA$75)+SUMIF(Курс5!$AL$7:$AL$75,"="&ROW(),Курс5!$AA$7:$AA$75)+SUMIF(Курс6!$AL$7:$AL$75,"="&ROW(),Курс6!$AA$7:$AA$75)+SUMIF(Курс7!$AL$7:$AL$75,"="&ROW(),Курс7!$AA$7:$AA$75)))/IF(ЧасовВКредите>0,ЧасовВКредите,36),0.5),FT46) -> 0 | FY46: =SUMIF(Курс1!$AL$7:$AL$75,"="&ROW(),Курс1!$AC$7:$AC$75)+SUMIF(Курс2!$AL$7:$AL$75,"="&ROW(),Курс2!$AC$7:$AC$75)+SUMIF(Курс3!$AL$7:$AL$75,"="&ROW(),Курс3!$AC$7:$AC$75)+SUMIF(Курс4!$AL$7:$AL$75,"="&ROW(),Курс4!$AC$7:$AC$75)+SUMIF(Курс5!$AL$7:$AL$75,"="&ROW(),Курс5!$AC$7:$AC$75)+SUMIF(Курс6!$AL$7:$AL$75,"="&ROW(),Курс6!$AC$7:$AC$75)+SUMIF(Курс7!$AL$7:$AL$75,"="&ROW(),Курс7!$AC$7:$AC$75) -> 0
G47: =IF($FI47>0,$FW47,SUM(I47:K47)+CJ47+IF(СЭкзаменами,SUMIF(Курс1!$AL$7:$AL$75,"="&ROW(),Курс1!$AA$7:$AA$75)+SUMIF(Курс2!$AL$7:$AL$75,"="&ROW(),Курс2!$AA$7:$AA$75)+SUMIF(Курс3!$AL$7:$AL$75,"="&ROW(),Курс3!$AA$7:$AA$75)+SUMIF(Курс4!$AL$7:$AL$75,"="&ROW(),Курс4!$AA$7:$AA$75)+SUMIF(Курс5!$AL$7:$AL$75,"="&ROW(),Курс5!$AA$7:$AA$75)+SUMIF(Курс6!$AL$7:$AL$75,"="&ROW(),Курс6!$AA$7:$AA$75)+SUMIF(Курс7!$AL$7:$AL$75,"="&ROW(),Курс7!$AA$7:$AA$75),0)) -> 0 | I47: 0 | J47: 0 | BQ47: 0 | BR47: 0 | BS47: 0 | BT47: 0 | BU47: 0 | BV47: 0 | BW47: 0 | BY47: 0 | BZ47: 0 | CA47: 0 | CB47: 0 | CC47: 0 | CE47: 0 | CK47: 0 | CL47: 0 | CM47: 0 | CN47: 0 | CO47: 0 | CP47: 0 | CQ47: 0 | CR47: 0 | CS47: 0 | CT47: 0 | CU47: 0 | CV47: 0 | CW47: 0 | CX47: 0 | CY47: 0 | CZ47: 0 | DA47: 0 | DB47: 0 | DC47: 0 | DD47: 0 | DE47: 0 | DF47: 0 | DG47: 0 | DH47: 0 | DI47: 0 | DJ47: 0 | DK47: 0 | DL47: 0 | DM47: 0 | DN47: 0 | DO47: 0 | DP47: 0 | DQ47: 0 | DR47: 0 | DS47: 0 | DT47: 0 | DU47: 0 | DV47: 0 | DW47: 0 | DX47: 0 | DY47: 0 | DZ47: 0 | EA47: 0 | EB47: 0 | EC47: 0 | ED47: 0 | EE47: 0 | EF47: 0 | EG47: 0 | EH47: 0 | EI47: 0 | EJ47: 0 | EK47: 0 | EL47: 0 | EM47: 0 | EN47: 0 | EO47: 0 | EP47: 0 | EQ47: 0 | ER47: 0 | ES47: 0 | EU47: 0 | EV47: 0 | EW47: 0 | EX47: 0 | EY47: 0 | EZ47: 0 | FA47: 0 | FB47: 0 | FC47: 0 | FD47: 0 | FE47: 0 | FF47: 0 | FG47: 0 | FH47: 0 | FI47: 0 | FJ47: 0 | FK47: 0 | FL47: 1 | FM47: 750 | FN47: 783 | FO47: Р | FP47: 0 | FQ47: =SUM($CB$6:$CB47) -> 6 | FR47: 0 | FT47: 0 | FU47: =IF(FT47=0,FLOOR(IF(СЭкзаменами,H47,(H47+SUMIF(Курс1!$AL$7:$AL$75,"="&ROW(),Курс1!$AA$7:$AA$75)+SUMIF(Курс2!$AL$7:$AL$75,"="&ROW(),Курс2!$AA$7:$AA$75)+SUMIF(Курс3!$AL$7:$AL$75,"="&ROW(),Курс3!$AA$7:$AA$75)+SUMIF(Курс4!$AL$7:$AL$75,"="&ROW(),Курс4!$AA$7:$AA$75)+SUMIF(Курс5!$AL$7:$AL$75,"="&ROW(),Курс5!$AA$7:$AA$75)+SUMIF(Курс6!$AL$7:$AL$75,"="&ROW(),Курс6!$AA$7:$AA$75)+SUMIF(Курс7!$AL$7:$AL$75,"="&ROW(),Курс7!$AA$7:$AA$75)))/IF(ЧасовВКредите>0,ЧасовВКредите,36),0.5),FT47) -> 0 | FY47: =SUMIF(Курс1!$AL$7:$AL$75,"="&ROW(),Курс1!$AC$7:$AC$75)+SUMIF(Курс2!$AL$7:$AL$75,"="&ROW(),Курс2!$AC$7:$AC$75)+SUMIF(Курс3!$AL$7:$AL$75,"="&ROW(),Курс3!$AC$7:$AC$75)+SUMIF(Курс4!$AL$7:$AL$75,"="&ROW(),Курс4!$AC$7:$AC$75)+SUMIF(Курс5!$AL$7:$AL$75,"="&ROW(),Курс5!$AC$7:$AC$75)+SUMIF(Курс6!$AL$7:$AL$75,"="&ROW(),Курс6!$AC$7:$AC$75)+SUMIF(Курс7!$AL$7:$AL$75,"="&ROW(),Курс7!$AC$7:$AC$75) -> 0
G48: =IF($FI48>0,$FW48,SUM(I48:K48)+CJ48+IF(СЭкзаменами,SUMIF(Курс1!$AL$7:$AL$75,"="&ROW(),Курс1!$AA$7:$AA$75)+SUMIF(Курс2!$AL$7:$AL$75,"="&ROW(),Курс2!$AA$7:$AA$75)+SUMIF(Курс3!$AL$7:$AL$75,"="&ROW(),Курс3!$AA$7:$AA$75)+SUMIF(Курс4!$AL$7:$AL$75,"="&ROW(),Курс4!$AA$7:$AA$75)+SUMIF(Курс5!$AL$7:$AL$75,"="&ROW(),Курс5!$AA$7:$AA$75)+SUMIF(Курс6!$AL$7:$AL$75,"="&ROW(),Курс6!$AA$7:$AA$75)+SUMIF(Курс7!$AL$7:$AL$75,"="&ROW(),Курс7!$AA$7:$AA$75),0)) -> 0 | I48: 0 | J48: 0 | BQ48: 0 | BR48: 0 | BS48: 0 | BT48: 0 | BU48: 0 | BV48: 0 | BW48: 0 | BY48: 0 | BZ48: 0 | CA48: 0 | CB48: 0 | CC48: 0 | CE48: 0 | CK48: 0 | CL48: 0 | CM48: 0 | CN48: 0 | CO48: 0 | CP48: 0 | CQ48: 0 | CR48: 0 | CS48: 0 | CT48: 0 | CU48: 0 | CV48: 0 | CW48: 0 | CX48: 0 | CY48: 0 | CZ48: 0 | DA48: 0 | DB48: 0 | DC48: 0 | DD48: 0 | DE48: 0 | DF48: 0 | DG48: 0 | DH48: 0 | DI48: 0 | DJ48: 0 | DK48: 0 | DL48: 0 | DM48: 0 | DN48: 0 | DO48: 0 | DP48: 0 | DQ48: 0 | DR48: 0 | DS48: 0 | DT48: 0 | DU48: 0 | DV48: 0 | DW48: 0 | DX48: 0 | DY48: 0 | DZ48: 0 | EA48: 0 | EB48: 0 | EC48: 0 | ED48: 0 | EE48: 0 | EF48: 0 | EG48: 0 | EH48: 0 | EI48: 0 | EJ48: 0 | EK48: 0 | EL48: 0 | EM48: 0 | EN48: 0 | EO48: 0 | EP48: 0 | EQ48: 0 | ER48: 0 | ES48: 0 | EU48: 0 | EV48: 0 | EW48: 0 | EX48: 0 | EY48: 0 | EZ48: 0 | FA48: 0 | FB48: 0 | FC48: 0 | FD48: 0 | FE48: 0 | FF48: 0 | FG48: 0 | FH48: 0 | FI48: 0 | FJ48: 0 | FK48: 0 | FL48: 1 | FM48: 787 | FN48: 793 | FO48: В | FP48: 0 | FQ48: =SUM($CB$6:$CB48) -> 6 | FR48: 0 | FT48: 0 | FU48: =IF(FT48=0,FLOOR(IF(СЭкзаменами,H48,(H48+SUMIF(Курс1!$AL$7:$AL$75,"="&ROW(),Курс1!$AA$7:$AA$75)+SUMIF(Курс2!$AL$7:$AL$75,"="&ROW(),Курс2!$AA$7:$AA$75)+SUMIF(Курс3!$AL$7:$AL$75,"="&ROW(),Курс3!$AA$7:$AA$75)+SUMIF(Курс4!$AL$7:$AL$75,"="&ROW(),Курс4!$AA$7:$AA$75)+SUMIF(Курс5!$AL$7:$AL$75,"="&ROW(),Курс5!$AA$7:$AA$75)+SUMIF(Курс6!$AL$7:$AL$75,"="&ROW(),Курс6!$AA$7:$AA$75)+SUMIF(Курс7!$AL$7:$AL$75,"="&ROW(),Курс7!$AA$7:$AA$75)))/IF(ЧасовВКредите>0,ЧасовВКредите,36),0.5),FT48) -> 0 | FY48: =SUMIF(Курс1!$AL$7:$AL$75,"="&ROW(),Курс1!$AC$7:$AC$75)+SUMIF(Курс2!$AL$7:$AL$75,"="&ROW(),Курс2!$AC$7:$AC$75)+SUMIF(Курс3!$AL$7:$AL$75,"="&ROW(),Курс3!$AC$7:$AC$75)+SUMIF(Курс4!$AL$7:$AL$75,"="&ROW(),Курс4!$AC$7:$AC$75)+SUMIF(Курс5!$AL$7:$AL$75,"="&ROW(),Курс5!$AC$7:$AC$75)+SUMIF(Курс6!$AL$7:$AL$75,"="&ROW(),Курс6!$AC$7:$AC$75)+SUMIF(Курс7!$AL$7:$AL$75,"="&ROW(),Курс7!$AC$7:$AC$75) -> 0
G49: =IF($FI49>0,$FW49,SUM(I49:K49)+CJ49+IF(СЭкзаменами,SUMIF(Курс1!$AL$7:$AL$75,"="&ROW(),Курс1!$AA$7:$AA$75)+SUMIF(Курс2!$AL$7:$AL$75,"="&ROW(),Курс2!$AA$7:$AA$75)+SUMIF(Курс3!$AL$7:$AL$75,"="&ROW(),Курс3!$AA$7:$AA$75)+SUMIF(Курс4!$AL$7:$AL$75,"="&ROW(),Курс4!$AA$7:$AA$75)+SUMIF(Курс5!$AL$7:$AL$75,"="&ROW(),Курс5!$AA$7:$AA$75)+SUMIF(Курс6!$AL$7:$AL$75,"="&ROW(),Курс6!$AA$7:$AA$75)+SUMIF(Курс7!$AL$7:$AL$75,"="&ROW(),Курс7!$AA$7:$AA$75),0)) -> 0 | I49: 0 | J49: 0 | BQ49: 0 | BR49: 0 | BS49: 0 | BT49: 0 | BU49: 0 | BV49: 0 | BW49: 0 | BY49: 0 | BZ49: 0 | CA49: 0 | CB49: 0 | CC49: 0 | CE49: 0 | CK49: 0 | CL49: 0 | CM49: 0 | CN49: 0 | CO49: 0 | CP49: 0 | CQ49: 0 | CR49: 0 | CS49: 0 | CT49: 0 | CU49: 0 | CV49: 0 | CW49: 0 | CX49: 0 | CY49: 0 | CZ49: 0 | DA49: 0 | DB49: 0 | DC49: 0 | DD49: 0 | DE49: 0 | DF49: 0 | DG49: 0 | DH49: 0 | DI49: 0 | DJ49: 0 | DK49: 0 | DL49: 0 | DM49: 0 | DN49: 0 | DO49: 0 | DP49: 0 | DQ49: 0 | DR49: 0 | DS49: 0 | DT49: 0 | DU49: 0 | DV49: 0 | DW49: 0 | DX49: 0 | DY49: 0 | DZ49: 0 | EA49: 0 | EB49: 0 | EC49: 0 | ED49: 0 | EE49: 0 | EF49: 0 | EG49: 0 | EH49: 0 | EI49: 0 | EJ49: 0 | EK49: 0 | EL49: 0 | EM49: 0 | EN49: 0 | EO49: 0 | EP49: 0 | EQ49: 0 | ER49: 0 | ES49: 0 | EU49: 0 | EV49: 0 | EW49: 0 | EX49: 0 | EY49: 0 | EZ49: 0 | FA49: 0 | FB49: 0 | FC49: 0 | FD49: 0 | FE49: 0 | FF49: 0 | FG49: 0 | FH49: 0 | FI49: 0 | FJ49: 0 | FK49: 0 | FL49: 1 | FM49: 797 | FN49: 803 | FO49: В | FP49: 0 | FQ49: =SUM($CB$6:$CB49) -> 6 | FR49: 0 | FT49: 0 | FU49: =IF(FT49=0,FLOOR(IF(СЭкзаменами,H49,(H49+SUMIF(Курс1!$AL$7:$AL$75,"="&ROW(),Курс1!$AA$7:$AA$75)+SUMIF(Курс2!$AL$7:$AL$75,"="&ROW(),Курс2!$AA$7:$AA$75)+SUMIF(Курс3!$AL$7:$AL$75,"="&ROW(),Курс3!$AA$7:$AA$75)+SUMIF(Курс4!$AL$7:$AL$75,"="&ROW(),Курс4!$AA$7:$AA$75)+SUMIF(Курс5!$AL$7:$AL$75,"="&ROW(),Курс5!$AA$7:$AA$75)+SUMIF(Курс6!$AL$7:$AL$75,"="&ROW(),Курс6!$AA$7:$AA$75)+SUMIF(Курс7!$AL$7:$AL$75,"="&ROW(),Курс7!$AA$7:$AA$75)))/IF(ЧасовВКредите>0,ЧасовВКредите,36),0.5),FT49) -> 0 | FY49: =SUMIF(Курс1!$AL$7:$AL$75,"="&ROW(),Курс1!$AC$7:$AC$75)+SUMIF(Курс2!$AL$7:$AL$75,"="&ROW(),Курс2!$AC$7:$AC$75)+SUMIF(Курс3!$AL$7:$AL$75,"="&ROW(),Курс3!$AC$7:$AC$75)+SUMIF(Курс4!$AL$7:$AL$75,"="&ROW(),Курс4!$AC$7:$AC$75)+SUMIF(Курс5!$AL$7:$AL$75,"="&ROW(),Курс5!$AC$7:$AC$75)+SUMIF(Курс6!$AL$7:$AL$75,"="&ROW(),Курс6!$AC$7:$AC$75)+SUMIF(Курс7!$AL$7:$AL$75,"="&ROW(),Курс7!$AC$7:$AC$75) -> 0
